Workbook

Sheet Front Sheet
F7: Electricity Network Innovation Competition Full Submission
F8: Spreadsheet
F10: (2021 version 1.0)
F11: Appendix A
C15: Licensee Name: | D15: Electricity North West Ltd
C17: Submission Date: | D17: 2021-08-13
B21: Input cells
B22: Totals cells (of formula within worksheet)
B23: Referencing to other worksheets
B24: Check cells
B25: No Input
B26: Descriptions and pack data
B27: Ofgem Input cells

Sheet NIC Funding Request
A1: NIC Funding Request
C2: 2021/22 | D2: 2022/23 | E2: 2023/24 | F2: 2024/25 | G2: 2025/26 | H2: 2026/27 | I2: 2027/28 | J2: Total
A3: Total Project Cost | B3: From Project Cost Summary sheet
B4: Labour | C4: ='Project Cost Summary'!C18 -> 0 | D4: ='Project Cost Summary'!C31 -> 361559.605 | E4: ='Project Cost Summary'!C44 -> 372174.4518 | F4: ='Project Cost Summary'!C57 -> 382789.2987 | G4: ='Project Cost Summary'!C70 -> 505443.2532 | H4: ='Project Cost Summary'!C83 -> 157793.578 | I4: ='Project Cost Summary'!C96 -> 0 | J4: =SUM(C4:I4) -> 1779760.187
B5: Equipment | C5: ='Project Cost Summary'!D18 -> 0 | D5: ='Project Cost Summary'!D31 -> 0 | E5: ='Project Cost Summary'!D44 -> 0 | F5: ='Project Cost Summary'!D57 -> 0 | G5: ='Project Cost Summary'!D70 -> 0 | H5: ='Project Cost Summary'!D83 -> 0 | I5: ='Project Cost Summary'!D96 -> 0 | J5: 0
B6: Contractors | C6: ='Project Cost Summary'!E18 -> 0 | D6: ='Project Cost Summary'!E31 -> 695769.0814 | E6: ='Project Cost Summary'!E44 -> 845434.7355 | F6: ='Project Cost Summary'!E57 -> 981505.4994 | G6: ='Project Cost Summary'!E70 -> 350444.6975 | H6: ='Project Cost Summary'!E83 -> 244190.1074 | I6: ='Project Cost Summary'!E96 -> 0 | J6: 3117344.121
B7: IT | C7: ='Project Cost Summary'!F18 -> 0 | D7: ='Project Cost Summary'!F31 -> 1171599.847 | E7: ='Project Cost Summary'!F44 -> 464343.6544 | F7: ='Project Cost Summary'!F57 -> 410319.835 | G7: ='Project Cost Summary'!F70 -> 21574.35 | H7: ='Project Cost Summary'!F83 -> 5275.35 | I7: ='Project Cost Summary'!F96 -> 0 | J7: 2073113.037
B8: IPR Costs | C8: ='Project Cost Summary'!G18 -> 0 | D8: ='Project Cost Summary'!G31 -> 0 | E8: ='Project Cost Summary'!G44 -> 0 | F8: ='Project Cost Summary'!G57 -> 0 | G8: ='Project Cost Summary'!G70 -> 0 | H8: ='Project Cost Summary'!G83 -> 0 | I8: ='Project Cost Summary'!G96 -> 0 | J8: 0
B9: Travel & Expenses | C9: ='Project Cost Summary'!H18 -> 0 | D9: ='Project Cost Summary'!H31 -> 0 | E9: ='Project Cost Summary'!H44 -> 0 | F9: ='Project Cost Summary'!H57 -> 0 | G9: ='Project Cost Summary'!H70 -> 0 | H9: ='Project Cost Summary'!H83 -> 0 | I9: ='Project Cost Summary'!H96 -> 0 | J9: 0
A10: Payments to users & Contingency | C10: ='Project Cost Summary'!I18+'Project Cost Summary'!J18 -> 0 | D10: ='Project Cost Summary'!I31+'Project Cost Summary'!J31 -> 129225.7895 | E10: ='Project Cost Summary'!I44+'Project Cost Summary'!J44 -> 207943.3449 | F10: ='Project Cost Summary'!I57+'Project Cost Summary'!J57 -> 556691.9866 | G10: ='Project Cost Summary'!I70+'Project Cost Summary'!J70 -> 133537.4123 | H10: ='Project Cost Summary'!I83+'Project Cost Summary'!J83 -> 9605.111111 | I10: ='Project Cost Summary'!I96+'Project Cost Summary'!J96 -> 0 | J10: 1037003.644
B11: Decommissioning | C11: ='Project Cost Summary'!K18 -> 0 | D11: ='Project Cost Summary'!K31 -> 0 | E11: ='Project Cost Summary'!K44 -> 0 | F11: ='Project Cost Summary'!K57 -> 0 | G11: ='Project Cost Summary'!K70 -> 0 | H11: ='Project Cost Summary'!K83 -> 0 | I11: ='Project Cost Summary'!K96 -> 0 | J11: 0
B12: Other | C12: ='Project Cost Summary'!L18 -> 0 | D12: ='Project Cost Summary'!L31 -> 74840.5998 | E12: ='Project Cost Summary'!L44 -> 55439.80739 | F12: ='Project Cost Summary'!L57 -> 57021.01497 | G12: ='Project Cost Summary'!L70 -> 164076.8225 | H12: ='Project Cost Summary'!L83 -> 9259.254477 | I12: ='Project Cost Summary'!L96 -> 0 | J12: 360637.4992
B13: Total | C13: =SUM(C4:C12) -> 0 | D13: 2432994.923 | E13: 1945335.994 | F13: 2388327.635 | G13: 1175076.535 | H13: =SUM(H4:H12) -> 426123.401 | I13: 0 | J13: 8367858.488
A15: External funding | B15: Any funding that will be received from Project Partners and/or External Funders - from Project Cost Summary sheet
B16: Labour | C16: ='Project Cost Summary'!C22 -> 0 | D16: ='Project Cost Summary'!C35 -> 0 | E16: ='Project Cost Summary'!C48 -> 0 | F16: ='Project Cost Summary'!C61 -> 0 | G16: ='Project Cost Summary'!C74 -> 0 | H16: ='Project Cost Summary'!C87 -> 0 | I16: ='Project Cost Summary'!C100 -> 0 | J16: =SUM(C16:I16) -> 0
B17: Equipment | C17: ='Project Cost Summary'!D22 -> 0 | D17: ='Project Cost Summary'!D35 -> 0 | E17: ='Project Cost Summary'!D48 -> 0 | F17: ='Project Cost Summary'!D61 -> 0 | G17: ='Project Cost Summary'!D74 -> 0 | H17: ='Project Cost Summary'!D87 -> 0 | I17: ='Project Cost Summary'!D100 -> 0 | J17: 0
B18: Contractors | C18: ='Project Cost Summary'!E22 -> 0 | D18: ='Project Cost Summary'!E35 -> 70549.91295 | E18: ='Project Cost Summary'!E48 -> 107587.053 | F18: ='Project Cost Summary'!E61 -> 130719.5601 | G18: ='Project Cost Summary'!E74 -> 36985.05401 | H18: ='Project Cost Summary'!E87 -> 23570.4 | I18: ='Project Cost Summary'!E100 -> 0 | J18: 369411.98
B19: IT | C19: ='Project Cost Summary'!F22 -> 0 | D19: ='Project Cost Summary'!F35 -> 300000 | E19: ='Project Cost Summary'!F48 -> 0 | F19: ='Project Cost Summary'!F61 -> 0 | G19: ='Project Cost Summary'!F74 -> 0 | H19: ='Project Cost Summary'!F87 -> 0 | I19: ='Project Cost Summary'!F100 -> 0 | J19: 300000
B20: IPR Costs | C20: ='Project Cost Summary'!G22 -> 0 | D20: ='Project Cost Summary'!G35 -> 0 | E20: ='Project Cost Summary'!G48 -> 0 | F20: ='Project Cost Summary'!G61 -> 0 | G20: ='Project Cost Summary'!G74 -> 0 | H20: ='Project Cost Summary'!G87 -> 0 | I20: ='Project Cost Summary'!G100 -> 0 | J20: 0
B21: Travel & Expenses | C21: ='Project Cost Summary'!H22 -> 0 | D21: ='Project Cost Summary'!H35 -> 0 | E21: ='Project Cost Summary'!H48 -> 0 | F21: ='Project Cost Summary'!H61 -> 0 | G21: ='Project Cost Summary'!H74 -> 0 | H21: ='Project Cost Summary'!H87 -> 0 | I21: ='Project Cost Summary'!H100 -> 0 | J21: 0
A22: Payments to users & Contingency | C22: ='Project Cost Summary'!I22+'Project Cost Summary'!J22 -> 0 | D22: ='Project Cost Summary'!I35+'Project Cost Summary'!J35 -> 0 | E22: ='Project Cost Summary'!I48+'Project Cost Summary'!J48 -> 0 | F22: ='Project Cost Summary'!I61+'Project Cost Summary'!J61 -> 0 | G22: ='Project Cost Summary'!I74+'Project Cost Summary'!J74 -> 0 | H22: ='Project Cost Summary'!I87+'Project Cost Summary'!J87 -> 0 | I22: ='Project Cost Summary'!I100+'Project Cost Summary'!J100 -> 0 | J22: 0
B23: Decommissioning | C23: ='Project Cost Summary'!K22 -> 0 | D23: ='Project Cost Summary'!K35 -> 0 | E23: ='Project Cost Summary'!K48 -> 0 | F23: ='Project Cost Summary'!K61 -> 0 | G23: ='Project Cost Summary'!K74 -> 0 | H23: ='Project Cost Summary'!K87 -> 0 | I23: ='Project Cost Summary'!K100 -> 0 | J23: 0
B24: Other | C24: ='Project Cost Summary'!L22 -> 0 | D24: ='Project Cost Summary'!L35 -> 0 | E24: ='Project Cost Summary'!L48 -> 0 | F24: ='Project Cost Summary'!L61 -> 0 | G24: ='Project Cost Summary'!L74 -> 0 | H24: ='Project Cost Summary'!L87 -> 0 | I24: ='Project Cost Summary'!L100 -> 0 | J24: 0
B25: Total | C25: =SUM(C16:C24) -> 0 | D25: 370549.9129 | E25: 107587.053 | F25: 130719.5601 | G25: 36985.05401 | H25: =SUM(H16:H24) -> 23570.4 | I25: 0 | J25: 669411.98
A27: Licensee extra contribution | B27: Any funding from the Licensee which is in excess of the Licensee Compulsory Contribution - from Project Cost Summary sheet
B28: Labour | C28: ='Project Cost Summary'!C23 -> 0 | D28: ='Project Cost Summary'!C36 -> 0 | E28: ='Project Cost Summary'!C49 -> 0 | F28: ='Project Cost Summary'!C62 -> 0 | G28: ='Project Cost Summary'!C75 -> 0 | H28: ='Project Cost Summary'!C88 -> 0 | I28: ='Project Cost Summary'!C101 -> 0 | J28: =SUM(C28:I28) -> 0
B29: Equipment | C29: ='Project Cost Summary'!D23 -> 0 | D29: ='Project Cost Summary'!D36 -> 0 | E29: ='Project Cost Summary'!D49 -> 0 | F29: ='Project Cost Summary'!D62 -> 0 | G29: ='Project Cost Summary'!D75 -> 0 | H29: ='Project Cost Summary'!D88 -> 0 | I29: ='Project Cost Summary'!D101 -> 0 | J29: 0
B30: Contractors | C30: ='Project Cost Summary'!E23 -> 0 | D30: ='Project Cost Summary'!E36 -> 0 | E30: ='Project Cost Summary'!E49 -> 0 | F30: ='Project Cost Summary'!E62 -> 0 | G30: ='Project Cost Summary'!E75 -> 0 | H30: ='Project Cost Summary'!E88 -> 0 | I30: ='Project Cost Summary'!E101 -> 0 | J30: 0
B31: IT | C31: ='Project Cost Summary'!F23 -> 0 | D31: ='Project Cost Summary'!F36 -> 0 | E31: ='Project Cost Summary'!F49 -> 0 | F31: ='Project Cost Summary'!F62 -> 0 | G31: ='Project Cost Summary'!F75 -> 0 | H31: ='Project Cost Summary'!F88 -> 0 | I31: ='Project Cost Summary'!F101 -> 0 | J31: 0
B32: IPR Costs | C32: ='Project Cost Summary'!G23 -> 0 | D32: ='Project Cost Summary'!G36 -> 0 | E32: ='Project Cost Summary'!G49 -> 0 | F32: ='Project Cost Summary'!G62 -> 0 | G32: ='Project Cost Summary'!G75 -> 0 | H32: ='Project Cost Summary'!G88 -> 0 | I32: ='Project Cost Summary'!G101 -> 0 | J32: 0
B33: Travel & Expenses | C33: ='Project Cost Summary'!H23 -> 0 | D33: ='Project Cost Summary'!H36 -> 0 | E33: ='Project Cost Summary'!H49 -> 0 | F33: ='Project Cost Summary'!H62 -> 0 | G33: ='Project Cost Summary'!H75 -> 0 | H33: ='Project Cost Summary'!H88 -> 0 | I33: ='Project Cost Summary'!H101 -> 0 | J33: 0
A34: Payments to users & Contingency | C34: ='Project Cost Summary'!I23+'Project Cost Summary'!J23 -> 0 | D34: ='Project Cost Summary'!I36+'Project Cost Summary'!J36 -> 0 | E34: ='Project Cost Summary'!I49+'Project Cost Summary'!J49 -> 0 | F34: ='Project Cost Summary'!I62+'Project Cost Summary'!J62 -> 0 | G34: ='Project Cost Summary'!I75+'Project Cost Summary'!J75 -> 0 | H34: ='Project Cost Summary'!I88+'Project Cost Summary'!J88 -> 0 | I34: ='Project Cost Summary'!I101+'Project Cost Summary'!J101 -> 0 | J34: 0
B35: Decommissioning | C35: ='Project Cost Summary'!K23 -> 0 | D35: ='Project Cost Summary'!K36 -> 0 | E35: ='Project Cost Summary'!K49 -> 0 | F35: ='Project Cost Summary'!K62 -> 0 | G35: ='Project Cost Summary'!K75 -> 0 | H35: ='Project Cost Summary'!K88 -> 0 | I35: ='Project Cost Summary'!K101 -> 0 | J35: 0
B36: Other | C36: ='Project Cost Summary'!L23 -> 0 | D36: ='Project Cost Summary'!L36 -> 0 | E36: ='Project Cost Summary'!L49 -> 0 | F36: ='Project Cost Summary'!L62 -> 0 | G36: ='Project Cost Summary'!L75 -> 0 | H36: ='Project Cost Summary'!L88 -> 0 | I36: ='Project Cost Summary'!L101 -> 0 | J36: 0
B37: Total | C37: =SUM(C28:C36) -> 0 | D37: 0 | E37: 0 | F37: 0 | G37: 0 | H37: =SUM(H28:H36) -> 0 | I37: 0 | J37: 0
A39: Initial Net Funding Required
B40: Labour | C40: =C4-C16-C28 -> 0 | D40: 361559.605 | E40: 372174.4518 | F40: 382789.2987 | G40: 505443.2532 | H40: =H4-H16-H28 -> 157793.578 | I40: 0 | J40: =J4-J16-J28 -> 1779760.187
B41: Equipment | C41: =C5-C17-C29 -> 0 | D41: 0 | E41: 0 | F41: 0 | G41: 0 | H41: =H5-H17-H29 -> 0 | I41: 0 | J41: 0
B42: Contractors | C42: =C6-C18-C30 -> 0 | D42: 625219.1684 | E42: 737847.6826 | F42: 850785.9393 | G42: 313459.6435 | H42: =H6-H18-H30 -> 220619.7074 | I42: 0 | J42: 2747932.141
B43: IT | C43: =C7-C19-C31 -> 0 | D43: 871599.8475 | E43: 464343.6544 | F43: 410319.835 | G43: 21574.35 | H43: =H7-H19-H31 -> 5275.35 | I43: 0 | J43: 1773113.037
B44: IPR Costs | C44: =C8-C20-C32 -> 0 | D44: 0 | E44: 0 | F44: 0 | G44: 0 | H44: =H8-H20-H32 -> 0 | I44: 0 | J44: 0
B45: Travel & Expenses | C45: =C9-C21-C33 -> 0 | D45: 0 | E45: 0 | F45: 0 | G45: 0 | H45: =H9-H21-H33 -> 0 | I45: 0 | J45: 0
A46: Payments to users & Contingency | C46: =C10-C22-C34 -> 0 | D46: 129225.7895 | E46: 207943.3449 | F46: 556691.9866 | G46: 133537.4123 | H46: =H10-H22-H34 -> 9605.111111 | I46: 0 | J46: 1037003.644
B47: Decommissioning | C47: =C11-C23-C35 -> 0 | D47: 0 | E47: 0 | F47: 0 | G47: 0 | H47: =H11-H23-H35 -> 0 | I47: 0 | J47: 0 | K47: Check Total = to Initial Net Funding request
B48: Other | C48: =C12-C24-C36 -> 0 | D48: 74840.5998 | E48: 55439.80739 | F48: 57021.01497 | G48: 164076.8225 | H48: =H12-H24-H36 -> 9259.254477 | I48: 0 | J48: 360637.4992 | K48: in Project Cost Summary
B49: Total | C49: =C13-C25-C37 -> 0 | D49: 2062445.01 | E49: 1837748.941 | F49: 2257608.075 | G49: 1138091.481 | H49: =H13-H25-H37 -> 402553.001 | I49: 0 | J49: =J13-J25-J37 -> 7698446.508 | K49: =IF(J49='Project Cost Summary'!M11,"OK","ERROR") -> OK
A51: Direct Benefits | B51: from Direct Benefits sheet
B52: Total | C52: ='Direct Benefits'!C11 -> 0 | D52: ='Direct Benefits'!D11 -> 0 | E52: ='Direct Benefits'!E11 -> 0 | F52: ='Direct Benefits'!F11 -> 0 | G52: ='Direct Benefits'!G11 -> 0 | H52: ='Direct Benefits'!H11 -> 0 | I52: ='Direct Benefits'!I11 -> 0 | J52: =SUM(C52:I52) -> 0
A56: Licensee Compulsory Contribution / Direct Benefits | C56: from Project Cost Summary sheet
B57: Labour | C57: ='Project Cost Summary'!C25 -> 0 | D57: ='Project Cost Summary'!C38 -> 361559.605 | E57: ='Project Cost Summary'!C51 -> 264669.4372 | F57: ='Project Cost Summary'!C64 -> 169280.4129 | G57: ='Project Cost Summary'!C77 -> 42007.3265 | H57: ='Project Cost Summary'!C90 -> 7889.678901 | I57: ='Project Cost Summary'!C103 -> 0 | J57: =SUM(C57:I57) -> 845406.4605
B58: Equipment | C58: ='Project Cost Summary'!D25 -> 0 | D58: ='Project Cost Summary'!D38 -> 0 | E58: ='Project Cost Summary'!D51 -> 0 | F58: ='Project Cost Summary'!D64 -> 0 | G58: ='Project Cost Summary'!D77 -> 0 | H58: ='Project Cost Summary'!D90 -> 0 | I58: ='Project Cost Summary'!D103 -> 0 | J58: 0
B59: Contractors | C59: ='Project Cost Summary'!E25 -> 0 | D59: ='Project Cost Summary'!E38 -> 0 | E59: ='Project Cost Summary'!E51 -> 0 | F59: ='Project Cost Summary'!E64 -> 0 | G59: ='Project Cost Summary'!E77 -> 0 | H59: ='Project Cost Summary'!E90 -> 0 | I59: ='Project Cost Summary'!E103 -> 0 | J59: 0
B60: IT | C60: ='Project Cost Summary'!F25 -> 0 | D60: ='Project Cost Summary'!F38 -> 0 | E60: ='Project Cost Summary'!F51 -> 0 | F60: ='Project Cost Summary'!F64 -> 0 | G60: ='Project Cost Summary'!F77 -> 0 | H60: ='Project Cost Summary'!F90 -> 0 | I60: ='Project Cost Summary'!F103 -> 0 | J60: 0
B61: IPR Costs | C61: ='Project Cost Summary'!G25 -> 0 | D61: ='Project Cost Summary'!G38 -> 0 | E61: ='Project Cost Summary'!G51 -> 0 | F61: ='Project Cost Summary'!G64 -> 0 | G61: ='Project Cost Summary'!G77 -> 0 | H61: ='Project Cost Summary'!G90 -> 0 | I61: ='Project Cost Summary'!G103 -> 0 | J61: 0
B62: Travel & Expenses | C62: ='Project Cost Summary'!H25 -> 0 | D62: ='Project Cost Summary'!H38 -> 0 | E62: ='Project Cost Summary'!H51 -> 0 | F62: ='Project Cost Summary'!H64 -> 0 | G62: ='Project Cost Summary'!H77 -> 0 | H62: ='Project Cost Summary'!H90 -> 0 | I62: ='Project Cost Summary'!H103 -> 0 | J62: 0
A63: Payments to users & Contingency | C63: ='Project Cost Summary'!I25+'Project Cost Summary'!J25 -> 0 | D63: ='Project Cost Summary'!I38+'Project Cost Summary'!J38 -> 0 | E63: ='Project Cost Summary'!I51+'Project Cost Summary'!J51 -> 0 | F63: ='Project Cost Summary'!I64+'Project Cost Summary'!J64 -> 0 | G63: ='Project Cost Summary'!I77+'Project Cost Summary'!J77 -> 0 | H63: ='Project Cost Summary'!I90+'Project Cost Summary'!J90 -> 0 | I63: ='Project Cost Summary'!I103+'Project Cost Summary'!J103 -> 0 | J63: 0
B64: Decommissioning | C64: ='Project Cost Summary'!K25 -> 0 | D64: ='Project Cost Summary'!K38 -> 0 | E64: ='Project Cost Summary'!K51 -> 0 | F64: ='Project Cost Summary'!K64 -> 0 | G64: ='Project Cost Summary'!K77 -> 0 | H64: ='Project Cost Summary'!K90 -> 0 | I64: ='Project Cost Summary'!K103 -> 0 | J64: 0 | K64: of Total Initial Net Funding Required
B65: Other | C65: ='Project Cost Summary'!L25 -> 0 | D65: ='Project Cost Summary'!L38 -> 0 | E65: ='Project Cost Summary'!L51 -> 0 | F65: ='Project Cost Summary'!L64 -> 0 | G65: ='Project Cost Summary'!L77 -> 0 | H65: ='Project Cost Summary'!L90 -> 0 | I65: ='Project Cost Summary'!L103 -> 0 | J65: 0 | K65: =IF(J66>=J49*0.1,"OK","ERROR") -> OK
B66: Total | C66: =SUM(C57:C65) -> 0 | D66: 361559.605 | E66: 264669.4372 | F66: 169280.4129 | G66: 42007.3265 | H66: =SUM(H57:H65) -> 7889.678901 | I66: 0 | J66: 845406.4605 | K66: Check that Total is = or > than
K67: Total Direct Benefits
K68: =IF(J66>=J52,"OK","ERROR") -> OK
A69: Outstanding Funding required
B70: Labour | C70: =C40-C57 -> 0 | D70: 0 | E70: 107505.0146 | F70: 213508.8858 | G70: =G40-G57 -> 463435.9267 | H70: 149903.8991 | I70: 0 | J70: =SUM(C70:I70) -> 934353.7262
B71: Equipment | C71: 0 | D71: 0 | E71: 0 | F71: 0 | G71: 0 | H71: 0 | I71: 0 | J71: 0
B72: Contractors | C72: 0 | D72: 625219.1684 | E72: =E42-E59 -> 737847.6826 | F72: 850785.9393 | G72: 313459.6435 | H72: 220619.7074 | I72: 0 | J72: 2747932.141
B73: IT | C73: 0 | D73: 871599.8475 | E73: 464343.6544 | F73: 410319.835 | G73: 21574.35 | H73: 5275.35 | I73: 0 | J73: 1773113.037
B74: IPR Costs | C74: 0 | D74: 0 | E74: 0 | F74: 0 | G74: 0 | H74: 0 | I74: 0 | J74: 0
B75: Travel & Expenses | C75: 0 | D75: 0 | E75: 0 | F75: 0 | G75: 0 | H75: 0 | I75: 0 | J75: 0
A76: Payments to users & Contingency | C76: 0 | D76: 129225.7895 | E76: 207943.3449 | F76: 556691.9866 | G76: 133537.4123 | H76: 9605.111111 | I76: 0 | J76: 1037003.644
B77: Decommissioning | C77: 0 | D77: 0 | E77: 0 | F77: 0 | G77: 0 | H77: 0 | I77: 0 | J77: 0 | K77: Check that Total is =to
B78: Other | C78: 0 | D78: 74840.5998 | E78: 55439.80739 | F78: 57021.01497 | G78: 164076.8225 | H78: 9259.254477 | I78: 0 | J78: 360637.4992 | K78: Total Outstanding Funding required
B79: Total | C79: 0 | D79: 1700885.405 | E79: 1573079.504 | F79: 2088327.662 | G79: 1096084.155 | H79: 394663.3221 | I79: 0 | J79: 6853040.048 | K79: =IF(J79='Project Cost Summary'!M13, "OK","ERROR") -> OK
A81: balance | B81: 6789709.467 | C81: 0 | D81: =B81-C79-D79 -> 5088824.061 | E81: =D81-E79+D82 -> 3551380.158 | F81: 1488973.109 | G81: 408010.0137 | H81: 19037.64099 | I81: 20318.78396 | J81: -6832603.195 | K81: =B81 -> 6789709.467
A82: interest | C82: 0 | D82: =((B81+D81)/2)*$D86 -> 35635.60058 | E82: =((D81+E81)/2)*$D86 -> 25920.61266 | F82: =((E81+F81)/2)*$D86 -> 15121.0598 | G82: =((F81+G81)/2)*$D86 -> 5690.949368 | H82: =((G81+H81)/2)*$D86 -> 1281.142964 | I82: 118.0692749 | J82: =((I81+J81)/2)*$D86 -> -20436.85323 | K82: =SUM(D82:J82) -> 63330.58142
K83: =K81+K82 -> 6853040.048 | L83: =J79-K83 -> 0
B85: Bank of England interest rate | D85: 0.001 | G85: NIC FUNDING REQUEST £ | I85: =K81 -> 6789709.467
B86: interest rate used in calculation | D86: =D85+0.5% -> 0.006
B87: RPI adjustment | C87: 2021/22 | D87: 2022/23 | E87: 2023/24 | F87: 2024/25 | G87: 2025/26 | H87: 2026/27 | I87: 2027/28
B88: Annual inflation | C88: 0.0278 | D88: 0.0213 | E88: 0.0308 | F88: 0.0308 | G88: 0.0308 | H88: 0.0308 | I88: 0.0308
A89: n.b the NIC Funding Request calculation should use the Bank of England Base rate plus 0.5% on 30 June of the year in which the Full Submission is made.

Sheet Project Cost Summary
A1: Project Cost Summary
C2: Total
C3: Cost type
C4: Labour | D4: Equipment | E4: Contractors | F4: IT | G4: IPR Costs | H4: Travel & Expenses | I4: Payments to users | J4: Contingency | K4: Decommissioning | L4: Other | M4: Total
B5: Total Project Cost | C5: =SUM(C18+C31+C44+C57+C70+C83+C96+C109) -> 1779760.187 | D5: 0 | E5: 3117344.121 | F5: 2073113.037 | G5: 0 | H5: 0 | I5: 400782 | J5: 636221.6444 | K5: 0 | L5: 360637.4992 | M5: =SUM(C5:L5) -> 8367858.488
B6: Electron | C6: =SUM(C19+C32+C45+C58+C71+C84+C97+C110) -> 0 | D6: 0 | E6: 238800 | F6: 300000 | G6: 0 | H6: 0 | I6: 0 | J6: 0 | K6: 0 | L6: 0 | M6: =SUM(C6:L6) -> 538800
B7: Afry | C7: =SUM(C20+C33+C46+C59+C72+C85+C98+C111) -> 0 | D7: 0 | E7: 89347.28 | F7: 0 | G7: 0 | H7: 0 | I7: 0 | J7: 0 | K7: 0 | L7: 0 | M7: 89347.28
B8: Delta-EE | C8: =SUM(C21+C34+C47+C60+C73+C86+C99+C112) -> 0 | D8: 0 | E8: 41264.7 | F8: 0 | G8: 0 | H8: 0 | I8: 0 | J8: 0 | K8: 0 | L8: 0 | M8: 41264.7
B9: External Funding | C9: =SUM(C22+C35+C48+C61+C74+C87+C100+C113) -> 0 | D9: 0 | E9: 369411.98 | F9: 300000 | G9: 0 | H9: 0 | I9: 0 | J9: 0 | K9: 0 | L9: 0 | M9: =SUM(C9:L9) -> 669411.98
B10: Licensee extra contribution | C10: =SUM(C23+C36+C49+C62+C75+C88+C101+C114) -> 0 | D10: 0 | E10: 0 | F10: 0 | G10: 0 | H10: 0 | I10: 0 | J10: 0 | K10: 0 | L10: 0 | M10: 0
B11: Initial Net Funding Required | C11: =SUM(C24+C37+C50+C63+C76+C89+C102+C115) -> 1779760.187 | D11: 0 | E11: 2747932.141 | F11: 1773113.037 | G11: 0 | H11: 0 | I11: 400782 | J11: 636221.6444 | K11: 0 | L11: 360637.4992 | M11: 7698446.508 | O11: Check Total Initial Net Funding Required matches that on the Second Tier Funding Request tab
B12: Licensee Compulsory Contribution / Direct Benefits | C12: =SUM(C25+C38+C51+C64+C77+C90+C103+C116) -> 845406.4605 | D12: 0 | E12: 0 | F12: 0 | G12: 0 | H12: 0 | I12: 0 | J12: 0 | K12: 0 | L12: 0 | M12: 845406.4605 | O12: =IF(ABS(M11-'NIC Funding Request'!J49)<0.01,"OK","ERROR") -> OK
B13: Outstanding Funding Required | C13: =SUM(C26+C39+C52+C65+C78+C91+C104+C117) -> 934353.7262 | D13: 0 | E13: 2747932.141 | F13: 1773113.037 | G13: 0 | H13: 0 | I13: 400782 | J13: 636221.6444 | K13: 0 | L13: 360637.4992 | M13: =SUM(C13:L13) -> 6853040.048
C15: 2021/22
C16: Cost type
C17: Labour | D17: Equipment | E17: Contractors | F17: IT | G17: IPR Costs | H17: Travel & Expenses | I17: Payments to users | J17: Contingency | K17: Decommissioning | L17: Other | M17: Total
B18: Total Project Cost | C18: ='2021-2022'!G134 -> 0 | D18: ='2021-2022'!H134 -> 0 | E18: ='2021-2022'!I134 -> 0 | F18: ='2021-2022'!J134 -> 0 | G18: ='2021-2022'!K134 -> 0 | H18: ='2021-2022'!L134 -> 0 | I18: ='2021-2022'!M134 -> 0 | J18: ='2021-2022'!N134 -> 0 | K18: ='2021-2022'!O134 -> 0 | L18: ='2021-2022'!P134 -> 0 | M18: =SUM(C18:L18) -> 0
B19: Electron | C19: ='2021-2022'!AK134 -> 0 | D19: ='2021-2022'!AL134 -> 0 | E19: ='2021-2022'!AM134 -> 0 | F19: ='2021-2022'!AN134 -> 0 | G19: ='2021-2022'!AO134 -> 0 | H19: ='2021-2022'!AP134 -> 0 | I19: ='2021-2022'!AQ134 -> 0 | J19: ='2021-2022'!AR134 -> 0 | K19: ='2021-2022'!AS134 -> 0 | L19: ='2021-2022'!AT134 -> 0 | M19: 0
B20: Afry | C20: ='2021-2022'!AV134 -> 0 | D20: ='2021-2022'!AW134 -> 0 | E20: ='2021-2022'!AX134 -> 0 | F20: ='2021-2022'!AY134 -> 0 | G20: ='2021-2022'!AZ134 -> 0 | H20: ='2021-2022'!BA134 -> 0 | I20: ='2021-2022'!BB134 -> 0 | J20: ='2021-2022'!BC134 -> 0 | K20: ='2021-2022'!BD134 -> 0 | L20: ='2021-2022'!BE134 -> 0 | M20: 0
B21: Delta-EE | C21: ='2021-2022'!BG134 -> 0 | D21: ='2021-2022'!BH134 -> 0 | E21: ='2021-2022'!BI134 -> 0 | F21: ='2021-2022'!BJ134 -> 0 | G21: ='2021-2022'!BK134 -> 0 | H21: ='2021-2022'!BL134 -> 0 | I21: ='2021-2022'!BM134 -> 0 | J21: ='2021-2022'!BN134 -> 0 | K21: ='2021-2022'!BO134 -> 0 | L21: ='2021-2022'!BP134 -> 0 | M21: 0
B22: External Funding | C22: =SUM(C19:C21) -> 0 | D22: 0 | E22: 0 | F22: 0 | G22: 0 | H22: 0 | I22: 0 | J22: 0 | K22: 0 | L22: 0 | M22: 0
B23: Licensee extra contribution | C23: ='2021-2022'!BR134 -> 0 | D23: ='2021-2022'!BS134 -> 0 | E23: ='2021-2022'!BT134 -> 0 | F23: ='2021-2022'!BU134 -> 0 | G23: ='2021-2022'!BV134 -> 0 | H23: ='2021-2022'!BW134 -> 0 | I23: ='2021-2022'!BX134 -> 0 | J23: ='2021-2022'!BY134 -> 0 | K23: ='2021-2022'!BZ134 -> 0 | L23: ='2021-2022'!CA134 -> 0 | M23: 0
B24: Initial Net Funding Required | C24: =C18-C22-C23 -> 0 | D24: 0 | E24: 0 | F24: 0 | G24: 0 | H24: 0 | I24: 0 | J24: 0 | K24: 0 | L24: 0 | M24: 0
B25: Licensee Compulsory Contribution / Direct Benefits | C25: ='2021-2022'!Z134 -> 0 | D25: ='2021-2022'!AA134 -> 0 | E25: ='2021-2022'!AB134 -> 0 | F25: ='2021-2022'!AC134 -> 0 | G25: ='2021-2022'!AD134 -> 0 | H25: ='2021-2022'!AE134 -> 0 | I25: ='2021-2022'!AF134 -> 0 | J25: ='2021-2022'!AG134 -> 0 | K25: ='2021-2022'!AH134 -> 0 | L25: ='2021-2022'!AI134 -> 0 | M25: 0
B26: Outstanding Funding Required | C26: ='2021-2022'!CC134 -> 0 | D26: ='2021-2022'!CD134 -> 0 | E26: ='2021-2022'!CE134 -> 0 | F26: ='2021-2022'!CF134 -> 0 | G26: ='2021-2022'!CG134 -> 0 | H26: ='2021-2022'!CH134 -> 0 | I26: ='2021-2022'!CI134 -> 0 | J26: ='2021-2022'!CJ134 -> 0 | K26: ='2021-2022'!CK134 -> 0 | L26: ='2021-2022'!CL134 -> 0 | M26: 0
C28: 2022/23
C29: Cost type
C30: Labour | D30: Equipment | E30: Contractors | F30: IT | G30: IPR Costs | H30: Travel & Expenses | I30: Payments to users | J30: Contingency | K30: Decommissioning | L30: Other | M30: Total
B31: Total Project Cost | C31: ='2022-2023'!G134 -> 361559.605 | D31: ='2022-2023'!H134 -> 0 | E31: ='2022-2023'!I134 -> 695769.0814 | F31: ='2022-2023'!J134 -> 1171599.847 | G31: ='2022-2023'!K134 -> 0 | H31: ='2022-2023'!L134 -> 0 | I31: ='2022-2023'!M134 -> 24315.78947 | J31: ='2022-2023'!N134 -> 104910 | K31: ='2022-2023'!O134 -> 0 | L31: ='2022-2023'!P134 -> 74840.5998 | M31: =SUM(C31:L31) -> 2432994.923
B32: Electron | C32: ='2022-2023'!AK134 -> 0 | D32: ='2022-2023'!AL134 -> 0 | E32: ='2022-2023'!AM134 -> 20835.57692 | F32: ='2022-2023'!AN134 -> 300000 | G32: ='2022-2023'!AO134 -> 0 | H32: ='2022-2023'!AP134 -> 0 | I32: ='2022-2023'!AQ134 -> 0 | J32: ='2022-2023'!AR134 -> 0 | K32: ='2022-2023'!AS134 -> 0 | L32: ='2022-2023'!AT134 -> 0 | M32: 320835.5769
B33: Afry | C33: ='2022-2023'!AV134 -> 0 | D33: ='2022-2023'!AW134 -> 0 | E33: ='2022-2023'!AX134 -> 37120.25708 | F33: ='2022-2023'!AY134 -> 0 | G33: ='2022-2023'!AZ134 -> 0 | H33: ='2022-2023'!BA134 -> 0 | I33: ='2022-2023'!BB134 -> 0 | J33: ='2022-2023'!BC134 -> 0 | K33: ='2022-2023'!BD134 -> 0 | L33: ='2022-2023'!BE134 -> 0 | M33: 37120.25708
B34: Delta-EE | C34: ='2022-2023'!BG134 -> 0 | D34: ='2022-2023'!BH134 -> 0 | E34: ='2022-2023'!BI134 -> 12594.07895 | F34: ='2022-2023'!BJ134 -> 0 | G34: ='2022-2023'!BK134 -> 0 | H34: ='2022-2023'!BL134 -> 0 | I34: ='2022-2023'!BM134 -> 0 | J34: ='2022-2023'!BN134 -> 0 | K34: ='2022-2023'!BO134 -> 0 | L34: ='2022-2023'!BP134 -> 0 | M34: 12594.07895
B35: External Funding | C35: =SUM(C32:C34) -> 0 | D35: 0 | E35: 70549.91295 | F35: 300000 | G35: 0 | H35: 0 | I35: 0 | J35: 0 | K35: 0 | L35: 0 | M35: 370549.9129
B36: Licensee extra contribution | C36: ='2022-2023'!BR134 -> 0 | D36: ='2022-2023'!BS134 -> 0 | E36: ='2022-2023'!BT134 -> 0 | F36: ='2022-2023'!BU134 -> 0 | G36: ='2022-2023'!BV134 -> 0 | H36: ='2022-2023'!BW134 -> 0 | I36: ='2022-2023'!BX134 -> 0 | J36: ='2022-2023'!BY134 -> 0 | K36: ='2022-2023'!BZ134 -> 0 | L36: ='2022-2023'!CA134 -> 0 | M36: 0
B37: Initial Net Funding Required | C37: =C31-C35-C36 -> 361559.605 | D37: 0 | E37: 625219.1684 | F37: 871599.8475 | G37: 0 | H37: 0 | I37: 24315.78947 | J37: 104910 | K37: 0 | L37: 74840.5998 | M37: 2062445.01
B38: Licensee Compulsory Contribution / Direct Benefits | C38: ='2022-2023'!Z134 -> 361559.605 | D38: ='2022-2023'!AA134 -> 0 | E38: ='2022-2023'!AB134 -> 0 | F38: ='2022-2023'!AC134 -> 0 | G38: ='2022-2023'!AD134 -> 0 | H38: ='2022-2023'!AE134 -> 0 | I38: ='2022-2023'!AF134 -> 0 | J38: ='2022-2023'!AG134 -> 0 | K38: ='2022-2023'!AH134 -> 0 | L38: ='2022-2023'!AI134 -> 0 | M38: 361559.605
B39: Outstanding Funding Required | C39: ='2022-2023'!CC134 -> 0 | D39: ='2022-2023'!CD134 -> 0 | E39: ='2022-2023'!CE134 -> 625219.1684 | F39: ='2022-2023'!CF134 -> 871599.8475 | G39: ='2022-2023'!CG134 -> 0 | H39: ='2022-2023'!CH134 -> 0 | I39: ='2022-2023'!CI134 -> 24315.78947 | J39: ='2022-2023'!CJ134 -> 104910 | K39: ='2022-2023'!CK134 -> 0 | L39: ='2022-2023'!CL134 -> 74840.5998 | M39: 1700885.405
C41: 2023/24
C42: Cost type
C43: Labour | D43: Equipment | E43: Contractors | F43: IT | G43: IPR Costs | H43: Travel & Expenses | I43: Payments to users | J43: Contingency | K43: Decommissioning | L43: Other | M43: Total
B44: Total Project Cost | C44: ='2023-2024'!G133 -> 372174.4518 | D44: ='2023-2024'!H133 -> 0 | E44: ='2023-2024'!I133 -> 845434.7355 | F44: ='2023-2024'!J133 -> 464343.6544 | G44: ='2023-2024'!K133 -> 0 | H44: ='2023-2024'!L133 -> 0 | I44: ='2023-2024'!M133 -> 26526.31579 | J44: ='2023-2024'!N133 -> 181417.0291 | K44: ='2023-2024'!O133 -> 0 | L44: ='2023-2024'!P133 -> 55439.80739 | M44: =SUM(C44:L44) -> 1945335.994
B45: Electron | C45: ='2023-2024'!AK133 -> 0 | D45: ='2023-2024'!AL133 -> 0 | E45: ='2023-2024'!AM133 -> 82474.03846 | F45: ='2023-2024'!AN133 -> 0 | G45: ='2023-2024'!AO133 -> 0 | H45: ='2023-2024'!AP133 -> 0 | I45: ='2023-2024'!AQ133 -> 0 | J45: ='2023-2024'!AR133 -> 0 | K45: ='2023-2024'!AS133 -> 0 | L45: ='2023-2024'!AT133 -> 0 | M45: =SUM(C45:L45) -> 82474.03846
B46: Afry | C46: ='2023-2024'!AV133 -> 0 | D46: ='2023-2024'!AW133 -> 0 | E46: ='2023-2024'!AX133 -> 14726.38292 | F46: ='2023-2024'!AY133 -> 0 | G46: ='2023-2024'!AZ133 -> 0 | H46: ='2023-2024'!BA133 -> 0 | I46: ='2023-2024'!BB133 -> 0 | J46: ='2023-2024'!BC133 -> 0 | K46: ='2023-2024'!BD133 -> 0 | L46: ='2023-2024'!BE133 -> 0 | M46: 14726.38292
B47: Delta-EE | C47: ='2023-2024'!BG133 -> 0 | D47: ='2023-2024'!BH133 -> 0 | E47: ='2023-2024'!BI133 -> 10386.63158 | F47: ='2023-2024'!BJ133 -> 0 | G47: ='2023-2024'!BK133 -> 0 | H47: ='2023-2024'!BL133 -> 0 | I47: ='2023-2024'!BM133 -> 0 | J47: ='2023-2024'!BN133 -> 0 | K47: ='2023-2024'!BO133 -> 0 | L47: ='2023-2024'!BP133 -> 0 | M47: 10386.63158
B48: External Funding | C48: =SUM(C45:C47) -> 0 | D48: 0 | E48: 107587.053 | F48: 0 | G48: 0 | H48: 0 | I48: 0 | J48: 0 | K48: 0 | L48: 0 | M48: =SUM(C48:L48) -> 107587.053
B49: Licensee extra contribution | C49: ='2023-2024'!BR133 -> 0 | D49: ='2023-2024'!BS133 -> 0 | E49: ='2023-2024'!BT133 -> 0 | F49: ='2023-2024'!BU133 -> 0 | G49: ='2023-2024'!BV133 -> 0 | H49: ='2023-2024'!BW133 -> 0 | I49: ='2023-2024'!BX133 -> 0 | J49: ='2023-2024'!BY133 -> 0 | K49: ='2023-2024'!BZ133 -> 0 | L49: ='2023-2024'!CA133 -> 0 | M49: 0
B50: Initial Net Funding Required | C50: =C44-C48-C49 -> 372174.4518 | D50: 0 | E50: 737847.6826 | F50: 464343.6544 | G50: 0 | H50: 0 | I50: 26526.31579 | J50: 181417.0291 | K50: 0 | L50: 55439.80739 | M50: 1837748.941
B51: Licensee Compulsory Contribution / Direct Benefits | C51: ='2023-2024'!Z133 -> 264669.4372 | D51: ='2023-2024'!AA133 -> 0 | E51: ='2023-2024'!AB133 -> 0 | F51: ='2023-2024'!AC133 -> 0 | G51: ='2023-2024'!AD133 -> 0 | H51: ='2023-2024'!AE133 -> 0 | I51: ='2023-2024'!AF133 -> 0 | J51: ='2023-2024'!AG133 -> 0 | K51: ='2023-2024'!AH133 -> 0 | L51: ='2023-2024'!AI133 -> 0 | M51: 264669.4372
B52: Outstanding Funding Required | C52: ='2023-2024'!CC133 -> 107505.0146 | D52: ='2023-2024'!CD133 -> 0 | E52: ='2023-2024'!CE133 -> 737847.6826 | F52: ='2023-2024'!CF133 -> 464343.6544 | G52: ='2023-2024'!CG133 -> 0 | H52: ='2023-2024'!CH133 -> 0 | I52: ='2023-2024'!CI133 -> 26526.31579 | J52: ='2023-2024'!CJ133 -> 181417.0291 | K52: ='2023-2024'!CK133 -> 0 | L52: ='2023-2024'!CL133 -> 55439.80739 | M52: =SUM(C52:L52) -> 1573079.504
C54: 2024/25
C55: Cost type
C56: Labour | D56: Equipment | E56: Contractors | F56: IT | G56: IPR Costs | H56: Travel & Expenses | I56: Payments to users | J56: Contingency | K56: Decommissioning | L56: Other | M56: Total
B57: Total Project Cost | C57: ='2024-2025'!G135 -> 382789.2987 | D57: ='2024-2025'!H135 -> 0 | E57: ='2024-2025'!I135 -> 981505.4994 | F57: ='2024-2025'!J135 -> 410319.835 | G57: ='2024-2025'!K135 -> 0 | H57: ='2024-2025'!L135 -> 0 | I57: ='2024-2025'!M135 -> 315308.3158 | J57: ='2024-2025'!N135 -> 241383.6709 | K57: ='2024-2025'!O135 -> 0 | L57: ='2024-2025'!P135 -> 57021.01497 | M57: =SUM(C57:L57) -> 2388327.635
B58: Electron | C58: ='2024-2025'!AK135 -> 0 | D58: ='2024-2025'!AL135 -> 0 | E58: ='2024-2025'!AM135 -> 113848.4729 | F58: ='2024-2025'!AN135 -> 0 | G58: ='2024-2025'!AO135 -> 0 | H58: ='2024-2025'!AP135 -> 0 | I58: ='2024-2025'!AQ135 -> 0 | J58: ='2024-2025'!AR135 -> 0 | K58: ='2024-2025'!AS135 -> 0 | L58: ='2024-2025'!AT135 -> 0 | M58: 113848.4729
B59: Afry | C59: ='2024-2025'!AV135 -> 0 | D59: ='2024-2025'!AW135 -> 0 | E59: ='2024-2025'!AX135 -> 8134.455652 | F59: ='2024-2025'!AY135 -> 0 | G59: ='2024-2025'!AZ135 -> 0 | H59: ='2024-2025'!BA135 -> 0 | I59: ='2024-2025'!BB135 -> 0 | J59: ='2024-2025'!BC135 -> 0 | K59: ='2024-2025'!BD135 -> 0 | L59: ='2024-2025'!BE135 -> 0 | M59: 8134.455652
B60: Delta-EE | C60: ='2024-2025'!BG135 -> 0 | D60: ='2024-2025'!BH135 -> 0 | E60: ='2024-2025'!BI135 -> 8736.631579 | F60: ='2024-2025'!BJ135 -> 0 | G60: ='2024-2025'!BK135 -> 0 | H60: ='2024-2025'!BL135 -> 0 | I60: ='2024-2025'!BM135 -> 0 | J60: ='2024-2025'!BN135 -> 0 | K60: ='2024-2025'!BO135 -> 0 | L60: ='2024-2025'!BP135 -> 0 | M60: 8736.631579
B61: External Funding | C61: =SUM(C58:C60) -> 0 | D61: 0 | E61: 130719.5601 | F61: 0 | G61: 0 | H61: 0 | I61: 0 | J61: 0 | K61: 0 | L61: 0 | M61: 130719.5601
B62: Licensee extra contribution | C62: ='2024-2025'!BR135 -> 0 | D62: ='2024-2025'!BS135 -> 0 | E62: ='2024-2025'!BT135 -> 0 | F62: ='2024-2025'!BU135 -> 0 | G62: ='2024-2025'!BV135 -> 0 | H62: ='2024-2025'!BW135 -> 0 | I62: ='2024-2025'!BX135 -> 0 | J62: ='2024-2025'!BY135 -> 0 | K62: ='2024-2025'!BZ135 -> 0 | L62: ='2024-2025'!CA135 -> 0 | M62: 0
B63: Initial Net Funding Required | C63: =C57-C61-C62 -> 382789.2987 | D63: 0 | E63: 850785.9393 | F63: 410319.835 | G63: 0 | H63: 0 | I63: 315308.3158 | J63: 241383.6709 | K63: 0 | L63: 57021.01497 | M63: 2257608.075
B64: Licensee Compulsory Contribution | C64: ='2024-2025'!Z135 -> 169280.4129 | D64: ='2024-2025'!AA135 -> 0 | E64: ='2024-2025'!AB135 -> 0 | F64: ='2024-2025'!AC135 -> 0 | G64: ='2024-2025'!AD135 -> 0 | H64: ='2024-2025'!AE135 -> 0 | I64: ='2024-2025'!AF135 -> 0 | J64: ='2024-2025'!AG135 -> 0 | K64: ='2024-2025'!AH135 -> 0 | L64: ='2024-2025'!AI135 -> 0 | M64: 169280.4129
B65: Outstanding Funding Required | C65: ='2024-2025'!CC135 -> 213508.8858 | D65: ='2024-2025'!CD135 -> 0 | E65: ='2024-2025'!CE135 -> 850785.9393 | F65: ='2024-2025'!CF135 -> 410319.835 | G65: ='2024-2025'!CG135 -> 0 | H65: ='2024-2025'!CH135 -> 0 | I65: ='2024-2025'!CI135 -> 315308.3158 | J65: ='2024-2025'!CJ135 -> 241383.6709 | K65: ='2024-2025'!CK135 -> 0 | L65: ='2024-2025'!CL135 -> 57021.01497 | M65: 2088327.662
C67: 2025/26
C68: Cost type
C69: Labour | D69: Equipment | E69: Contractors | F69: IT | G69: IPR Costs | H69: Travel & Expenses | I69: Payments to users | J69: Contingency | K69: Decommissioning | L69: Other | M69: Total
B70: Total Project Cost | C70: ='2025-2026'!G136 -> 505443.2532 | D70: ='2025-2026'!H136 -> 0 | E70: ='2025-2026'!I136 -> 350444.6975 | F70: ='2025-2026'!J136 -> 21574.35 | G70: ='2025-2026'!K136 -> 0 | H70: ='2025-2026'!L136 -> 0 | I70: ='2025-2026'!M136 -> 27631.57895 | J70: ='2025-2026'!N136 -> 105905.8333 | K70: ='2025-2026'!O136 -> 0 | L70: ='2025-2026'!P136 -> 164076.8225 | M70: =SUM(C70:L70) -> 1175076.535
B71: Electron | C71: ='2025-2026'!AK136 -> 0 | D71: ='2025-2026'!AL136 -> 0 | E71: ='2025-2026'!AM136 -> 21641.91176 | F71: ='2025-2026'!AN136 -> 0 | G71: ='2025-2026'!AO136 -> 0 | H71: ='2025-2026'!AP136 -> 0 | I71: ='2025-2026'!AQ136 -> 0 | J71: ='2025-2026'!AR136 -> 0 | K71: ='2025-2026'!AS136 -> 0 | L71: ='2025-2026'!AT136 -> 0 | M71: 21641.91176
B72: Afry | C72: ='2025-2026'!AV136 -> 0 | D72: ='2025-2026'!AW136 -> 0 | E72: ='2025-2026'!AX136 -> 7456.584348 | F72: ='2025-2026'!AY136 -> 0 | G72: ='2025-2026'!AZ136 -> 0 | H72: ='2025-2026'!BA136 -> 0 | I72: ='2025-2026'!BB136 -> 0 | J72: ='2025-2026'!BC136 -> 0 | K72: ='2025-2026'!BD136 -> 0 | L72: ='2025-2026'!BE136 -> 0 | M72: 7456.584348
B73: Delta-EE | C73: ='2025-2026'!BG136 -> 0 | D73: ='2024-2025'!BH148 -> 0 | E73: ='2025-2026'!BI136 -> 7886.557895 | F73: ='2024-2025'!BJ148 -> 0 | G73: ='2024-2025'!BK148 -> 0 | H73: ='2024-2025'!BL148 -> 0 | I73: ='2024-2025'!BM148 -> 0 | J73: ='2024-2025'!BN148 -> 0 | K73: ='2024-2025'!BO148 -> 0 | L73: ='2024-2025'!BP148 -> 0 | M73: 7886.557895
B74: External Funding | C74: =SUM(C71:C73) -> 0 | D74: 0 | E74: 36985.05401 | F74: 0 | G74: 0 | H74: 0 | I74: 0 | J74: 0 | K74: 0 | L74: 0 | M74: 36985.05401
B75: Licensee extra contribution | C75: ='2025-2026'!BR136 -> 0 | D75: ='2025-2026'!BS136 -> 0 | E75: ='2025-2026'!BT136 -> 0 | F75: ='2025-2026'!BU136 -> 0 | G75: ='2025-2026'!BV136 -> 0 | H75: ='2025-2026'!BW136 -> 0 | I75: ='2025-2026'!BX136 -> 0 | J75: ='2025-2026'!BY136 -> 0 | K75: ='2025-2026'!BZ136 -> 0 | L75: ='2025-2026'!CA136 -> 0 | M75: 0
B76: Initial Net Funding Required | C76: =C70-C74-C75 -> 505443.2532 | D76: 0 | E76: 313459.6435 | F76: 21574.35 | G76: 0 | H76: 0 | I76: 27631.57895 | J76: 105905.8333 | K76: 0 | L76: 164076.8225 | M76: 1138091.481
B77: Licensee Compulsory Contribution | C77: ='2025-2026'!Z136 -> 42007.3265 | D77: ='2025-2026'!AA136 -> 0 | E77: ='2025-2026'!AB136 -> 0 | F77: ='2025-2026'!AC136 -> 0 | G77: ='2025-2026'!AD136 -> 0 | H77: ='2025-2026'!AE136 -> 0 | I77: ='2025-2026'!AF136 -> 0 | J77: ='2025-2026'!AG136 -> 0 | K77: ='2025-2026'!AH136 -> 0 | L77: ='2025-2026'!AI136 -> 0 | M77: 42007.3265
B78: Outstanding Funding Required | C78: ='2025-2026'!CC136 -> 463435.9267 | D78: ='2025-2026'!CD136 -> 0 | E78: ='2025-2026'!CE136 -> 313459.6435 | F78: ='2025-2026'!CF136 -> 21574.35 | G78: ='2025-2026'!CG136 -> 0 | H78: ='2025-2026'!CH136 -> 0 | I78: ='2025-2026'!CI136 -> 27631.57895 | J78: ='2025-2026'!CJ136 -> 105905.8333 | K78: ='2025-2026'!CK136 -> 0 | L78: ='2025-2026'!CL136 -> 164076.8225 | M78: 1096084.155
C80: 2026/27
C81: Cost type
C82: Labour | D82: Equipment | E82: Contractors | F82: IT | G82: IPR Costs | H82: Travel & Expenses | I82: Payments to users | J82: Contingency | K82: Decommissioning | L82: Other | M82: Total
B83: Total Project Cost | C83: ='2026-2027'!G134 -> 157793.578 | D83: ='2026-2027'!H134 -> 0 | E83: ='2026-2027'!I134 -> 244190.1074 | F83: ='2026-2027'!J134 -> 5275.35 | G83: ='2026-2027'!K134 -> 0 | H83: ='2026-2027'!L134 -> 0 | I83: ='2026-2027'!M134 -> 7000 | J83: ='2026-2027'!N134 -> 2605.111111 | K83: ='2026-2027'!O134 -> 0 | L83: ='2026-2027'!P134 -> 9259.254477 | M83: =SUM(C83:L83) -> 426123.401
B84: Electron | C84: ='2026-2027'!AK134 -> 0 | D84: ='2026-2027'!AL134 -> 0 | E84: ='2026-2027'!AM134 -> 0 | F84: ='2026-2027'!AN134 -> 0 | G84: ='2026-2027'!AO134 -> 0 | H84: ='2026-2027'!AP134 -> 0 | I84: ='2026-2027'!AQ134 -> 0 | J84: ='2026-2027'!AR134 -> 0 | K84: ='2026-2027'!AS134 -> 0 | L84: ='2026-2027'!AT134 -> 0 | M84: 0
B85: Afry | C85: ='2026-2027'!AV134 -> 0 | D85: ='2026-2027'!AW134 -> 0 | E85: ='2026-2027'!AX134 -> 21909.6 | F85: ='2026-2027'!AY134 -> 0 | G85: ='2026-2027'!AZ134 -> 0 | H85: ='2026-2027'!BA134 -> 0 | I85: ='2026-2027'!BB134 -> 0 | J85: ='2026-2027'!BC134 -> 0 | K85: ='2026-2027'!BD134 -> 0 | L85: ='2026-2027'!BE134 -> 0 | M85: 21909.6
B86: Delta-EE | C86: ='2026-2027'!BG134 -> 0 | D86: ='2026-2027'!BH160 -> 0 | E86: ='2026-2027'!BI134 -> 1660.8 | F86: ='2026-2027'!BJ160 -> 0 | G86: ='2026-2027'!BK160 -> 0 | H86: ='2026-2027'!BL160 -> 0 | I86: ='2026-2027'!BM160 -> 0 | J86: ='2026-2027'!BN160 -> 0 | K86: ='2026-2027'!BO160 -> 0 | L86: ='2026-2027'!BP160 -> 0 | M86: 1660.8
B87: External Funding | C87: =SUM(C84:C86) -> 0 | D87: 0 | E87: 23570.4 | F87: 0 | G87: 0 | H87: 0 | I87: 0 | J87: 0 | K87: 0 | L87: 0 | M87: 23570.4
B88: Licensee extra contribution | C88: ='2026-2027'!BR134 -> 0 | D88: ='2026-2027'!BS134 -> 0 | E88: ='2026-2027'!BT134 -> 0 | F88: ='2026-2027'!BU134 -> 0 | G88: ='2026-2027'!BV134 -> 0 | H88: ='2026-2027'!BW134 -> 0 | I88: ='2026-2027'!BX134 -> 0 | J88: ='2026-2027'!BY134 -> 0 | K88: ='2026-2027'!BZ134 -> 0 | L88: ='2026-2027'!CA134 -> 0 | M88: 0
B89: Initial Net Funding Required | C89: =C83-C87-C88 -> 157793.578 | D89: 0 | E89: 220619.7074 | F89: 5275.35 | G89: 0 | H89: 0 | I89: 7000 | J89: 2605.111111 | K89: 0 | L89: 9259.254477 | M89: 402553.001
B90: Licensee Compulsory Contribution | C90: ='2026-2027'!Z134 -> 7889.678901 | D90: ='2026-2027'!AA134 -> 0 | E90: ='2026-2027'!AB134 -> 0 | F90: ='2026-2027'!AC134 -> 0 | G90: ='2026-2027'!AD134 -> 0 | H90: ='2026-2027'!AE134 -> 0 | I90: ='2026-2027'!AF134 -> 0 | J90: ='2026-2027'!AG134 -> 0 | K90: ='2026-2027'!AH134 -> 0 | L90: ='2026-2027'!AI134 -> 0 | M90: 7889.678901
B91: Outstanding Funding Required | C91: ='2026-2027'!CC134 -> 149903.8991 | D91: ='2026-2027'!CD134 -> 0 | E91: ='2026-2027'!CE134 -> 220619.7074 | F91: ='2026-2027'!CF134 -> 5275.35 | G91: ='2026-2027'!CG134 -> 0 | H91: ='2026-2027'!CH134 -> 0 | I91: ='2026-2027'!CI134 -> 7000 | J91: ='2026-2027'!CJ134 -> 2605.111111 | K91: ='2026-2027'!CK134 -> 0 | L91: ='2026-2027'!CL134 -> 9259.254477 | M91: 394663.3221
C93: 2027/28
C94: Cost type
C95: Labour | D95: Equipment | E95: Contractors | F95: IT | G95: IPR Costs | H95: Travel & Expenses | I95: Payments to users | J95: Contingency | K95: Decommissioning | L95: Other | M95: Total
B96: Total Project Cost | C96: ='2027-2028'!G9 -> 0 | D96: ='2027-2028'!H9 -> 0 | E96: ='2027-2028'!I9 -> 0 | F96: ='2027-2028'!J9 -> 0 | G96: ='2027-2028'!K9 -> 0 | H96: ='2027-2028'!L9 -> 0 | I96: ='2027-2028'!M9 -> 0 | J96: ='2027-2028'!N9 -> 0 | K96: ='2027-2028'!O9 -> 0 | L96: ='2027-2028'!P9 -> 0 | M96: =SUM(C96:L96) -> 0
B97: Electron | C97: ='2027-2028'!AK9 -> 0 | D97: ='2027-2028'!AL9 -> 0 | E97: ='2027-2028'!AM9 -> 0 | F97: ='2027-2028'!AN9 -> 0 | G97: ='2027-2028'!AO9 -> 0 | H97: ='2027-2028'!AP9 -> 0 | I97: ='2027-2028'!AQ9 -> 0 | J97: ='2027-2028'!AR9 -> 0 | K97: ='2027-2028'!AS9 -> 0 | L97: ='2027-2028'!AT9 -> 0 | M97: 0
B98: Afry | C98: ='2027-2028'!AV9 -> 0 | D98: ='2027-2028'!AW9 -> 0 | E98: ='2027-2028'!AX9 -> 0 | F98: ='2027-2028'!AY9 -> 0 | G98: ='2027-2028'!AZ9 -> 0 | H98: ='2027-2028'!BA9 -> 0 | I98: ='2027-2028'!BB9 -> 0 | J98: ='2027-2028'!BC9 -> 0 | K98: ='2027-2028'!BD9 -> 0 | L98: ='2027-2028'!BE9 -> 0 | M98: 0
B99: Delta-EE | C99: ='2027-2028'!BG9 -> 0 | D99: ='2027-2028'!BH9 -> 0 | E99: ='2027-2028'!BI9 -> 0 | F99: ='2027-2028'!BJ9 -> 0 | G99: ='2027-2028'!BK9 -> 0 | H99: ='2027-2028'!BL9 -> 0 | I99: ='2027-2028'!BM9 -> 0 | J99: ='2027-2028'!BN9 -> 0 | K99: ='2027-2028'!BO9 -> 0 | L99: ='2027-2028'!BP9 -> 0 | M99: 0
B100: External Funding | C100: =SUM(C97:C99) -> 0 | D100: 0 | E100: 0 | F100: 0 | G100: 0 | H100: 0 | I100: 0 | J100: 0 | K100: 0 | L100: 0 | M100: 0
B101: Licensee extra contribution | C101: ='2027-2028'!BR9 -> 0 | D101: ='2027-2028'!BS9 -> 0 | E101: ='2027-2028'!BT9 -> 0 | F101: ='2027-2028'!BU9 -> 0 | G101: ='2027-2028'!BV9 -> 0 | H101: ='2027-2028'!BW9 -> 0 | I101: ='2027-2028'!BX9 -> 0 | J101: ='2027-2028'!BY9 -> 0 | K101: ='2027-2028'!BZ9 -> 0 | L101: ='2027-2028'!CA9 -> 0 | M101: 0
B102: Initial Net Funding Required | C102: =C96-C100-C101 -> 0 | D102: 0 | E102: 0 | F102: 0 | G102: 0 | H102: 0 | I102: 0 | J102: 0 | K102: 0 | L102: 0 | M102: 0
B103: Licensee Compulsory Contribution | C103: ='2027-2028'!Z9 -> 0 | D103: ='2027-2028'!AA9 -> 0 | E103: ='2027-2028'!AB9 -> 0 | F103: ='2027-2028'!AC9 -> 0 | G103: ='2027-2028'!AD9 -> 0 | H103: ='2027-2028'!AE9 -> 0 | I103: ='2027-2028'!AF9 -> 0 | J103: ='2027-2028'!AG9 -> 0 | K103: ='2027-2028'!AH9 -> 0 | L103: ='2027-2028'!AI9 -> 0 | M103: 0
B104: Outstanding Funding Required | C104: ='2027-2028'!CC9 -> 0 | D104: ='2027-2028'!CD9 -> 0 | E104: ='2027-2028'!CE9 -> 0 | F104: ='2027-2028'!CF9 -> 0 | G104: ='2027-2028'!CG9 -> 0 | H104: ='2027-2028'!CH9 -> 0 | I104: ='2027-2028'!CI9 -> 0 | J104: ='2027-2028'!CJ9 -> 0 | K104: ='2027-2028'!CK9 -> 0 | L104: ='2027-2028'!CL9 -> 0 | M104: 0
C106: 2028/2029
C107: Cost type
C108: Labour | D108: Equipment | E108: Contractors | F108: IT | G108: IPR Costs | H108: Travel & Expenses | I108: Payments to users | J108: Contingency | K108: Decommissioning | L108: Other | M108: Total
B109: Total Project Cost | C109: ='2028-2029'!G9 -> 0 | D109: ='2028-2029'!H9 -> 0 | E109: ='2028-2029'!I9 -> 0 | F109: ='2028-2029'!J9 -> 0 | G109: ='2028-2029'!K9 -> 0 | H109: ='2028-2029'!L9 -> 0 | I109: ='2028-2029'!M9 -> 0 | J109: ='2028-2029'!N9 -> 0 | K109: ='2028-2029'!O9 -> 0 | L109: ='2028-2029'!P9 -> 0 | M109: =SUM(C109:L109) -> 0
B110: Electron | C110: ='2028-2029'!AK9 -> 0 | D110: ='2028-2029'!AL9 -> 0 | E110: ='2028-2029'!AM9 -> 0 | F110: ='2028-2029'!AN9 -> 0 | G110: ='2028-2029'!AO9 -> 0 | H110: ='2028-2029'!AP9 -> 0 | I110: ='2028-2029'!AQ9 -> 0 | J110: ='2028-2029'!AR9 -> 0 | K110: ='2028-2029'!AS9 -> 0 | L110: ='2028-2029'!AT9 -> 0 | M110: 0
B111: Afry | C111: ='2028-2029'!AV9 -> 0 | D111: ='2028-2029'!AW9 -> 0 | E111: ='2028-2029'!AX9 -> 0 | F111: ='2028-2029'!AY9 -> 0 | G111: ='2028-2029'!AZ9 -> 0 | H111: ='2028-2029'!BA9 -> 0 | I111: ='2028-2029'!BB9 -> 0 | J111: ='2028-2029'!BC9 -> 0 | K111: ='2028-2029'!BD9 -> 0 | L111: ='2028-2029'!BE9 -> 0 | M111: 0
B112: Delta-EE | C112: ='2028-2029'!BG9 -> 0 | D112: ='2028-2029'!BH9 -> 0 | E112: ='2028-2029'!BI9 -> 0 | F112: ='2028-2029'!BJ9 -> 0 | G112: ='2028-2029'!BK9 -> 0 | H112: ='2028-2029'!BL9 -> 0 | I112: ='2028-2029'!BM9 -> 0 | J112: ='2028-2029'!BN9 -> 0 | K112: ='2028-2029'!BO9 -> 0 | L112: ='2028-2029'!BP9 -> 0 | M112: 0
B113: External Funding | C113: =SUM(C110:C112) -> 0 | D113: 0 | E113: 0 | F113: 0 | G113: 0 | H113: 0 | I113: 0 | J113: 0 | K113: 0 | L113: 0 | M113: 0
B114: Licensee extra contribution | C114: ='2028-2029'!BR9 -> 0 | D114: ='2028-2029'!BS9 -> 0 | E114: ='2028-2029'!BT9 -> 0 | F114: ='2028-2029'!BU9 -> 0 | G114: ='2028-2029'!BV9 -> 0 | H114: ='2028-2029'!BW9 -> 0 | I114: ='2028-2029'!BX9 -> 0 | J114: ='2028-2029'!BY9 -> 0 | K114: ='2028-2029'!BZ9 -> 0 | L114: ='2028-2029'!CA9 -> 0 | M114: 0
B115: Initial Net Funding Required | C115: =C109-C113-C114 -> 0 | D115: 0 | E115: 0 | F115: 0 | G115: 0 | H115: 0 | I115: 0 | J115: 0 | K115: 0 | L115: 0 | M115: 0
B116: Licensee Compulsory Contribution | C116: ='2028-2029'!Z9 -> 0 | D116: ='2028-2029'!AA9 -> 0 | E116: ='2028-2029'!AB9 -> 0 | F116: ='2028-2029'!AC9 -> 0 | G116: ='2028-2029'!AD9 -> 0 | H116: ='2028-2029'!AE9 -> 0 | I116: ='2028-2029'!AF9 -> 0 | J116: ='2028-2029'!AG9 -> 0 | K116: ='2028-2029'!AH9 -> 0 | L116: ='2028-2029'!AI9 -> 0 | M116: 0
B117: Outstanding Funding Required | C117: ='2028-2029'!CC9 -> 0 | D117: ='2028-2029'!CD9 -> 0 | E117: ='2028-2029'!CE9 -> 0 | F117: ='2028-2029'!CF9 -> 0 | G117: ='2028-2029'!CG9 -> 0 | H117: ='2028-2029'!CH9 -> 0 | I117: ='2028-2029'!CI9 -> 0 | J117: ='2028-2029'!CJ9 -> 0 | K117: ='2028-2029'!CK9 -> 0 | L117: ='2028-2029'!CL9 -> 0 | M117: 0

Sheet Direct Benefits
A1: Direct Benefits
A3: Direct Benefit: Any benefits of the Project accruing to the Licensee during the Project Implementation, comprising any expenditure included within the Network Lincesee Business plan for RIIO-T1 or ED1 that will be saved as a result of undertaking the project
B7: Description of Direct Benefit
C8: 2021/22 | D8: 2022/23 | E8: 2023/24 | F8: 2024/25 | G8: 2025/26 | H8: 2026/27 | I8: 2027/28 | J8: Total
J9: =SUM(C9:I9) -> 0
J10: =SUM(C10:I10) -> 0
B11: Total Direct Benefits | C11: =SUM(C9:C10) -> 0 | D11: 0 | E11: 0 | F11: 0 | G11: 0 | H11: 0 | I11: 0 | J11: 0
B14: n.b. These are Direct Benefits associated with the Project itself, not the wider deployment of the Solution and therefore should not extend beyond the Project period.

Sheet 2021-2022
B1: Project Costs in 2021-2022
G4: Total Cost £K | R4: Funding source % | Z4: Licensee Compulsory Contribution/Direct Benefits | AK4: Electron | AV4: Afry | BG4: Delta-EE | BR4: Licensee Extra Contribution | CC4: Outstanding Funding Required
G5: Labour | H5: Equipment | I5: Contractors | J5: IT | K5: IPR Costs | L5: Travel & Expenses | M5: Payments to users | N5: Contingency | O5: Decommissioning | P5: Other | Q5: Total Cost | R5: Licensee Compulsory Contribution /Direct Benefits | S5: Electron | T5: Afry | U5: Delta-EE | V5: Licensee Extra Contribution | W5: Oustanding Funding Required | X5: Total | Z5: Labour | AA5: Equipment | AB5: Contractors | AC5: IT | AD5: IPR Costs | AE5: Travel & Expenses | AF5: Payments to users | AG5: Contingency | AH5: Decommissioning | AI5: Other | AK5: Labour | AL5: Equipment | AM5: Contractors | AN5: IT | AO5: IPR Costs | AP5: Travel & Expenses | AQ5: Payments to users | AR5: Contingency | AS5: Decommissioning | AT5: Other | AV5: Labour | AW5: Equipment | AX5: Contractors | AY5: IT | AZ5: IPR Costs | BA5: Travel & Expenses | BB5: Payments to users | BC5: Contingency | BD5: Decommissioning | BE5: Other | BG5: Labour | BH5: Equipment | BI5: Contractors | BJ5: IT | BK5: IPR Costs | BL5: Travel & Expenses | BM5: Payments to users | BN5: Contingency | BO5: Decommissioning | BP5: Other | BR5: Labour | BS5: Equipment | BT5: Contractors | BU5: IT | BV5: IPR Costs | BW5: Travel & Expenses | BX5: Payments to users | BY5: Contingency | BZ5: Decommissioning | CA5: Other | CC5: Labour | CD5: Equipment | CE5: Contractors | CF5: IT | CG5: IPR Costs | CH5: Travel & Expenses | CI5: Payments to users | CJ5: Contingency | CK5: Decommissioning | CL5: Other
B6: Description | C6: Task | D6: Project Workstream | E6: Unit Cost £ | F6: Description
B7: 1 - Electron - Delivery Cycle support - Project Management | C7: Project Management | D7: Project Management | E7: 1000 | F7: Project Management | G7: 0 | H7: 0 | I7: 0 | J7: 0 | K7: 0 | L7: 0 | M7: 0 | N7: 0 | O7: 0 | P7: 0 | Q7: =SUM(G7:P7) -> 0 | S7: 0.15 | T7: 0 | U7: 0 | V7: 0 | W7: 0.85 | X7: =SUM(R7:W7) -> 1 | Z7: =$R7*G7 -> 0 | AA7: =$R7*H7 -> 0 | AB7: =$R7*I7 -> 0 | AC7: =$R7*J7 -> 0 | AD7: =$R7*K7 -> 0 | AE7: =$R7*L7 -> 0 | AF7: =$R7*M7 -> 0 | AG7: =$R7*N7 -> 0 | AH7: =$R7*O7 -> 0 | AI7: =$R7*P7 -> 0 | AK7: =$S7*G7 -> 0 | AL7: =$S7*H7 -> 0 | AM7: =$S7*I7 -> 0 | AN7: =$S7*J7 -> 0 | AO7: =$S7*K7 -> 0 | AP7: =$S7*L7 -> 0 | AQ7: =$S7*M7 -> 0 | AR7: =$S7*N7 -> 0 | AS7: =$S7*O7 -> 0 | AT7: =$S7*P7 -> 0 | AV7: =$T7*G7 -> 0 | AW7: =$T7*H7 -> 0 | AX7: =$T7*I7 -> 0 | AY7: =$T7*J7 -> 0 | AZ7: =$T7*K7 -> 0 | BA7: =$T7*L7 -> 0 | BB7: =$T7*M7 -> 0 | BC7: =$T7*N7 -> 0 | BD7: =$T7*O7 -> 0 | BE7: =$T7*P7 -> 0 | BG7: =$U7*G7 -> 0 | BH7: =$U7*H7 -> 0 | BI7: =$U7*I7 -> 0 | BJ7: =$U7*J7 -> 0 | BK7: =$U7*K7 -> 0 | BL7: =$U7*L7 -> 0 | BM7: =$U7*M7 -> 0 | BN7: =$U7*N7 -> 0 | BO7: =$U7*O7 -> 0 | BP7: =$U7*P7 -> 0 | BR7: =$V7*G7 -> 0 | BS7: =$V7*H7 -> 0 | BT7: =$V7*I7 -> 0 | BU7: =$V7*J7 -> 0 | BV7: =$V7*K7 -> 0 | BW7: =$V7*L7 -> 0 | BX7: =$V7*M7 -> 0 | BY7: =$V7*N7 -> 0 | BZ7: =$V7*O7 -> 0 | CA7: =$V7*P7 -> 0 | CC7: =$W7*G7 -> 0 | CD7: =$W7*H7 -> 0 | CE7: =$W7*I7 -> 0 | CF7: =$W7*J7 -> 0 | CG7: =$W7*K7 -> 0 | CH7: =$W7*L7 -> 0 | CI7: =$W7*M7 -> 0 | CJ7: =$W7*N7 -> 0 | CK7: =$W7*O7 -> 0 | CL7: =$W7*P7 -> 0
B8: 1 - Afry - Partner activities | C8: Project Management | D8: Project Management | E8: 2304.832 | F8: Project Management | G8: 0 | H8: 0 | I8: 0 | J8: 0 | K8: 0 | L8: 0 | M8: 0 | N8: 0 | O8: 0 | P8: 0 | Q8: =SUM(G8:P8) -> 0 | S8: 0 | T8: 0.1 | U8: 0 | V8: 0 | W8: 0.9 | X8: 1 | Z8: 0 | AA8: 0 | AB8: 0 | AC8: 0 | AD8: 0 | AE8: 0 | AF8: 0 | AG8: 0 | AH8: 0 | AI8: 0 | AK8: 0 | AL8: 0 | AM8: 0 | AN8: 0 | AO8: 0 | AP8: 0 | AQ8: 0 | AR8: 0 | AS8: 0 | AT8: 0 | AV8: 0 | AW8: 0 | AX8: 0 | AY8: 0 | AZ8: 0 | BA8: 0 | BB8: 0 | BC8: 0 | BD8: 0 | BE8: 0 | BG8: 0 | BH8: 0 | BI8: 0 | BJ8: 0 | BK8: 0 | BL8: 0 | BM8: 0 | BN8: 0 | BO8: 0 | BP8: 0 | BR8: 0 | BS8: 0 | BT8: 0 | BU8: 0 | BV8: 0 | BW8: 0 | BX8: 0 | BY8: 0 | BZ8: 0 | CA8: 0 | CC8: 0 | CD8: 0 | CE8: 0 | CF8: 0 | CG8: 0 | CH8: 0 | CI8: 0 | CJ8: 0 | CK8: 0 | CL8: 0
B9: 1 - ENWL - Project Manager b4 SG | C9: Project Management | D9: Project Management | E9: 497.5057367 | F9: Project Management | G9: 0 | H9: 0 | I9: 0 | J9: 0 | K9: 0 | L9: 0 | M9: 0 | N9: 0 | O9: 0 | P9: 0 | Q9: 0 | S9: 0 | T9: 0 | U9: 0 | V9: 0 | W9: 1 | X9: 1 | Z9: 0 | AA9: 0 | AB9: 0 | AC9: 0 | AD9: 0 | AE9: 0 | AF9: 0 | AG9: 0 | AH9: 0 | AI9: 0 | AK9: 0 | AL9: 0 | AM9: 0 | AN9: 0 | AO9: 0 | AP9: 0 | AQ9: 0 | AR9: 0 | AS9: 0 | AT9: 0 | AV9: 0 | AW9: 0 | AX9: 0 | AY9: 0 | AZ9: 0 | BA9: 0 | BB9: 0 | BC9: 0 | BD9: 0 | BE9: 0 | BG9: 0 | BH9: 0 | BI9: 0 | BJ9: 0 | BK9: 0 | BL9: 0 | BM9: 0 | BN9: 0 | BO9: 0 | BP9: 0 | BR9: 0 | BS9: 0 | BT9: 0 | BU9: 0 | BV9: 0 | BW9: 0 | BX9: 0 | BY9: 0 | BZ9: 0 | CA9: 0 | CC9: 0 | CD9: 0 | CE9: 0 | CF9: 0 | CG9: 0 | CH9: 0 | CI9: 0 | CJ9: 0 | CK9: 0 | CL9: 0
B10: 1 - ENWL - Project Manager after SG | C10: Project Management | D10: Project Management | E10: 497.5057367 | F10: Project Management | G10: 0 | H10: 0 | I10: 0 | J10: 0 | K10: 0 | L10: 0 | M10: 0 | N10: 0 | O10: 0 | P10: 0 | Q10: 0 | S10: 0 | T10: 0 | U10: 0 | V10: 0 | W10: 1 | X10: 1 | Z10: 0 | AA10: 0 | AB10: 0 | AC10: 0 | AD10: 0 | AE10: 0 | AF10: 0 | AG10: 0 | AH10: 0 | AI10: 0 | AK10: 0 | AL10: 0 | AM10: 0 | AN10: 0 | AO10: 0 | AP10: 0 | AQ10: 0 | AR10: 0 | AS10: 0 | AT10: 0 | AV10: 0 | AW10: 0 | AX10: 0 | AY10: 0 | AZ10: 0 | BA10: 0 | BB10: 0 | BC10: 0 | BD10: 0 | BE10: 0 | BG10: 0 | BH10: 0 | BI10: 0 | BJ10: 0 | BK10: 0 | BL10: 0 | BM10: 0 | BN10: 0 | BO10: 0 | BP10: 0 | BR10: 0 | BS10: 0 | BT10: 0 | BU10: 0 | BV10: 0 | BW10: 0 | BX10: 0 | BY10: 0 | BZ10: 0 | CA10: 0 | CC10: 0 | CD10: 0 | CE10: 0 | CF10: 0 | CG10: 0 | CH10: 0 | CI10: 0 | CJ10: 0 | CK10: 0 | CL10: 0
B11: 1 - ENWL - Technical Lead b4 SG | C11: Project Management | D11: Project Management | E11: 497.5057367 | F11: Project Management | G11: 0 | H11: 0 | I11: 0 | J11: 0 | K11: 0 | L11: 0 | M11: 0 | N11: 0 | O11: 0 | P11: 0 | Q11: 0 | S11: 0 | T11: 0 | U11: 0 | V11: 0 | W11: 1 | X11: 1 | Z11: 0 | AA11: 0 | AB11: 0 | AC11: 0 | AD11: 0 | AE11: 0 | AF11: 0 | AG11: 0 | AH11: 0 | AI11: 0 | AK11: 0 | AL11: 0 | AM11: 0 | AN11: 0 | AO11: 0 | AP11: 0 | AQ11: 0 | AR11: 0 | AS11: 0 | AT11: 0 | AV11: 0 | AW11: 0 | AX11: 0 | AY11: 0 | AZ11: 0 | BA11: 0 | BB11: 0 | BC11: 0 | BD11: 0 | BE11: 0 | BG11: 0 | BH11: 0 | BI11: 0 | BJ11: 0 | BK11: 0 | BL11: 0 | BM11: 0 | BN11: 0 | BO11: 0 | BP11: 0 | BR11: 0 | BS11: 0 | BT11: 0 | BU11: 0 | BV11: 0 | BW11: 0 | BX11: 0 | BY11: 0 | BZ11: 0 | CA11: 0 | CC11: 0 | CD11: 0 | CE11: 0 | CF11: 0 | CG11: 0 | CH11: 0 | CI11: 0 | CJ11: 0 | CK11: 0 | CL11: 0
B12: 1 - ENWL - Technical Lead after SG | C12: Project Management | D12: Project Management | E12: 497.5057367 | F12: Project Management | G12: 0 | H12: 0 | I12: 0 | J12: 0 | K12: 0 | L12: 0 | M12: 0 | N12: 0 | O12: 0 | P12: 0 | Q12: 0 | S12: 0 | T12: 0 | U12: 0 | V12: 0 | W12: 1 | X12: 1 | Z12: 0 | AA12: 0 | AB12: 0 | AC12: 0 | AD12: 0 | AE12: 0 | AF12: 0 | AG12: 0 | AH12: 0 | AI12: 0 | AK12: 0 | AL12: 0 | AM12: 0 | AN12: 0 | AO12: 0 | AP12: 0 | AQ12: 0 | AR12: 0 | AS12: 0 | AT12: 0 | AV12: 0 | AW12: 0 | AX12: 0 | AY12: 0 | AZ12: 0 | BA12: 0 | BB12: 0 | BC12: 0 | BD12: 0 | BE12: 0 | BG12: 0 | BH12: 0 | BI12: 0 | BJ12: 0 | BK12: 0 | BL12: 0 | BM12: 0 | BN12: 0 | BO12: 0 | BP12: 0 | BR12: 0 | BS12: 0 | BT12: 0 | BU12: 0 | BV12: 0 | BW12: 0 | BX12: 0 | BY12: 0 | BZ12: 0 | CA12: 0 | CC12: 0 | CD12: 0 | CE12: 0 | CF12: 0 | CG12: 0 | CH12: 0 | CI12: 0 | CJ12: 0 | CK12: 0 | CL12: 0
B13: 1 -ENWL - Customer workstream lead b4 SG | C13: Project Management | D13: Project Management | E13: 366.89 | F13: Project Management | G13: 0 | H13: 0 | I13: 0 | J13: 0 | K13: 0 | L13: 0 | M13: 0 | N13: 0 | O13: 0 | P13: 0 | Q13: 0 | S13: 0 | T13: 0 | U13: 0 | V13: 0 | W13: 1 | X13: 1 | Z13: 0 | AA13: 0 | AB13: 0 | AC13: 0 | AD13: 0 | AE13: 0 | AF13: 0 | AG13: 0 | AH13: 0 | AI13: 0 | AK13: 0 | AL13: 0 | AM13: 0 | AN13: 0 | AO13: 0 | AP13: 0 | AQ13: 0 | AR13: 0 | AS13: 0 | AT13: 0 | AV13: 0 | AW13: 0 | AX13: 0 | AY13: 0 | AZ13: 0 | BA13: 0 | BB13: 0 | BC13: 0 | BD13: 0 | BE13: 0 | BG13: 0 | BH13: 0 | BI13: 0 | BJ13: 0 | BK13: 0 | BL13: 0 | BM13: 0 | BN13: 0 | BO13: 0 | BP13: 0 | BR13: 0 | BS13: 0 | BT13: 0 | BU13: 0 | BV13: 0 | BW13: 0 | BX13: 0 | BY13: 0 | BZ13: 0 | CA13: 0 | CC13: 0 | CD13: 0 | CE13: 0 | CF13: 0 | CG13: 0 | CH13: 0 | CI13: 0 | CJ13: 0 | CK13: 0 | CL13: 0
B14: 1 -ENWL - Customer workstream lead after SG | C14: Project Management | D14: Project Management | E14: 366.89 | F14: Project Management | G14: 0 | H14: 0 | I14: 0 | J14: 0 | K14: 0 | L14: 0 | M14: 0 | N14: 0 | O14: 0 | P14: 0 | Q14: 0 | S14: 0 | T14: 0 | U14: 0 | V14: 0 | W14: 1 | X14: 1 | Z14: 0 | AA14: 0 | AB14: 0 | AC14: 0 | AD14: 0 | AE14: 0 | AF14: 0 | AG14: 0 | AH14: 0 | AI14: 0 | AK14: 0 | AL14: 0 | AM14: 0 | AN14: 0 | AO14: 0 | AP14: 0 | AQ14: 0 | AR14: 0 | AS14: 0 | AT14: 0 | AV14: 0 | AW14: 0 | AX14: 0 | AY14: 0 | AZ14: 0 | BA14: 0 | BB14: 0 | BC14: 0 | BD14: 0 | BE14: 0 | BG14: 0 | BH14: 0 | BI14: 0 | BJ14: 0 | BK14: 0 | BL14: 0 | BM14: 0 | BN14: 0 | BO14: 0 | BP14: 0 | BR14: 0 | BS14: 0 | BT14: 0 | BU14: 0 | BV14: 0 | BW14: 0 | BX14: 0 | BY14: 0 | BZ14: 0 | CA14: 0 | CC14: 0 | CD14: 0 | CE14: 0 | CF14: 0 | CG14: 0 | CH14: 0 | CI14: 0 | CJ14: 0 | CK14: 0 | CL14: 0
B15: 1 -ENWL - Project management office b4 SG | C15: Project Management | D15: Project Management | E15: 394.22 | F15: Project Management | G15: 0 | H15: 0 | I15: 0 | J15: 0 | K15: 0 | L15: 0 | M15: 0 | N15: 0 | O15: 0 | P15: 0 | Q15: 0 | S15: 0 | T15: 0 | U15: 0 | V15: 0 | W15: 1 | X15: 1 | Z15: 0 | AA15: 0 | AB15: 0 | AC15: 0 | AD15: 0 | AE15: 0 | AF15: 0 | AG15: 0 | AH15: 0 | AI15: 0 | AK15: 0 | AL15: 0 | AM15: 0 | AN15: 0 | AO15: 0 | AP15: 0 | AQ15: 0 | AR15: 0 | AS15: 0 | AT15: 0 | AV15: 0 | AW15: 0 | AX15: 0 | AY15: 0 | AZ15: 0 | BA15: 0 | BB15: 0 | BC15: 0 | BD15: 0 | BE15: 0 | BG15: 0 | BH15: 0 | BI15: 0 | BJ15: 0 | BK15: 0 | BL15: 0 | BM15: 0 | BN15: 0 | BO15: 0 | BP15: 0 | BR15: 0 | BS15: 0 | BT15: 0 | BU15: 0 | BV15: 0 | BW15: 0 | BX15: 0 | BY15: 0 | BZ15: 0 | CA15: 0 | CC15: 0 | CD15: 0 | CE15: 0 | CF15: 0 | CG15: 0 | CH15: 0 | CI15: 0 | CJ15: 0 | CK15: 0 | CL15: 0
B16: 1 -ENWL - Project management office after SG | C16: Project Management | D16: Project Management | E16: 394.22 | F16: Project Management | G16: 0 | H16: 0 | I16: 0 | J16: 0 | K16: 0 | L16: 0 | M16: 0 | N16: 0 | O16: 0 | P16: 0 | Q16: 0 | S16: 0 | T16: 0 | U16: 0 | V16: 0 | W16: 1 | X16: 1 | Z16: 0 | AA16: 0 | AB16: 0 | AC16: 0 | AD16: 0 | AE16: 0 | AF16: 0 | AG16: 0 | AH16: 0 | AI16: 0 | AK16: 0 | AL16: 0 | AM16: 0 | AN16: 0 | AO16: 0 | AP16: 0 | AQ16: 0 | AR16: 0 | AS16: 0 | AT16: 0 | AV16: 0 | AW16: 0 | AX16: 0 | AY16: 0 | AZ16: 0 | BA16: 0 | BB16: 0 | BC16: 0 | BD16: 0 | BE16: 0 | BG16: 0 | BH16: 0 | BI16: 0 | BJ16: 0 | BK16: 0 | BL16: 0 | BM16: 0 | BN16: 0 | BO16: 0 | BP16: 0 | BR16: 0 | BS16: 0 | BT16: 0 | BU16: 0 | BV16: 0 | BW16: 0 | BX16: 0 | BY16: 0 | BZ16: 0 | CA16: 0 | CC16: 0 | CD16: 0 | CE16: 0 | CF16: 0 | CG16: 0 | CH16: 0 | CI16: 0 | CJ16: 0 | CK16: 0 | CL16: 0
B17: 1 -ENWL - Finance support b4 SG | C17: Project Management | D17: Project Management | E17: 394.22 | F17: Project Management | G17: 0 | H17: 0 | I17: 0 | J17: 0 | K17: 0 | L17: 0 | M17: 0 | N17: 0 | O17: 0 | P17: 0 | Q17: 0 | S17: 0 | T17: 0 | U17: 0 | V17: 0 | W17: 1 | X17: 1 | Z17: 0 | AA17: 0 | AB17: 0 | AC17: 0 | AD17: 0 | AE17: 0 | AF17: 0 | AG17: 0 | AH17: 0 | AI17: 0 | AK17: 0 | AL17: 0 | AM17: 0 | AN17: 0 | AO17: 0 | AP17: 0 | AQ17: 0 | AR17: 0 | AS17: 0 | AT17: 0 | AV17: 0 | AW17: 0 | AX17: 0 | AY17: 0 | AZ17: 0 | BA17: 0 | BB17: 0 | BC17: 0 | BD17: 0 | BE17: 0 | BG17: 0 | BH17: 0 | BI17: 0 | BJ17: 0 | BK17: 0 | BL17: 0 | BM17: 0 | BN17: 0 | BO17: 0 | BP17: 0 | BR17: 0 | BS17: 0 | BT17: 0 | BU17: 0 | BV17: 0 | BW17: 0 | BX17: 0 | BY17: 0 | BZ17: 0 | CA17: 0 | CC17: 0 | CD17: 0 | CE17: 0 | CF17: 0 | CG17: 0 | CH17: 0 | CI17: 0 | CJ17: 0 | CK17: 0 | CL17: 0
B18: 1 -ENWL - Finance support after SG | C18: Project Management | D18: Project Management | E18: 394.22 | F18: Project Management | G18: 0 | H18: 0 | I18: 0 | J18: 0 | K18: 0 | L18: 0 | M18: 0 | N18: 0 | O18: 0 | P18: 0 | Q18: 0 | S18: 0 | T18: 0 | U18: 0 | V18: 0 | W18: 1 | X18: 1 | Z18: 0 | AA18: 0 | AB18: 0 | AC18: 0 | AD18: 0 | AE18: 0 | AF18: 0 | AG18: 0 | AH18: 0 | AI18: 0 | AK18: 0 | AL18: 0 | AM18: 0 | AN18: 0 | AO18: 0 | AP18: 0 | AQ18: 0 | AR18: 0 | AS18: 0 | AT18: 0 | AV18: 0 | AW18: 0 | AX18: 0 | AY18: 0 | AZ18: 0 | BA18: 0 | BB18: 0 | BC18: 0 | BD18: 0 | BE18: 0 | BG18: 0 | BH18: 0 | BI18: 0 | BJ18: 0 | BK18: 0 | BL18: 0 | BM18: 0 | BN18: 0 | BO18: 0 | BP18: 0 | BR18: 0 | BS18: 0 | BT18: 0 | BU18: 0 | BV18: 0 | BW18: 0 | BX18: 0 | BY18: 0 | BZ18: 0 | CA18: 0 | CC18: 0 | CD18: 0 | CE18: 0 | CF18: 0 | CG18: 0 | CH18: 0 | CI18: 0 | CJ18: 0 | CK18: 0 | CL18: 0
B19: 1 -ENWL - Senior Leadership Team b4 SG | C19: Project Management | D19: Project Management | E19: 661.2535191 | F19: Project Management | G19: 0 | H19: 0 | I19: 0 | J19: 0 | K19: 0 | L19: 0 | M19: 0 | N19: 0 | O19: 0 | P19: 0 | Q19: 0 | S19: 0 | T19: 0 | U19: 0 | V19: 0 | W19: 1 | X19: 1 | Z19: 0 | AA19: 0 | AB19: 0 | AC19: 0 | AD19: 0 | AE19: 0 | AF19: 0 | AG19: 0 | AH19: 0 | AI19: 0 | AK19: 0 | AL19: 0 | AM19: 0 | AN19: 0 | AO19: 0 | AP19: 0 | AQ19: 0 | AR19: 0 | AS19: 0 | AT19: 0 | AV19: 0 | AW19: 0 | AX19: 0 | AY19: 0 | AZ19: 0 | BA19: 0 | BB19: 0 | BC19: 0 | BD19: 0 | BE19: 0 | BG19: 0 | BH19: 0 | BI19: 0 | BJ19: 0 | BK19: 0 | BL19: 0 | BM19: 0 | BN19: 0 | BO19: 0 | BP19: 0 | BR19: 0 | BS19: 0 | BT19: 0 | BU19: 0 | BV19: 0 | BW19: 0 | BX19: 0 | BY19: 0 | BZ19: 0 | CA19: 0 | CC19: 0 | CD19: 0 | CE19: 0 | CF19: 0 | CG19: 0 | CH19: 0 | CI19: 0 | CJ19: 0 | CK19: 0 | CL19: 0
B20: 1 -ENWL - Senior Leadership Team after SG | C20: Project Management | D20: Project Management | E20: 661.2535191 | F20: Project Management | G20: 0 | H20: 0 | I20: 0 | J20: 0 | K20: 0 | L20: 0 | M20: 0 | N20: 0 | O20: 0 | P20: 0 | Q20: 0 | S20: 0 | T20: 0 | U20: 0 | V20: 0 | W20: 1 | X20: 1 | Z20: 0 | AA20: 0 | AB20: 0 | AC20: 0 | AD20: 0 | AE20: 0 | AF20: 0 | AG20: 0 | AH20: 0 | AI20: 0 | AK20: 0 | AL20: 0 | AM20: 0 | AN20: 0 | AO20: 0 | AP20: 0 | AQ20: 0 | AR20: 0 | AS20: 0 | AT20: 0 | AV20: 0 | AW20: 0 | AX20: 0 | AY20: 0 | AZ20: 0 | BA20: 0 | BB20: 0 | BC20: 0 | BD20: 0 | BE20: 0 | BG20: 0 | BH20: 0 | BI20: 0 | BJ20: 0 | BK20: 0 | BL20: 0 | BM20: 0 | BN20: 0 | BO20: 0 | BP20: 0 | BR20: 0 | BS20: 0 | BT20: 0 | BU20: 0 | BV20: 0 | BW20: 0 | BX20: 0 | BY20: 0 | BZ20: 0 | CA20: 0 | CC20: 0 | CD20: 0 | CE20: 0 | CF20: 0 | CG20: 0 | CH20: 0 | CI20: 0 | CJ20: 0 | CK20: 0 | CL20: 0
B21: 1 -ENWL - Project Director b4 SG | C21: Project Management | D21: Project Management | E21: 991.89 | F21: Project Management | G21: 0 | H21: 0 | I21: 0 | J21: 0 | K21: 0 | L21: 0 | M21: 0 | N21: 0 | O21: 0 | P21: 0 | Q21: 0 | S21: 0 | T21: 0 | U21: 0 | V21: 0 | W21: 1 | X21: 1 | Z21: 0 | AA21: 0 | AB21: 0 | AC21: 0 | AD21: 0 | AE21: 0 | AF21: 0 | AG21: 0 | AH21: 0 | AI21: 0 | AK21: 0 | AL21: 0 | AM21: 0 | AN21: 0 | AO21: 0 | AP21: 0 | AQ21: 0 | AR21: 0 | AS21: 0 | AT21: 0 | AV21: 0 | AW21: 0 | AX21: 0 | AY21: 0 | AZ21: 0 | BA21: 0 | BB21: 0 | BC21: 0 | BD21: 0 | BE21: 0 | BG21: 0 | BH21: 0 | BI21: 0 | BJ21: 0 | BK21: 0 | BL21: 0 | BM21: 0 | BN21: 0 | BO21: 0 | BP21: 0 | BR21: 0 | BS21: 0 | BT21: 0 | BU21: 0 | BV21: 0 | BW21: 0 | BX21: 0 | BY21: 0 | BZ21: 0 | CA21: 0 | CC21: 0 | CD21: 0 | CE21: 0 | CF21: 0 | CG21: 0 | CH21: 0 | CI21: 0 | CJ21: 0 | CK21: 0 | CL21: 0
B22: 1 -ENWL - Project Director after SG | C22: Project Management | D22: Project Management | E22: 991.89 | F22: Project Management | G22: 0 | H22: 0 | I22: 0 | J22: 0 | K22: 0 | L22: 0 | M22: 0 | N22: 0 | O22: 0 | P22: 0 | Q22: 0 | S22: 0 | T22: 0 | U22: 0 | V22: 0 | W22: 1 | X22: 1 | Z22: 0 | AA22: 0 | AB22: 0 | AC22: 0 | AD22: 0 | AE22: 0 | AF22: 0 | AG22: 0 | AH22: 0 | AI22: 0 | AK22: 0 | AL22: 0 | AM22: 0 | AN22: 0 | AO22: 0 | AP22: 0 | AQ22: 0 | AR22: 0 | AS22: 0 | AT22: 0 | AV22: 0 | AW22: 0 | AX22: 0 | AY22: 0 | AZ22: 0 | BA22: 0 | BB22: 0 | BC22: 0 | BD22: 0 | BE22: 0 | BG22: 0 | BH22: 0 | BI22: 0 | BJ22: 0 | BK22: 0 | BL22: 0 | BM22: 0 | BN22: 0 | BO22: 0 | BP22: 0 | BR22: 0 | BS22: 0 | BT22: 0 | BU22: 0 | BV22: 0 | BW22: 0 | BX22: 0 | BY22: 0 | BZ22: 0 | CA22: 0 | CC22: 0 | CD22: 0 | CE22: 0 | CF22: 0 | CG22: 0 | CH22: 0 | CI22: 0 | CJ22: 0 | CK22: 0 | CL22: 0
B23: 1 -ENWL - Legal Support | C23: Project Management | D23: Project Management | E23: 405.41 | F23: Project Management | G23: 0 | H23: 0 | I23: 0 | J23: 0 | K23: 0 | L23: 0 | M23: 0 | N23: 0 | O23: 0 | P23: 0 | Q23: 0 | S23: 0 | T23: 0 | U23: 0 | V23: 0 | W23: 1 | X23: 1 | Z23: 0 | AA23: 0 | AB23: 0 | AC23: 0 | AD23: 0 | AE23: 0 | AF23: 0 | AG23: 0 | AH23: 0 | AI23: 0 | AK23: 0 | AL23: 0 | AM23: 0 | AN23: 0 | AO23: 0 | AP23: 0 | AQ23: 0 | AR23: 0 | AS23: 0 | AT23: 0 | AV23: 0 | AW23: 0 | AX23: 0 | AY23: 0 | AZ23: 0 | BA23: 0 | BB23: 0 | BC23: 0 | BD23: 0 | BE23: 0 | BG23: 0 | BH23: 0 | BI23: 0 | BJ23: 0 | BK23: 0 | BL23: 0 | BM23: 0 | BN23: 0 | BO23: 0 | BP23: 0 | BR23: 0 | BS23: 0 | BT23: 0 | BU23: 0 | BV23: 0 | BW23: 0 | BX23: 0 | BY23: 0 | BZ23: 0 | CA23: 0 | CC23: 0 | CD23: 0 | CE23: 0 | CF23: 0 | CG23: 0 | CH23: 0 | CI23: 0 | CJ23: 0 | CK23: 0 | CL23: 0
B24: 1 -ENWL - Procurement support | C24: Project Management | D24: Project Management | E24: 362.82 | F24: Project Management | G24: 0 | H24: 0 | I24: 0 | J24: 0 | K24: 0 | L24: 0 | M24: 0 | N24: 0 | O24: 0 | P24: 0 | Q24: 0 | S24: 0 | T24: 0 | U24: 0 | V24: 0 | W24: 1 | X24: 1 | Z24: 0 | AA24: 0 | AB24: 0 | AC24: 0 | AD24: 0 | AE24: 0 | AF24: 0 | AG24: 0 | AH24: 0 | AI24: 0 | AK24: 0 | AL24: 0 | AM24: 0 | AN24: 0 | AO24: 0 | AP24: 0 | AQ24: 0 | AR24: 0 | AS24: 0 | AT24: 0 | AV24: 0 | AW24: 0 | AX24: 0 | AY24: 0 | AZ24: 0 | BA24: 0 | BB24: 0 | BC24: 0 | BD24: 0 | BE24: 0 | BG24: 0 | BH24: 0 | BI24: 0 | BJ24: 0 | BK24: 0 | BL24: 0 | BM24: 0 | BN24: 0 | BO24: 0 | BP24: 0 | BR24: 0 | BS24: 0 | BT24: 0 | BU24: 0 | BV24: 0 | BW24: 0 | BX24: 0 | BY24: 0 | BZ24: 0 | CA24: 0 | CC24: 0 | CD24: 0 | CE24: 0 | CF24: 0 | CG24: 0 | CH24: 0 | CI24: 0 | CJ24: 0 | CK24: 0 | CL24: 0
B25: 1 - ENWL - Legal Support for Bilateral Trading Contracts | C25: Project Management | D25: Project Management | E25: 100000 | F25: Project Management | G25: 0 | H25: 0 | I25: 0 | J25: 0 | K25: 0 | L25: 0 | M25: 0 | N25: 0 | O25: 0 | P25: 0 | Q25: 0 | S25: 0 | T25: 0 | U25: 0 | V25: 0 | W25: 1 | X25: 1 | Z25: 0 | AA25: 0 | AB25: 0 | AC25: 0 | AD25: 0 | AE25: 0 | AF25: 0 | AG25: 0 | AH25: 0 | AI25: 0 | AK25: 0 | AL25: 0 | AM25: 0 | AN25: 0 | AO25: 0 | AP25: 0 | AQ25: 0 | AR25: 0 | AS25: 0 | AT25: 0 | AV25: 0 | AW25: 0 | AX25: 0 | AY25: 0 | AZ25: 0 | BA25: 0 | BB25: 0 | BC25: 0 | BD25: 0 | BE25: 0 | BG25: 0 | BH25: 0 | BI25: 0 | BJ25: 0 | BK25: 0 | BL25: 0 | BM25: 0 | BN25: 0 | BO25: 0 | BP25: 0 | BR25: 0 | BS25: 0 | BT25: 0 | BU25: 0 | BV25: 0 | BW25: 0 | BX25: 0 | BY25: 0 | BZ25: 0 | CA25: 0 | CC25: 0 | CD25: 0 | CE25: 0 | CF25: 0 | CG25: 0 | CH25: 0 | CI25: 0 | CJ25: 0 | CK25: 0 | CL25: 0
B26: 1 - ENWL - ENWL Real Time Systems Lead b4 SG | C26: Project Management | D26: Project Management | E26: 500 | F26: Project Management | G26: 0 | H26: 0 | I26: 0 | J26: 0 | K26: 0 | L26: 0 | M26: 0 | N26: 0 | O26: 0 | P26: 0 | Q26: 0 | S26: 0 | T26: 0 | U26: 0 | V26: 0 | W26: 1 | X26: 1 | Z26: 0 | AA26: 0 | AB26: 0 | AC26: 0 | AD26: 0 | AE26: 0 | AF26: 0 | AG26: 0 | AH26: 0 | AI26: 0 | AK26: 0 | AL26: 0 | AM26: 0 | AN26: 0 | AO26: 0 | AP26: 0 | AQ26: 0 | AR26: 0 | AS26: 0 | AT26: 0 | AV26: 0 | AW26: 0 | AX26: 0 | AY26: 0 | AZ26: 0 | BA26: 0 | BB26: 0 | BC26: 0 | BD26: 0 | BE26: 0 | BG26: 0 | BH26: 0 | BI26: 0 | BJ26: 0 | BK26: 0 | BL26: 0 | BM26: 0 | BN26: 0 | BO26: 0 | BP26: 0 | BR26: 0 | BS26: 0 | BT26: 0 | BU26: 0 | BV26: 0 | BW26: 0 | BX26: 0 | BY26: 0 | BZ26: 0 | CA26: 0 | CC26: 0 | CD26: 0 | CE26: 0 | CF26: 0 | CG26: 0 | CH26: 0 | CI26: 0 | CJ26: 0 | CK26: 0 | CL26: 0
B27: 1 - ENWL - ENWL Real Time Systems Lead after SG | C27: Project Management | D27: Project Management | E27: 500 | F27: Project Management | G27: 0 | H27: 0 | I27: 0 | J27: 0 | K27: 0 | L27: 0 | M27: 0 | N27: 0 | O27: 0 | P27: 0 | Q27: 0 | S27: 0 | T27: 0 | U27: 0 | V27: 0 | W27: 1 | X27: 1 | Z27: 0 | AA27: 0 | AB27: 0 | AC27: 0 | AD27: 0 | AE27: 0 | AF27: 0 | AG27: 0 | AH27: 0 | AI27: 0 | AK27: 0 | AL27: 0 | AM27: 0 | AN27: 0 | AO27: 0 | AP27: 0 | AQ27: 0 | AR27: 0 | AS27: 0 | AT27: 0 | AV27: 0 | AW27: 0 | AX27: 0 | AY27: 0 | AZ27: 0 | BA27: 0 | BB27: 0 | BC27: 0 | BD27: 0 | BE27: 0 | BG27: 0 | BH27: 0 | BI27: 0 | BJ27: 0 | BK27: 0 | BL27: 0 | BM27: 0 | BN27: 0 | BO27: 0 | BP27: 0 | BR27: 0 | BS27: 0 | BT27: 0 | BU27: 0 | BV27: 0 | BW27: 0 | BX27: 0 | BY27: 0 | BZ27: 0 | CA27: 0 | CC27: 0 | CD27: 0 | CE27: 0 | CF27: 0 | CG27: 0 | CH27: 0 | CI27: 0 | CJ27: 0 | CK27: 0 | CL27: 0
B28: 1 - ENWL - ENWL Data & Integration Lead b4 SG | C28: Project Management | D28: Project Management | E28: 500 | F28: Project Management | G28: 0 | H28: 0 | I28: 0 | J28: 0 | K28: 0 | L28: 0 | M28: 0 | N28: 0 | O28: 0 | P28: 0 | Q28: 0 | S28: 0 | T28: 0 | U28: 0 | V28: 0 | W28: 1 | X28: 1 | Z28: 0 | AA28: 0 | AB28: 0 | AC28: 0 | AD28: 0 | AE28: 0 | AF28: 0 | AG28: 0 | AH28: 0 | AI28: 0 | AK28: 0 | AL28: 0 | AM28: 0 | AN28: 0 | AO28: 0 | AP28: 0 | AQ28: 0 | AR28: 0 | AS28: 0 | AT28: 0 | AV28: 0 | AW28: 0 | AX28: 0 | AY28: 0 | AZ28: 0 | BA28: 0 | BB28: 0 | BC28: 0 | BD28: 0 | BE28: 0 | BG28: 0 | BH28: 0 | BI28: 0 | BJ28: 0 | BK28: 0 | BL28: 0 | BM28: 0 | BN28: 0 | BO28: 0 | BP28: 0 | BR28: 0 | BS28: 0 | BT28: 0 | BU28: 0 | BV28: 0 | BW28: 0 | BX28: 0 | BY28: 0 | BZ28: 0 | CA28: 0 | CC28: 0 | CD28: 0 | CE28: 0 | CF28: 0 | CG28: 0 | CH28: 0 | CI28: 0 | CJ28: 0 | CK28: 0 | CL28: 0
B29: 1 - ENWL - ENWL Data & Integration Lead after SG | C29: Project Management | D29: Project Management | E29: 500 | F29: Project Management | G29: 0 | H29: 0 | I29: 0 | J29: 0 | K29: 0 | L29: 0 | M29: 0 | N29: 0 | O29: 0 | P29: 0 | Q29: 0 | S29: 0 | T29: 0 | U29: 0 | V29: 0 | W29: 1 | X29: 1 | Z29: 0 | AA29: 0 | AB29: 0 | AC29: 0 | AD29: 0 | AE29: 0 | AF29: 0 | AG29: 0 | AH29: 0 | AI29: 0 | AK29: 0 | AL29: 0 | AM29: 0 | AN29: 0 | AO29: 0 | AP29: 0 | AQ29: 0 | AR29: 0 | AS29: 0 | AT29: 0 | AV29: 0 | AW29: 0 | AX29: 0 | AY29: 0 | AZ29: 0 | BA29: 0 | BB29: 0 | BC29: 0 | BD29: 0 | BE29: 0 | BG29: 0 | BH29: 0 | BI29: 0 | BJ29: 0 | BK29: 0 | BL29: 0 | BM29: 0 | BN29: 0 | BO29: 0 | BP29: 0 | BR29: 0 | BS29: 0 | BT29: 0 | BU29: 0 | BV29: 0 | BW29: 0 | BX29: 0 | BY29: 0 | BZ29: 0 | CA29: 0 | CC29: 0 | CD29: 0 | CE29: 0 | CF29: 0 | CG29: 0 | CH29: 0 | CI29: 0 | CJ29: 0 | CK29: 0 | CL29: 0
B30: 1 - ENWL - IT Project Manager b4 SG | C30: Project Management | D30: Project Management | E30: 500 | F30: Project Management | G30: 0 | H30: 0 | I30: 0 | J30: 0 | K30: 0 | L30: 0 | M30: 0 | N30: 0 | O30: 0 | P30: 0 | Q30: 0 | S30: 0 | T30: 0 | U30: 0 | V30: 0 | W30: 1 | X30: 1 | Z30: 0 | AA30: 0 | AB30: 0 | AC30: 0 | AD30: 0 | AE30: 0 | AF30: 0 | AG30: 0 | AH30: 0 | AI30: 0 | AK30: 0 | AL30: 0 | AM30: 0 | AN30: 0 | AO30: 0 | AP30: 0 | AQ30: 0 | AR30: 0 | AS30: 0 | AT30: 0 | AV30: 0 | AW30: 0 | AX30: 0 | AY30: 0 | AZ30: 0 | BA30: 0 | BB30: 0 | BC30: 0 | BD30: 0 | BE30: 0 | BG30: 0 | BH30: 0 | BI30: 0 | BJ30: 0 | BK30: 0 | BL30: 0 | BM30: 0 | BN30: 0 | BO30: 0 | BP30: 0 | BR30: 0 | BS30: 0 | BT30: 0 | BU30: 0 | BV30: 0 | BW30: 0 | BX30: 0 | BY30: 0 | BZ30: 0 | CA30: 0 | CC30: 0 | CD30: 0 | CE30: 0 | CF30: 0 | CG30: 0 | CH30: 0 | CI30: 0 | CJ30: 0 | CK30: 0 | CL30: 0
B31: 1 - ENWL - IT Project Manager after SG | C31: Project Management | D31: Project Management | E31: 500 | F31: Project Management | G31: 0 | H31: 0 | I31: 0 | J31: 0 | K31: 0 | L31: 0 | M31: 0 | N31: 0 | O31: 0 | P31: 0 | Q31: 0 | S31: 0 | T31: 0 | U31: 0 | V31: 0 | W31: 1 | X31: 1 | Z31: 0 | AA31: 0 | AB31: 0 | AC31: 0 | AD31: 0 | AE31: 0 | AF31: 0 | AG31: 0 | AH31: 0 | AI31: 0 | AK31: 0 | AL31: 0 | AM31: 0 | AN31: 0 | AO31: 0 | AP31: 0 | AQ31: 0 | AR31: 0 | AS31: 0 | AT31: 0 | AV31: 0 | AW31: 0 | AX31: 0 | AY31: 0 | AZ31: 0 | BA31: 0 | BB31: 0 | BC31: 0 | BD31: 0 | BE31: 0 | BG31: 0 | BH31: 0 | BI31: 0 | BJ31: 0 | BK31: 0 | BL31: 0 | BM31: 0 | BN31: 0 | BO31: 0 | BP31: 0 | BR31: 0 | BS31: 0 | BT31: 0 | BU31: 0 | BV31: 0 | BW31: 0 | BX31: 0 | BY31: 0 | BZ31: 0 | CA31: 0 | CC31: 0 | CD31: 0 | CE31: 0 | CF31: 0 | CG31: 0 | CH31: 0 | CI31: 0 | CJ31: 0 | CK31: 0 | CL31: 0
B32: 1 - Accommodation | C32: Accommodation | D32: Project Management | E32: 100000 | F32: Accommodation | G32: 0 | H32: 0 | I32: 0 | J32: 0 | K32: 0 | L32: 0 | M32: 0 | N32: 0 | O32: 0 | P32: 0 | Q32: 0 | S32: 0 | T32: 0 | U32: 0 | V32: 0 | W32: 1 | X32: 1 | Z32: 0 | AA32: 0 | AB32: 0 | AC32: 0 | AD32: 0 | AE32: 0 | AF32: 0 | AG32: 0 | AH32: 0 | AI32: 0 | AK32: 0 | AL32: 0 | AM32: 0 | AN32: 0 | AO32: 0 | AP32: 0 | AQ32: 0 | AR32: 0 | AS32: 0 | AT32: 0 | AV32: 0 | AW32: 0 | AX32: 0 | AY32: 0 | AZ32: 0 | BA32: 0 | BB32: 0 | BC32: 0 | BD32: 0 | BE32: 0 | BG32: 0 | BH32: 0 | BI32: 0 | BJ32: 0 | BK32: 0 | BL32: 0 | BM32: 0 | BN32: 0 | BO32: 0 | BP32: 0 | BR32: 0 | BS32: 0 | BT32: 0 | BU32: 0 | BV32: 0 | BW32: 0 | BX32: 0 | BY32: 0 | BZ32: 0 | CA32: 0 | CC32: 0 | CD32: 0 | CE32: 0 | CF32: 0 | CG32: 0 | CH32: 0 | CI32: 0 | CJ32: 0 | CK32: 0 | CL32: 0
B33: 1 - Delta-EE - Project Management b4 SG | C33: Project Management | D33: Project Management | E33: 1224 | F33: Project Management | G33: 0 | H33: 0 | I33: 0 | J33: 0 | K33: 0 | L33: 0 | M33: 0 | N33: 0 | O33: 0 | P33: 0 | Q33: 0 | S33: 0 | T33: 0 | U33: 0.09803921569 | V33: 0 | W33: 0.9019607843 | X33: 1 | Z33: 0 | AA33: 0 | AB33: 0 | AC33: 0 | AD33: 0 | AE33: 0 | AF33: 0 | AG33: 0 | AH33: 0 | AI33: 0 | AK33: 0 | AL33: 0 | AM33: 0 | AN33: 0 | AO33: 0 | AP33: 0 | AQ33: 0 | AR33: 0 | AS33: 0 | AT33: 0 | AV33: 0 | AW33: 0 | AX33: 0 | AY33: 0 | AZ33: 0 | BA33: 0 | BB33: 0 | BC33: 0 | BD33: 0 | BE33: 0 | BG33: 0 | BH33: 0 | BI33: 0 | BJ33: 0 | BK33: 0 | BL33: 0 | BM33: 0 | BN33: 0 | BO33: 0 | BP33: 0 | BR33: 0 | BS33: 0 | BT33: 0 | BU33: 0 | BV33: 0 | BW33: 0 | BX33: 0 | BY33: 0 | BZ33: 0 | CA33: 0 | CC33: 0 | CD33: 0 | CE33: 0 | CF33: 0 | CG33: 0 | CH33: 0 | CI33: 0 | CJ33: 0 | CK33: 0 | CL33: 0
B34: 1 - Delta-EE - Project Management after SG | C34: Project Management | D34: Project Management | E34: 1224 | F34: Project Management | G34: 0 | H34: 0 | I34: 0 | J34: 0 | K34: 0 | L34: 0 | M34: 0 | N34: 0 | O34: 0 | P34: 0 | Q34: 0 | S34: 0 | T34: 0 | U34: 0.09803921569 | V34: 0 | W34: 0.9019607843 | X34: 1 | Z34: 0 | AA34: 0 | AB34: 0 | AC34: 0 | AD34: 0 | AE34: 0 | AF34: 0 | AG34: 0 | AH34: 0 | AI34: 0 | AK34: 0 | AL34: 0 | AM34: 0 | AN34: 0 | AO34: 0 | AP34: 0 | AQ34: 0 | AR34: 0 | AS34: 0 | AT34: 0 | AV34: 0 | AW34: 0 | AX34: 0 | AY34: 0 | AZ34: 0 | BA34: 0 | BB34: 0 | BC34: 0 | BD34: 0 | BE34: 0 | BG34: 0 | BH34: 0 | BI34: 0 | BJ34: 0 | BK34: 0 | BL34: 0 | BM34: 0 | BN34: 0 | BO34: 0 | BP34: 0 | BR34: 0 | BS34: 0 | BT34: 0 | BU34: 0 | BV34: 0 | BW34: 0 | BX34: 0 | BY34: 0 | BZ34: 0 | CA34: 0 | CC34: 0 | CD34: 0 | CE34: 0 | CF34: 0 | CG34: 0 | CH34: 0 | CI34: 0 | CJ34: 0 | CK34: 0 | CL34: 0
B35: 1 - Electron - Delivery Cycle support - Project Management after SG | C35: Project Management | D35: Project Management | E35: 1000 | F35: Project Management | G35: 0 | H35: 0 | I35: 0 | J35: 0 | K35: 0 | L35: 0 | M35: 0 | N35: 0 | O35: 0 | P35: 0 | Q35: 0 | S35: 0.15 | T35: 0 | U35: 0 | V35: 0 | W35: 0.85 | X35: 1 | Z35: 0 | AA35: 0 | AB35: 0 | AC35: 0 | AD35: 0 | AE35: 0 | AF35: 0 | AG35: 0 | AH35: 0 | AI35: 0 | AK35: 0 | AL35: 0 | AM35: 0 | AN35: 0 | AO35: 0 | AP35: 0 | AQ35: 0 | AR35: 0 | AS35: 0 | AT35: 0 | AV35: 0 | AW35: 0 | AX35: 0 | AY35: 0 | AZ35: 0 | BA35: 0 | BB35: 0 | BC35: 0 | BD35: 0 | BE35: 0 | BG35: 0 | BH35: 0 | BI35: 0 | BJ35: 0 | BK35: 0 | BL35: 0 | BM35: 0 | BN35: 0 | BO35: 0 | BP35: 0 | BR35: 0 | BS35: 0 | BT35: 0 | BU35: 0 | BV35: 0 | BW35: 0 | BX35: 0 | BY35: 0 | BZ35: 0 | CA35: 0 | CC35: 0 | CD35: 0 | CE35: 0 | CF35: 0 | CG35: 0 | CH35: 0 | CI35: 0 | CJ35: 0 | CK35: 0 | CL35: 0
B36: 1 - Electron - Trial / simulation - Project Management after SG | C36: Project Management | D36: Project Management | E36: 1000 | F36: Project Management | G36: 0 | H36: 0 | I36: 0 | J36: 0 | K36: 0 | L36: 0 | M36: 0 | N36: 0 | O36: 0 | P36: 0 | Q36: 0 | S36: 0.15 | T36: 0 | U36: 0 | V36: 0 | W36: 0.85 | X36: 1 | Z36: 0 | AA36: 0 | AB36: 0 | AC36: 0 | AD36: 0 | AE36: 0 | AF36: 0 | AG36: 0 | AH36: 0 | AI36: 0 | AK36: 0 | AL36: 0 | AM36: 0 | AN36: 0 | AO36: 0 | AP36: 0 | AQ36: 0 | AR36: 0 | AS36: 0 | AT36: 0 | AV36: 0 | AW36: 0 | AX36: 0 | AY36: 0 | AZ36: 0 | BA36: 0 | BB36: 0 | BC36: 0 | BD36: 0 | BE36: 0 | BG36: 0 | BH36: 0 | BI36: 0 | BJ36: 0 | BK36: 0 | BL36: 0 | BM36: 0 | BN36: 0 | BO36: 0 | BP36: 0 | BR36: 0 | BS36: 0 | BT36: 0 | BU36: 0 | BV36: 0 | BW36: 0 | BX36: 0 | BY36: 0 | BZ36: 0 | CA36: 0 | CC36: 0 | CD36: 0 | CE36: 0 | CF36: 0 | CG36: 0 | CH36: 0 | CI36: 0 | CJ36: 0 | CK36: 0 | CL36: 0
B37: 1 - Afry - Partner activities after SG | C37: Project Management | D37: Project Management | E37: 2328.72 | F37: Project Management | G37: 0 | H37: 0 | I37: 0 | J37: 0 | K37: 0 | L37: 0 | M37: 0 | N37: 0 | O37: 0 | P37: 0 | Q37: 0 | S37: 0 | T37: 0.1000094099 | U37: 0 | V37: 0 | W37: 0.8999905901 | X37: 1 | Z37: 0 | AA37: 0 | AB37: 0 | AC37: 0 | AD37: 0 | AE37: 0 | AF37: 0 | AG37: 0 | AH37: 0 | AI37: 0 | AK37: 0 | AL37: 0 | AM37: 0 | AN37: 0 | AO37: 0 | AP37: 0 | AQ37: 0 | AR37: 0 | AS37: 0 | AT37: 0 | AV37: 0 | AW37: 0 | AX37: 0 | AY37: 0 | AZ37: 0 | BA37: 0 | BB37: 0 | BC37: 0 | BD37: 0 | BE37: 0 | BG37: 0 | BH37: 0 | BI37: 0 | BJ37: 0 | BK37: 0 | BL37: 0 | BM37: 0 | BN37: 0 | BO37: 0 | BP37: 0 | BR37: 0 | BS37: 0 | BT37: 0 | BU37: 0 | BV37: 0 | BW37: 0 | BX37: 0 | BY37: 0 | BZ37: 0 | CA37: 0 | CC37: 0 | CD37: 0 | CE37: 0 | CF37: 0 | CG37: 0 | CH37: 0 | CI37: 0 | CJ37: 0 | CK37: 0 | CL37: 0
B38: 1 - ESO | C38: Project Management | D38: Project Management | E38: 70000 | F38: Project Management | G38: 0 | H38: 0 | I38: 0 | J38: 0 | K38: 0 | L38: 0 | M38: 0 | N38: 0 | O38: 0 | P38: 0 | Q38: 0 | S38: 0 | T38: 0 | U38: 0 | V38: 0 | W38: 1 | X38: =SUM(R38:W38) -> 1 | Z38: =$R38*G38 -> 0 | AA38: =$R38*H38 -> 0 | AB38: =$R38*I38 -> 0 | AC38: =$R38*J38 -> 0 | AD38: =$R38*K38 -> 0 | AE38: =$R38*L38 -> 0 | AF38: =$R38*M38 -> 0 | AG38: =$R38*N38 -> 0 | AH38: =$R38*O38 -> 0 | AI38: =$R38*P38 -> 0 | AK38: =$S38*G38 -> 0 | AL38: =$S38*H38 -> 0 | AM38: =$S38*I38 -> 0 | AN38: =$S38*J38 -> 0 | AO38: =$S38*K38 -> 0 | AP38: =$S38*L38 -> 0 | AQ38: =$S38*M38 -> 0 | AR38: =$S38*N38 -> 0 | AS38: =$S38*O38 -> 0 | AT38: =$S38*P38 -> 0 | AV38: =$T38*G38 -> 0 | AW38: =$T38*H38 -> 0 | AX38: =$T38*I38 -> 0 | AY38: =$T38*J38 -> 0 | AZ38: =$T38*K38 -> 0 | BA38: =$T38*L38 -> 0 | BB38: =$T38*M38 -> 0 | BC38: =$T38*N38 -> 0 | BD38: =$T38*O38 -> 0 | BE38: =$T38*P38 -> 0 | BG38: =$U38*G38 -> 0 | BH38: =$U38*H38 -> 0 | BI38: =$U38*I38 -> 0 | BJ38: =$U38*J38 -> 0 | BK38: =$U38*K38 -> 0 | BL38: =$U38*L38 -> 0 | BM38: =$U38*M38 -> 0 | BN38: =$U38*N38 -> 0 | BO38: =$U38*O38 -> 0 | BP38: =$U38*P38 -> 0 | BR38: =$V38*G38 -> 0 | BS38: =$V38*H38 -> 0 | BT38: =$V38*I38 -> 0 | BU38: =$V38*J38 -> 0 | BV38: =$V38*K38 -> 0 | BW38: =$V38*L38 -> 0 | BX38: =$V38*M38 -> 0 | BY38: =$V38*N38 -> 0 | BZ38: =$V38*O38 -> 0 | CA38: =$V38*P38 -> 0 | CC38: =$W38*G38 -> 0 | CD38: =$W38*H38 -> 0 | CE38: =$W38*I38 -> 0 | CF38: =$W38*J38 -> 0 | CG38: =$W38*K38 -> 0 | CH38: =$W38*L38 -> 0 | CI38: =$W38*M38 -> 0 | CJ38: =$W38*N38 -> 0 | CK38: =$W38*O38 -> 0 | CL38: =$W38*P38 -> 0
B39: 2 - Afry - Customer Engagement | C39: Customer Engagement | D39: Customer | E39: 2236.591304 | F39: Customer Engagement | G39: 0 | H39: 0 | I39: 0 | J39: 0 | K39: 0 | L39: 0 | M39: 0 | N39: 0 | O39: 0 | P39: 0 | Q39: 0 | S39: 0 | T39: 0.1 | U39: 0 | V39: 0 | W39: 0.9 | X39: 1 | Z39: 0 | AA39: 0 | AB39: 0 | AC39: 0 | AD39: 0 | AE39: 0 | AF39: 0 | AG39: 0 | AH39: 0 | AI39: 0 | AK39: 0 | AL39: 0 | AM39: 0 | AN39: 0 | AO39: 0 | AP39: 0 | AQ39: 0 | AR39: 0 | AS39: 0 | AT39: 0 | AV39: 0 | AW39: 0 | AX39: 0 | AY39: 0 | AZ39: 0 | BA39: 0 | BB39: 0 | BC39: 0 | BD39: 0 | BE39: 0 | BG39: 0 | BH39: 0 | BI39: 0 | BJ39: 0 | BK39: 0 | BL39: 0 | BM39: 0 | BN39: 0 | BO39: 0 | BP39: 0 | BR39: 0 | BS39: 0 | BT39: 0 | BU39: 0 | BV39: 0 | BW39: 0 | BX39: 0 | BY39: 0 | BZ39: 0 | CA39: 0 | CC39: 0 | CD39: 0 | CE39: 0 | CF39: 0 | CG39: 0 | CH39: 0 | CI39: 0 | CJ39: 0 | CK39: 0 | CL39: 0
B40: 2 - Delta-EE - Customer engagement Project management b4 SG | C40: Customer Engagement | D40: Customer | E40: 1224 | F40: Customer Engagement | G40: 0 | H40: 0 | I40: 0 | J40: 0 | K40: 0 | L40: 0 | M40: 0 | N40: 0 | O40: 0 | P40: 0 | Q40: 0 | S40: 0 | T40: 0 | U40: 0.09803921569 | V40: 0 | W40: 0.9019607843 | X40: 1 | Z40: 0 | AA40: 0 | AB40: 0 | AC40: 0 | AD40: 0 | AE40: 0 | AF40: 0 | AG40: 0 | AH40: 0 | AI40: 0 | AK40: 0 | AL40: 0 | AM40: 0 | AN40: 0 | AO40: 0 | AP40: 0 | AQ40: 0 | AR40: 0 | AS40: 0 | AT40: 0 | AV40: 0 | AW40: 0 | AX40: 0 | AY40: 0 | AZ40: 0 | BA40: 0 | BB40: 0 | BC40: 0 | BD40: 0 | BE40: 0 | BG40: 0 | BH40: 0 | BI40: 0 | BJ40: 0 | BK40: 0 | BL40: 0 | BM40: 0 | BN40: 0 | BO40: 0 | BP40: 0 | BR40: 0 | BS40: 0 | BT40: 0 | BU40: 0 | BV40: 0 | BW40: 0 | BX40: 0 | BY40: 0 | BZ40: 0 | CA40: 0 | CC40: 0 | CD40: 0 | CE40: 0 | CF40: 0 | CG40: 0 | CH40: 0 | CI40: 0 | CJ40: 0 | CK40: 0 | CL40: 0
B41: 2 - Delta-EE - Customer engagement Project management after SG | C41: Customer Engagement | D41: Customer | E41: 1224 | F41: Customer Engagement | G41: 0 | H41: 0 | I41: 0 | J41: 0 | K41: 0 | L41: 0 | M41: 0 | N41: 0 | O41: 0 | P41: 0 | Q41: 0 | S41: 0 | T41: 0 | U41: 0.09803921569 | V41: 0 | W41: 0.9019607843 | X41: 1 | Z41: 0 | AA41: 0 | AB41: 0 | AC41: 0 | AD41: 0 | AE41: 0 | AF41: 0 | AG41: 0 | AH41: 0 | AI41: 0 | AK41: 0 | AL41: 0 | AM41: 0 | AN41: 0 | AO41: 0 | AP41: 0 | AQ41: 0 | AR41: 0 | AS41: 0 | AT41: 0 | AV41: 0 | AW41: 0 | AX41: 0 | AY41: 0 | AZ41: 0 | BA41: 0 | BB41: 0 | BC41: 0 | BD41: 0 | BE41: 0 | BG41: 0 | BH41: 0 | BI41: 0 | BJ41: 0 | BK41: 0 | BL41: 0 | BM41: 0 | BN41: 0 | BO41: 0 | BP41: 0 | BR41: 0 | BS41: 0 | BT41: 0 | BU41: 0 | BV41: 0 | BW41: 0 | BX41: 0 | BY41: 0 | BZ41: 0 | CA41: 0 | CC41: 0 | CD41: 0 | CE41: 0 | CF41: 0 | CG41: 0 | CH41: 0 | CI41: 0 | CJ41: 0 | CK41: 0 | CL41: 0
B42: 2 - Delta-EE - Facilitation of workshops b4 SG | C42: Customer Engagement | D42: Customer | E42: 7500 | F42: Customer Engagement | G42: 0 | H42: 0 | I42: 0 | J42: 0 | K42: 0 | L42: 0 | M42: 0 | N42: 0 | O42: 0 | P42: 0 | Q42: 0 | S42: 0 | T42: 0 | U42: 0 | V42: 0 | W42: 1 | X42: 1 | Z42: 0 | AA42: 0 | AB42: 0 | AC42: 0 | AD42: 0 | AE42: 0 | AF42: 0 | AG42: 0 | AH42: 0 | AI42: 0 | AK42: 0 | AL42: 0 | AM42: 0 | AN42: 0 | AO42: 0 | AP42: 0 | AQ42: 0 | AR42: 0 | AS42: 0 | AT42: 0 | AV42: 0 | AW42: 0 | AX42: 0 | AY42: 0 | AZ42: 0 | BA42: 0 | BB42: 0 | BC42: 0 | BD42: 0 | BE42: 0 | BG42: 0 | BH42: 0 | BI42: 0 | BJ42: 0 | BK42: 0 | BL42: 0 | BM42: 0 | BN42: 0 | BO42: 0 | BP42: 0 | BR42: 0 | BS42: 0 | BT42: 0 | BU42: 0 | BV42: 0 | BW42: 0 | BX42: 0 | BY42: 0 | BZ42: 0 | CA42: 0 | CC42: 0 | CD42: 0 | CE42: 0 | CF42: 0 | CG42: 0 | CH42: 0 | CI42: 0 | CJ42: 0 | CK42: 0 | CL42: 0
B43: 2 - Delta-EE - Facilitation of workshops after SG | C43: Customer Engagement | D43: Customer | E43: 2500 | F43: Customer Engagement | G43: 0 | H43: 0 | I43: 0 | J43: 0 | K43: 0 | L43: 0 | M43: 0 | N43: 0 | O43: 0 | P43: 0 | Q43: 0 | S43: 0 | T43: 0 | U43: 0 | V43: 0 | W43: 1 | X43: 1 | Z43: 0 | AA43: 0 | AB43: 0 | AC43: 0 | AD43: 0 | AE43: 0 | AF43: 0 | AG43: 0 | AH43: 0 | AI43: 0 | AK43: 0 | AL43: 0 | AM43: 0 | AN43: 0 | AO43: 0 | AP43: 0 | AQ43: 0 | AR43: 0 | AS43: 0 | AT43: 0 | AV43: 0 | AW43: 0 | AX43: 0 | AY43: 0 | AZ43: 0 | BA43: 0 | BB43: 0 | BC43: 0 | BD43: 0 | BE43: 0 | BG43: 0 | BH43: 0 | BI43: 0 | BJ43: 0 | BK43: 0 | BL43: 0 | BM43: 0 | BN43: 0 | BO43: 0 | BP43: 0 | BR43: 0 | BS43: 0 | BT43: 0 | BU43: 0 | BV43: 0 | BW43: 0 | BX43: 0 | BY43: 0 | BZ43: 0 | CA43: 0 | CC43: 0 | CD43: 0 | CE43: 0 | CF43: 0 | CG43: 0 | CH43: 0 | CI43: 0 | CJ43: 0 | CK43: 0 | CL43: 0
B44: 2 - Delta-EE - Development of customer engagement plan | C44: Customer Engagement | D44: Customer | E44: 19315.5 | F44: Customer Engagement | G44: 0 | H44: 0 | I44: 0 | J44: 0 | K44: 0 | L44: 0 | M44: 0 | N44: 0 | O44: 0 | P44: 0 | Q44: 0 | S44: 0 | T44: 0 | U44: 0.09839248272 | V44: 0 | W44: 0.9016075173 | X44: 1 | Z44: 0 | AA44: 0 | AB44: 0 | AC44: 0 | AD44: 0 | AE44: 0 | AF44: 0 | AG44: 0 | AH44: 0 | AI44: 0 | AK44: 0 | AL44: 0 | AM44: 0 | AN44: 0 | AO44: 0 | AP44: 0 | AQ44: 0 | AR44: 0 | AS44: 0 | AT44: 0 | AV44: 0 | AW44: 0 | AX44: 0 | AY44: 0 | AZ44: 0 | BA44: 0 | BB44: 0 | BC44: 0 | BD44: 0 | BE44: 0 | BG44: 0 | BH44: 0 | BI44: 0 | BJ44: 0 | BK44: 0 | BL44: 0 | BM44: 0 | BN44: 0 | BO44: 0 | BP44: 0 | BR44: 0 | BS44: 0 | BT44: 0 | BU44: 0 | BV44: 0 | BW44: 0 | BX44: 0 | BY44: 0 | BZ44: 0 | CA44: 0 | CC44: 0 | CD44: 0 | CE44: 0 | CF44: 0 | CG44: 0 | CH44: 0 | CI44: 0 | CJ44: 0 | CK44: 0 | CL44: 0
B45: 2 - Delta-EE - Expenses - Customer engagement workshops b4 SG | C45: Project Management | D45: Customer | E45: 3000 | F45: Project Management | G45: 0 | H45: 0 | I45: 0 | J45: 0 | K45: 0 | L45: 0 | M45: 0 | N45: 0 | O45: 0 | P45: 0 | Q45: 0 | S45: 0 | T45: 0 | U45: 0 | V45: 0 | W45: 1 | X45: 1 | Z45: 0 | AA45: 0 | AB45: 0 | AC45: 0 | AD45: 0 | AE45: 0 | AF45: 0 | AG45: 0 | AH45: 0 | AI45: 0 | AK45: 0 | AL45: 0 | AM45: 0 | AN45: 0 | AO45: 0 | AP45: 0 | AQ45: 0 | AR45: 0 | AS45: 0 | AT45: 0 | AV45: 0 | AW45: 0 | AX45: 0 | AY45: 0 | AZ45: 0 | BA45: 0 | BB45: 0 | BC45: 0 | BD45: 0 | BE45: 0 | BG45: 0 | BH45: 0 | BI45: 0 | BJ45: 0 | BK45: 0 | BL45: 0 | BM45: 0 | BN45: 0 | BO45: 0 | BP45: 0 | BR45: 0 | BS45: 0 | BT45: 0 | BU45: 0 | BV45: 0 | BW45: 0 | BX45: 0 | BY45: 0 | BZ45: 0 | CA45: 0 | CC45: 0 | CD45: 0 | CE45: 0 | CF45: 0 | CG45: 0 | CH45: 0 | CI45: 0 | CJ45: 0 | CK45: 0 | CL45: 0
B46: 2 - Delta-EE - Expenses - Customer engagement workshops after SG | C46: Project Management | D46: Customer | E46: 1000 | F46: Project Management | G46: 0 | H46: 0 | I46: 0 | J46: 0 | K46: 0 | L46: 0 | M46: 0 | N46: 0 | O46: 0 | P46: 0 | Q46: 0 | S46: 0 | T46: 0 | U46: 0 | V46: 0 | W46: 1 | X46: 1 | Z46: 0 | AA46: 0 | AB46: 0 | AC46: 0 | AD46: 0 | AE46: 0 | AF46: 0 | AG46: 0 | AH46: 0 | AI46: 0 | AK46: 0 | AL46: 0 | AM46: 0 | AN46: 0 | AO46: 0 | AP46: 0 | AQ46: 0 | AR46: 0 | AS46: 0 | AT46: 0 | AV46: 0 | AW46: 0 | AX46: 0 | AY46: 0 | AZ46: 0 | BA46: 0 | BB46: 0 | BC46: 0 | BD46: 0 | BE46: 0 | BG46: 0 | BH46: 0 | BI46: 0 | BJ46: 0 | BK46: 0 | BL46: 0 | BM46: 0 | BN46: 0 | BO46: 0 | BP46: 0 | BR46: 0 | BS46: 0 | BT46: 0 | BU46: 0 | BV46: 0 | BW46: 0 | BX46: 0 | BY46: 0 | BZ46: 0 | CA46: 0 | CC46: 0 | CD46: 0 | CE46: 0 | CF46: 0 | CG46: 0 | CH46: 0 | CI46: 0 | CJ46: 0 | CK46: 0 | CL46: 0
B47: 2 - Delta-EE - Development of engagement materials | C47: Customer Engagement | D47: Customer | E47: 1113.066667 | F47: Customer Engagement | G47: 0 | H47: 0 | I47: 0 | J47: 0 | K47: 0 | L47: 0 | M47: 0 | N47: 0 | O47: 0 | P47: 0 | Q47: 0 | S47: 0 | T47: 0 | U47: 0.09822712027 | V47: 0 | W47: 0.9017728797 | X47: 1 | Z47: 0 | AA47: 0 | AB47: 0 | AC47: 0 | AD47: 0 | AE47: 0 | AF47: 0 | AG47: 0 | AH47: 0 | AI47: 0 | AK47: 0 | AL47: 0 | AM47: 0 | AN47: 0 | AO47: 0 | AP47: 0 | AQ47: 0 | AR47: 0 | AS47: 0 | AT47: 0 | AV47: 0 | AW47: 0 | AX47: 0 | AY47: 0 | AZ47: 0 | BA47: 0 | BB47: 0 | BC47: 0 | BD47: 0 | BE47: 0 | BG47: 0 | BH47: 0 | BI47: 0 | BJ47: 0 | BK47: 0 | BL47: 0 | BM47: 0 | BN47: 0 | BO47: 0 | BP47: 0 | BR47: 0 | BS47: 0 | BT47: 0 | BU47: 0 | BV47: 0 | BW47: 0 | BX47: 0 | BY47: 0 | BZ47: 0 | CA47: 0 | CC47: 0 | CD47: 0 | CE47: 0 | CF47: 0 | CG47: 0 | CH47: 0 | CI47: 0 | CJ47: 0 | CK47: 0 | CL47: 0
B48: 2 - Delta-EE - Development of engagement materials - Payment to users b4 SG | C48: Customer Engagement | D48: Customer | E48: 9000 | F48: Customer Engagement | G48: 0 | H48: 0 | I48: 0 | J48: 0 | K48: 0 | L48: 0 | M48: 0 | N48: 0 | O48: 0 | P48: 0 | Q48: 0 | S48: 0 | T48: 0 | U48: 0 | V48: 0 | W48: 1 | X48: 1 | Z48: 0 | AA48: 0 | AB48: 0 | AC48: 0 | AD48: 0 | AE48: 0 | AF48: 0 | AG48: 0 | AH48: 0 | AI48: 0 | AK48: 0 | AL48: 0 | AM48: 0 | AN48: 0 | AO48: 0 | AP48: 0 | AQ48: 0 | AR48: 0 | AS48: 0 | AT48: 0 | AV48: 0 | AW48: 0 | AX48: 0 | AY48: 0 | AZ48: 0 | BA48: 0 | BB48: 0 | BC48: 0 | BD48: 0 | BE48: 0 | BG48: 0 | BH48: 0 | BI48: 0 | BJ48: 0 | BK48: 0 | BL48: 0 | BM48: 0 | BN48: 0 | BO48: 0 | BP48: 0 | BR48: 0 | BS48: 0 | BT48: 0 | BU48: 0 | BV48: 0 | BW48: 0 | BX48: 0 | BY48: 0 | BZ48: 0 | CA48: 0 | CC48: 0 | CD48: 0 | CE48: 0 | CF48: 0 | CG48: 0 | CH48: 0 | CI48: 0 | CJ48: 0 | CK48: 0 | CL48: 0
B49: 2 - Delta-EE - Development of engagement materials - Payment to users after | C49: Customer Engagement | D49: Customer | E49: 3000 | F49: Customer Engagement | G49: 0 | H49: 0 | I49: 0 | J49: 0 | K49: 0 | L49: 0 | M49: 0 | N49: 0 | O49: 0 | P49: 0 | Q49: 0 | S49: 0 | T49: 0 | U49: 0 | V49: 0 | W49: 1 | X49: 1 | Z49: 0 | AA49: 0 | AB49: 0 | AC49: 0 | AD49: 0 | AE49: 0 | AF49: 0 | AG49: 0 | AH49: 0 | AI49: 0 | AK49: 0 | AL49: 0 | AM49: 0 | AN49: 0 | AO49: 0 | AP49: 0 | AQ49: 0 | AR49: 0 | AS49: 0 | AT49: 0 | AV49: 0 | AW49: 0 | AX49: 0 | AY49: 0 | AZ49: 0 | BA49: 0 | BB49: 0 | BC49: 0 | BD49: 0 | BE49: 0 | BG49: 0 | BH49: 0 | BI49: 0 | BJ49: 0 | BK49: 0 | BL49: 0 | BM49: 0 | BN49: 0 | BO49: 0 | BP49: 0 | BR49: 0 | BS49: 0 | BT49: 0 | BU49: 0 | BV49: 0 | BW49: 0 | BX49: 0 | BY49: 0 | BZ49: 0 | CA49: 0 | CC49: 0 | CD49: 0 | CE49: 0 | CF49: 0 | CG49: 0 | CH49: 0 | CI49: 0 | CJ49: 0 | CK49: 0 | CL49: 0
B50: 2 - Delta-EE - Survey design b4 SG | C50: Customer Engagement | D50: Customer | E50: 1149.763033 | F50: Customer Engagement | G50: 0 | H50: 0 | I50: 0 | J50: 0 | K50: 0 | L50: 0 | M50: 0 | N50: 0 | O50: 0 | P50: 0 | Q50: 0 | S50: 0 | T50: 0 | U50: 0.09836768343 | V50: 0 | W50: 0.9016323166 | X50: 1 | Z50: 0 | AA50: 0 | AB50: 0 | AC50: 0 | AD50: 0 | AE50: 0 | AF50: 0 | AG50: 0 | AH50: 0 | AI50: 0 | AK50: 0 | AL50: 0 | AM50: 0 | AN50: 0 | AO50: 0 | AP50: 0 | AQ50: 0 | AR50: 0 | AS50: 0 | AT50: 0 | AV50: 0 | AW50: 0 | AX50: 0 | AY50: 0 | AZ50: 0 | BA50: 0 | BB50: 0 | BC50: 0 | BD50: 0 | BE50: 0 | BG50: 0 | BH50: 0 | BI50: 0 | BJ50: 0 | BK50: 0 | BL50: 0 | BM50: 0 | BN50: 0 | BO50: 0 | BP50: 0 | BR50: 0 | BS50: 0 | BT50: 0 | BU50: 0 | BV50: 0 | BW50: 0 | BX50: 0 | BY50: 0 | BZ50: 0 | CA50: 0 | CC50: 0 | CD50: 0 | CE50: 0 | CF50: 0 | CG50: 0 | CH50: 0 | CI50: 0 | CJ50: 0 | CK50: 0 | CL50: 0
B51: 2 - Delta-EE - Survey design after SG | C51: Customer Engagement | D51: Customer | E51: 1149.763033 | F51: Customer Engagement | G51: 0 | H51: 0 | I51: 0 | J51: 0 | K51: 0 | L51: 0 | M51: 0 | N51: 0 | O51: 0 | P51: 0 | Q51: 0 | S51: 0 | T51: 0 | U51: 0.09836768343 | V51: 0 | W51: 0.9016323166 | X51: 1 | Z51: 0 | AA51: 0 | AB51: 0 | AC51: 0 | AD51: 0 | AE51: 0 | AF51: 0 | AG51: 0 | AH51: 0 | AI51: 0 | AK51: 0 | AL51: 0 | AM51: 0 | AN51: 0 | AO51: 0 | AP51: 0 | AQ51: 0 | AR51: 0 | AS51: 0 | AT51: 0 | AV51: 0 | AW51: 0 | AX51: 0 | AY51: 0 | AZ51: 0 | BA51: 0 | BB51: 0 | BC51: 0 | BD51: 0 | BE51: 0 | BG51: 0 | BH51: 0 | BI51: 0 | BJ51: 0 | BK51: 0 | BL51: 0 | BM51: 0 | BN51: 0 | BO51: 0 | BP51: 0 | BR51: 0 | BS51: 0 | BT51: 0 | BU51: 0 | BV51: 0 | BW51: 0 | BX51: 0 | BY51: 0 | BZ51: 0 | CA51: 0 | CC51: 0 | CD51: 0 | CE51: 0 | CF51: 0 | CG51: 0 | CH51: 0 | CI51: 0 | CJ51: 0 | CK51: 0 | CL51: 0
B52: 2 - Delta-EE - Survey design - Payments to users b4 SG | C52: Customer Engagement | D52: Customer | E52: 75000 | F52: Customer Engagement | G52: 0 | H52: 0 | I52: 0 | J52: 0 | K52: 0 | L52: 0 | M52: 0 | N52: 0 | O52: 0 | P52: 0 | Q52: 0 | S52: 0 | T52: 0 | U52: 0 | V52: 0 | W52: 1 | X52: 1 | Z52: 0 | AA52: 0 | AB52: 0 | AC52: 0 | AD52: 0 | AE52: 0 | AF52: 0 | AG52: 0 | AH52: 0 | AI52: 0 | AK52: 0 | AL52: 0 | AM52: 0 | AN52: 0 | AO52: 0 | AP52: 0 | AQ52: 0 | AR52: 0 | AS52: 0 | AT52: 0 | AV52: 0 | AW52: 0 | AX52: 0 | AY52: 0 | AZ52: 0 | BA52: 0 | BB52: 0 | BC52: 0 | BD52: 0 | BE52: 0 | BG52: 0 | BH52: 0 | BI52: 0 | BJ52: 0 | BK52: 0 | BL52: 0 | BM52: 0 | BN52: 0 | BO52: 0 | BP52: 0 | BR52: 0 | BS52: 0 | BT52: 0 | BU52: 0 | BV52: 0 | BW52: 0 | BX52: 0 | BY52: 0 | BZ52: 0 | CA52: 0 | CC52: 0 | CD52: 0 | CE52: 0 | CF52: 0 | CG52: 0 | CH52: 0 | CI52: 0 | CJ52: 0 | CK52: 0 | CL52: 0
B53: 2 - Delta-EE - Survey design - Payments to users after SG | C53: Customer Engagement | D53: Customer | E53: 25000 | F53: Customer Engagement | G53: 0 | H53: 0 | I53: 0 | J53: 0 | K53: 0 | L53: 0 | M53: 0 | N53: 0 | O53: 0 | P53: 0 | Q53: 0 | S53: 0 | T53: 0 | U53: 0 | V53: 0 | W53: 1 | X53: 1 | Z53: 0 | AA53: 0 | AB53: 0 | AC53: 0 | AD53: 0 | AE53: 0 | AF53: 0 | AG53: 0 | AH53: 0 | AI53: 0 | AK53: 0 | AL53: 0 | AM53: 0 | AN53: 0 | AO53: 0 | AP53: 0 | AQ53: 0 | AR53: 0 | AS53: 0 | AT53: 0 | AV53: 0 | AW53: 0 | AX53: 0 | AY53: 0 | AZ53: 0 | BA53: 0 | BB53: 0 | BC53: 0 | BD53: 0 | BE53: 0 | BG53: 0 | BH53: 0 | BI53: 0 | BJ53: 0 | BK53: 0 | BL53: 0 | BM53: 0 | BN53: 0 | BO53: 0 | BP53: 0 | BR53: 0 | BS53: 0 | BT53: 0 | BU53: 0 | BV53: 0 | BW53: 0 | BX53: 0 | BY53: 0 | BZ53: 0 | CA53: 0 | CC53: 0 | CD53: 0 | CE53: 0 | CF53: 0 | CG53: 0 | CH53: 0 | CI53: 0 | CJ53: 0 | CK53: 0 | CL53: 0
B54: 2 - Delta-EE - Customer engagement b4 SG | C54: Customer Engagement | D54: Customer | E54: 1139.405535 | F54: Customer Engagement | G54: 0 | H54: 0 | I54: 0 | J54: 0 | K54: 0 | L54: 0 | M54: 0 | N54: 0 | O54: 0 | P54: 0 | Q54: 0 | S54: 0 | T54: 0 | U54: 0.09831606218 | V54: 0 | W54: 0.9016839378 | X54: 1 | Z54: 0 | AA54: 0 | AB54: 0 | AC54: 0 | AD54: 0 | AE54: 0 | AF54: 0 | AG54: 0 | AH54: 0 | AI54: 0 | AK54: 0 | AL54: 0 | AM54: 0 | AN54: 0 | AO54: 0 | AP54: 0 | AQ54: 0 | AR54: 0 | AS54: 0 | AT54: 0 | AV54: 0 | AW54: 0 | AX54: 0 | AY54: 0 | AZ54: 0 | BA54: 0 | BB54: 0 | BC54: 0 | BD54: 0 | BE54: 0 | BG54: 0 | BH54: 0 | BI54: 0 | BJ54: 0 | BK54: 0 | BL54: 0 | BM54: 0 | BN54: 0 | BO54: 0 | BP54: 0 | BR54: 0 | BS54: 0 | BT54: 0 | BU54: 0 | BV54: 0 | BW54: 0 | BX54: 0 | BY54: 0 | BZ54: 0 | CA54: 0 | CC54: 0 | CD54: 0 | CE54: 0 | CF54: 0 | CG54: 0 | CH54: 0 | CI54: 0 | CJ54: 0 | CK54: 0 | CL54: 0
B55: 2 - Delta-EE - Customer engagement after SG | C55: Customer Engagement | D55: Customer | E55: 1139.405535 | F55: Customer Engagement | G55: 0 | H55: 0 | I55: 0 | J55: 0 | K55: 0 | L55: 0 | M55: 0 | N55: 0 | O55: 0 | P55: 0 | Q55: 0 | S55: 0 | T55: 0 | U55: 0.09831606218 | V55: 0 | W55: 0.9016839378 | X55: 1 | Z55: 0 | AA55: 0 | AB55: 0 | AC55: 0 | AD55: 0 | AE55: 0 | AF55: 0 | AG55: 0 | AH55: 0 | AI55: 0 | AK55: 0 | AL55: 0 | AM55: 0 | AN55: 0 | AO55: 0 | AP55: 0 | AQ55: 0 | AR55: 0 | AS55: 0 | AT55: 0 | AV55: 0 | AW55: 0 | AX55: 0 | AY55: 0 | AZ55: 0 | BA55: 0 | BB55: 0 | BC55: 0 | BD55: 0 | BE55: 0 | BG55: 0 | BH55: 0 | BI55: 0 | BJ55: 0 | BK55: 0 | BL55: 0 | BM55: 0 | BN55: 0 | BO55: 0 | BP55: 0 | BR55: 0 | BS55: 0 | BT55: 0 | BU55: 0 | BV55: 0 | BW55: 0 | BX55: 0 | BY55: 0 | BZ55: 0 | CA55: 0 | CC55: 0 | CD55: 0 | CE55: 0 | CF55: 0 | CG55: 0 | CH55: 0 | CI55: 0 | CJ55: 0 | CK55: 0 | CL55: 0
B56: 2 - Delta-EE - Customer engagement - Expenses b4 SG | C56: Project Management | D56: Customer | E56: 7800 | F56: Project Management | G56: 0 | H56: 0 | I56: 0 | J56: 0 | K56: 0 | L56: 0 | M56: 0 | N56: 0 | O56: 0 | P56: 0 | Q56: 0 | S56: 0 | T56: 0 | U56: 0 | V56: 0 | W56: 1 | X56: 1 | Z56: 0 | AA56: 0 | AB56: 0 | AC56: 0 | AD56: 0 | AE56: 0 | AF56: 0 | AG56: 0 | AH56: 0 | AI56: 0 | AK56: 0 | AL56: 0 | AM56: 0 | AN56: 0 | AO56: 0 | AP56: 0 | AQ56: 0 | AR56: 0 | AS56: 0 | AT56: 0 | AV56: 0 | AW56: 0 | AX56: 0 | AY56: 0 | AZ56: 0 | BA56: 0 | BB56: 0 | BC56: 0 | BD56: 0 | BE56: 0 | BG56: 0 | BH56: 0 | BI56: 0 | BJ56: 0 | BK56: 0 | BL56: 0 | BM56: 0 | BN56: 0 | BO56: 0 | BP56: 0 | BR56: 0 | BS56: 0 | BT56: 0 | BU56: 0 | BV56: 0 | BW56: 0 | BX56: 0 | BY56: 0 | BZ56: 0 | CA56: 0 | CC56: 0 | CD56: 0 | CE56: 0 | CF56: 0 | CG56: 0 | CH56: 0 | CI56: 0 | CJ56: 0 | CK56: 0 | CL56: 0
B57: 2 - Delta-EE - Customer engagement - Expenses after SG | C57: Project Management | D57: Customer | E57: 1600 | F57: Project Management | G57: 0 | H57: 0 | I57: 0 | J57: 0 | K57: 0 | L57: 0 | M57: 0 | N57: 0 | O57: 0 | P57: 0 | Q57: 0 | S57: 0 | T57: 0 | U57: 0 | V57: 0 | W57: 1 | X57: 1 | Z57: 0 | AA57: 0 | AB57: 0 | AC57: 0 | AD57: 0 | AE57: 0 | AF57: 0 | AG57: 0 | AH57: 0 | AI57: 0 | AK57: 0 | AL57: 0 | AM57: 0 | AN57: 0 | AO57: 0 | AP57: 0 | AQ57: 0 | AR57: 0 | AS57: 0 | AT57: 0 | AV57: 0 | AW57: 0 | AX57: 0 | AY57: 0 | AZ57: 0 | BA57: 0 | BB57: 0 | BC57: 0 | BD57: 0 | BE57: 0 | BG57: 0 | BH57: 0 | BI57: 0 | BJ57: 0 | BK57: 0 | BL57: 0 | BM57: 0 | BN57: 0 | BO57: 0 | BP57: 0 | BR57: 0 | BS57: 0 | BT57: 0 | BU57: 0 | BV57: 0 | BW57: 0 | BX57: 0 | BY57: 0 | BZ57: 0 | CA57: 0 | CC57: 0 | CD57: 0 | CE57: 0 | CF57: 0 | CG57: 0 | CH57: 0 | CI57: 0 | CJ57: 0 | CK57: 0 | CL57: 0
B58: 2 - Delta-EE - Reporting & analysis b4 SG | C58: Customer Engagement | D58: Customer | E58: 1139.2 | F58: Customer Engagement | G58: 0 | H58: 0 | I58: 0 | J58: 0 | K58: 0 | L58: 0 | M58: 0 | N58: 0 | O58: 0 | P58: 0 | Q58: 0 | S58: 0 | T58: 0 | U58: 0.09831460674 | V58: 0 | W58: 0.9016853933 | X58: 1 | Z58: 0 | AA58: 0 | AB58: 0 | AC58: 0 | AD58: 0 | AE58: 0 | AF58: 0 | AG58: 0 | AH58: 0 | AI58: 0 | AK58: 0 | AL58: 0 | AM58: 0 | AN58: 0 | AO58: 0 | AP58: 0 | AQ58: 0 | AR58: 0 | AS58: 0 | AT58: 0 | AV58: 0 | AW58: 0 | AX58: 0 | AY58: 0 | AZ58: 0 | BA58: 0 | BB58: 0 | BC58: 0 | BD58: 0 | BE58: 0 | BG58: 0 | BH58: 0 | BI58: 0 | BJ58: 0 | BK58: 0 | BL58: 0 | BM58: 0 | BN58: 0 | BO58: 0 | BP58: 0 | BR58: 0 | BS58: 0 | BT58: 0 | BU58: 0 | BV58: 0 | BW58: 0 | BX58: 0 | BY58: 0 | BZ58: 0 | CA58: 0 | CC58: 0 | CD58: 0 | CE58: 0 | CF58: 0 | CG58: 0 | CH58: 0 | CI58: 0 | CJ58: 0 | CK58: 0 | CL58: 0
B59: 2 - Delta-EE - Reporting & analysis after SG | C59: Customer Engagement | D59: Customer | E59: 1139.2 | F59: Customer Engagement | G59: 0 | H59: 0 | I59: 0 | J59: 0 | K59: 0 | L59: 0 | M59: 0 | N59: 0 | O59: 0 | P59: 0 | Q59: 0 | S59: 0 | T59: 0 | U59: 0.09831460674 | V59: 0 | W59: 0.9016853933 | X59: 1 | Z59: 0 | AA59: 0 | AB59: 0 | AC59: 0 | AD59: 0 | AE59: 0 | AF59: 0 | AG59: 0 | AH59: 0 | AI59: 0 | AK59: 0 | AL59: 0 | AM59: 0 | AN59: 0 | AO59: 0 | AP59: 0 | AQ59: 0 | AR59: 0 | AS59: 0 | AT59: 0 | AV59: 0 | AW59: 0 | AX59: 0 | AY59: 0 | AZ59: 0 | BA59: 0 | BB59: 0 | BC59: 0 | BD59: 0 | BE59: 0 | BG59: 0 | BH59: 0 | BI59: 0 | BJ59: 0 | BK59: 0 | BL59: 0 | BM59: 0 | BN59: 0 | BO59: 0 | BP59: 0 | BR59: 0 | BS59: 0 | BT59: 0 | BU59: 0 | BV59: 0 | BW59: 0 | BX59: 0 | BY59: 0 | BZ59: 0 | CA59: 0 | CC59: 0 | CD59: 0 | CE59: 0 | CF59: 0 | CG59: 0 | CH59: 0 | CI59: 0 | CJ59: 0 | CK59: 0 | CL59: 0
B60: 2 - Delta-EE - Customer engagement materials design | C60: Customer Engagement | D60: Customer | E60: 10000 | F60: Customer Engagement | G60: 0 | H60: 0 | I60: 0 | J60: 0 | K60: 0 | L60: 0 | M60: 0 | N60: 0 | O60: 0 | P60: 0 | Q60: 0 | S60: 0 | T60: 0 | U60: 0 | V60: 0 | W60: 1 | X60: 1 | Z60: 0 | AA60: 0 | AB60: 0 | AC60: 0 | AD60: 0 | AE60: 0 | AF60: 0 | AG60: 0 | AH60: 0 | AI60: 0 | AK60: 0 | AL60: 0 | AM60: 0 | AN60: 0 | AO60: 0 | AP60: 0 | AQ60: 0 | AR60: 0 | AS60: 0 | AT60: 0 | AV60: 0 | AW60: 0 | AX60: 0 | AY60: 0 | AZ60: 0 | BA60: 0 | BB60: 0 | BC60: 0 | BD60: 0 | BE60: 0 | BG60: 0 | BH60: 0 | BI60: 0 | BJ60: 0 | BK60: 0 | BL60: 0 | BM60: 0 | BN60: 0 | BO60: 0 | BP60: 0 | BR60: 0 | BS60: 0 | BT60: 0 | BU60: 0 | BV60: 0 | BW60: 0 | BX60: 0 | BY60: 0 | BZ60: 0 | CA60: 0 | CC60: 0 | CD60: 0 | CE60: 0 | CF60: 0 | CG60: 0 | CH60: 0 | CI60: 0 | CJ60: 0 | CK60: 0 | CL60: 0
B61: 2 - Delta-EE - International learnings and experiences research | C61: Customer Engagement | D61: Customer | E61: 1023.529412 | F61: Customer Engagement | G61: 0 | H61: 0 | I61: 0 | J61: 0 | K61: 0 | L61: 0 | M61: 0 | N61: 0 | O61: 0 | P61: 0 | Q61: 0 | S61: 0 | T61: 0 | U61: 0.09793103448 | V61: 0 | W61: 0.9020689655 | X61: 1 | Z61: 0 | AA61: 0 | AB61: 0 | AC61: 0 | AD61: 0 | AE61: 0 | AF61: 0 | AG61: 0 | AH61: 0 | AI61: 0 | AK61: 0 | AL61: 0 | AM61: 0 | AN61: 0 | AO61: 0 | AP61: 0 | AQ61: 0 | AR61: 0 | AS61: 0 | AT61: 0 | AV61: 0 | AW61: 0 | AX61: 0 | AY61: 0 | AZ61: 0 | BA61: 0 | BB61: 0 | BC61: 0 | BD61: 0 | BE61: 0 | BG61: 0 | BH61: 0 | BI61: 0 | BJ61: 0 | BK61: 0 | BL61: 0 | BM61: 0 | BN61: 0 | BO61: 0 | BP61: 0 | BR61: 0 | BS61: 0 | BT61: 0 | BU61: 0 | BV61: 0 | BW61: 0 | BX61: 0 | BY61: 0 | BZ61: 0 | CA61: 0 | CC61: 0 | CD61: 0 | CE61: 0 | CF61: 0 | CG61: 0 | CH61: 0 | CI61: 0 | CJ61: 0 | CK61: 0 | CL61: 0
B62: 2 - Delta-EE - Feedback from customers | C62: Customer Engagement | D62: Customer | E62: 1224 | F62: Customer Engagement | G62: 0 | H62: 0 | I62: 0 | J62: 0 | K62: 0 | L62: 0 | M62: 0 | N62: 0 | O62: 0 | P62: 0 | Q62: 0 | S62: 0 | T62: 0 | U62: 0.09803921569 | V62: 0 | W62: 0.9019607843 | X62: 1 | Z62: 0 | AA62: 0 | AB62: 0 | AC62: 0 | AD62: 0 | AE62: 0 | AF62: 0 | AG62: 0 | AH62: 0 | AI62: 0 | AK62: 0 | AL62: 0 | AM62: 0 | AN62: 0 | AO62: 0 | AP62: 0 | AQ62: 0 | AR62: 0 | AS62: 0 | AT62: 0 | AV62: 0 | AW62: 0 | AX62: 0 | AY62: 0 | AZ62: 0 | BA62: 0 | BB62: 0 | BC62: 0 | BD62: 0 | BE62: 0 | BG62: 0 | BH62: 0 | BI62: 0 | BJ62: 0 | BK62: 0 | BL62: 0 | BM62: 0 | BN62: 0 | BO62: 0 | BP62: 0 | BR62: 0 | BS62: 0 | BT62: 0 | BU62: 0 | BV62: 0 | BW62: 0 | BX62: 0 | BY62: 0 | BZ62: 0 | CA62: 0 | CC62: 0 | CD62: 0 | CE62: 0 | CF62: 0 | CG62: 0 | CH62: 0 | CI62: 0 | CJ62: 0 | CK62: 0 | CL62: 0
B63: 2 - Delta-EE - Ongoing Customer Support b4 SG | C63: Customer Engagement | D63: Customer | E63: 1064 | F63: Customer Engagement | G63: 0 | H63: 0 | I63: 0 | J63: 0 | K63: 0 | L63: 0 | M63: 0 | N63: 0 | O63: 0 | P63: 0 | Q63: 0 | S63: 0 | T63: 0 | U63: 0.0977443609 | V63: 0 | W63: 0.9022556391 | X63: 1 | Z63: 0 | AA63: 0 | AB63: 0 | AC63: 0 | AD63: 0 | AE63: 0 | AF63: 0 | AG63: 0 | AH63: 0 | AI63: 0 | AK63: 0 | AL63: 0 | AM63: 0 | AN63: 0 | AO63: 0 | AP63: 0 | AQ63: 0 | AR63: 0 | AS63: 0 | AT63: 0 | AV63: 0 | AW63: 0 | AX63: 0 | AY63: 0 | AZ63: 0 | BA63: 0 | BB63: 0 | BC63: 0 | BD63: 0 | BE63: 0 | BG63: 0 | BH63: 0 | BI63: 0 | BJ63: 0 | BK63: 0 | BL63: 0 | BM63: 0 | BN63: 0 | BO63: 0 | BP63: 0 | BR63: 0 | BS63: 0 | BT63: 0 | BU63: 0 | BV63: 0 | BW63: 0 | BX63: 0 | BY63: 0 | BZ63: 0 | CA63: 0 | CC63: 0 | CD63: 0 | CE63: 0 | CF63: 0 | CG63: 0 | CH63: 0 | CI63: 0 | CJ63: 0 | CK63: 0 | CL63: 0
B64: 2 - Delta-EE - Ongoing Customer Support after SG | C64: Customer Engagement | D64: Project Plan | E64: 1064 | F64: Customer Engagement | G64: 0 | H64: 0 | I64: 0 | J64: 0 | K64: 0 | L64: 0 | M64: 0 | N64: 0 | O64: 0 | P64: 0 | Q64: 0 | S64: 0 | T64: 0 | U64: 0.0977443609 | V64: 0 | W64: 0.9022556391 | X64: 1 | Z64: 0 | AA64: 0 | AB64: 0 | AC64: 0 | AD64: 0 | AE64: 0 | AF64: 0 | AG64: 0 | AH64: 0 | AI64: 0 | AK64: 0 | AL64: 0 | AM64: 0 | AN64: 0 | AO64: 0 | AP64: 0 | AQ64: 0 | AR64: 0 | AS64: 0 | AT64: 0 | AV64: 0 | AW64: 0 | AX64: 0 | AY64: 0 | AZ64: 0 | BA64: 0 | BB64: 0 | BC64: 0 | BD64: 0 | BE64: 0 | BG64: 0 | BH64: 0 | BI64: 0 | BJ64: 0 | BK64: 0 | BL64: 0 | BM64: 0 | BN64: 0 | BO64: 0 | BP64: 0 | BR64: 0 | BS64: 0 | BT64: 0 | BU64: 0 | BV64: 0 | BW64: 0 | BX64: 0 | BY64: 0 | BZ64: 0 | CA64: 0 | CC64: 0 | CD64: 0 | CE64: 0 | CF64: 0 | CG64: 0 | CH64: 0 | CI64: 0 | CJ64: 0 | CK64: 0 | CL64: 0
B65: 2 - Afry - Customer Engagement after SG | C65: Customer Engagement | D65: Customer | E65: 2230.857143 | F65: Customer Engagement | G65: 0 | H65: 0 | I65: 0 | J65: 0 | K65: 0 | L65: 0 | M65: 0 | N65: 0 | O65: 0 | P65: 0 | Q65: 0 | S65: 0 | T65: 0.1 | U65: 0 | V65: 0 | W65: 0.9 | X65: 1 | Z65: 0 | AA65: 0 | AB65: 0 | AC65: 0 | AD65: 0 | AE65: 0 | AF65: 0 | AG65: 0 | AH65: 0 | AI65: 0 | AK65: 0 | AL65: 0 | AM65: 0 | AN65: 0 | AO65: 0 | AP65: 0 | AQ65: 0 | AR65: 0 | AS65: 0 | AT65: 0 | AV65: 0 | AW65: 0 | AX65: 0 | AY65: 0 | AZ65: 0 | BA65: 0 | BB65: 0 | BC65: 0 | BD65: 0 | BE65: 0 | BG65: 0 | BH65: 0 | BI65: 0 | BJ65: 0 | BK65: 0 | BL65: 0 | BM65: 0 | BN65: 0 | BO65: 0 | BP65: 0 | BR65: 0 | BS65: 0 | BT65: 0 | BU65: 0 | BV65: 0 | BW65: 0 | BX65: 0 | BY65: 0 | BZ65: 0 | CA65: 0 | CC65: 0 | CD65: 0 | CE65: 0 | CF65: 0 | CG65: 0 | CH65: 0 | CI65: 0 | CJ65: 0 | CK65: 0 | CL65: 0
B66: 3 - Electron - External workshops - Stakeholder Engagement | C66: Trading Rules Research & Development | D66: Design | E66: 1000 | F66: Trading Rules Research & Development | G66: 0 | H66: 0 | I66: 0 | J66: 0 | K66: 0 | L66: 0 | M66: 0 | N66: 0 | O66: 0 | P66: 0 | Q66: 0 | S66: 0.15 | T66: 0 | U66: 0 | V66: 0 | W66: 0.85 | X66: 1 | Z66: 0 | AA66: 0 | AB66: 0 | AC66: 0 | AD66: 0 | AE66: 0 | AF66: 0 | AG66: 0 | AH66: 0 | AI66: 0 | AK66: 0 | AL66: 0 | AM66: 0 | AN66: 0 | AO66: 0 | AP66: 0 | AQ66: 0 | AR66: 0 | AS66: 0 | AT66: 0 | AV66: 0 | AW66: 0 | AX66: 0 | AY66: 0 | AZ66: 0 | BA66: 0 | BB66: 0 | BC66: 0 | BD66: 0 | BE66: 0 | BG66: 0 | BH66: 0 | BI66: 0 | BJ66: 0 | BK66: 0 | BL66: 0 | BM66: 0 | BN66: 0 | BO66: 0 | BP66: 0 | BR66: 0 | BS66: 0 | BT66: 0 | BU66: 0 | BV66: 0 | BW66: 0 | BX66: 0 | BY66: 0 | BZ66: 0 | CA66: 0 | CC66: 0 | CD66: 0 | CE66: 0 | CF66: 0 | CG66: 0 | CH66: 0 | CI66: 0 | CJ66: 0 | CK66: 0 | CL66: 0
B67: 3 - Electron - Internal workshops & design - Stakeholder Engagement | C67: Trading Rules Research & Development | D67: Design | E67: 1000 | F67: Trading Rules Research & Development | G67: 0 | H67: 0 | I67: 0 | J67: 0 | K67: 0 | L67: 0 | M67: 0 | N67: 0 | O67: 0 | P67: 0 | Q67: 0 | S67: 0.15 | T67: 0 | U67: 0 | V67: 0 | W67: 0.85 | X67: 1 | Z67: 0 | AA67: 0 | AB67: 0 | AC67: 0 | AD67: 0 | AE67: 0 | AF67: 0 | AG67: 0 | AH67: 0 | AI67: 0 | AK67: 0 | AL67: 0 | AM67: 0 | AN67: 0 | AO67: 0 | AP67: 0 | AQ67: 0 | AR67: 0 | AS67: 0 | AT67: 0 | AV67: 0 | AW67: 0 | AX67: 0 | AY67: 0 | AZ67: 0 | BA67: 0 | BB67: 0 | BC67: 0 | BD67: 0 | BE67: 0 | BG67: 0 | BH67: 0 | BI67: 0 | BJ67: 0 | BK67: 0 | BL67: 0 | BM67: 0 | BN67: 0 | BO67: 0 | BP67: 0 | BR67: 0 | BS67: 0 | BT67: 0 | BU67: 0 | BV67: 0 | BW67: 0 | BX67: 0 | BY67: 0 | BZ67: 0 | CA67: 0 | CC67: 0 | CD67: 0 | CE67: 0 | CF67: 0 | CG67: 0 | CH67: 0 | CI67: 0 | CJ67: 0 | CK67: 0 | CL67: 0
B68: 3 - Electron - BiTraDER design - Electron Market Platform - Trading Rules Development | C68: Trading Rules Research & Development | D68: Design | E68: 1000 | F68: Trading Rules Research & Development | G68: 0 | H68: 0 | I68: 0 | J68: 0 | K68: 0 | L68: 0 | M68: 0 | N68: 0 | O68: 0 | P68: 0 | Q68: 0 | S68: 0.15 | T68: 0 | U68: 0 | V68: 0 | W68: 0.85 | X68: 1 | Z68: 0 | AA68: 0 | AB68: 0 | AC68: 0 | AD68: 0 | AE68: 0 | AF68: 0 | AG68: 0 | AH68: 0 | AI68: 0 | AK68: 0 | AL68: 0 | AM68: 0 | AN68: 0 | AO68: 0 | AP68: 0 | AQ68: 0 | AR68: 0 | AS68: 0 | AT68: 0 | AV68: 0 | AW68: 0 | AX68: 0 | AY68: 0 | AZ68: 0 | BA68: 0 | BB68: 0 | BC68: 0 | BD68: 0 | BE68: 0 | BG68: 0 | BH68: 0 | BI68: 0 | BJ68: 0 | BK68: 0 | BL68: 0 | BM68: 0 | BN68: 0 | BO68: 0 | BP68: 0 | BR68: 0 | BS68: 0 | BT68: 0 | BU68: 0 | BV68: 0 | BW68: 0 | BX68: 0 | BY68: 0 | BZ68: 0 | CA68: 0 | CC68: 0 | CD68: 0 | CE68: 0 | CF68: 0 | CG68: 0 | CH68: 0 | CI68: 0 | CJ68: 0 | CK68: 0 | CL68: 0
B69: 3 - Electron - Participant requirements - Electron Market Platform - Trading Rules Development | C69: Trading Rules Research & Development | D69: Design | E69: 1000 | F69: Trading Rules Research & Development | G69: 0 | H69: 0 | I69: 0 | J69: 0 | K69: 0 | L69: 0 | M69: 0 | N69: 0 | O69: 0 | P69: 0 | Q69: 0 | S69: 0.15 | T69: 0 | U69: 0 | V69: 0 | W69: 0.85 | X69: 1 | Z69: 0 | AA69: 0 | AB69: 0 | AC69: 0 | AD69: 0 | AE69: 0 | AF69: 0 | AG69: 0 | AH69: 0 | AI69: 0 | AK69: 0 | AL69: 0 | AM69: 0 | AN69: 0 | AO69: 0 | AP69: 0 | AQ69: 0 | AR69: 0 | AS69: 0 | AT69: 0 | AV69: 0 | AW69: 0 | AX69: 0 | AY69: 0 | AZ69: 0 | BA69: 0 | BB69: 0 | BC69: 0 | BD69: 0 | BE69: 0 | BG69: 0 | BH69: 0 | BI69: 0 | BJ69: 0 | BK69: 0 | BL69: 0 | BM69: 0 | BN69: 0 | BO69: 0 | BP69: 0 | BR69: 0 | BS69: 0 | BT69: 0 | BU69: 0 | BV69: 0 | BW69: 0 | BX69: 0 | BY69: 0 | BZ69: 0 | CA69: 0 | CC69: 0 | CD69: 0 | CE69: 0 | CF69: 0 | CG69: 0 | CH69: 0 | CI69: 0 | CJ69: 0 | CK69: 0 | CL69: 0
B70: 3 - Electron - Summary Report - Electron Market Platform - Trading Rules Development | C70: Trading Rules Research & Development | D70: Design | E70: 1000 | F70: Trading Rules Research & Development | G70: 0 | H70: 0 | I70: 0 | J70: 0 | K70: 0 | L70: 0 | M70: 0 | N70: 0 | O70: 0 | P70: 0 | Q70: =SUM(G70:P70) -> 0 | S70: 0.15 | T70: 0 | U70: 0 | V70: 0 | W70: 0.85 | X70: =SUM(R70:W70) -> 1 | Z70: =$R70*G70 -> 0 | AA70: =$R70*H70 -> 0 | AB70: =$R70*I70 -> 0 | AC70: =$R70*J70 -> 0 | AD70: =$R70*K70 -> 0 | AE70: =$R70*L70 -> 0 | AF70: =$R70*M70 -> 0 | AG70: =$R70*N70 -> 0 | AH70: =$R70*O70 -> 0 | AI70: =$R70*P70 -> 0 | AK70: =$S70*G70 -> 0 | AL70: =$S70*H70 -> 0 | AM70: =$S70*I70 -> 0 | AN70: =$S70*J70 -> 0 | AO70: =$S70*K70 -> 0 | AP70: =$S70*L70 -> 0 | AQ70: =$S70*M70 -> 0 | AR70: =$S70*N70 -> 0 | AS70: =$S70*O70 -> 0 | AT70: =$S70*P70 -> 0 | AV70: =$T70*G70 -> 0 | AW70: =$T70*H70 -> 0 | AX70: =$T70*I70 -> 0 | AY70: =$T70*J70 -> 0 | AZ70: =$T70*K70 -> 0 | BA70: =$T70*L70 -> 0 | BB70: =$T70*M70 -> 0 | BC70: =$T70*N70 -> 0 | BD70: =$T70*O70 -> 0 | BE70: =$T70*P70 -> 0 | BG70: =$U70*G70 -> 0 | BH70: =$U70*H70 -> 0 | BI70: =$U70*I70 -> 0 | BJ70: =$U70*J70 -> 0 | BK70: =$U70*K70 -> 0 | BL70: =$U70*L70 -> 0 | BM70: =$U70*M70 -> 0 | BN70: =$U70*N70 -> 0 | BO70: =$U70*O70 -> 0 | BP70: =$U70*P70 -> 0 | BR70: =$V70*G70 -> 0 | BS70: =$V70*H70 -> 0 | BT70: =$V70*I70 -> 0 | BU70: =$V70*J70 -> 0 | BV70: =$V70*K70 -> 0 | BW70: =$V70*L70 -> 0 | BX70: =$V70*M70 -> 0 | BY70: =$V70*N70 -> 0 | BZ70: =$V70*O70 -> 0 | CA70: =$V70*P70 -> 0 | CC70: =$W70*G70 -> 0 | CD70: =$W70*H70 -> 0 | CE70: =$W70*I70 -> 0 | CF70: =$W70*J70 -> 0 | CG70: =$W70*K70 -> 0 | CH70: =$W70*L70 -> 0 | CI70: =$W70*M70 -> 0 | CJ70: =$W70*N70 -> 0 | CK70: =$W70*O70 -> 0 | CL70: =$W70*P70 -> 0
B71: 3 - Electron - Trading platform design | C71: Trading Platform Design | D71: Design | E71: 1000 | F71: Trading Platform Design | G71: 0 | H71: 0 | I71: 0 | J71: 0 | K71: 0 | L71: 0 | M71: 0 | N71: 0 | O71: 0 | P71: 0 | Q71: 0 | S71: 0.15 | T71: 0 | U71: 0 | V71: 0 | W71: 0.85 | X71: 1 | Z71: 0 | AA71: 0 | AB71: 0 | AC71: 0 | AD71: 0 | AE71: 0 | AF71: 0 | AG71: 0 | AH71: 0 | AI71: 0 | AK71: 0 | AL71: 0 | AM71: 0 | AN71: 0 | AO71: 0 | AP71: 0 | AQ71: 0 | AR71: 0 | AS71: 0 | AT71: 0 | AV71: 0 | AW71: 0 | AX71: 0 | AY71: 0 | AZ71: 0 | BA71: 0 | BB71: 0 | BC71: 0 | BD71: 0 | BE71: 0 | BG71: 0 | BH71: 0 | BI71: 0 | BJ71: 0 | BK71: 0 | BL71: 0 | BM71: 0 | BN71: 0 | BO71: 0 | BP71: 0 | BR71: 0 | BS71: 0 | BT71: 0 | BU71: 0 | BV71: 0 | BW71: 0 | BX71: 0 | BY71: 0 | BZ71: 0 | CA71: 0 | CC71: 0 | CD71: 0 | CE71: 0 | CF71: 0 | CG71: 0 | CH71: 0 | CI71: 0 | CJ71: 0 | CK71: 0 | CL71: 0
B72: 3 - Electron - Developing data architecture to support the model - Data Model | C72: Data Model | D72: Design | E72: 1000 | F72: Data Model | G72: 0 | H72: 0 | I72: 0 | J72: 0 | K72: 0 | L72: 0 | M72: 0 | N72: 0 | O72: 0 | P72: 0 | Q72: 0 | S72: 0.15 | T72: 0 | U72: 0 | V72: 0 | W72: 0.85 | X72: 1 | Z72: 0 | AA72: 0 | AB72: 0 | AC72: 0 | AD72: 0 | AE72: 0 | AF72: 0 | AG72: 0 | AH72: 0 | AI72: 0 | AK72: 0 | AL72: 0 | AM72: 0 | AN72: 0 | AO72: 0 | AP72: 0 | AQ72: 0 | AR72: 0 | AS72: 0 | AT72: 0 | AV72: 0 | AW72: 0 | AX72: 0 | AY72: 0 | AZ72: 0 | BA72: 0 | BB72: 0 | BC72: 0 | BD72: 0 | BE72: 0 | BG72: 0 | BH72: 0 | BI72: 0 | BJ72: 0 | BK72: 0 | BL72: 0 | BM72: 0 | BN72: 0 | BO72: 0 | BP72: 0 | BR72: 0 | BS72: 0 | BT72: 0 | BU72: 0 | BV72: 0 | BW72: 0 | BX72: 0 | BY72: 0 | BZ72: 0 | CA72: 0 | CC72: 0 | CD72: 0 | CE72: 0 | CF72: 0 | CG72: 0 | CH72: 0 | CI72: 0 | CJ72: 0 | CK72: 0 | CL72: 0
B73: 3 - Electron - ElectronConnect License Fee | C73: Trading Platform Design | D73: Design | E73: 600000 | F73: Trading Platform Design | G73: 0 | H73: 0 | I73: 0 | J73: 0 | K73: 0 | L73: 0 | M73: 0 | N73: 0 | O73: 0 | P73: 0 | Q73: 0 | S73: 0.5 | T73: 0 | U73: 0 | V73: 0 | W73: 0.5 | X73: 1 | Z73: 0 | AA73: 0 | AB73: 0 | AC73: 0 | AD73: 0 | AE73: 0 | AF73: 0 | AG73: 0 | AH73: 0 | AI73: 0 | AK73: 0 | AL73: 0 | AM73: 0 | AN73: 0 | AO73: 0 | AP73: 0 | AQ73: 0 | AR73: 0 | AS73: 0 | AT73: 0 | AV73: 0 | AW73: 0 | AX73: 0 | AY73: 0 | AZ73: 0 | BA73: 0 | BB73: 0 | BC73: 0 | BD73: 0 | BE73: 0 | BG73: 0 | BH73: 0 | BI73: 0 | BJ73: 0 | BK73: 0 | BL73: 0 | BM73: 0 | BN73: 0 | BO73: 0 | BP73: 0 | BR73: 0 | BS73: 0 | BT73: 0 | BU73: 0 | BV73: 0 | BW73: 0 | BX73: 0 | BY73: 0 | BZ73: 0 | CA73: 0 | CC73: 0 | CD73: 0 | CE73: 0 | CF73: 0 | CG73: 0 | CH73: 0 | CI73: 0 | CJ73: 0 | CK73: 0 | CL73: 0
B74: 3 - Afry - Trading rules definition | C74: Trading Rules Research & Development | D74: Design | E74: 2384.322581 | F74: Trading Rules Research & Development | G74: 0 | H74: 0 | I74: 0 | J74: 0 | K74: 0 | L74: 0 | M74: 0 | N74: 0 | O74: 0 | P74: 0 | Q74: 0 | S74: 0 | T74: 0.1 | U74: 0 | V74: 0 | W74: 0.9 | X74: 1 | Z74: 0 | AA74: 0 | AB74: 0 | AC74: 0 | AD74: 0 | AE74: 0 | AF74: 0 | AG74: 0 | AH74: 0 | AI74: 0 | AK74: 0 | AL74: 0 | AM74: 0 | AN74: 0 | AO74: 0 | AP74: 0 | AQ74: 0 | AR74: 0 | AS74: 0 | AT74: 0 | AV74: 0 | AW74: 0 | AX74: 0 | AY74: 0 | AZ74: 0 | BA74: 0 | BB74: 0 | BC74: 0 | BD74: 0 | BE74: 0 | BG74: 0 | BH74: 0 | BI74: 0 | BJ74: 0 | BK74: 0 | BL74: 0 | BM74: 0 | BN74: 0 | BO74: 0 | BP74: 0 | BR74: 0 | BS74: 0 | BT74: 0 | BU74: 0 | BV74: 0 | BW74: 0 | BX74: 0 | BY74: 0 | BZ74: 0 | CA74: 0 | CC74: 0 | CD74: 0 | CE74: 0 | CF74: 0 | CG74: 0 | CH74: 0 | CI74: 0 | CJ74: 0 | CK74: 0 | CL74: 0
B75: 3 - ENWL - Data Architect | C75: Interface Design to ENWL Systems | D75: Design | E75: 795 | F75: Interface Design to ENWL Systems | G75: 0 | H75: 0 | I75: 0 | J75: 0 | K75: 0 | L75: 0 | M75: 0 | N75: 0 | O75: 0 | P75: 0 | Q75: 0 | S75: 0 | T75: 0 | U75: 0 | V75: 0 | W75: 1 | X75: 1 | Z75: 0 | AA75: 0 | AB75: 0 | AC75: 0 | AD75: 0 | AE75: 0 | AF75: 0 | AG75: 0 | AH75: 0 | AI75: 0 | AK75: 0 | AL75: 0 | AM75: 0 | AN75: 0 | AO75: 0 | AP75: 0 | AQ75: 0 | AR75: 0 | AS75: 0 | AT75: 0 | AV75: 0 | AW75: 0 | AX75: 0 | AY75: 0 | AZ75: 0 | BA75: 0 | BB75: 0 | BC75: 0 | BD75: 0 | BE75: 0 | BG75: 0 | BH75: 0 | BI75: 0 | BJ75: 0 | BK75: 0 | BL75: 0 | BM75: 0 | BN75: 0 | BO75: 0 | BP75: 0 | BR75: 0 | BS75: 0 | BT75: 0 | BU75: 0 | BV75: 0 | BW75: 0 | BX75: 0 | BY75: 0 | BZ75: 0 | CA75: 0 | CC75: 0 | CD75: 0 | CE75: 0 | CF75: 0 | CG75: 0 | CH75: 0 | CI75: 0 | CJ75: 0 | CK75: 0 | CL75: 0
B76: 3 - ENWL - Data Engineer Design | C76: Interface Design to ENWL Systems | D76: Design | E76: 625 | F76: Interface Design to ENWL Systems | G76: 0 | H76: 0 | I76: 0 | J76: 0 | K76: 0 | L76: 0 | M76: 0 | N76: 0 | O76: 0 | P76: 0 | Q76: 0 | S76: 0 | T76: 0 | U76: 0 | V76: 0 | W76: 1 | X76: 1 | Z76: 0 | AA76: 0 | AB76: 0 | AC76: 0 | AD76: 0 | AE76: 0 | AF76: 0 | AG76: 0 | AH76: 0 | AI76: 0 | AK76: 0 | AL76: 0 | AM76: 0 | AN76: 0 | AO76: 0 | AP76: 0 | AQ76: 0 | AR76: 0 | AS76: 0 | AT76: 0 | AV76: 0 | AW76: 0 | AX76: 0 | AY76: 0 | AZ76: 0 | BA76: 0 | BB76: 0 | BC76: 0 | BD76: 0 | BE76: 0 | BG76: 0 | BH76: 0 | BI76: 0 | BJ76: 0 | BK76: 0 | BL76: 0 | BM76: 0 | BN76: 0 | BO76: 0 | BP76: 0 | BR76: 0 | BS76: 0 | BT76: 0 | BU76: 0 | BV76: 0 | BW76: 0 | BX76: 0 | BY76: 0 | BZ76: 0 | CA76: 0 | CC76: 0 | CD76: 0 | CE76: 0 | CF76: 0 | CG76: 0 | CH76: 0 | CI76: 0 | CJ76: 0 | CK76: 0 | CL76: 0
B77: 3 - ENWL - Customer API interface Design | C77: Interface Design to ENWL Systems | D77: Design | E77: 500 | F77: Interface Design to ENWL Systems | G77: 0 | H77: 0 | I77: 0 | J77: 0 | K77: 0 | L77: 0 | M77: 0 | N77: 0 | O77: 0 | P77: 0 | Q77: 0 | S77: 0 | T77: 0 | U77: 0 | V77: 0 | W77: 1 | X77: 1 | Z77: 0 | AA77: 0 | AB77: 0 | AC77: 0 | AD77: 0 | AE77: 0 | AF77: 0 | AG77: 0 | AH77: 0 | AI77: 0 | AK77: 0 | AL77: 0 | AM77: 0 | AN77: 0 | AO77: 0 | AP77: 0 | AQ77: 0 | AR77: 0 | AS77: 0 | AT77: 0 | AV77: 0 | AW77: 0 | AX77: 0 | AY77: 0 | AZ77: 0 | BA77: 0 | BB77: 0 | BC77: 0 | BD77: 0 | BE77: 0 | BG77: 0 | BH77: 0 | BI77: 0 | BJ77: 0 | BK77: 0 | BL77: 0 | BM77: 0 | BN77: 0 | BO77: 0 | BP77: 0 | BR77: 0 | BS77: 0 | BT77: 0 | BU77: 0 | BV77: 0 | BW77: 0 | BX77: 0 | BY77: 0 | BZ77: 0 | CA77: 0 | CC77: 0 | CD77: 0 | CE77: 0 | CF77: 0 | CG77: 0 | CH77: 0 | CI77: 0 | CJ77: 0 | CK77: 0 | CL77: 0
B78: 3 - Delta-EE - Trading rules design | C78: Trading Rules Research & Development | D78: Design | E78: 1353.6 | F78: Trading Rules Research & Development | G78: 0 | H78: 0 | I78: 0 | J78: 0 | K78: 0 | L78: 0 | M78: 0 | N78: 0 | O78: 0 | P78: 0 | Q78: 0 | S78: 0 | T78: 0 | U78: 0.09929078014 | V78: 0 | W78: 0.9007092199 | X78: 1 | Z78: 0 | AA78: 0 | AB78: 0 | AC78: 0 | AD78: 0 | AE78: 0 | AF78: 0 | AG78: 0 | AH78: 0 | AI78: 0 | AK78: 0 | AL78: 0 | AM78: 0 | AN78: 0 | AO78: 0 | AP78: 0 | AQ78: 0 | AR78: 0 | AS78: 0 | AT78: 0 | AV78: 0 | AW78: 0 | AX78: 0 | AY78: 0 | AZ78: 0 | BA78: 0 | BB78: 0 | BC78: 0 | BD78: 0 | BE78: 0 | BG78: 0 | BH78: 0 | BI78: 0 | BJ78: 0 | BK78: 0 | BL78: 0 | BM78: 0 | BN78: 0 | BO78: 0 | BP78: 0 | BR78: 0 | BS78: 0 | BT78: 0 | BU78: 0 | BV78: 0 | BW78: 0 | BX78: 0 | BY78: 0 | BZ78: 0 | CA78: 0 | CC78: 0 | CD78: 0 | CE78: 0 | CF78: 0 | CG78: 0 | CH78: 0 | CI78: 0 | CJ78: 0 | CK78: 0 | CL78: 0
B79: 3 - Delta-EE - Reviewing and feedback on proposed rules | C79: Trading Rules Research & Development | D79: Design | E79: 1504 | F79: Trading Rules Research & Development | G79: 0 | H79: 0 | I79: 0 | J79: 0 | K79: 0 | L79: 0 | M79: 0 | N79: 0 | O79: 0 | P79: 0 | Q79: 0 | S79: 0 | T79: 0 | U79: 0.195035461 | V79: 0 | W79: 0.804964539 | X79: 1 | Z79: 0 | AA79: 0 | AB79: 0 | AC79: 0 | AD79: 0 | AE79: 0 | AF79: 0 | AG79: 0 | AH79: 0 | AI79: 0 | AK79: 0 | AL79: 0 | AM79: 0 | AN79: 0 | AO79: 0 | AP79: 0 | AQ79: 0 | AR79: 0 | AS79: 0 | AT79: 0 | AV79: 0 | AW79: 0 | AX79: 0 | AY79: 0 | AZ79: 0 | BA79: 0 | BB79: 0 | BC79: 0 | BD79: 0 | BE79: 0 | BG79: 0 | BH79: 0 | BI79: 0 | BJ79: 0 | BK79: 0 | BL79: 0 | BM79: 0 | BN79: 0 | BO79: 0 | BP79: 0 | BR79: 0 | BS79: 0 | BT79: 0 | BU79: 0 | BV79: 0 | BW79: 0 | BX79: 0 | BY79: 0 | BZ79: 0 | CA79: 0 | CC79: 0 | CD79: 0 | CE79: 0 | CF79: 0 | CG79: 0 | CH79: 0 | CI79: 0 | CJ79: 0 | CK79: 0 | CL79: 0
B80: 3 - Design of interface to ANM | C80: Interface Design to ENWL Systems | D80: Design | E80: 250000 | F80: Interface Design to ENWL Systems | G80: 0 | H80: 0 | I80: 0 | J80: 0 | K80: 0 | L80: 0 | M80: 0 | N80: 0 | O80: 0 | P80: 0 | Q80: 0 | S80: 0 | T80: 0 | U80: 0 | V80: 0 | W80: 1 | X80: 1 | Z80: 0 | AA80: 0 | AB80: 0 | AC80: 0 | AD80: 0 | AE80: 0 | AF80: 0 | AG80: 0 | AH80: 0 | AI80: 0 | AK80: 0 | AL80: 0 | AM80: 0 | AN80: 0 | AO80: 0 | AP80: 0 | AQ80: 0 | AR80: 0 | AS80: 0 | AT80: 0 | AV80: 0 | AW80: 0 | AX80: 0 | AY80: 0 | AZ80: 0 | BA80: 0 | BB80: 0 | BC80: 0 | BD80: 0 | BE80: 0 | BG80: 0 | BH80: 0 | BI80: 0 | BJ80: 0 | BK80: 0 | BL80: 0 | BM80: 0 | BN80: 0 | BO80: 0 | BP80: 0 | BR80: 0 | BS80: 0 | BT80: 0 | BU80: 0 | BV80: 0 | BW80: 0 | BX80: 0 | BY80: 0 | BZ80: 0 | CA80: 0 | CC80: 0 | CD80: 0 | CE80: 0 | CF80: 0 | CG80: 0 | CH80: 0 | CI80: 0 | CJ80: 0 | CK80: 0 | CL80: 0
B81: 3 - Afry - Trading rules definition after SG | C81: Trading Rules Research & Development | D81: Design | E81: 2389.285714 | F81: Trading Rules Research & Development | G81: 0 | H81: 0 | I81: 0 | J81: 0 | K81: 0 | L81: 0 | M81: 0 | N81: 0 | O81: 0 | P81: 0 | Q81: 0 | S81: 0 | T81: 0.1 | U81: 0 | V81: 0 | W81: 0.9 | X81: 1 | Z81: 0 | AA81: 0 | AB81: 0 | AC81: 0 | AD81: 0 | AE81: 0 | AF81: 0 | AG81: 0 | AH81: 0 | AI81: 0 | AK81: 0 | AL81: 0 | AM81: 0 | AN81: 0 | AO81: 0 | AP81: 0 | AQ81: 0 | AR81: 0 | AS81: 0 | AT81: 0 | AV81: 0 | AW81: 0 | AX81: 0 | AY81: 0 | AZ81: 0 | BA81: 0 | BB81: 0 | BC81: 0 | BD81: 0 | BE81: 0 | BG81: 0 | BH81: 0 | BI81: 0 | BJ81: 0 | BK81: 0 | BL81: 0 | BM81: 0 | BN81: 0 | BO81: 0 | BP81: 0 | BR81: 0 | BS81: 0 | BT81: 0 | BU81: 0 | BV81: 0 | BW81: 0 | BX81: 0 | BY81: 0 | BZ81: 0 | CA81: 0 | CC81: 0 | CD81: 0 | CE81: 0 | CF81: 0 | CG81: 0 | CH81: 0 | CI81: 0 | CJ81: 0 | CK81: 0 | CL81: 0
B82: 4 - Electron - Configuration of user interface / user experience - Application development | C82: Application Development | D82: Build | E82: 1000 | F82: Application Development | G82: 0 | H82: 0 | I82: 0 | J82: 0 | K82: 0 | L82: 0 | M82: 0 | N82: 0 | O82: 0 | P82: 0 | Q82: 0 | S82: 0.15 | T82: 0 | U82: 0 | V82: 0 | W82: 0.85 | X82: 1 | Z82: 0 | AA82: 0 | AB82: 0 | AC82: 0 | AD82: 0 | AE82: 0 | AF82: 0 | AG82: 0 | AH82: 0 | AI82: 0 | AK82: 0 | AL82: 0 | AM82: 0 | AN82: 0 | AO82: 0 | AP82: 0 | AQ82: 0 | AR82: 0 | AS82: 0 | AT82: 0 | AV82: 0 | AW82: 0 | AX82: 0 | AY82: 0 | AZ82: 0 | BA82: 0 | BB82: 0 | BC82: 0 | BD82: 0 | BE82: 0 | BG82: 0 | BH82: 0 | BI82: 0 | BJ82: 0 | BK82: 0 | BL82: 0 | BM82: 0 | BN82: 0 | BO82: 0 | BP82: 0 | BR82: 0 | BS82: 0 | BT82: 0 | BU82: 0 | BV82: 0 | BW82: 0 | BX82: 0 | BY82: 0 | BZ82: 0 | CA82: 0 | CC82: 0 | CD82: 0 | CE82: 0 | CF82: 0 | CG82: 0 | CH82: 0 | CI82: 0 | CJ82: 0 | CK82: 0 | CL82: 0
B83: 4 - Electron - Clearing interface configuration for Curtailment Obligations - Application development | C83: Application Development | D83: Build | E83: 1000 | F83: Application Development | G83: 0 | H83: 0 | I83: 0 | J83: 0 | K83: 0 | L83: 0 | M83: 0 | N83: 0 | O83: 0 | P83: 0 | Q83: 0 | S83: 0.15 | T83: 0 | U83: 0 | V83: 0 | W83: 0.85 | X83: 1 | Z83: 0 | AA83: 0 | AB83: 0 | AC83: 0 | AD83: 0 | AE83: 0 | AF83: 0 | AG83: 0 | AH83: 0 | AI83: 0 | AK83: 0 | AL83: 0 | AM83: 0 | AN83: 0 | AO83: 0 | AP83: 0 | AQ83: 0 | AR83: 0 | AS83: 0 | AT83: 0 | AV83: 0 | AW83: 0 | AX83: 0 | AY83: 0 | AZ83: 0 | BA83: 0 | BB83: 0 | BC83: 0 | BD83: 0 | BE83: 0 | BG83: 0 | BH83: 0 | BI83: 0 | BJ83: 0 | BK83: 0 | BL83: 0 | BM83: 0 | BN83: 0 | BO83: 0 | BP83: 0 | BR83: 0 | BS83: 0 | BT83: 0 | BU83: 0 | BV83: 0 | BW83: 0 | BX83: 0 | BY83: 0 | BZ83: 0 | CA83: 0 | CC83: 0 | CD83: 0 | CE83: 0 | CF83: 0 | CG83: 0 | CH83: 0 | CI83: 0 | CJ83: 0 | CK83: 0 | CL83: 0
B84: 4 - Electron - Platform installation and basic set-up and FAT/SAT - Application development | C84: Application Development | D84: Build | E84: 1000 | F84: Application Development | G84: 0 | H84: 0 | I84: 0 | J84: 0 | K84: 0 | L84: 0 | M84: 0 | N84: 0 | O84: 0 | P84: 0 | Q84: 0 | S84: 0.15 | T84: 0 | U84: 0 | V84: 0 | W84: 0.85 | X84: 1 | Z84: 0 | AA84: 0 | AB84: 0 | AC84: 0 | AD84: 0 | AE84: 0 | AF84: 0 | AG84: 0 | AH84: 0 | AI84: 0 | AK84: 0 | AL84: 0 | AM84: 0 | AN84: 0 | AO84: 0 | AP84: 0 | AQ84: 0 | AR84: 0 | AS84: 0 | AT84: 0 | AV84: 0 | AW84: 0 | AX84: 0 | AY84: 0 | AZ84: 0 | BA84: 0 | BB84: 0 | BC84: 0 | BD84: 0 | BE84: 0 | BG84: 0 | BH84: 0 | BI84: 0 | BJ84: 0 | BK84: 0 | BL84: 0 | BM84: 0 | BN84: 0 | BO84: 0 | BP84: 0 | BR84: 0 | BS84: 0 | BT84: 0 | BU84: 0 | BV84: 0 | BW84: 0 | BX84: 0 | BY84: 0 | BZ84: 0 | CA84: 0 | CC84: 0 | CD84: 0 | CE84: 0 | CF84: 0 | CG84: 0 | CH84: 0 | CI84: 0 | CJ84: 0 | CK84: 0 | CL84: 0
B85: 4 - Electron - Participant integration and testing pre-production - Application development | C85: Application Development | D85: Build | E85: 1000 | F85: Application Development | G85: 0 | H85: 0 | I85: 0 | J85: 0 | K85: 0 | L85: 0 | M85: 0 | N85: 0 | O85: 0 | P85: 0 | Q85: 0 | S85: 0.15 | T85: 0 | U85: 0 | V85: 0 | W85: 0.85 | X85: 1 | Z85: 0 | AA85: 0 | AB85: 0 | AC85: 0 | AD85: 0 | AE85: 0 | AF85: 0 | AG85: 0 | AH85: 0 | AI85: 0 | AK85: 0 | AL85: 0 | AM85: 0 | AN85: 0 | AO85: 0 | AP85: 0 | AQ85: 0 | AR85: 0 | AS85: 0 | AT85: 0 | AV85: 0 | AW85: 0 | AX85: 0 | AY85: 0 | AZ85: 0 | BA85: 0 | BB85: 0 | BC85: 0 | BD85: 0 | BE85: 0 | BG85: 0 | BH85: 0 | BI85: 0 | BJ85: 0 | BK85: 0 | BL85: 0 | BM85: 0 | BN85: 0 | BO85: 0 | BP85: 0 | BR85: 0 | BS85: 0 | BT85: 0 | BU85: 0 | BV85: 0 | BW85: 0 | BX85: 0 | BY85: 0 | BZ85: 0 | CA85: 0 | CC85: 0 | CD85: 0 | CE85: 0 | CF85: 0 | CG85: 0 | CH85: 0 | CI85: 0 | CJ85: 0 | CK85: 0 | CL85: 0
B86: 4 - Electron - Create and operationalise links to replica system - Application development | C86: Application Development | D86: Build | E86: 1000 | F86: Application Development | G86: 0 | H86: 0 | I86: 0 | J86: 0 | K86: 0 | L86: 0 | M86: 0 | N86: 0 | O86: 0 | P86: 0 | Q86: 0 | S86: 0.15 | T86: 0 | U86: 0 | V86: 0 | W86: 0.85 | X86: 1 | Z86: 0 | AA86: 0 | AB86: 0 | AC86: 0 | AD86: 0 | AE86: 0 | AF86: 0 | AG86: 0 | AH86: 0 | AI86: 0 | AK86: 0 | AL86: 0 | AM86: 0 | AN86: 0 | AO86: 0 | AP86: 0 | AQ86: 0 | AR86: 0 | AS86: 0 | AT86: 0 | AV86: 0 | AW86: 0 | AX86: 0 | AY86: 0 | AZ86: 0 | BA86: 0 | BB86: 0 | BC86: 0 | BD86: 0 | BE86: 0 | BG86: 0 | BH86: 0 | BI86: 0 | BJ86: 0 | BK86: 0 | BL86: 0 | BM86: 0 | BN86: 0 | BO86: 0 | BP86: 0 | BR86: 0 | BS86: 0 | BT86: 0 | BU86: 0 | BV86: 0 | BW86: 0 | BX86: 0 | BY86: 0 | BZ86: 0 | CA86: 0 | CC86: 0 | CD86: 0 | CE86: 0 | CF86: 0 | CG86: 0 | CH86: 0 | CI86: 0 | CJ86: 0 | CK86: 0 | CL86: 0
B87: 4 - Electron - Transitioning from replica environment to real life trading - Application development | C87: Simulation Trials | D87: Trials & Analysis | E87: 1000 | F87: Simulation Trials | G87: 0 | H87: 0 | I87: 0 | J87: 0 | K87: 0 | L87: 0 | M87: 0 | N87: 0 | O87: 0 | P87: 0 | Q87: 0 | S87: 0.15 | T87: 0 | U87: 0 | V87: 0 | W87: 0.85 | X87: 1 | Z87: 0 | AA87: 0 | AB87: 0 | AC87: 0 | AD87: 0 | AE87: 0 | AF87: 0 | AG87: 0 | AH87: 0 | AI87: 0 | AK87: 0 | AL87: 0 | AM87: 0 | AN87: 0 | AO87: 0 | AP87: 0 | AQ87: 0 | AR87: 0 | AS87: 0 | AT87: 0 | AV87: 0 | AW87: 0 | AX87: 0 | AY87: 0 | AZ87: 0 | BA87: 0 | BB87: 0 | BC87: 0 | BD87: 0 | BE87: 0 | BG87: 0 | BH87: 0 | BI87: 0 | BJ87: 0 | BK87: 0 | BL87: 0 | BM87: 0 | BN87: 0 | BO87: 0 | BP87: 0 | BR87: 0 | BS87: 0 | BT87: 0 | BU87: 0 | BV87: 0 | BW87: 0 | BX87: 0 | BY87: 0 | BZ87: 0 | CA87: 0 | CC87: 0 | CD87: 0 | CE87: 0 | CF87: 0 | CG87: 0 | CH87: 0 | CI87: 0 | CJ87: 0 | CK87: 0 | CL87: 0
B88: 4 - ENWL - Data Engineer Build | C88: Interface Build to ENWL Systems | D88: Build | E88: 625 | F88: Interface Build to ENWL Systems | G88: 0 | H88: 0 | I88: 0 | J88: 0 | K88: 0 | L88: 0 | M88: 0 | N88: 0 | O88: 0 | P88: 0 | Q88: 0 | S88: 0 | T88: 0 | U88: 0 | V88: 0 | W88: 1 | X88: 1 | Z88: 0 | AA88: 0 | AB88: 0 | AC88: 0 | AD88: 0 | AE88: 0 | AF88: 0 | AG88: 0 | AH88: 0 | AI88: 0 | AK88: 0 | AL88: 0 | AM88: 0 | AN88: 0 | AO88: 0 | AP88: 0 | AQ88: 0 | AR88: 0 | AS88: 0 | AT88: 0 | AV88: 0 | AW88: 0 | AX88: 0 | AY88: 0 | AZ88: 0 | BA88: 0 | BB88: 0 | BC88: 0 | BD88: 0 | BE88: 0 | BG88: 0 | BH88: 0 | BI88: 0 | BJ88: 0 | BK88: 0 | BL88: 0 | BM88: 0 | BN88: 0 | BO88: 0 | BP88: 0 | BR88: 0 | BS88: 0 | BT88: 0 | BU88: 0 | BV88: 0 | BW88: 0 | BX88: 0 | BY88: 0 | BZ88: 0 | CA88: 0 | CC88: 0 | CD88: 0 | CE88: 0 | CF88: 0 | CG88: 0 | CH88: 0 | CI88: 0 | CJ88: 0 | CK88: 0 | CL88: 0
B89: 4 - ENWL - Integration Engineer | C89: Interface Build to ENWL Systems | D89: Build | E89: 625 | F89: Interface Build to ENWL Systems | G89: 0 | H89: 0 | I89: 0 | J89: 0 | K89: 0 | L89: 0 | M89: 0 | N89: 0 | O89: 0 | P89: 0 | Q89: 0 | S89: 0 | T89: 0 | U89: 0 | V89: 0 | W89: 1 | X89: 1 | Z89: 0 | AA89: 0 | AB89: 0 | AC89: 0 | AD89: 0 | AE89: 0 | AF89: 0 | AG89: 0 | AH89: 0 | AI89: 0 | AK89: 0 | AL89: 0 | AM89: 0 | AN89: 0 | AO89: 0 | AP89: 0 | AQ89: 0 | AR89: 0 | AS89: 0 | AT89: 0 | AV89: 0 | AW89: 0 | AX89: 0 | AY89: 0 | AZ89: 0 | BA89: 0 | BB89: 0 | BC89: 0 | BD89: 0 | BE89: 0 | BG89: 0 | BH89: 0 | BI89: 0 | BJ89: 0 | BK89: 0 | BL89: 0 | BM89: 0 | BN89: 0 | BO89: 0 | BP89: 0 | BR89: 0 | BS89: 0 | BT89: 0 | BU89: 0 | BV89: 0 | BW89: 0 | BX89: 0 | BY89: 0 | BZ89: 0 | CA89: 0 | CC89: 0 | CD89: 0 | CE89: 0 | CF89: 0 | CG89: 0 | CH89: 0 | CI89: 0 | CJ89: 0 | CK89: 0 | CL89: 0
B90: 4 - ENWL - Cyber security build | C90: Interface Build to ENWL Systems | D90: Build | E90: 625 | F90: Interface Build to ENWL Systems | G90: 0 | H90: 0 | I90: 0 | J90: 0 | K90: 0 | L90: 0 | M90: 0 | N90: 0 | O90: 0 | P90: 0 | Q90: 0 | S90: 0 | T90: 0 | U90: 0 | V90: 0 | W90: 1 | X90: 1 | Z90: 0 | AA90: 0 | AB90: 0 | AC90: 0 | AD90: 0 | AE90: 0 | AF90: 0 | AG90: 0 | AH90: 0 | AI90: 0 | AK90: 0 | AL90: 0 | AM90: 0 | AN90: 0 | AO90: 0 | AP90: 0 | AQ90: 0 | AR90: 0 | AS90: 0 | AT90: 0 | AV90: 0 | AW90: 0 | AX90: 0 | AY90: 0 | AZ90: 0 | BA90: 0 | BB90: 0 | BC90: 0 | BD90: 0 | BE90: 0 | BG90: 0 | BH90: 0 | BI90: 0 | BJ90: 0 | BK90: 0 | BL90: 0 | BM90: 0 | BN90: 0 | BO90: 0 | BP90: 0 | BR90: 0 | BS90: 0 | BT90: 0 | BU90: 0 | BV90: 0 | BW90: 0 | BX90: 0 | BY90: 0 | BZ90: 0 | CA90: 0 | CC90: 0 | CD90: 0 | CE90: 0 | CF90: 0 | CG90: 0 | CH90: 0 | CI90: 0 | CJ90: 0 | CK90: 0 | CL90: 0
B91: 4 - IT - BiTraDER enviroments (virtual/physical) | C91: Application Integration | D91: Build | E91: 100000 | F91: Application Integration | G91: 0 | H91: 0 | I91: 0 | J91: 0 | K91: 0 | L91: 0 | M91: 0 | N91: 0 | O91: 0 | P91: 0 | Q91: 0 | S91: 0 | T91: 0 | U91: 0 | V91: 0 | W91: 1 | X91: 1 | Z91: 0 | AA91: 0 | AB91: 0 | AC91: 0 | AD91: 0 | AE91: 0 | AF91: 0 | AG91: 0 | AH91: 0 | AI91: 0 | AK91: 0 | AL91: 0 | AM91: 0 | AN91: 0 | AO91: 0 | AP91: 0 | AQ91: 0 | AR91: 0 | AS91: 0 | AT91: 0 | AV91: 0 | AW91: 0 | AX91: 0 | AY91: 0 | AZ91: 0 | BA91: 0 | BB91: 0 | BC91: 0 | BD91: 0 | BE91: 0 | BG91: 0 | BH91: 0 | BI91: 0 | BJ91: 0 | BK91: 0 | BL91: 0 | BM91: 0 | BN91: 0 | BO91: 0 | BP91: 0 | BR91: 0 | BS91: 0 | BT91: 0 | BU91: 0 | BV91: 0 | BW91: 0 | BX91: 0 | BY91: 0 | BZ91: 0 | CA91: 0 | CC91: 0 | CD91: 0 | CE91: 0 | CF91: 0 | CG91: 0 | CH91: 0 | CI91: 0 | CJ91: 0 | CK91: 0 | CL91: 0
B92: 4 - ENWL - Customer API interface Build | C92: Interface Build to ENWL Systems | D92: Build | E92: 500 | F92: Interface Build to ENWL Systems | G92: 0 | H92: 0 | I92: 0 | J92: 0 | K92: 0 | L92: 0 | M92: 0 | N92: 0 | O92: 0 | P92: 0 | Q92: 0 | S92: 0 | T92: 0 | U92: 0 | V92: 0 | W92: 1 | X92: 1 | Z92: 0 | AA92: 0 | AB92: 0 | AC92: 0 | AD92: 0 | AE92: 0 | AF92: 0 | AG92: 0 | AH92: 0 | AI92: 0 | AK92: 0 | AL92: 0 | AM92: 0 | AN92: 0 | AO92: 0 | AP92: 0 | AQ92: 0 | AR92: 0 | AS92: 0 | AT92: 0 | AV92: 0 | AW92: 0 | AX92: 0 | AY92: 0 | AZ92: 0 | BA92: 0 | BB92: 0 | BC92: 0 | BD92: 0 | BE92: 0 | BG92: 0 | BH92: 0 | BI92: 0 | BJ92: 0 | BK92: 0 | BL92: 0 | BM92: 0 | BN92: 0 | BO92: 0 | BP92: 0 | BR92: 0 | BS92: 0 | BT92: 0 | BU92: 0 | BV92: 0 | BW92: 0 | BX92: 0 | BY92: 0 | BZ92: 0 | CA92: 0 | CC92: 0 | CD92: 0 | CE92: 0 | CF92: 0 | CG92: 0 | CH92: 0 | CI92: 0 | CJ92: 0 | CK92: 0 | CL92: 0
B93: 4 - Build of interface to ANM | C93: Interface Build to ENWL Systems | D93: Build | E93: 250000 | F93: Interface Build to ENWL Systems | G93: 0 | H93: 0 | I93: 0 | J93: 0 | K93: 0 | L93: 0 | M93: 0 | N93: 0 | O93: 0 | P93: 0 | Q93: 0 | S93: 0 | T93: 0 | U93: 0 | V93: 0 | W93: 1 | X93: 1 | Z93: 0 | AA93: 0 | AB93: 0 | AC93: 0 | AD93: 0 | AE93: 0 | AF93: 0 | AG93: 0 | AH93: 0 | AI93: 0 | AK93: 0 | AL93: 0 | AM93: 0 | AN93: 0 | AO93: 0 | AP93: 0 | AQ93: 0 | AR93: 0 | AS93: 0 | AT93: 0 | AV93: 0 | AW93: 0 | AX93: 0 | AY93: 0 | AZ93: 0 | BA93: 0 | BB93: 0 | BC93: 0 | BD93: 0 | BE93: 0 | BG93: 0 | BH93: 0 | BI93: 0 | BJ93: 0 | BK93: 0 | BL93: 0 | BM93: 0 | BN93: 0 | BO93: 0 | BP93: 0 | BR93: 0 | BS93: 0 | BT93: 0 | BU93: 0 | BV93: 0 | BW93: 0 | BX93: 0 | BY93: 0 | BZ93: 0 | CA93: 0 | CC93: 0 | CD93: 0 | CE93: 0 | CF93: 0 | CG93: 0 | CH93: 0 | CI93: 0 | CJ93: 0 | CK93: 0 | CL93: 0
B94: 5 - Electron - Simulation operations support - Application development | C94: Simulation Trials | D94: Trials & Analysis | E94: 1000 | F94: Simulation Trials | G94: 0 | H94: 0 | I94: 0 | J94: 0 | K94: 0 | L94: 0 | M94: 0 | N94: 0 | O94: 0 | P94: 0 | Q94: 0 | S94: 0.15 | T94: 0 | U94: 0 | V94: 0 | W94: 0.85 | X94: 1 | Z94: 0 | AA94: 0 | AB94: 0 | AC94: 0 | AD94: 0 | AE94: 0 | AF94: 0 | AG94: 0 | AH94: 0 | AI94: 0 | AK94: 0 | AL94: 0 | AM94: 0 | AN94: 0 | AO94: 0 | AP94: 0 | AQ94: 0 | AR94: 0 | AS94: 0 | AT94: 0 | AV94: 0 | AW94: 0 | AX94: 0 | AY94: 0 | AZ94: 0 | BA94: 0 | BB94: 0 | BC94: 0 | BD94: 0 | BE94: 0 | BG94: 0 | BH94: 0 | BI94: 0 | BJ94: 0 | BK94: 0 | BL94: 0 | BM94: 0 | BN94: 0 | BO94: 0 | BP94: 0 | BR94: 0 | BS94: 0 | BT94: 0 | BU94: 0 | BV94: 0 | BW94: 0 | BX94: 0 | BY94: 0 | BZ94: 0 | CA94: 0 | CC94: 0 | CD94: 0 | CE94: 0 | CF94: 0 | CG94: 0 | CH94: 0 | CI94: 0 | CJ94: 0 | CK94: 0 | CL94: 0
B95: 5 - Electron - Simulation planning - Simulation and trial implementation | C95: Simulation Trials | D95: Trials & Analysis | E95: 1000 | F95: Simulation Trials | G95: 0 | H95: 0 | I95: 0 | J95: 0 | K95: 0 | L95: 0 | M95: 0 | N95: 0 | O95: 0 | P95: 0 | Q95: 0 | S95: 0.15 | T95: 0 | U95: 0 | V95: 0 | W95: 0.85 | X95: 1 | Z95: 0 | AA95: 0 | AB95: 0 | AC95: 0 | AD95: 0 | AE95: 0 | AF95: 0 | AG95: 0 | AH95: 0 | AI95: 0 | AK95: 0 | AL95: 0 | AM95: 0 | AN95: 0 | AO95: 0 | AP95: 0 | AQ95: 0 | AR95: 0 | AS95: 0 | AT95: 0 | AV95: 0 | AW95: 0 | AX95: 0 | AY95: 0 | AZ95: 0 | BA95: 0 | BB95: 0 | BC95: 0 | BD95: 0 | BE95: 0 | BG95: 0 | BH95: 0 | BI95: 0 | BJ95: 0 | BK95: 0 | BL95: 0 | BM95: 0 | BN95: 0 | BO95: 0 | BP95: 0 | BR95: 0 | BS95: 0 | BT95: 0 | BU95: 0 | BV95: 0 | BW95: 0 | BX95: 0 | BY95: 0 | BZ95: 0 | CA95: 0 | CC95: 0 | CD95: 0 | CE95: 0 | CF95: 0 | CG95: 0 | CH95: 0 | CI95: 0 | CJ95: 0 | CK95: 0 | CL95: 0
B96: 5 - Electron - Managing the operation of the trial - Simulation and trial implementation | C96: Network Trials | D96: Trials & Analysis | E96: 1000 | F96: Network Trials | G96: 0 | H96: 0 | I96: 0 | J96: 0 | K96: 0 | L96: 0 | M96: 0 | N96: 0 | O96: 0 | P96: 0 | Q96: 0 | S96: 0.15 | T96: 0 | U96: 0 | V96: 0 | W96: 0.85 | X96: 1 | Z96: 0 | AA96: 0 | AB96: 0 | AC96: 0 | AD96: 0 | AE96: 0 | AF96: 0 | AG96: 0 | AH96: 0 | AI96: 0 | AK96: 0 | AL96: 0 | AM96: 0 | AN96: 0 | AO96: 0 | AP96: 0 | AQ96: 0 | AR96: 0 | AS96: 0 | AT96: 0 | AV96: 0 | AW96: 0 | AX96: 0 | AY96: 0 | AZ96: 0 | BA96: 0 | BB96: 0 | BC96: 0 | BD96: 0 | BE96: 0 | BG96: 0 | BH96: 0 | BI96: 0 | BJ96: 0 | BK96: 0 | BL96: 0 | BM96: 0 | BN96: 0 | BO96: 0 | BP96: 0 | BR96: 0 | BS96: 0 | BT96: 0 | BU96: 0 | BV96: 0 | BW96: 0 | BX96: 0 | BY96: 0 | BZ96: 0 | CA96: 0 | CC96: 0 | CD96: 0 | CE96: 0 | CF96: 0 | CG96: 0 | CH96: 0 | CI96: 0 | CJ96: 0 | CK96: 0 | CL96: 0
B97: 5 - Electron - Develop roadmap for roll out of simulation to full trial | C97: Network Trials | D97: Trials & Analysis | E97: 1000 | F97: Network Trials | G97: 0 | H97: 0 | I97: 0 | J97: 0 | K97: 0 | L97: 0 | M97: 0 | N97: 0 | O97: 0 | P97: 0 | Q97: 0 | S97: 0.15 | T97: 0 | U97: 0 | V97: 0 | W97: 0.85 | X97: 1 | Z97: 0 | AA97: 0 | AB97: 0 | AC97: 0 | AD97: 0 | AE97: 0 | AF97: 0 | AG97: 0 | AH97: 0 | AI97: 0 | AK97: 0 | AL97: 0 | AM97: 0 | AN97: 0 | AO97: 0 | AP97: 0 | AQ97: 0 | AR97: 0 | AS97: 0 | AT97: 0 | AV97: 0 | AW97: 0 | AX97: 0 | AY97: 0 | AZ97: 0 | BA97: 0 | BB97: 0 | BC97: 0 | BD97: 0 | BE97: 0 | BG97: 0 | BH97: 0 | BI97: 0 | BJ97: 0 | BK97: 0 | BL97: 0 | BM97: 0 | BN97: 0 | BO97: 0 | BP97: 0 | BR97: 0 | BS97: 0 | BT97: 0 | BU97: 0 | BV97: 0 | BW97: 0 | BX97: 0 | BY97: 0 | BZ97: 0 | CA97: 0 | CC97: 0 | CD97: 0 | CE97: 0 | CF97: 0 | CG97: 0 | CH97: 0 | CI97: 0 | CJ97: 0 | CK97: 0 | CL97: 0
B98: 5 - ENWL - Payments to users | C98: Payments to users | D98: Payments to users | E98: 260000 | F98: Payments to users | G98: 0 | H98: 0 | I98: 0 | J98: 0 | K98: 0 | L98: 0 | M98: 0 | N98: 0 | O98: 0 | P98: 0 | Q98: 0 | S98: 0 | T98: 0 | U98: 0 | V98: 0 | W98: 1 | X98: 1 | Z98: 0 | AA98: 0 | AB98: 0 | AC98: 0 | AD98: 0 | AE98: 0 | AF98: 0 | AG98: 0 | AH98: 0 | AI98: 0 | AK98: 0 | AL98: 0 | AM98: 0 | AN98: 0 | AO98: 0 | AP98: 0 | AQ98: 0 | AR98: 0 | AS98: 0 | AT98: 0 | AV98: 0 | AW98: 0 | AX98: 0 | AY98: 0 | AZ98: 0 | BA98: 0 | BB98: 0 | BC98: 0 | BD98: 0 | BE98: 0 | BG98: 0 | BH98: 0 | BI98: 0 | BJ98: 0 | BK98: 0 | BL98: 0 | BM98: 0 | BN98: 0 | BO98: 0 | BP98: 0 | BR98: 0 | BS98: 0 | BT98: 0 | BU98: 0 | BV98: 0 | BW98: 0 | BX98: 0 | BY98: 0 | BZ98: 0 | CA98: 0 | CC98: 0 | CD98: 0 | CE98: 0 | CF98: 0 | CG98: 0 | CH98: 0 | CI98: 0 | CJ98: 0 | CK98: 0 | CL98: 0
B99: 6 - Electron - Design Documentation - Platform Analytics & Reporting | C99: Functional Specification for BiTraDER | D99: Closedown & BAU | E99: 1000 | F99: Functional Specification for BiTraDER | G99: 0 | H99: 0 | I99: 0 | J99: 0 | K99: 0 | L99: 0 | M99: 0 | N99: 0 | O99: 0 | P99: 0 | Q99: 0 | S99: 0.15 | T99: 0 | U99: 0 | V99: 0 | W99: 0.85 | X99: 1 | Z99: 0 | AA99: 0 | AB99: 0 | AC99: 0 | AD99: 0 | AE99: 0 | AF99: 0 | AG99: 0 | AH99: 0 | AI99: 0 | AK99: 0 | AL99: 0 | AM99: 0 | AN99: 0 | AO99: 0 | AP99: 0 | AQ99: 0 | AR99: 0 | AS99: 0 | AT99: 0 | AV99: 0 | AW99: 0 | AX99: 0 | AY99: 0 | AZ99: 0 | BA99: 0 | BB99: 0 | BC99: 0 | BD99: 0 | BE99: 0 | BG99: 0 | BH99: 0 | BI99: 0 | BJ99: 0 | BK99: 0 | BL99: 0 | BM99: 0 | BN99: 0 | BO99: 0 | BP99: 0 | BR99: 0 | BS99: 0 | BT99: 0 | BU99: 0 | BV99: 0 | BW99: 0 | BX99: 0 | BY99: 0 | BZ99: 0 | CA99: 0 | CC99: 0 | CD99: 0 | CE99: 0 | CF99: 0 | CG99: 0 | CH99: 0 | CI99: 0 | CJ99: 0 | CK99: 0 | CL99: 0
B100: 6 - Electron - Test Documentation - Platform Analytics & Reporting | C100: Functional Specification for BiTraDER | D100: Closedown & BAU | E100: 1000 | F100: Functional Specification for BiTraDER | G100: 0 | H100: 0 | I100: 0 | J100: 0 | K100: 0 | L100: 0 | M100: 0 | N100: 0 | O100: 0 | P100: 0 | Q100: 0 | S100: 0.15 | T100: 0 | U100: 0 | V100: 0 | W100: 0.85 | X100: 1 | Z100: 0 | AA100: 0 | AB100: 0 | AC100: 0 | AD100: 0 | AE100: 0 | AF100: 0 | AG100: 0 | AH100: 0 | AI100: 0 | AK100: 0 | AL100: 0 | AM100: 0 | AN100: 0 | AO100: 0 | AP100: 0 | AQ100: 0 | AR100: 0 | AS100: 0 | AT100: 0 | AV100: 0 | AW100: 0 | AX100: 0 | AY100: 0 | AZ100: 0 | BA100: 0 | BB100: 0 | BC100: 0 | BD100: 0 | BE100: 0 | BG100: 0 | BH100: 0 | BI100: 0 | BJ100: 0 | BK100: 0 | BL100: 0 | BM100: 0 | BN100: 0 | BO100: 0 | BP100: 0 | BR100: 0 | BS100: 0 | BT100: 0 | BU100: 0 | BV100: 0 | BW100: 0 | BX100: 0 | BY100: 0 | BZ100: 0 | CA100: 0 | CC100: 0 | CD100: 0 | CE100: 0 | CF100: 0 | CG100: 0 | CH100: 0 | CI100: 0 | CJ100: 0 | CK100: 0 | CL100: 0
B101: 6 - Electron - Performance Documentation - Platform Analytics & Reporting | C101: Network Trials | D101: Trials & Analysis | E101: 1000 | F101: Network Trials | G101: 0 | H101: 0 | I101: 0 | J101: 0 | K101: 0 | L101: 0 | M101: 0 | N101: 0 | O101: 0 | P101: 0 | Q101: 0 | S101: 0.15 | T101: 0 | U101: 0 | V101: 0 | W101: 0.85 | X101: 1 | Z101: 0 | AA101: 0 | AB101: 0 | AC101: 0 | AD101: 0 | AE101: 0 | AF101: 0 | AG101: 0 | AH101: 0 | AI101: 0 | AK101: 0 | AL101: 0 | AM101: 0 | AN101: 0 | AO101: 0 | AP101: 0 | AQ101: 0 | AR101: 0 | AS101: 0 | AT101: 0 | AV101: 0 | AW101: 0 | AX101: 0 | AY101: 0 | AZ101: 0 | BA101: 0 | BB101: 0 | BC101: 0 | BD101: 0 | BE101: 0 | BG101: 0 | BH101: 0 | BI101: 0 | BJ101: 0 | BK101: 0 | BL101: 0 | BM101: 0 | BN101: 0 | BO101: 0 | BP101: 0 | BR101: 0 | BS101: 0 | BT101: 0 | BU101: 0 | BV101: 0 | BW101: 0 | BX101: 0 | BY101: 0 | BZ101: 0 | CA101: 0 | CC101: 0 | CD101: 0 | CE101: 0 | CF101: 0 | CG101: 0 | CH101: 0 | CI101: 0 | CJ101: 0 | CK101: 0 | CL101: 0
B102: 6 - Afry - CBA | C102: Closedown | D102: Closedown & BAU | E102: 1841.142857 | F102: Closedown | G102: 0 | H102: 0 | I102: 0 | J102: 0 | K102: 0 | L102: 0 | M102: 0 | N102: 0 | O102: 0 | P102: 0 | Q102: 0 | S102: 0 | T102: 0.1 | U102: 0 | V102: 0 | W102: 0.9 | X102: =SUM(R102:W102) -> 1 | Z102: =$R102*G102 -> 0 | AA102: =$R102*H102 -> 0 | AB102: =$R102*I102 -> 0 | AC102: =$R102*J102 -> 0 | AD102: =$R102*K102 -> 0 | AE102: =$R102*L102 -> 0 | AF102: =$R102*M102 -> 0 | AG102: =$R102*N102 -> 0 | AH102: =$R102*O102 -> 0 | AI102: =$R102*P102 -> 0 | AK102: =$S102*G102 -> 0 | AL102: =$S102*H102 -> 0 | AM102: =$S102*I102 -> 0 | AN102: =$S102*J102 -> 0 | AO102: =$S102*K102 -> 0 | AP102: =$S102*L102 -> 0 | AQ102: =$S102*M102 -> 0 | AR102: =$S102*N102 -> 0 | AS102: =$S102*O102 -> 0 | AT102: =$S102*P102 -> 0 | AV102: =$T102*G102 -> 0 | AW102: =$T102*H102 -> 0 | AX102: =$T102*I102 -> 0 | AY102: =$T102*J102 -> 0 | AZ102: =$T102*K102 -> 0 | BA102: =$T102*L102 -> 0 | BB102: =$T102*M102 -> 0 | BC102: =$T102*N102 -> 0 | BD102: =$T102*O102 -> 0 | BE102: =$T102*P102 -> 0 | BG102: =$U102*G102 -> 0 | BH102: =$U102*H102 -> 0 | BI102: =$U102*I102 -> 0 | BJ102: =$U102*J102 -> 0 | BK102: =$U102*K102 -> 0 | BL102: =$U102*L102 -> 0 | BM102: =$U102*M102 -> 0 | BN102: =$U102*N102 -> 0 | BO102: =$U102*O102 -> 0 | BP102: =$U102*P102 -> 0 | BR102: =$V102*G102 -> 0 | BS102: =$V102*H102 -> 0 | BT102: =$V102*I102 -> 0 | BU102: =$V102*J102 -> 0 | BV102: =$V102*K102 -> 0 | BW102: =$V102*L102 -> 0 | BX102: =$V102*M102 -> 0 | BY102: =$V102*N102 -> 0 | BZ102: =$V102*O102 -> 0 | CA102: =$V102*P102 -> 0 | CC102: =$W102*G102 -> 0 | CD102: =$W102*H102 -> 0 | CE102: =$W102*I102 -> 0 | CF102: =$W102*J102 -> 0 | CG102: =$W102*K102 -> 0 | CH102: =$W102*L102 -> 0 | CI102: =$W102*M102 -> 0 | CJ102: =$W102*N102 -> 0 | CK102: =$W102*O102 -> 0 | CL102: =$W102*P102 -> 0
B103: 6 - ENWL - Technical Author | C103: Functional Specification for BiTraDER | D103: Closedown & BAU | E103: 489.65 | F103: Functional Specification for BiTraDER | G103: 0 | H103: 0 | I103: 0 | J103: 0 | K103: 0 | L103: 0 | M103: 0 | N103: 0 | O103: 0 | P103: 0 | Q103: 0 | S103: 0 | T103: 0 | U103: 0 | V103: 0 | W103: 1 | X103: 1 | Z103: 0 | AA103: 0 | AB103: 0 | AC103: 0 | AD103: 0 | AE103: 0 | AF103: 0 | AG103: 0 | AH103: 0 | AI103: 0 | AK103: 0 | AL103: 0 | AM103: 0 | AN103: 0 | AO103: 0 | AP103: 0 | AQ103: 0 | AR103: 0 | AS103: 0 | AT103: 0 | AV103: 0 | AW103: 0 | AX103: 0 | AY103: 0 | AZ103: 0 | BA103: 0 | BB103: 0 | BC103: 0 | BD103: 0 | BE103: 0 | BG103: 0 | BH103: 0 | BI103: 0 | BJ103: 0 | BK103: 0 | BL103: 0 | BM103: 0 | BN103: 0 | BO103: 0 | BP103: 0 | BR103: 0 | BS103: 0 | BT103: 0 | BU103: 0 | BV103: 0 | BW103: 0 | BX103: 0 | BY103: 0 | BZ103: 0 | CA103: 0 | CC103: 0 | CD103: 0 | CE103: 0 | CF103: 0 | CG103: 0 | CH103: 0 | CI103: 0 | CJ103: 0 | CK103: 0 | CL103: 0
B104: 7 - Afry - Dissemination | C104: Learning & Dissemination | D104: Learning & Dissemination | E104: 2251.692308 | F104: Learning & Dissemination | G104: 0 | H104: 0 | I104: 0 | J104: 0 | K104: 0 | L104: 0 | M104: 0 | N104: 0 | O104: 0 | P104: 0 | Q104: 0 | S104: 0 | T104: 0.1 | U104: 0 | V104: 0 | W104: 0.9 | X104: 1 | Z104: 0 | AA104: 0 | AB104: 0 | AC104: 0 | AD104: 0 | AE104: 0 | AF104: 0 | AG104: 0 | AH104: 0 | AI104: 0 | AK104: 0 | AL104: 0 | AM104: 0 | AN104: 0 | AO104: 0 | AP104: 0 | AQ104: 0 | AR104: 0 | AS104: 0 | AT104: 0 | AV104: 0 | AW104: 0 | AX104: 0 | AY104: 0 | AZ104: 0 | BA104: 0 | BB104: 0 | BC104: 0 | BD104: 0 | BE104: 0 | BG104: 0 | BH104: 0 | BI104: 0 | BJ104: 0 | BK104: 0 | BL104: 0 | BM104: 0 | BN104: 0 | BO104: 0 | BP104: 0 | BR104: 0 | BS104: 0 | BT104: 0 | BU104: 0 | BV104: 0 | BW104: 0 | BX104: 0 | BY104: 0 | BZ104: 0 | CA104: 0 | CC104: 0 | CD104: 0 | CE104: 0 | CF104: 0 | CG104: 0 | CH104: 0 | CI104: 0 | CJ104: 0 | CK104: 0 | CL104: 0
B105: 6 - Design, build, install, test & comission of BiTraDER website | C105: Learning & Dissemination | D105: Learning & Dissemination | E105: 20000 | F105: Learning & Dissemination | G105: 0 | H105: 0 | I105: 0 | J105: 0 | K105: 0 | L105: 0 | M105: 0 | N105: 0 | O105: 0 | P105: 0 | Q105: 0 | S105: 0 | T105: 0 | U105: 0 | V105: 0 | W105: 1 | X105: 1 | Z105: 0 | AA105: 0 | AB105: 0 | AC105: 0 | AD105: 0 | AE105: 0 | AF105: 0 | AG105: 0 | AH105: 0 | AI105: 0 | AK105: 0 | AL105: 0 | AM105: 0 | AN105: 0 | AO105: 0 | AP105: 0 | AQ105: 0 | AR105: 0 | AS105: 0 | AT105: 0 | AV105: 0 | AW105: 0 | AX105: 0 | AY105: 0 | AZ105: 0 | BA105: 0 | BB105: 0 | BC105: 0 | BD105: 0 | BE105: 0 | BG105: 0 | BH105: 0 | BI105: 0 | BJ105: 0 | BK105: 0 | BL105: 0 | BM105: 0 | BN105: 0 | BO105: 0 | BP105: 0 | BR105: 0 | BS105: 0 | BT105: 0 | BU105: 0 | BV105: 0 | BW105: 0 | BX105: 0 | BY105: 0 | BZ105: 0 | CA105: 0 | CC105: 0 | CD105: 0 | CE105: 0 | CF105: 0 | CG105: 0 | CH105: 0 | CI105: 0 | CJ105: 0 | CK105: 0 | CL105: 0
B106: 6 - Support & maintenance of BiTraDER website | C106: Learning & Dissemination | D106: Learning & Dissemination | E106: 16000 | F106: Learning & Dissemination | G106: 0 | H106: 0 | I106: 0 | J106: 0 | K106: 0 | L106: 0 | M106: 0 | N106: 0 | O106: 0 | P106: 0 | Q106: 0 | S106: 0 | T106: 0 | U106: 0 | V106: 0 | W106: 1 | X106: 1 | Z106: 0 | AA106: 0 | AB106: 0 | AC106: 0 | AD106: 0 | AE106: 0 | AF106: 0 | AG106: 0 | AH106: 0 | AI106: 0 | AK106: 0 | AL106: 0 | AM106: 0 | AN106: 0 | AO106: 0 | AP106: 0 | AQ106: 0 | AR106: 0 | AS106: 0 | AT106: 0 | AV106: 0 | AW106: 0 | AX106: 0 | AY106: 0 | AZ106: 0 | BA106: 0 | BB106: 0 | BC106: 0 | BD106: 0 | BE106: 0 | BG106: 0 | BH106: 0 | BI106: 0 | BJ106: 0 | BK106: 0 | BL106: 0 | BM106: 0 | BN106: 0 | BO106: 0 | BP106: 0 | BR106: 0 | BS106: 0 | BT106: 0 | BU106: 0 | BV106: 0 | BW106: 0 | BX106: 0 | BY106: 0 | BZ106: 0 | CA106: 0 | CC106: 0 | CD106: 0 | CE106: 0 | CF106: 0 | CG106: 0 | CH106: 0 | CI106: 0 | CJ106: 0 | CK106: 0 | CL106: 0
B107: 6 - LCNI conference | C107: Learning & Dissemination | D107: Learning & Dissemination | E107: 80000 | F107: Learning & Dissemination | G107: 0 | H107: 0 | I107: 0 | J107: 0 | K107: 0 | L107: 0 | M107: 0 | N107: 0 | O107: 0 | P107: 0 | Q107: 0 | S107: 0 | T107: 0 | U107: 0 | V107: 0 | W107: 1 | X107: 1 | Z107: 0 | AA107: 0 | AB107: 0 | AC107: 0 | AD107: 0 | AE107: 0 | AF107: 0 | AG107: 0 | AH107: 0 | AI107: 0 | AK107: 0 | AL107: 0 | AM107: 0 | AN107: 0 | AO107: 0 | AP107: 0 | AQ107: 0 | AR107: 0 | AS107: 0 | AT107: 0 | AV107: 0 | AW107: 0 | AX107: 0 | AY107: 0 | AZ107: 0 | BA107: 0 | BB107: 0 | BC107: 0 | BD107: 0 | BE107: 0 | BG107: 0 | BH107: 0 | BI107: 0 | BJ107: 0 | BK107: 0 | BL107: 0 | BM107: 0 | BN107: 0 | BO107: 0 | BP107: 0 | BR107: 0 | BS107: 0 | BT107: 0 | BU107: 0 | BV107: 0 | BW107: 0 | BX107: 0 | BY107: 0 | BZ107: 0 | CA107: 0 | CC107: 0 | CD107: 0 | CE107: 0 | CF107: 0 | CG107: 0 | CH107: 0 | CI107: 0 | CJ107: 0 | CK107: 0 | CL107: 0
B108: 6 - Knowledge sharing event | C108: Learning & Dissemination | D108: Learning & Dissemination | E108: 12000 | F108: Learning & Dissemination | G108: 0 | H108: 0 | I108: 0 | J108: 0 | K108: 0 | L108: 0 | M108: 0 | N108: 0 | O108: 0 | P108: 0 | Q108: 0 | S108: 0 | T108: 0 | U108: 0 | V108: 0 | W108: 1 | X108: 1 | Z108: 0 | AA108: 0 | AB108: 0 | AC108: 0 | AD108: 0 | AE108: 0 | AF108: 0 | AG108: 0 | AH108: 0 | AI108: 0 | AK108: 0 | AL108: 0 | AM108: 0 | AN108: 0 | AO108: 0 | AP108: 0 | AQ108: 0 | AR108: 0 | AS108: 0 | AT108: 0 | AV108: 0 | AW108: 0 | AX108: 0 | AY108: 0 | AZ108: 0 | BA108: 0 | BB108: 0 | BC108: 0 | BD108: 0 | BE108: 0 | BG108: 0 | BH108: 0 | BI108: 0 | BJ108: 0 | BK108: 0 | BL108: 0 | BM108: 0 | BN108: 0 | BO108: 0 | BP108: 0 | BR108: 0 | BS108: 0 | BT108: 0 | BU108: 0 | BV108: 0 | BW108: 0 | BX108: 0 | BY108: 0 | BZ108: 0 | CA108: 0 | CC108: 0 | CD108: 0 | CE108: 0 | CF108: 0 | CG108: 0 | CH108: 0 | CI108: 0 | CJ108: 0 | CK108: 0 | CL108: 0
B109: 6 - Publicise BiTraDER within ENW | C109: Learning & Dissemination | D109: Learning & Dissemination | E109: 4050 | F109: Learning & Dissemination | G109: 0 | H109: 0 | I109: 0 | J109: 0 | K109: 0 | L109: 0 | M109: 0 | N109: 0 | O109: 0 | P109: 0 | Q109: 0 | S109: 0 | T109: 0 | U109: 0 | V109: 0 | W109: 1 | X109: 1 | Z109: 0 | AA109: 0 | AB109: 0 | AC109: 0 | AD109: 0 | AE109: 0 | AF109: 0 | AG109: 0 | AH109: 0 | AI109: 0 | AK109: 0 | AL109: 0 | AM109: 0 | AN109: 0 | AO109: 0 | AP109: 0 | AQ109: 0 | AR109: 0 | AS109: 0 | AT109: 0 | AV109: 0 | AW109: 0 | AX109: 0 | AY109: 0 | AZ109: 0 | BA109: 0 | BB109: 0 | BC109: 0 | BD109: 0 | BE109: 0 | BG109: 0 | BH109: 0 | BI109: 0 | BJ109: 0 | BK109: 0 | BL109: 0 | BM109: 0 | BN109: 0 | BO109: 0 | BP109: 0 | BR109: 0 | BS109: 0 | BT109: 0 | BU109: 0 | BV109: 0 | BW109: 0 | BX109: 0 | BY109: 0 | BZ109: 0 | CA109: 0 | CC109: 0 | CD109: 0 | CE109: 0 | CF109: 0 | CG109: 0 | CH109: 0 | CI109: 0 | CJ109: 0 | CK109: 0 | CL109: 0
B110: 6 - Third party review of project | C110: Learning & Dissemination | D110: Learning & Dissemination | E110: 90000 | F110: Learning & Dissemination | G110: 0 | H110: 0 | I110: 0 | J110: 0 | K110: 0 | L110: 0 | M110: 0 | N110: 0 | O110: 0 | P110: 0 | Q110: 0 | S110: 0 | T110: 0 | U110: 0 | V110: 0 | W110: 1 | X110: 1 | Z110: 0 | AA110: 0 | AB110: 0 | AC110: 0 | AD110: 0 | AE110: 0 | AF110: 0 | AG110: 0 | AH110: 0 | AI110: 0 | AK110: 0 | AL110: 0 | AM110: 0 | AN110: 0 | AO110: 0 | AP110: 0 | AQ110: 0 | AR110: 0 | AS110: 0 | AT110: 0 | AV110: 0 | AW110: 0 | AX110: 0 | AY110: 0 | AZ110: 0 | BA110: 0 | BB110: 0 | BC110: 0 | BD110: 0 | BE110: 0 | BG110: 0 | BH110: 0 | BI110: 0 | BJ110: 0 | BK110: 0 | BL110: 0 | BM110: 0 | BN110: 0 | BO110: 0 | BP110: 0 | BR110: 0 | BS110: 0 | BT110: 0 | BU110: 0 | BV110: 0 | BW110: 0 | BX110: 0 | BY110: 0 | BZ110: 0 | CA110: 0 | CC110: 0 | CD110: 0 | CE110: 0 | CF110: 0 | CG110: 0 | CH110: 0 | CI110: 0 | CJ110: 0 | CK110: 0 | CL110: 0
B111: 6 - Steering groups | C111: Learning & Dissemination | D111: Learning & Dissemination | E111: 3600 | F111: Learning & Dissemination | G111: 0 | H111: 0 | I111: 0 | J111: 0 | K111: 0 | L111: 0 | M111: 0 | N111: 0 | O111: 0 | P111: 0 | Q111: 0 | S111: 0 | T111: 0 | U111: 0 | V111: 0 | W111: 1 | X111: 1 | Z111: 0 | AA111: 0 | AB111: 0 | AC111: 0 | AD111: 0 | AE111: 0 | AF111: 0 | AG111: 0 | AH111: 0 | AI111: 0 | AK111: 0 | AL111: 0 | AM111: 0 | AN111: 0 | AO111: 0 | AP111: 0 | AQ111: 0 | AR111: 0 | AS111: 0 | AT111: 0 | AV111: 0 | AW111: 0 | AX111: 0 | AY111: 0 | AZ111: 0 | BA111: 0 | BB111: 0 | BC111: 0 | BD111: 0 | BE111: 0 | BG111: 0 | BH111: 0 | BI111: 0 | BJ111: 0 | BK111: 0 | BL111: 0 | BM111: 0 | BN111: 0 | BO111: 0 | BP111: 0 | BR111: 0 | BS111: 0 | BT111: 0 | BU111: 0 | BV111: 0 | BW111: 0 | BX111: 0 | BY111: 0 | BZ111: 0 | CA111: 0 | CC111: 0 | CD111: 0 | CE111: 0 | CF111: 0 | CG111: 0 | CH111: 0 | CI111: 0 | CJ111: 0 | CK111: 0 | CL111: 0
B112: 7 - Afry - Dissemination after SG | C112: Learning & Dissemination | D112: Learning & Dissemination | E112: 2440 | F112: Learning & Dissemination | G112: 0 | H112: 0 | I112: 0 | J112: 0 | K112: 0 | L112: 0 | M112: 0 | N112: 0 | O112: 0 | P112: 0 | Q112: 0 | S112: 0 | T112: 0.1 | U112: 0 | V112: 0 | W112: 0.9 | X112: 1 | Z112: 0 | AA112: 0 | AB112: 0 | AC112: 0 | AD112: 0 | AE112: 0 | AF112: 0 | AG112: 0 | AH112: 0 | AI112: 0 | AK112: 0 | AL112: 0 | AM112: 0 | AN112: 0 | AO112: 0 | AP112: 0 | AQ112: 0 | AR112: 0 | AS112: 0 | AT112: 0 | AV112: 0 | AW112: 0 | AX112: 0 | AY112: 0 | AZ112: 0 | BA112: 0 | BB112: 0 | BC112: 0 | BD112: 0 | BE112: 0 | BG112: 0 | BH112: 0 | BI112: 0 | BJ112: 0 | BK112: 0 | BL112: 0 | BM112: 0 | BN112: 0 | BO112: 0 | BP112: 0 | BR112: 0 | BS112: 0 | BT112: 0 | BU112: 0 | BV112: 0 | BW112: 0 | BX112: 0 | BY112: 0 | BZ112: 0 | CA112: 0 | CC112: 0 | CD112: 0 | CE112: 0 | CF112: 0 | CG112: 0 | CH112: 0 | CI112: 0 | CJ112: 0 | CK112: 0 | CL112: 0
B113: 8 - ENWL - Risk that it takes longer than anticipated to agree contracts with customers involved in the trials (additional resource to allow more time for signing up customers) | C113: Contingency | D113: Customer | E113: 100000 | F113: Contingency | G113: 0 | H113: 0 | I113: 0 | J113: 0 | K113: 0 | L113: 0 | M113: 0 | N113: 0 | O113: 0 | P113: 0 | Q113: 0 | S113: 0 | T113: 0 | U113: 0 | V113: 0 | W113: 1 | X113: 1 | Z113: 0 | AA113: 0 | AB113: 0 | AC113: 0 | AD113: 0 | AE113: 0 | AF113: 0 | AG113: 0 | AH113: 0 | AI113: 0 | AK113: 0 | AL113: 0 | AM113: 0 | AN113: 0 | AO113: 0 | AP113: 0 | AQ113: 0 | AR113: 0 | AS113: 0 | AT113: 0 | AV113: 0 | AW113: 0 | AX113: 0 | AY113: 0 | AZ113: 0 | BA113: 0 | BB113: 0 | BC113: 0 | BD113: 0 | BE113: 0 | BG113: 0 | BH113: 0 | BI113: 0 | BJ113: 0 | BK113: 0 | BL113: 0 | BM113: 0 | BN113: 0 | BO113: 0 | BP113: 0 | BR113: 0 | BS113: 0 | BT113: 0 | BU113: 0 | BV113: 0 | BW113: 0 | BX113: 0 | BY113: 0 | BZ113: 0 | CA113: 0 | CC113: 0 | CD113: 0 | CE113: 0 | CF113: 0 | CG113: 0 | CH113: 0 | CI113: 0 | CJ113: 0 | CK113: 0 | CL113: 0
B114: 8 - ENWL - Risk that the market build and integration takes longer than anticipated (additional resource to assist with the build and integration) | C114: Contingency | D114: Build | E114: 100000 | F114: Contingency | G114: 0 | H114: 0 | I114: 0 | J114: 0 | K114: 0 | L114: 0 | M114: 0 | N114: 0 | O114: 0 | P114: 0 | Q114: 0 | S114: 0 | T114: 0 | U114: 0 | V114: 0 | W114: 1 | X114: 1 | Z114: 0 | AA114: 0 | AB114: 0 | AC114: 0 | AD114: 0 | AE114: 0 | AF114: 0 | AG114: 0 | AH114: 0 | AI114: 0 | AK114: 0 | AL114: 0 | AM114: 0 | AN114: 0 | AO114: 0 | AP114: 0 | AQ114: 0 | AR114: 0 | AS114: 0 | AT114: 0 | AV114: 0 | AW114: 0 | AX114: 0 | AY114: 0 | AZ114: 0 | BA114: 0 | BB114: 0 | BC114: 0 | BD114: 0 | BE114: 0 | BG114: 0 | BH114: 0 | BI114: 0 | BJ114: 0 | BK114: 0 | BL114: 0 | BM114: 0 | BN114: 0 | BO114: 0 | BP114: 0 | BR114: 0 | BS114: 0 | BT114: 0 | BU114: 0 | BV114: 0 | BW114: 0 | BX114: 0 | BY114: 0 | BZ114: 0 | CA114: 0 | CC114: 0 | CD114: 0 | CE114: 0 | CF114: 0 | CG114: 0 | CH114: 0 | CI114: 0 | CJ114: 0 | CK114: 0 | CL114: 0
B115: 8 - ENWL - Risk that the cyber-security requirements will affect the performance of the integrated system (additional resource) | C115: Contingency | D115: Build | E115: 150000 | F115: Contingency | G115: 0 | H115: 0 | I115: 0 | J115: 0 | K115: 0 | L115: 0 | M115: 0 | N115: 0 | O115: 0 | P115: 0 | Q115: 0 | S115: 0 | T115: 0 | U115: 0 | V115: 0 | W115: 1 | X115: 1 | Z115: 0 | AA115: 0 | AB115: 0 | AC115: 0 | AD115: 0 | AE115: 0 | AF115: 0 | AG115: 0 | AH115: 0 | AI115: 0 | AK115: 0 | AL115: 0 | AM115: 0 | AN115: 0 | AO115: 0 | AP115: 0 | AQ115: 0 | AR115: 0 | AS115: 0 | AT115: 0 | AV115: 0 | AW115: 0 | AX115: 0 | AY115: 0 | AZ115: 0 | BA115: 0 | BB115: 0 | BC115: 0 | BD115: 0 | BE115: 0 | BG115: 0 | BH115: 0 | BI115: 0 | BJ115: 0 | BK115: 0 | BL115: 0 | BM115: 0 | BN115: 0 | BO115: 0 | BP115: 0 | BR115: 0 | BS115: 0 | BT115: 0 | BU115: 0 | BV115: 0 | BW115: 0 | BX115: 0 | BY115: 0 | BZ115: 0 | CA115: 0 | CC115: 0 | CD115: 0 | CE115: 0 | CF115: 0 | CG115: 0 | CH115: 0 | CI115: 0 | CJ115: 0 | CK115: 0 | CL115: 0
B116: 8 - ENWL - Risk that we lose participants due to lack of understanding on the aims of the market and the operation of the platform (additonal resource for further education of participants) | C116: Contingency | D116: Simulation | E116: 20000 | F116: Contingency | G116: 0 | H116: 0 | I116: 0 | J116: 0 | K116: 0 | L116: 0 | M116: 0 | N116: 0 | O116: 0 | P116: 0 | Q116: 0 | S116: 0 | T116: 0 | U116: 0 | V116: 0 | W116: 1 | X116: 1 | Z116: 0 | AA116: 0 | AB116: 0 | AC116: 0 | AD116: 0 | AE116: 0 | AF116: 0 | AG116: 0 | AH116: 0 | AI116: 0 | AK116: 0 | AL116: 0 | AM116: 0 | AN116: 0 | AO116: 0 | AP116: 0 | AQ116: 0 | AR116: 0 | AS116: 0 | AT116: 0 | AV116: 0 | AW116: 0 | AX116: 0 | AY116: 0 | AZ116: 0 | BA116: 0 | BB116: 0 | BC116: 0 | BD116: 0 | BE116: 0 | BG116: 0 | BH116: 0 | BI116: 0 | BJ116: 0 | BK116: 0 | BL116: 0 | BM116: 0 | BN116: 0 | BO116: 0 | BP116: 0 | BR116: 0 | BS116: 0 | BT116: 0 | BU116: 0 | BV116: 0 | BW116: 0 | BX116: 0 | BY116: 0 | BZ116: 0 | CA116: 0 | CC116: 0 | CD116: 0 | CE116: 0 | CF116: 0 | CG116: 0 | CH116: 0 | CI116: 0 | CJ116: 0 | CK116: 0 | CL116: 0
B117: 8 - ENWL - Risk that no constraints occur on the network during the trial phase (compensation of customers who respond to false constraints) | C117: Contingency | D117: Network trials | E117: 50000 | F117: Contingency | G117: 0 | H117: 0 | I117: 0 | J117: 0 | K117: 0 | L117: 0 | M117: 0 | N117: 0 | O117: 0 | P117: 0 | Q117: 0 | S117: 0 | T117: 0 | U117: 0 | V117: 0 | W117: 1 | X117: 1 | Z117: 0 | AA117: 0 | AB117: 0 | AC117: 0 | AD117: 0 | AE117: 0 | AF117: 0 | AG117: 0 | AH117: 0 | AI117: 0 | AK117: 0 | AL117: 0 | AM117: 0 | AN117: 0 | AO117: 0 | AP117: 0 | AQ117: 0 | AR117: 0 | AS117: 0 | AT117: 0 | AV117: 0 | AW117: 0 | AX117: 0 | AY117: 0 | AZ117: 0 | BA117: 0 | BB117: 0 | BC117: 0 | BD117: 0 | BE117: 0 | BG117: 0 | BH117: 0 | BI117: 0 | BJ117: 0 | BK117: 0 | BL117: 0 | BM117: 0 | BN117: 0 | BO117: 0 | BP117: 0 | BR117: 0 | BS117: 0 | BT117: 0 | BU117: 0 | BV117: 0 | BW117: 0 | BX117: 0 | BY117: 0 | BZ117: 0 | CA117: 0 | CC117: 0 | CD117: 0 | CE117: 0 | CF117: 0 | CG117: 0 | CH117: 0 | CI117: 0 | CJ117: 0 | CK117: 0 | CL117: 0
B118: 8 - ENWL - Risk that participants may not trade if they do not understand the benefit and risks of trading, or they are waiting for others to start the trading (provide an initial incentive to stimulate trading amongst participants) | C118: Contingency | D118: Network trials | E118: 25000 | F118: Contingency | G118: 0 | H118: 0 | I118: 0 | J118: 0 | K118: 0 | L118: 0 | M118: 0 | N118: 0 | O118: 0 | P118: 0 | Q118: 0 | S118: 0 | T118: 0 | U118: 0 | V118: 0 | W118: 1 | X118: 1 | Z118: 0 | AA118: 0 | AB118: 0 | AC118: 0 | AD118: 0 | AE118: 0 | AF118: 0 | AG118: 0 | AH118: 0 | AI118: 0 | AK118: 0 | AL118: 0 | AM118: 0 | AN118: 0 | AO118: 0 | AP118: 0 | AQ118: 0 | AR118: 0 | AS118: 0 | AT118: 0 | AV118: 0 | AW118: 0 | AX118: 0 | AY118: 0 | AZ118: 0 | BA118: 0 | BB118: 0 | BC118: 0 | BD118: 0 | BE118: 0 | BG118: 0 | BH118: 0 | BI118: 0 | BJ118: 0 | BK118: 0 | BL118: 0 | BM118: 0 | BN118: 0 | BO118: 0 | BP118: 0 | BR118: 0 | BS118: 0 | BT118: 0 | BU118: 0 | BV118: 0 | BW118: 0 | BX118: 0 | BY118: 0 | BZ118: 0 | CA118: 0 | CC118: 0 | CD118: 0 | CE118: 0 | CF118: 0 | CG118: 0 | CH118: 0 | CI118: 0 | CJ118: 0 | CK118: 0 | CL118: 0
B119: 8 - Electron - Risk that the configuration of the Trading Platform on BiTraDER takes longer than anticipated (additional resource to assist platform configuration) | C119: Contingency | D119: Build | E119: 135320 | F119: Contingency | G119: 0 | H119: 0 | I119: 0 | J119: 0 | K119: 0 | L119: 0 | M119: 0 | N119: 0 | O119: 0 | P119: 0 | Q119: 0 | S119: 0 | T119: 0 | U119: 0 | V119: 0 | W119: 1 | X119: 1 | Z119: 0 | AA119: 0 | AB119: 0 | AC119: 0 | AD119: 0 | AE119: 0 | AF119: 0 | AG119: 0 | AH119: 0 | AI119: 0 | AK119: 0 | AL119: 0 | AM119: 0 | AN119: 0 | AO119: 0 | AP119: 0 | AQ119: 0 | AR119: 0 | AS119: 0 | AT119: 0 | AV119: 0 | AW119: 0 | AX119: 0 | AY119: 0 | AZ119: 0 | BA119: 0 | BB119: 0 | BC119: 0 | BD119: 0 | BE119: 0 | BG119: 0 | BH119: 0 | BI119: 0 | BJ119: 0 | BK119: 0 | BL119: 0 | BM119: 0 | BN119: 0 | BO119: 0 | BP119: 0 | BR119: 0 | BS119: 0 | BT119: 0 | BU119: 0 | BV119: 0 | BW119: 0 | BX119: 0 | BY119: 0 | BZ119: 0 | CA119: 0 | CC119: 0 | CD119: 0 | CE119: 0 | CF119: 0 | CG119: 0 | CH119: 0 | CI119: 0 | CJ119: 0 | CK119: 0 | CL119: 0
B120: 3 - ENWL - Cyber Security Design Report | C120: Interface Design to ENWL Systems | D120: Design | E120: 50000 | F120: Interface Design to ENWL Systems | G120: 0 | H120: 0 | I120: 0 | J120: 0 | K120: 0 | L120: 0 | M120: 0 | N120: 0 | O120: 0 | P120: 0 | Q120: 0 | W120: 1 | X120: 1 | Z120: 0 | AA120: 0 | AB120: 0 | AC120: 0 | AD120: 0 | AE120: 0 | AF120: 0 | AG120: 0 | AH120: 0 | AI120: 0 | AK120: 0 | AL120: 0 | AM120: 0 | AN120: 0 | AO120: 0 | AP120: 0 | AQ120: 0 | AR120: 0 | AS120: 0 | AT120: 0 | AV120: 0 | AW120: 0 | AX120: 0 | AY120: 0 | AZ120: 0 | BA120: 0 | BB120: 0 | BC120: 0 | BD120: 0 | BE120: 0 | BG120: 0 | BH120: 0 | BI120: 0 | BJ120: 0 | BK120: 0 | BL120: 0 | BM120: 0 | BN120: 0 | BO120: 0 | BP120: 0 | BR120: 0 | BS120: 0 | BT120: 0 | BU120: 0 | BV120: 0 | BW120: 0 | BX120: 0 | BY120: 0 | BZ120: 0 | CA120: 0 | CC120: 0 | CD120: 0 | CE120: 0 | CF120: 0 | CG120: 0 | CH120: 0 | CI120: 0 | CJ120: 0 | CK120: 0 | CL120: 0
Q121: 0 | X121: 0 | Z121: 0 | AA121: 0 | AB121: 0 | AC121: 0 | AD121: 0 | AE121: 0 | AF121: 0 | AG121: 0 | AH121: 0 | AI121: 0 | AK121: 0 | AL121: 0 | AM121: 0 | AN121: 0 | AO121: 0 | AP121: 0 | AQ121: 0 | AR121: 0 | AS121: 0 | AT121: 0 | AV121: 0 | AW121: 0 | AX121: 0 | AY121: 0 | AZ121: 0 | BA121: 0 | BB121: 0 | BC121: 0 | BD121: 0 | BE121: 0 | BG121: 0 | BH121: 0 | BI121: 0 | BJ121: 0 | BK121: 0 | BL121: 0 | BM121: 0 | BN121: 0 | BO121: 0 | BP121: 0 | BR121: 0 | BS121: 0 | BT121: 0 | BU121: 0 | BV121: 0 | BW121: 0 | BX121: 0 | BY121: 0 | BZ121: 0 | CA121: 0 | CC121: 0 | CD121: 0 | CE121: 0 | CF121: 0 | CG121: 0 | CH121: 0 | CI121: 0 | CJ121: 0 | CK121: 0 | CL121: 0
Q122: 0 | X122: 0 | Z122: 0 | AA122: 0 | AB122: 0 | AC122: 0 | AD122: 0 | AE122: 0 | AF122: 0 | AG122: 0 | AH122: 0 | AI122: 0 | AK122: 0 | AL122: 0 | AM122: 0 | AN122: 0 | AO122: 0 | AP122: 0 | AQ122: 0 | AR122: 0 | AS122: 0 | AT122: 0 | AV122: 0 | AW122: 0 | AX122: 0 | AY122: 0 | AZ122: 0 | BA122: 0 | BB122: 0 | BC122: 0 | BD122: 0 | BE122: 0 | BG122: 0 | BH122: 0 | BI122: 0 | BJ122: 0 | BK122: 0 | BL122: 0 | BM122: 0 | BN122: 0 | BO122: 0 | BP122: 0 | BR122: 0 | BS122: 0 | BT122: 0 | BU122: 0 | BV122: 0 | BW122: 0 | BX122: 0 | BY122: 0 | BZ122: 0 | CA122: 0 | CC122: 0 | CD122: 0 | CE122: 0 | CF122: 0 | CG122: 0 | CH122: 0 | CI122: 0 | CJ122: 0 | CK122: 0 | CL122: 0
Q123: 0 | X123: 0 | Z123: 0 | AA123: 0 | AB123: 0 | AC123: 0 | AD123: 0 | AE123: 0 | AF123: 0 | AG123: 0 | AH123: 0 | AI123: 0 | AK123: 0 | AL123: 0 | AM123: 0 | AN123: 0 | AO123: 0 | AP123: 0 | AQ123: 0 | AR123: 0 | AS123: 0 | AT123: 0 | AV123: 0 | AW123: 0 | AX123: 0 | AY123: 0 | AZ123: 0 | BA123: 0 | BB123: 0 | BC123: 0 | BD123: 0 | BE123: 0 | BG123: 0 | BH123: 0 | BI123: 0 | BJ123: 0 | BK123: 0 | BL123: 0 | BM123: 0 | BN123: 0 | BO123: 0 | BP123: 0 | BR123: 0 | BS123: 0 | BT123: 0 | BU123: 0 | BV123: 0 | BW123: 0 | BX123: 0 | BY123: 0 | BZ123: 0 | CA123: 0 | CC123: 0 | CD123: 0 | CE123: 0 | CF123: 0 | CG123: 0 | CH123: 0 | CI123: 0 | CJ123: 0 | CK123: 0 | CL123: 0
Q124: 0 | X124: 0 | Z124: 0 | AA124: 0 | AB124: 0 | AC124: 0 | AD124: 0 | AE124: 0 | AF124: 0 | AG124: 0 | AH124: 0 | AI124: 0 | AK124: 0 | AL124: 0 | AM124: 0 | AN124: 0 | AO124: 0 | AP124: 0 | AQ124: 0 | AR124: 0 | AS124: 0 | AT124: 0 | AV124: 0 | AW124: 0 | AX124: 0 | AY124: 0 | AZ124: 0 | BA124: 0 | BB124: 0 | BC124: 0 | BD124: 0 | BE124: 0 | BG124: 0 | BH124: 0 | BI124: 0 | BJ124: 0 | BK124: 0 | BL124: 0 | BM124: 0 | BN124: 0 | BO124: 0 | BP124: 0 | BR124: 0 | BS124: 0 | BT124: 0 | BU124: 0 | BV124: 0 | BW124: 0 | BX124: 0 | BY124: 0 | BZ124: 0 | CA124: 0 | CC124: 0 | CD124: 0 | CE124: 0 | CF124: 0 | CG124: 0 | CH124: 0 | CI124: 0 | CJ124: 0 | CK124: 0 | CL124: 0
Q125: 0 | X125: 0 | Z125: 0 | AA125: 0 | AB125: 0 | AC125: 0 | AD125: 0 | AE125: 0 | AF125: 0 | AG125: 0 | AH125: 0 | AI125: 0 | AK125: 0 | AL125: 0 | AM125: 0 | AN125: 0 | AO125: 0 | AP125: 0 | AQ125: 0 | AR125: 0 | AS125: 0 | AT125: 0 | AV125: 0 | AW125: 0 | AX125: 0 | AY125: 0 | AZ125: 0 | BA125: 0 | BB125: 0 | BC125: 0 | BD125: 0 | BE125: 0 | BG125: 0 | BH125: 0 | BI125: 0 | BJ125: 0 | BK125: 0 | BL125: 0 | BM125: 0 | BN125: 0 | BO125: 0 | BP125: 0 | BR125: 0 | BS125: 0 | BT125: 0 | BU125: 0 | BV125: 0 | BW125: 0 | BX125: 0 | BY125: 0 | BZ125: 0 | CA125: 0 | CC125: 0 | CD125: 0 | CE125: 0 | CF125: 0 | CG125: 0 | CH125: 0 | CI125: 0 | CJ125: 0 | CK125: 0 | CL125: 0
Q126: 0 | X126: 0 | Z126: 0 | AA126: 0 | AB126: 0 | AC126: 0 | AD126: 0 | AE126: 0 | AF126: 0 | AG126: 0 | AH126: 0 | AI126: 0 | AK126: 0 | AL126: 0 | AM126: 0 | AN126: 0 | AO126: 0 | AP126: 0 | AQ126: 0 | AR126: 0 | AS126: 0 | AT126: 0 | AV126: 0 | AW126: 0 | AX126: 0 | AY126: 0 | AZ126: 0 | BA126: 0 | BB126: 0 | BC126: 0 | BD126: 0 | BE126: 0 | BG126: 0 | BH126: 0 | BI126: 0 | BJ126: 0 | BK126: 0 | BL126: 0 | BM126: 0 | BN126: 0 | BO126: 0 | BP126: 0 | BR126: 0 | BS126: 0 | BT126: 0 | BU126: 0 | BV126: 0 | BW126: 0 | BX126: 0 | BY126: 0 | BZ126: 0 | CA126: 0 | CC126: 0 | CD126: 0 | CE126: 0 | CF126: 0 | CG126: 0 | CH126: 0 | CI126: 0 | CJ126: 0 | CK126: 0 | CL126: 0
Q127: 0 | X127: 0 | Z127: 0 | AA127: 0 | AB127: 0 | AC127: 0 | AD127: 0 | AE127: 0 | AF127: 0 | AG127: 0 | AH127: 0 | AI127: 0 | AK127: 0 | AL127: 0 | AM127: 0 | AN127: 0 | AO127: 0 | AP127: 0 | AQ127: 0 | AR127: 0 | AS127: 0 | AT127: 0 | AV127: 0 | AW127: 0 | AX127: 0 | AY127: 0 | AZ127: 0 | BA127: 0 | BB127: 0 | BC127: 0 | BD127: 0 | BE127: 0 | BG127: 0 | BH127: 0 | BI127: 0 | BJ127: 0 | BK127: 0 | BL127: 0 | BM127: 0 | BN127: 0 | BO127: 0 | BP127: 0 | BR127: 0 | BS127: 0 | BT127: 0 | BU127: 0 | BV127: 0 | BW127: 0 | BX127: 0 | BY127: 0 | BZ127: 0 | CA127: 0 | CC127: 0 | CD127: 0 | CE127: 0 | CF127: 0 | CG127: 0 | CH127: 0 | CI127: 0 | CJ127: 0 | CK127: 0 | CL127: 0
Q128: 0 | X128: 0 | Z128: 0 | AA128: 0 | AB128: 0 | AC128: 0 | AD128: 0 | AE128: 0 | AF128: 0 | AG128: 0 | AH128: 0 | AI128: 0 | AK128: 0 | AL128: 0 | AM128: 0 | AN128: 0 | AO128: 0 | AP128: 0 | AQ128: 0 | AR128: 0 | AS128: 0 | AT128: 0 | AV128: 0 | AW128: 0 | AX128: 0 | AY128: 0 | AZ128: 0 | BA128: 0 | BB128: 0 | BC128: 0 | BD128: 0 | BE128: 0 | BG128: 0 | BH128: 0 | BI128: 0 | BJ128: 0 | BK128: 0 | BL128: 0 | BM128: 0 | BN128: 0 | BO128: 0 | BP128: 0 | BR128: 0 | BS128: 0 | BT128: 0 | BU128: 0 | BV128: 0 | BW128: 0 | BX128: 0 | BY128: 0 | BZ128: 0 | CA128: 0 | CC128: 0 | CD128: 0 | CE128: 0 | CF128: 0 | CG128: 0 | CH128: 0 | CI128: 0 | CJ128: 0 | CK128: 0 | CL128: 0
Q129: 0 | X129: 0 | Z129: 0 | AA129: 0 | AB129: 0 | AC129: 0 | AD129: 0 | AE129: 0 | AF129: 0 | AG129: 0 | AH129: 0 | AI129: 0 | AK129: 0 | AL129: 0 | AM129: 0 | AN129: 0 | AO129: 0 | AP129: 0 | AQ129: 0 | AR129: 0 | AS129: 0 | AT129: 0 | AV129: 0 | AW129: 0 | AX129: 0 | AY129: 0 | AZ129: 0 | BA129: 0 | BB129: 0 | BC129: 0 | BD129: 0 | BE129: 0 | BG129: 0 | BH129: 0 | BI129: 0 | BJ129: 0 | BK129: 0 | BL129: 0 | BM129: 0 | BN129: 0 | BO129: 0 | BP129: 0 | BR129: 0 | BS129: 0 | BT129: 0 | BU129: 0 | BV129: 0 | BW129: 0 | BX129: 0 | BY129: 0 | BZ129: 0 | CA129: 0 | CC129: 0 | CD129: 0 | CE129: 0 | CF129: 0 | CG129: 0 | CH129: 0 | CI129: 0 | CJ129: 0 | CK129: 0 | CL129: 0
Q130: 0 | X130: 0 | Z130: 0 | AA130: 0 | AB130: 0 | AC130: 0 | AD130: 0 | AE130: 0 | AF130: 0 | AG130: 0 | AH130: 0 | AI130: 0 | AK130: 0 | AL130: 0 | AM130: 0 | AN130: 0 | AO130: 0 | AP130: 0 | AQ130: 0 | AR130: 0 | AS130: 0 | AT130: 0 | AV130: 0 | AW130: 0 | AX130: 0 | AY130: 0 | AZ130: 0 | BA130: 0 | BB130: 0 | BC130: 0 | BD130: 0 | BE130: 0 | BG130: 0 | BH130: 0 | BI130: 0 | BJ130: 0 | BK130: 0 | BL130: 0 | BM130: 0 | BN130: 0 | BO130: 0 | BP130: 0 | BR130: 0 | BS130: 0 | BT130: 0 | BU130: 0 | BV130: 0 | BW130: 0 | BX130: 0 | BY130: 0 | BZ130: 0 | CA130: 0 | CC130: 0 | CD130: 0 | CE130: 0 | CF130: 0 | CG130: 0 | CH130: 0 | CI130: 0 | CJ130: 0 | CK130: 0 | CL130: 0
Q131: 0 | X131: 0 | Z131: 0 | AA131: 0 | AB131: 0 | AC131: 0 | AD131: 0 | AE131: 0 | AF131: 0 | AG131: 0 | AH131: 0 | AI131: 0 | AK131: 0 | AL131: 0 | AM131: 0 | AN131: 0 | AO131: 0 | AP131: 0 | AQ131: 0 | AR131: 0 | AS131: 0 | AT131: 0 | AV131: 0 | AW131: 0 | AX131: 0 | AY131: 0 | AZ131: 0 | BA131: 0 | BB131: 0 | BC131: 0 | BD131: 0 | BE131: 0 | BG131: 0 | BH131: 0 | BI131: 0 | BJ131: 0 | BK131: 0 | BL131: 0 | BM131: 0 | BN131: 0 | BO131: 0 | BP131: 0 | BR131: 0 | BS131: 0 | BT131: 0 | BU131: 0 | BV131: 0 | BW131: 0 | BX131: 0 | BY131: 0 | BZ131: 0 | CA131: 0 | CC131: 0 | CD131: 0 | CE131: 0 | CF131: 0 | CG131: 0 | CH131: 0 | CI131: 0 | CJ131: 0 | CK131: 0 | CL131: 0
Q132: 0 | X132: 0 | Z132: 0 | AA132: 0 | AB132: 0 | AC132: 0 | AD132: 0 | AE132: 0 | AF132: 0 | AG132: 0 | AH132: 0 | AI132: 0 | AK132: 0 | AL132: 0 | AM132: 0 | AN132: 0 | AO132: 0 | AP132: 0 | AQ132: 0 | AR132: 0 | AS132: 0 | AT132: 0 | AV132: 0 | AW132: 0 | AX132: 0 | AY132: 0 | AZ132: 0 | BA132: 0 | BB132: 0 | BC132: 0 | BD132: 0 | BE132: 0 | BG132: 0 | BH132: 0 | BI132: 0 | BJ132: 0 | BK132: 0 | BL132: 0 | BM132: 0 | BN132: 0 | BO132: 0 | BP132: 0 | BR132: 0 | BS132: 0 | BT132: 0 | BU132: 0 | BV132: 0 | BW132: 0 | BX132: 0 | BY132: 0 | BZ132: 0 | CA132: 0 | CC132: 0 | CD132: 0 | CE132: 0 | CF132: 0 | CG132: 0 | CH132: 0 | CI132: 0 | CJ132: 0 | CK132: 0 | CL132: 0
Q133: =SUM(G133:P133) -> 0 | X133: =SUM(R133:W133) -> 0 | Z133: 0 | AA133: 0 | AB133: 0 | AC133: 0 | AD133: 0 | AE133: 0 | AF133: 0 | AG133: 0 | AH133: 0 | AI133: 0 | AK133: 0 | AL133: 0 | AM133: 0 | AN133: 0 | AO133: 0 | AP133: 0 | AQ133: 0 | AR133: 0 | AS133: 0 | AT133: 0 | AV133: 0 | AW133: 0 | AX133: 0 | AY133: 0 | AZ133: 0 | BA133: 0 | BB133: 0 | BC133: 0 | BD133: 0 | BE133: 0 | BG133: 0 | BH133: 0 | BI133: 0 | BJ133: 0 | BK133: 0 | BL133: 0 | BM133: 0 | BN133: 0 | BO133: 0 | BP133: 0 | BR133: 0 | BS133: 0 | BT133: 0 | BU133: 0 | BV133: 0 | BW133: 0 | BX133: 0 | BY133: 0 | BZ133: 0 | CA133: 0 | CC133: 0 | CD133: 0 | CE133: 0 | CF133: 0 | CG133: 0 | CH133: 0 | CI133: 0 | CJ133: 0 | CK133: 0 | CL133: 0
B134: Total | G134: =SUM(G7:G133) -> 0 | H134: 0 | I134: 0 | J134: 0 | K134: 0 | L134: 0 | M134: 0 | N134: 0 | O134: 0 | P134: 0 | Q134: 0 | Z134: =SUM(Z7:Z133) -> 0 | AA134: 0 | AB134: 0 | AC134: 0 | AD134: 0 | AE134: 0 | AF134: 0 | AG134: 0 | AH134: 0 | AI134: 0 | AK134: =SUM(AK7:AK133) -> 0 | AL134: 0 | AM134: 0 | AN134: 0 | AO134: 0 | AP134: 0 | AQ134: 0 | AR134: 0 | AS134: 0 | AT134: 0 | AV134: =SUM(AV7:AV133) -> 0 | AW134: 0 | AX134: 0 | AY134: 0 | AZ134: 0 | BA134: 0 | BB134: 0 | BC134: 0 | BD134: 0 | BE134: 0 | BG134: =SUM(BG7:BG133) -> 0 | BH134: 0 | BI134: 0 | BJ134: 0 | BK134: 0 | BL134: 0 | BM134: 0 | BN134: 0 | BO134: 0 | BP134: 0 | BR134: =SUM(BR7:BR133) -> 0 | BS134: 0 | BT134: 0 | BU134: 0 | BV134: 0 | BW134: 0 | BX134: 0 | BY134: 0 | BZ134: 0 | CA134: 0 | CC134: =SUM(CC7:CC133) -> 0 | CD134: 0 | CE134: 0 | CF134: 0 | CG134: 0 | CH134: 0 | CI134: 0 | CJ134: 0 | CK134: 0 | CL134: 0
D380: Totals

Sheet 2022-2023
B1: Project Costs in 2022-2023
G4: Total Cost £K | R4: Funding source % | Z4: Licensee Compulsory Contribution/Direct Benefits | AK4: Electron | AV4: Afry | BG4: Delta-EE | BR4: Licensee Extra Contribution | CC4: Outstanding Funding Required
G5: Labour | H5: Equipment | I5: Contractors | J5: IT | K5: IPR Costs | L5: Travel & Expenses | M5: Payments to users | N5: Contingency | O5: Decommissioning | P5: Other | Q5: Total Cost | R5: Licensee Compulsory Contribution /Direct Benefits | S5: Electron | T5: Afry | U5: Delta-EE | V5: Licensee Extra Contribution | W5: Oustanding Funding Required | X5: Total | Z5: Labour | AA5: Equipment | AB5: Contractors | AC5: IT | AD5: IPR Costs | AE5: Travel & Expenses | AF5: Payments to users | AG5: Contingency | AH5: Decommissioning | AI5: Other | AK5: Labour | AL5: Equipment | AM5: Contractors | AN5: IT | AO5: IPR Costs | AP5: Travel & Expenses | AQ5: Payments to users | AR5: Contingency | AS5: Decommissioning | AT5: Other | AV5: Labour | AW5: Equipment | AX5: Contractors | AY5: IT | AZ5: IPR Costs | BA5: Travel & Expenses | BB5: Payments to users | BC5: Contingency | BD5: Decommissioning | BE5: Other | BG5: Labour | BH5: Equipment | BI5: Contractors | BJ5: IT | BK5: IPR Costs | BL5: Travel & Expenses | BM5: Payments to users | BN5: Contingency | BO5: Decommissioning | BP5: Other | BR5: Labour | BS5: Equipment | BT5: Contractors | BU5: IT | BV5: IPR Costs | BW5: Travel & Expenses | BX5: Payments to users | BY5: Contingency | BZ5: Decommissioning | CA5: Other | CC5: Labour | CD5: Equipment | CE5: Contractors | CF5: IT | CG5: IPR Costs | CH5: Travel & Expenses | CI5: Payments to users | CJ5: Contingency | CK5: Decommissioning | CL5: Other
B6: Description | C6: Task | D6: Project Workstream | E6: Unit Cost £ | F6: Description
B7: 1 - Electron - Delivery Cycle support - Project Management | C7: Project Management | D7: Project Management | E7: 1000 | F7: Project Management | G7: 0 | H7: 0 | I7: 18750 | J7: 0 | K7: 0 | L7: 0 | M7: 0 | N7: 0 | O7: 0 | P7: 0 | Q7: =SUM(G7:P7) -> 18750 | S7: 0.15 | T7: 0 | U7: 0 | V7: 0 | W7: 0.85 | X7: =SUM(R7:W7) -> 1 | Z7: =$R7*G7 -> 0 | AA7: =$R7*H7 -> 0 | AB7: =$R7*I7 -> 0 | AC7: =$R7*J7 -> 0 | AD7: =$R7*K7 -> 0 | AE7: =$R7*L7 -> 0 | AF7: =$R7*M7 -> 0 | AG7: =$R7*N7 -> 0 | AH7: =$R7*O7 -> 0 | AI7: =$R7*P7 -> 0 | AK7: =$S7*G7 -> 0 | AL7: =$S7*H7 -> 0 | AM7: =$S7*I7 -> 2812.5 | AN7: =$S7*J7 -> 0 | AO7: =$S7*K7 -> 0 | AP7: =$S7*L7 -> 0 | AQ7: =$S7*M7 -> 0 | AR7: =$S7*N7 -> 0 | AS7: =$S7*O7 -> 0 | AT7: =$S7*P7 -> 0 | AV7: =$T7*G7 -> 0 | AW7: =$T7*H7 -> 0 | AX7: =$T7*I7 -> 0 | AY7: =$T7*J7 -> 0 | AZ7: =$T7*K7 -> 0 | BA7: =$T7*L7 -> 0 | BB7: =$T7*M7 -> 0 | BC7: =$T7*N7 -> 0 | BD7: =$T7*O7 -> 0 | BE7: =$T7*P7 -> 0 | BG7: =$U7*G7 -> 0 | BH7: =$U7*H7 -> 0 | BI7: =$U7*I7 -> 0 | BJ7: =$U7*J7 -> 0 | BK7: =$U7*K7 -> 0 | BL7: =$U7*L7 -> 0 | BM7: =$U7*M7 -> 0 | BN7: =$U7*N7 -> 0 | BO7: =$U7*O7 -> 0 | BP7: =$U7*P7 -> 0 | BR7: =$V7*G7 -> 0 | BS7: =$V7*H7 -> 0 | BT7: =$V7*I7 -> 0 | BU7: =$V7*J7 -> 0 | BV7: =$V7*K7 -> 0 | BW7: =$V7*L7 -> 0 | BX7: =$V7*M7 -> 0 | BY7: =$V7*N7 -> 0 | BZ7: =$V7*O7 -> 0 | CA7: =$V7*P7 -> 0 | CC7: =$W7*G7 -> 0 | CD7: =$W7*H7 -> 0 | CE7: =$W7*I7 -> 15937.5 | CF7: =$W7*J7 -> 0 | CG7: =$W7*K7 -> 0 | CH7: =$W7*L7 -> 0 | CI7: =$W7*M7 -> 0 | CJ7: =$W7*N7 -> 0 | CK7: =$W7*O7 -> 0 | CL7: =$W7*P7 -> 0
B8: 1 - Afry - Partner activities | C8: Project Management | D8: Project Management | E8: 2304.832 | F8: Project Management | G8: 0 | H8: 0 | I8: 17223.6087 | J8: 0 | K8: 0 | L8: 0 | M8: 0 | N8: 0 | O8: 0 | P8: 0 | Q8: =SUM(G8:P8) -> 17223.6087 | S8: 0 | T8: 0.1 | U8: 0 | V8: 0 | W8: 0.9 | X8: 1 | Z8: 0 | AA8: 0 | AB8: 0 | AC8: 0 | AD8: 0 | AE8: 0 | AF8: 0 | AG8: 0 | AH8: 0 | AI8: 0 | AK8: 0 | AL8: 0 | AM8: 0 | AN8: 0 | AO8: 0 | AP8: 0 | AQ8: 0 | AR8: 0 | AS8: 0 | AT8: 0 | AV8: 0 | AW8: 0 | AX8: 1722.36087 | AY8: 0 | AZ8: 0 | BA8: 0 | BB8: 0 | BC8: 0 | BD8: 0 | BE8: 0 | BG8: 0 | BH8: 0 | BI8: 0 | BJ8: 0 | BK8: 0 | BL8: 0 | BM8: 0 | BN8: 0 | BO8: 0 | BP8: 0 | BR8: 0 | BS8: 0 | BT8: 0 | BU8: 0 | BV8: 0 | BW8: 0 | BX8: 0 | BY8: 0 | BZ8: 0 | CA8: 0 | CC8: 0 | CD8: 0 | CE8: 15501.24783 | CF8: 0 | CG8: 0 | CH8: 0 | CI8: 0 | CJ8: 0 | CK8: 0 | CL8: 0
B9: 1 - ENWL - Project Manager b4 SG | C9: Project Management | D9: Project Management | E9: 497.5057367 | F9: Project Management | G9: 104438.847 | H9: 0 | I9: 0 | J9: 0 | K9: 0 | L9: 0 | M9: 0 | N9: 0 | O9: 0 | P9: 0 | Q9: 104438.847 | R9: 1 | S9: 0 | T9: 0 | U9: 0 | V9: 0 | W9: 0 | X9: 1 | Z9: 104438.847 | AA9: 0 | AB9: 0 | AC9: 0 | AD9: 0 | AE9: 0 | AF9: 0 | AG9: 0 | AH9: 0 | AI9: 0 | AK9: 0 | AL9: 0 | AM9: 0 | AN9: 0 | AO9: 0 | AP9: 0 | AQ9: 0 | AR9: 0 | AS9: 0 | AT9: 0 | AV9: 0 | AW9: 0 | AX9: 0 | AY9: 0 | AZ9: 0 | BA9: 0 | BB9: 0 | BC9: 0 | BD9: 0 | BE9: 0 | BG9: 0 | BH9: 0 | BI9: 0 | BJ9: 0 | BK9: 0 | BL9: 0 | BM9: 0 | BN9: 0 | BO9: 0 | BP9: 0 | BR9: 0 | BS9: 0 | BT9: 0 | BU9: 0 | BV9: 0 | BW9: 0 | BX9: 0 | BY9: 0 | BZ9: 0 | CA9: 0 | CC9: 0 | CD9: 0 | CE9: 0 | CF9: 0 | CG9: 0 | CH9: 0 | CI9: 0 | CJ9: 0 | CK9: 0 | CL9: 0
B10: 1 - ENWL - Project Manager after SG | C10: Project Management | D10: Project Management | E10: 497.5057367 | F10: Project Management | G10: 0 | H10: 0 | I10: 0 | J10: 0 | K10: 0 | L10: 0 | M10: 0 | N10: 0 | O10: 0 | P10: 0 | Q10: 0 | S10: 0 | T10: 0 | U10: 0 | V10: 0 | W10: 1 | X10: 1 | Z10: 0 | AA10: 0 | AB10: 0 | AC10: 0 | AD10: 0 | AE10: 0 | AF10: 0 | AG10: 0 | AH10: 0 | AI10: 0 | AK10: 0 | AL10: 0 | AM10: 0 | AN10: 0 | AO10: 0 | AP10: 0 | AQ10: 0 | AR10: 0 | AS10: 0 | AT10: 0 | AV10: 0 | AW10: 0 | AX10: 0 | AY10: 0 | AZ10: 0 | BA10: 0 | BB10: 0 | BC10: 0 | BD10: 0 | BE10: 0 | BG10: 0 | BH10: 0 | BI10: 0 | BJ10: 0 | BK10: 0 | BL10: 0 | BM10: 0 | BN10: 0 | BO10: 0 | BP10: 0 | BR10: 0 | BS10: 0 | BT10: 0 | BU10: 0 | BV10: 0 | BW10: 0 | BX10: 0 | BY10: 0 | BZ10: 0 | CA10: 0 | CC10: 0 | CD10: 0 | CE10: 0 | CF10: 0 | CG10: 0 | CH10: 0 | CI10: 0 | CJ10: 0 | CK10: 0 | CL10: 0
B11: 1 - ENWL - Technical Lead b4 SG | C11: Project Management | D11: Project Management | E11: 497.5057367 | F11: Project Management | G11: 104438.847 | H11: 0 | I11: 0 | J11: 0 | K11: 0 | L11: 0 | M11: 0 | N11: 0 | O11: 0 | P11: 0 | Q11: 104438.847 | R11: 1 | S11: 0 | T11: 0 | U11: 0 | V11: 0 | W11: 0 | X11: 1 | Z11: 104438.847 | AA11: 0 | AB11: 0 | AC11: 0 | AD11: 0 | AE11: 0 | AF11: 0 | AG11: 0 | AH11: 0 | AI11: 0 | AK11: 0 | AL11: 0 | AM11: 0 | AN11: 0 | AO11: 0 | AP11: 0 | AQ11: 0 | AR11: 0 | AS11: 0 | AT11: 0 | AV11: 0 | AW11: 0 | AX11: 0 | AY11: 0 | AZ11: 0 | BA11: 0 | BB11: 0 | BC11: 0 | BD11: 0 | BE11: 0 | BG11: 0 | BH11: 0 | BI11: 0 | BJ11: 0 | BK11: 0 | BL11: 0 | BM11: 0 | BN11: 0 | BO11: 0 | BP11: 0 | BR11: 0 | BS11: 0 | BT11: 0 | BU11: 0 | BV11: 0 | BW11: 0 | BX11: 0 | BY11: 0 | BZ11: 0 | CA11: 0 | CC11: 0 | CD11: 0 | CE11: 0 | CF11: 0 | CG11: 0 | CH11: 0 | CI11: 0 | CJ11: 0 | CK11: 0 | CL11: 0
B12: 1 - ENWL - Technical Lead after SG | C12: Project Management | D12: Project Management | E12: 497.5057367 | F12: Project Management | G12: 0 | H12: 0 | I12: 0 | J12: 0 | K12: 0 | L12: 0 | M12: 0 | N12: 0 | O12: 0 | P12: 0 | Q12: 0 | S12: 0 | T12: 0 | U12: 0 | V12: 0 | W12: 1 | X12: 1 | Z12: 0 | AA12: 0 | AB12: 0 | AC12: 0 | AD12: 0 | AE12: 0 | AF12: 0 | AG12: 0 | AH12: 0 | AI12: 0 | AK12: 0 | AL12: 0 | AM12: 0 | AN12: 0 | AO12: 0 | AP12: 0 | AQ12: 0 | AR12: 0 | AS12: 0 | AT12: 0 | AV12: 0 | AW12: 0 | AX12: 0 | AY12: 0 | AZ12: 0 | BA12: 0 | BB12: 0 | BC12: 0 | BD12: 0 | BE12: 0 | BG12: 0 | BH12: 0 | BI12: 0 | BJ12: 0 | BK12: 0 | BL12: 0 | BM12: 0 | BN12: 0 | BO12: 0 | BP12: 0 | BR12: 0 | BS12: 0 | BT12: 0 | BU12: 0 | BV12: 0 | BW12: 0 | BX12: 0 | BY12: 0 | BZ12: 0 | CA12: 0 | CC12: 0 | CD12: 0 | CE12: 0 | CF12: 0 | CG12: 0 | CH12: 0 | CI12: 0 | CJ12: 0 | CK12: 0 | CL12: 0
B13: 1 -ENWL - Customer workstream lead b4 SG | C13: Project Management | D13: Project Management | E13: 366.89 | F13: Project Management | G13: 77019.35023 | H13: 0 | I13: 0 | J13: 0 | K13: 0 | L13: 0 | M13: 0 | N13: 0 | O13: 0 | P13: 0 | Q13: 77019.35023 | R13: 1 | S13: 0 | T13: 0 | U13: 0 | V13: 0 | W13: 0 | X13: 1 | Z13: 77019.35023 | AA13: 0 | AB13: 0 | AC13: 0 | AD13: 0 | AE13: 0 | AF13: 0 | AG13: 0 | AH13: 0 | AI13: 0 | AK13: 0 | AL13: 0 | AM13: 0 | AN13: 0 | AO13: 0 | AP13: 0 | AQ13: 0 | AR13: 0 | AS13: 0 | AT13: 0 | AV13: 0 | AW13: 0 | AX13: 0 | AY13: 0 | AZ13: 0 | BA13: 0 | BB13: 0 | BC13: 0 | BD13: 0 | BE13: 0 | BG13: 0 | BH13: 0 | BI13: 0 | BJ13: 0 | BK13: 0 | BL13: 0 | BM13: 0 | BN13: 0 | BO13: 0 | BP13: 0 | BR13: 0 | BS13: 0 | BT13: 0 | BU13: 0 | BV13: 0 | BW13: 0 | BX13: 0 | BY13: 0 | BZ13: 0 | CA13: 0 | CC13: 0 | CD13: 0 | CE13: 0 | CF13: 0 | CG13: 0 | CH13: 0 | CI13: 0 | CJ13: 0 | CK13: 0 | CL13: 0
B14: 1 -ENWL - Customer workstream lead after SG | C14: Project Management | D14: Project Management | E14: 366.89 | F14: Project Management | G14: 0 | H14: 0 | I14: 0 | J14: 0 | K14: 0 | L14: 0 | M14: 0 | N14: 0 | O14: 0 | P14: 0 | Q14: 0 | S14: 0 | T14: 0 | U14: 0 | V14: 0 | W14: 1 | X14: 1 | Z14: 0 | AA14: 0 | AB14: 0 | AC14: 0 | AD14: 0 | AE14: 0 | AF14: 0 | AG14: 0 | AH14: 0 | AI14: 0 | AK14: 0 | AL14: 0 | AM14: 0 | AN14: 0 | AO14: 0 | AP14: 0 | AQ14: 0 | AR14: 0 | AS14: 0 | AT14: 0 | AV14: 0 | AW14: 0 | AX14: 0 | AY14: 0 | AZ14: 0 | BA14: 0 | BB14: 0 | BC14: 0 | BD14: 0 | BE14: 0 | BG14: 0 | BH14: 0 | BI14: 0 | BJ14: 0 | BK14: 0 | BL14: 0 | BM14: 0 | BN14: 0 | BO14: 0 | BP14: 0 | BR14: 0 | BS14: 0 | BT14: 0 | BU14: 0 | BV14: 0 | BW14: 0 | BX14: 0 | BY14: 0 | BZ14: 0 | CA14: 0 | CC14: 0 | CD14: 0 | CE14: 0 | CF14: 0 | CG14: 0 | CH14: 0 | CI14: 0 | CJ14: 0 | CK14: 0 | CL14: 0
B15: 1 -ENWL - Project management office b4 SG | C15: Project Management | D15: Project Management | E15: 394.22 | F15: Project Management | G15: 22333.11491 | H15: 0 | I15: 0 | J15: 0 | K15: 0 | L15: 0 | M15: 0 | N15: 0 | O15: 0 | P15: 0 | Q15: 22333.11491 | R15: 1 | S15: 0 | T15: 0 | U15: 0 | V15: 0 | W15: 0 | X15: 1 | Z15: 22333.11491 | AA15: 0 | AB15: 0 | AC15: 0 | AD15: 0 | AE15: 0 | AF15: 0 | AG15: 0 | AH15: 0 | AI15: 0 | AK15: 0 | AL15: 0 | AM15: 0 | AN15: 0 | AO15: 0 | AP15: 0 | AQ15: 0 | AR15: 0 | AS15: 0 | AT15: 0 | AV15: 0 | AW15: 0 | AX15: 0 | AY15: 0 | AZ15: 0 | BA15: 0 | BB15: 0 | BC15: 0 | BD15: 0 | BE15: 0 | BG15: 0 | BH15: 0 | BI15: 0 | BJ15: 0 | BK15: 0 | BL15: 0 | BM15: 0 | BN15: 0 | BO15: 0 | BP15: 0 | BR15: 0 | BS15: 0 | BT15: 0 | BU15: 0 | BV15: 0 | BW15: 0 | BX15: 0 | BY15: 0 | BZ15: 0 | CA15: 0 | CC15: 0 | CD15: 0 | CE15: 0 | CF15: 0 | CG15: 0 | CH15: 0 | CI15: 0 | CJ15: 0 | CK15: 0 | CL15: 0
B16: 1 -ENWL - Project management office after SG | C16: Project Management | D16: Project Management | E16: 394.22 | F16: Project Management | G16: 0 | H16: 0 | I16: 0 | J16: 0 | K16: 0 | L16: 0 | M16: 0 | N16: 0 | O16: 0 | P16: 0 | Q16: 0 | S16: 0 | T16: 0 | U16: 0 | V16: 0 | W16: 1 | X16: 1 | Z16: 0 | AA16: 0 | AB16: 0 | AC16: 0 | AD16: 0 | AE16: 0 | AF16: 0 | AG16: 0 | AH16: 0 | AI16: 0 | AK16: 0 | AL16: 0 | AM16: 0 | AN16: 0 | AO16: 0 | AP16: 0 | AQ16: 0 | AR16: 0 | AS16: 0 | AT16: 0 | AV16: 0 | AW16: 0 | AX16: 0 | AY16: 0 | AZ16: 0 | BA16: 0 | BB16: 0 | BC16: 0 | BD16: 0 | BE16: 0 | BG16: 0 | BH16: 0 | BI16: 0 | BJ16: 0 | BK16: 0 | BL16: 0 | BM16: 0 | BN16: 0 | BO16: 0 | BP16: 0 | BR16: 0 | BS16: 0 | BT16: 0 | BU16: 0 | BV16: 0 | BW16: 0 | BX16: 0 | BY16: 0 | BZ16: 0 | CA16: 0 | CC16: 0 | CD16: 0 | CE16: 0 | CF16: 0 | CG16: 0 | CH16: 0 | CI16: 0 | CJ16: 0 | CK16: 0 | CL16: 0
B17: 1 -ENWL - Finance support b4 SG | C17: Project Management | D17: Project Management | E17: 394.22 | F17: Project Management | G17: 4466.622982 | H17: 0 | I17: 0 | J17: 0 | K17: 0 | L17: 0 | M17: 0 | N17: 0 | O17: 0 | P17: 0 | Q17: 4466.622982 | R17: 1 | S17: 0 | T17: 0 | U17: 0 | V17: 0 | W17: 0 | X17: 1 | Z17: 4466.622982 | AA17: 0 | AB17: 0 | AC17: 0 | AD17: 0 | AE17: 0 | AF17: 0 | AG17: 0 | AH17: 0 | AI17: 0 | AK17: 0 | AL17: 0 | AM17: 0 | AN17: 0 | AO17: 0 | AP17: 0 | AQ17: 0 | AR17: 0 | AS17: 0 | AT17: 0 | AV17: 0 | AW17: 0 | AX17: 0 | AY17: 0 | AZ17: 0 | BA17: 0 | BB17: 0 | BC17: 0 | BD17: 0 | BE17: 0 | BG17: 0 | BH17: 0 | BI17: 0 | BJ17: 0 | BK17: 0 | BL17: 0 | BM17: 0 | BN17: 0 | BO17: 0 | BP17: 0 | BR17: 0 | BS17: 0 | BT17: 0 | BU17: 0 | BV17: 0 | BW17: 0 | BX17: 0 | BY17: 0 | BZ17: 0 | CA17: 0 | CC17: 0 | CD17: 0 | CE17: 0 | CF17: 0 | CG17: 0 | CH17: 0 | CI17: 0 | CJ17: 0 | CK17: 0 | CL17: 0
B18: 1 -ENWL - Finance support after SG | C18: Project Management | D18: Project Management | E18: 394.22 | F18: Project Management | G18: 0 | H18: 0 | I18: 0 | J18: 0 | K18: 0 | L18: 0 | M18: 0 | N18: 0 | O18: 0 | P18: 0 | Q18: 0 | S18: 0 | T18: 0 | U18: 0 | V18: 0 | W18: 1 | X18: 1 | Z18: 0 | AA18: 0 | AB18: 0 | AC18: 0 | AD18: 0 | AE18: 0 | AF18: 0 | AG18: 0 | AH18: 0 | AI18: 0 | AK18: 0 | AL18: 0 | AM18: 0 | AN18: 0 | AO18: 0 | AP18: 0 | AQ18: 0 | AR18: 0 | AS18: 0 | AT18: 0 | AV18: 0 | AW18: 0 | AX18: 0 | AY18: 0 | AZ18: 0 | BA18: 0 | BB18: 0 | BC18: 0 | BD18: 0 | BE18: 0 | BG18: 0 | BH18: 0 | BI18: 0 | BJ18: 0 | BK18: 0 | BL18: 0 | BM18: 0 | BN18: 0 | BO18: 0 | BP18: 0 | BR18: 0 | BS18: 0 | BT18: 0 | BU18: 0 | BV18: 0 | BW18: 0 | BX18: 0 | BY18: 0 | BZ18: 0 | CA18: 0 | CC18: 0 | CD18: 0 | CE18: 0 | CF18: 0 | CG18: 0 | CH18: 0 | CI18: 0 | CJ18: 0 | CK18: 0 | CL18: 0
B19: 1 -ENWL - Senior Leadership Team b4 SG | C19: Project Management | D19: Project Management | E19: 661.2535191 | F19: Project Management | G19: 29968.75009 | H19: 0 | I19: 0 | J19: 0 | K19: 0 | L19: 0 | M19: 0 | N19: 0 | O19: 0 | P19: 0 | Q19: 29968.75009 | R19: 1 | S19: 0 | T19: 0 | U19: 0 | V19: 0 | W19: 0 | X19: 1 | Z19: 29968.75009 | AA19: 0 | AB19: 0 | AC19: 0 | AD19: 0 | AE19: 0 | AF19: 0 | AG19: 0 | AH19: 0 | AI19: 0 | AK19: 0 | AL19: 0 | AM19: 0 | AN19: 0 | AO19: 0 | AP19: 0 | AQ19: 0 | AR19: 0 | AS19: 0 | AT19: 0 | AV19: 0 | AW19: 0 | AX19: 0 | AY19: 0 | AZ19: 0 | BA19: 0 | BB19: 0 | BC19: 0 | BD19: 0 | BE19: 0 | BG19: 0 | BH19: 0 | BI19: 0 | BJ19: 0 | BK19: 0 | BL19: 0 | BM19: 0 | BN19: 0 | BO19: 0 | BP19: 0 | BR19: 0 | BS19: 0 | BT19: 0 | BU19: 0 | BV19: 0 | BW19: 0 | BX19: 0 | BY19: 0 | BZ19: 0 | CA19: 0 | CC19: 0 | CD19: 0 | CE19: 0 | CF19: 0 | CG19: 0 | CH19: 0 | CI19: 0 | CJ19: 0 | CK19: 0 | CL19: 0
B20: 1 -ENWL - Senior Leadership Team after SG | C20: Project Management | D20: Project Management | E20: 661.2535191 | F20: Project Management | G20: 0 | H20: 0 | I20: 0 | J20: 0 | K20: 0 | L20: 0 | M20: 0 | N20: 0 | O20: 0 | P20: 0 | Q20: 0 | S20: 0 | T20: 0 | U20: 0 | V20: 0 | W20: 1 | X20: 1 | Z20: 0 | AA20: 0 | AB20: 0 | AC20: 0 | AD20: 0 | AE20: 0 | AF20: 0 | AG20: 0 | AH20: 0 | AI20: 0 | AK20: 0 | AL20: 0 | AM20: 0 | AN20: 0 | AO20: 0 | AP20: 0 | AQ20: 0 | AR20: 0 | AS20: 0 | AT20: 0 | AV20: 0 | AW20: 0 | AX20: 0 | AY20: 0 | AZ20: 0 | BA20: 0 | BB20: 0 | BC20: 0 | BD20: 0 | BE20: 0 | BG20: 0 | BH20: 0 | BI20: 0 | BJ20: 0 | BK20: 0 | BL20: 0 | BM20: 0 | BN20: 0 | BO20: 0 | BP20: 0 | BR20: 0 | BS20: 0 | BT20: 0 | BU20: 0 | BV20: 0 | BW20: 0 | BX20: 0 | BY20: 0 | BZ20: 0 | CA20: 0 | CC20: 0 | CD20: 0 | CE20: 0 | CF20: 0 | CG20: 0 | CH20: 0 | CI20: 0 | CJ20: 0 | CK20: 0 | CL20: 0
B21: 1 -ENWL - Project Director b4 SG | C21: Project Management | D21: Project Management | E21: 991.89 | F21: Project Management | G21: 11238.39143 | H21: 0 | I21: 0 | J21: 0 | K21: 0 | L21: 0 | M21: 0 | N21: 0 | O21: 0 | P21: 0 | Q21: 11238.39143 | R21: 1 | S21: 0 | T21: 0 | U21: 0 | V21: 0 | W21: 0 | X21: 1 | Z21: 11238.39143 | AA21: 0 | AB21: 0 | AC21: 0 | AD21: 0 | AE21: 0 | AF21: 0 | AG21: 0 | AH21: 0 | AI21: 0 | AK21: 0 | AL21: 0 | AM21: 0 | AN21: 0 | AO21: 0 | AP21: 0 | AQ21: 0 | AR21: 0 | AS21: 0 | AT21: 0 | AV21: 0 | AW21: 0 | AX21: 0 | AY21: 0 | AZ21: 0 | BA21: 0 | BB21: 0 | BC21: 0 | BD21: 0 | BE21: 0 | BG21: 0 | BH21: 0 | BI21: 0 | BJ21: 0 | BK21: 0 | BL21: 0 | BM21: 0 | BN21: 0 | BO21: 0 | BP21: 0 | BR21: 0 | BS21: 0 | BT21: 0 | BU21: 0 | BV21: 0 | BW21: 0 | BX21: 0 | BY21: 0 | BZ21: 0 | CA21: 0 | CC21: 0 | CD21: 0 | CE21: 0 | CF21: 0 | CG21: 0 | CH21: 0 | CI21: 0 | CJ21: 0 | CK21: 0 | CL21: 0
B22: 1 -ENWL - Project Director after SG | C22: Project Management | D22: Project Management | E22: 991.89 | F22: Project Management | G22: 0 | H22: 0 | I22: 0 | J22: 0 | K22: 0 | L22: 0 | M22: 0 | N22: 0 | O22: 0 | P22: 0 | Q22: 0 | S22: 0 | T22: 0 | U22: 0 | V22: 0 | W22: 1 | X22: 1 | Z22: 0 | AA22: 0 | AB22: 0 | AC22: 0 | AD22: 0 | AE22: 0 | AF22: 0 | AG22: 0 | AH22: 0 | AI22: 0 | AK22: 0 | AL22: 0 | AM22: 0 | AN22: 0 | AO22: 0 | AP22: 0 | AQ22: 0 | AR22: 0 | AS22: 0 | AT22: 0 | AV22: 0 | AW22: 0 | AX22: 0 | AY22: 0 | AZ22: 0 | BA22: 0 | BB22: 0 | BC22: 0 | BD22: 0 | BE22: 0 | BG22: 0 | BH22: 0 | BI22: 0 | BJ22: 0 | BK22: 0 | BL22: 0 | BM22: 0 | BN22: 0 | BO22: 0 | BP22: 0 | BR22: 0 | BS22: 0 | BT22: 0 | BU22: 0 | BV22: 0 | BW22: 0 | BX22: 0 | BY22: 0 | BZ22: 0 | CA22: 0 | CC22: 0 | CD22: 0 | CE22: 0 | CF22: 0 | CG22: 0 | CH22: 0 | CI22: 0 | CJ22: 0 | CK22: 0 | CL22: 0
B23: 1 -ENWL - Legal Support | C23: Project Management | D23: Project Management | E23: 405.41 | F23: Project Management | G23: 7655.681358 | H23: 0 | I23: 0 | J23: 0 | K23: 0 | L23: 0 | M23: 0 | N23: 0 | O23: 0 | P23: 0 | Q23: 7655.681358 | R23: 1 | S23: 0 | T23: 0 | U23: 0 | V23: 0 | W23: 0 | X23: 1 | Z23: 7655.681358 | AA23: 0 | AB23: 0 | AC23: 0 | AD23: 0 | AE23: 0 | AF23: 0 | AG23: 0 | AH23: 0 | AI23: 0 | AK23: 0 | AL23: 0 | AM23: 0 | AN23: 0 | AO23: 0 | AP23: 0 | AQ23: 0 | AR23: 0 | AS23: 0 | AT23: 0 | AV23: 0 | AW23: 0 | AX23: 0 | AY23: 0 | AZ23: 0 | BA23: 0 | BB23: 0 | BC23: 0 | BD23: 0 | BE23: 0 | BG23: 0 | BH23: 0 | BI23: 0 | BJ23: 0 | BK23: 0 | BL23: 0 | BM23: 0 | BN23: 0 | BO23: 0 | BP23: 0 | BR23: 0 | BS23: 0 | BT23: 0 | BU23: 0 | BV23: 0 | BW23: 0 | BX23: 0 | BY23: 0 | BZ23: 0 | CA23: 0 | CC23: 0 | CD23: 0 | CE23: 0 | CF23: 0 | CG23: 0 | CH23: 0 | CI23: 0 | CJ23: 0 | CK23: 0 | CL23: 0
B24: 1 -ENWL - Procurement support | C24: Project Management | D24: Project Management | E24: 362.82 | F24: Project Management | G24: 0 | H24: 0 | I24: 0 | J24: 0 | K24: 0 | L24: 0 | M24: 0 | N24: 0 | O24: 0 | P24: 0 | Q24: 0 | S24: 0 | T24: 0 | U24: 0 | V24: 0 | W24: 1 | X24: 1 | Z24: 0 | AA24: 0 | AB24: 0 | AC24: 0 | AD24: 0 | AE24: 0 | AF24: 0 | AG24: 0 | AH24: 0 | AI24: 0 | AK24: 0 | AL24: 0 | AM24: 0 | AN24: 0 | AO24: 0 | AP24: 0 | AQ24: 0 | AR24: 0 | AS24: 0 | AT24: 0 | AV24: 0 | AW24: 0 | AX24: 0 | AY24: 0 | AZ24: 0 | BA24: 0 | BB24: 0 | BC24: 0 | BD24: 0 | BE24: 0 | BG24: 0 | BH24: 0 | BI24: 0 | BJ24: 0 | BK24: 0 | BL24: 0 | BM24: 0 | BN24: 0 | BO24: 0 | BP24: 0 | BR24: 0 | BS24: 0 | BT24: 0 | BU24: 0 | BV24: 0 | BW24: 0 | BX24: 0 | BY24: 0 | BZ24: 0 | CA24: 0 | CC24: 0 | CD24: 0 | CE24: 0 | CF24: 0 | CG24: 0 | CH24: 0 | CI24: 0 | CJ24: 0 | CK24: 0 | CL24: 0
B25: 1 - ENWL - Legal Support for Bilateral Trading Contracts | C25: Project Management | D25: Project Management | E25: 100000 | F25: Project Management | G25: 0 | H25: 0 | I25: 24684.70588 | J25: 0 | K25: 0 | L25: 0 | M25: 0 | N25: 0 | O25: 0 | P25: 0 | Q25: 24684.70588 | S25: 0 | T25: 0 | U25: 0 | V25: 0 | W25: 1 | X25: 1 | Z25: 0 | AA25: 0 | AB25: 0 | AC25: 0 | AD25: 0 | AE25: 0 | AF25: 0 | AG25: 0 | AH25: 0 | AI25: 0 | AK25: 0 | AL25: 0 | AM25: 0 | AN25: 0 | AO25: 0 | AP25: 0 | AQ25: 0 | AR25: 0 | AS25: 0 | AT25: 0 | AV25: 0 | AW25: 0 | AX25: 0 | AY25: 0 | AZ25: 0 | BA25: 0 | BB25: 0 | BC25: 0 | BD25: 0 | BE25: 0 | BG25: 0 | BH25: 0 | BI25: 0 | BJ25: 0 | BK25: 0 | BL25: 0 | BM25: 0 | BN25: 0 | BO25: 0 | BP25: 0 | BR25: 0 | BS25: 0 | BT25: 0 | BU25: 0 | BV25: 0 | BW25: 0 | BX25: 0 | BY25: 0 | BZ25: 0 | CA25: 0 | CC25: 0 | CD25: 0 | CE25: 24684.70588 | CF25: 0 | CG25: 0 | CH25: 0 | CI25: 0 | CJ25: 0 | CK25: 0 | CL25: 0
B26: 1 - ENWL - ENWL Real Time Systems Lead b4 SG | C26: Project Management | D26: Project Management | E26: 500 | F26: Project Management | G26: 0 | H26: 0 | I26: 0 | J26: 5665.14 | K26: 0 | L26: 0 | M26: 0 | N26: 0 | O26: 0 | P26: 0 | Q26: 5665.14 | S26: 0 | T26: 0 | U26: 0 | V26: 0 | W26: 1 | X26: 1 | Z26: 0 | AA26: 0 | AB26: 0 | AC26: 0 | AD26: 0 | AE26: 0 | AF26: 0 | AG26: 0 | AH26: 0 | AI26: 0 | AK26: 0 | AL26: 0 | AM26: 0 | AN26: 0 | AO26: 0 | AP26: 0 | AQ26: 0 | AR26: 0 | AS26: 0 | AT26: 0 | AV26: 0 | AW26: 0 | AX26: 0 | AY26: 0 | AZ26: 0 | BA26: 0 | BB26: 0 | BC26: 0 | BD26: 0 | BE26: 0 | BG26: 0 | BH26: 0 | BI26: 0 | BJ26: 0 | BK26: 0 | BL26: 0 | BM26: 0 | BN26: 0 | BO26: 0 | BP26: 0 | BR26: 0 | BS26: 0 | BT26: 0 | BU26: 0 | BV26: 0 | BW26: 0 | BX26: 0 | BY26: 0 | BZ26: 0 | CA26: 0 | CC26: 0 | CD26: 0 | CE26: 0 | CF26: 5665.14 | CG26: 0 | CH26: 0 | CI26: 0 | CJ26: 0 | CK26: 0 | CL26: 0
B27: 1 - ENWL - ENWL Real Time Systems Lead after SG | C27: Project Management | D27: Project Management | E27: 500 | F27: Project Management | G27: 0 | H27: 0 | I27: 0 | J27: 0 | K27: 0 | L27: 0 | M27: 0 | N27: 0 | O27: 0 | P27: 0 | Q27: 0 | S27: 0 | T27: 0 | U27: 0 | V27: 0 | W27: 1 | X27: 1 | Z27: 0 | AA27: 0 | AB27: 0 | AC27: 0 | AD27: 0 | AE27: 0 | AF27: 0 | AG27: 0 | AH27: 0 | AI27: 0 | AK27: 0 | AL27: 0 | AM27: 0 | AN27: 0 | AO27: 0 | AP27: 0 | AQ27: 0 | AR27: 0 | AS27: 0 | AT27: 0 | AV27: 0 | AW27: 0 | AX27: 0 | AY27: 0 | AZ27: 0 | BA27: 0 | BB27: 0 | BC27: 0 | BD27: 0 | BE27: 0 | BG27: 0 | BH27: 0 | BI27: 0 | BJ27: 0 | BK27: 0 | BL27: 0 | BM27: 0 | BN27: 0 | BO27: 0 | BP27: 0 | BR27: 0 | BS27: 0 | BT27: 0 | BU27: 0 | BV27: 0 | BW27: 0 | BX27: 0 | BY27: 0 | BZ27: 0 | CA27: 0 | CC27: 0 | CD27: 0 | CE27: 0 | CF27: 0 | CG27: 0 | CH27: 0 | CI27: 0 | CJ27: 0 | CK27: 0 | CL27: 0
B28: 1 - ENWL - ENWL Data & Integration Lead b4 SG | C28: Project Management | D28: Project Management | E28: 500 | F28: Project Management | G28: 0 | H28: 0 | I28: 0 | J28: 5665.14 | K28: 0 | L28: 0 | M28: 0 | N28: 0 | O28: 0 | P28: 0 | Q28: 5665.14 | S28: 0 | T28: 0 | U28: 0 | V28: 0 | W28: 1 | X28: 1 | Z28: 0 | AA28: 0 | AB28: 0 | AC28: 0 | AD28: 0 | AE28: 0 | AF28: 0 | AG28: 0 | AH28: 0 | AI28: 0 | AK28: 0 | AL28: 0 | AM28: 0 | AN28: 0 | AO28: 0 | AP28: 0 | AQ28: 0 | AR28: 0 | AS28: 0 | AT28: 0 | AV28: 0 | AW28: 0 | AX28: 0 | AY28: 0 | AZ28: 0 | BA28: 0 | BB28: 0 | BC28: 0 | BD28: 0 | BE28: 0 | BG28: 0 | BH28: 0 | BI28: 0 | BJ28: 0 | BK28: 0 | BL28: 0 | BM28: 0 | BN28: 0 | BO28: 0 | BP28: 0 | BR28: 0 | BS28: 0 | BT28: 0 | BU28: 0 | BV28: 0 | BW28: 0 | BX28: 0 | BY28: 0 | BZ28: 0 | CA28: 0 | CC28: 0 | CD28: 0 | CE28: 0 | CF28: 5665.14 | CG28: 0 | CH28: 0 | CI28: 0 | CJ28: 0 | CK28: 0 | CL28: 0
B29: 1 - ENWL - ENWL Data & Integration Lead after SG | C29: Project Management | D29: Project Management | E29: 500 | F29: Project Management | G29: 0 | H29: 0 | I29: 0 | J29: 0 | K29: 0 | L29: 0 | M29: 0 | N29: 0 | O29: 0 | P29: 0 | Q29: 0 | S29: 0 | T29: 0 | U29: 0 | V29: 0 | W29: 1 | X29: 1 | Z29: 0 | AA29: 0 | AB29: 0 | AC29: 0 | AD29: 0 | AE29: 0 | AF29: 0 | AG29: 0 | AH29: 0 | AI29: 0 | AK29: 0 | AL29: 0 | AM29: 0 | AN29: 0 | AO29: 0 | AP29: 0 | AQ29: 0 | AR29: 0 | AS29: 0 | AT29: 0 | AV29: 0 | AW29: 0 | AX29: 0 | AY29: 0 | AZ29: 0 | BA29: 0 | BB29: 0 | BC29: 0 | BD29: 0 | BE29: 0 | BG29: 0 | BH29: 0 | BI29: 0 | BJ29: 0 | BK29: 0 | BL29: 0 | BM29: 0 | BN29: 0 | BO29: 0 | BP29: 0 | BR29: 0 | BS29: 0 | BT29: 0 | BU29: 0 | BV29: 0 | BW29: 0 | BX29: 0 | BY29: 0 | BZ29: 0 | CA29: 0 | CC29: 0 | CD29: 0 | CE29: 0 | CF29: 0 | CG29: 0 | CH29: 0 | CI29: 0 | CJ29: 0 | CK29: 0 | CL29: 0
B30: 1 - ENWL - IT Project Manager b4 SG | C30: Project Management | D30: Project Management | E30: 500 | F30: Project Management | G30: 0 | H30: 0 | I30: 0 | J30: 5665.14 | K30: 0 | L30: 0 | M30: 0 | N30: 0 | O30: 0 | P30: 0 | Q30: 5665.14 | S30: 0 | T30: 0 | U30: 0 | V30: 0 | W30: 1 | X30: 1 | Z30: 0 | AA30: 0 | AB30: 0 | AC30: 0 | AD30: 0 | AE30: 0 | AF30: 0 | AG30: 0 | AH30: 0 | AI30: 0 | AK30: 0 | AL30: 0 | AM30: 0 | AN30: 0 | AO30: 0 | AP30: 0 | AQ30: 0 | AR30: 0 | AS30: 0 | AT30: 0 | AV30: 0 | AW30: 0 | AX30: 0 | AY30: 0 | AZ30: 0 | BA30: 0 | BB30: 0 | BC30: 0 | BD30: 0 | BE30: 0 | BG30: 0 | BH30: 0 | BI30: 0 | BJ30: 0 | BK30: 0 | BL30: 0 | BM30: 0 | BN30: 0 | BO30: 0 | BP30: 0 | BR30: 0 | BS30: 0 | BT30: 0 | BU30: 0 | BV30: 0 | BW30: 0 | BX30: 0 | BY30: 0 | BZ30: 0 | CA30: 0 | CC30: 0 | CD30: 0 | CE30: 0 | CF30: 5665.14 | CG30: 0 | CH30: 0 | CI30: 0 | CJ30: 0 | CK30: 0 | CL30: 0
B31: 1 - ENWL - IT Project Manager after SG | C31: Project Management | D31: Project Management | E31: 500 | F31: Project Management | G31: 0 | H31: 0 | I31: 0 | J31: 0 | K31: 0 | L31: 0 | M31: 0 | N31: 0 | O31: 0 | P31: 0 | Q31: 0 | S31: 0 | T31: 0 | U31: 0 | V31: 0 | W31: 1 | X31: 1 | Z31: 0 | AA31: 0 | AB31: 0 | AC31: 0 | AD31: 0 | AE31: 0 | AF31: 0 | AG31: 0 | AH31: 0 | AI31: 0 | AK31: 0 | AL31: 0 | AM31: 0 | AN31: 0 | AO31: 0 | AP31: 0 | AQ31: 0 | AR31: 0 | AS31: 0 | AT31: 0 | AV31: 0 | AW31: 0 | AX31: 0 | AY31: 0 | AZ31: 0 | BA31: 0 | BB31: 0 | BC31: 0 | BD31: 0 | BE31: 0 | BG31: 0 | BH31: 0 | BI31: 0 | BJ31: 0 | BK31: 0 | BL31: 0 | BM31: 0 | BN31: 0 | BO31: 0 | BP31: 0 | BR31: 0 | BS31: 0 | BT31: 0 | BU31: 0 | BV31: 0 | BW31: 0 | BX31: 0 | BY31: 0 | BZ31: 0 | CA31: 0 | CC31: 0 | CD31: 0 | CE31: 0 | CF31: 0 | CG31: 0 | CH31: 0 | CI31: 0 | CJ31: 0 | CK31: 0 | CL31: 0
B32: 1 - Accommodation | C32: Accommodation | D32: Project Management | E32: 100000 | F32: Accommodation | G32: 0 | H32: 0 | I32: 0 | J32: 0 | K32: 0 | L32: 0 | M32: 0 | N32: 0 | O32: 0 | P32: 24684.70588 | Q32: 24684.70588 | S32: 0 | T32: 0 | U32: 0 | V32: 0 | W32: 1 | X32: 1 | Z32: 0 | AA32: 0 | AB32: 0 | AC32: 0 | AD32: 0 | AE32: 0 | AF32: 0 | AG32: 0 | AH32: 0 | AI32: 0 | AK32: 0 | AL32: 0 | AM32: 0 | AN32: 0 | AO32: 0 | AP32: 0 | AQ32: 0 | AR32: 0 | AS32: 0 | AT32: 0 | AV32: 0 | AW32: 0 | AX32: 0 | AY32: 0 | AZ32: 0 | BA32: 0 | BB32: 0 | BC32: 0 | BD32: 0 | BE32: 0 | BG32: 0 | BH32: 0 | BI32: 0 | BJ32: 0 | BK32: 0 | BL32: 0 | BM32: 0 | BN32: 0 | BO32: 0 | BP32: 0 | BR32: 0 | BS32: 0 | BT32: 0 | BU32: 0 | BV32: 0 | BW32: 0 | BX32: 0 | BY32: 0 | BZ32: 0 | CA32: 0 | CC32: 0 | CD32: 0 | CE32: 0 | CF32: 0 | CG32: 0 | CH32: 0 | CI32: 0 | CJ32: 0 | CK32: 0 | CL32: 24684.70588
B33: 1 - Delta-EE - Project Management b4 SG | C33: Project Management | D33: Project Management | E33: 1224 | F33: Project Management | G33: 0 | H33: 0 | I33: 5979.078947 | J33: 0 | K33: 0 | L33: 0 | M33: 0 | N33: 0 | O33: 0 | P33: 0 | Q33: 5979.078947 | S33: 0 | T33: 0 | U33: 0.09803921569 | V33: 0 | W33: 0.9019607843 | X33: 1 | Z33: 0 | AA33: 0 | AB33: 0 | AC33: 0 | AD33: 0 | AE33: 0 | AF33: 0 | AG33: 0 | AH33: 0 | AI33: 0 | AK33: 0 | AL33: 0 | AM33: 0 | AN33: 0 | AO33: 0 | AP33: 0 | AQ33: 0 | AR33: 0 | AS33: 0 | AT33: 0 | AV33: 0 | AW33: 0 | AX33: 0 | AY33: 0 | AZ33: 0 | BA33: 0 | BB33: 0 | BC33: 0 | BD33: 0 | BE33: 0 | BG33: 0 | BH33: 0 | BI33: 586.1842105 | BJ33: 0 | BK33: 0 | BL33: 0 | BM33: 0 | BN33: 0 | BO33: 0 | BP33: 0 | BR33: 0 | BS33: 0 | BT33: 0 | BU33: 0 | BV33: 0 | BW33: 0 | BX33: 0 | BY33: 0 | BZ33: 0 | CA33: 0 | CC33: 0 | CD33: 0 | CE33: 5392.894737 | CF33: 0 | CG33: 0 | CH33: 0 | CI33: 0 | CJ33: 0 | CK33: 0 | CL33: 0
B34: 1 - Delta-EE - Project Management after SG | C34: Project Management | D34: Project Management | E34: 1224 | F34: Project Management | G34: 0 | H34: 0 | I34: 0 | J34: 0 | K34: 0 | L34: 0 | M34: 0 | N34: 0 | O34: 0 | P34: 0 | Q34: 0 | S34: 0 | T34: 0 | U34: 0.09803921569 | V34: 0 | W34: 0.9019607843 | X34: 1 | Z34: 0 | AA34: 0 | AB34: 0 | AC34: 0 | AD34: 0 | AE34: 0 | AF34: 0 | AG34: 0 | AH34: 0 | AI34: 0 | AK34: 0 | AL34: 0 | AM34: 0 | AN34: 0 | AO34: 0 | AP34: 0 | AQ34: 0 | AR34: 0 | AS34: 0 | AT34: 0 | AV34: 0 | AW34: 0 | AX34: 0 | AY34: 0 | AZ34: 0 | BA34: 0 | BB34: 0 | BC34: 0 | BD34: 0 | BE34: 0 | BG34: 0 | BH34: 0 | BI34: 0 | BJ34: 0 | BK34: 0 | BL34: 0 | BM34: 0 | BN34: 0 | BO34: 0 | BP34: 0 | BR34: 0 | BS34: 0 | BT34: 0 | BU34: 0 | BV34: 0 | BW34: 0 | BX34: 0 | BY34: 0 | BZ34: 0 | CA34: 0 | CC34: 0 | CD34: 0 | CE34: 0 | CF34: 0 | CG34: 0 | CH34: 0 | CI34: 0 | CJ34: 0 | CK34: 0 | CL34: 0
B35: 1 - Electron - Delivery Cycle support - Project Management after SG | C35: Project Management | D35: Project Management | E35: 1000 | F35: Project Management | G35: 0 | H35: 0 | I35: 10153.84615 | J35: 0 | K35: 0 | L35: 0 | M35: 0 | N35: 0 | O35: 0 | P35: 0 | Q35: 10153.84615 | S35: 0.15 | T35: 0 | U35: 0 | V35: 0 | W35: 0.85 | X35: 1 | Z35: 0 | AA35: 0 | AB35: 0 | AC35: 0 | AD35: 0 | AE35: 0 | AF35: 0 | AG35: 0 | AH35: 0 | AI35: 0 | AK35: 0 | AL35: 0 | AM35: 1523.076923 | AN35: 0 | AO35: 0 | AP35: 0 | AQ35: 0 | AR35: 0 | AS35: 0 | AT35: 0 | AV35: 0 | AW35: 0 | AX35: 0 | AY35: 0 | AZ35: 0 | BA35: 0 | BB35: 0 | BC35: 0 | BD35: 0 | BE35: 0 | BG35: 0 | BH35: 0 | BI35: 0 | BJ35: 0 | BK35: 0 | BL35: 0 | BM35: 0 | BN35: 0 | BO35: 0 | BP35: 0 | BR35: 0 | BS35: 0 | BT35: 0 | BU35: 0 | BV35: 0 | BW35: 0 | BX35: 0 | BY35: 0 | BZ35: 0 | CA35: 0 | CC35: 0 | CD35: 0 | CE35: 8630.769231 | CF35: 0 | CG35: 0 | CH35: 0 | CI35: 0 | CJ35: 0 | CK35: 0 | CL35: 0
B36: 1 - Electron - Trial / simulation - Project Management after SG | C36: Project Management | D36: Project Management | E36: 1000 | F36: Project Management | G36: 0 | H36: 0 | I36: 0 | J36: 0 | K36: 0 | L36: 0 | M36: 0 | N36: 0 | O36: 0 | P36: 0 | Q36: 0 | S36: 0.15 | T36: 0 | U36: 0 | V36: 0 | W36: 0.85 | X36: 1 | Z36: 0 | AA36: 0 | AB36: 0 | AC36: 0 | AD36: 0 | AE36: 0 | AF36: 0 | AG36: 0 | AH36: 0 | AI36: 0 | AK36: 0 | AL36: 0 | AM36: 0 | AN36: 0 | AO36: 0 | AP36: 0 | AQ36: 0 | AR36: 0 | AS36: 0 | AT36: 0 | AV36: 0 | AW36: 0 | AX36: 0 | AY36: 0 | AZ36: 0 | BA36: 0 | BB36: 0 | BC36: 0 | BD36: 0 | BE36: 0 | BG36: 0 | BH36: 0 | BI36: 0 | BJ36: 0 | BK36: 0 | BL36: 0 | BM36: 0 | BN36: 0 | BO36: 0 | BP36: 0 | BR36: 0 | BS36: 0 | BT36: 0 | BU36: 0 | BV36: 0 | BW36: 0 | BX36: 0 | BY36: 0 | BZ36: 0 | CA36: 0 | CC36: 0 | CD36: 0 | CE36: 0 | CF36: 0 | CG36: 0 | CH36: 0 | CI36: 0 | CJ36: 0 | CK36: 0 | CL36: 0
B37: 1 - Afry - Partner activities after SG | C37: Project Management | D37: Project Management | E37: 2328.72 | F37: Project Management | G37: 0 | H37: 0 | I37: 6403.98 | J37: 0 | K37: 0 | L37: 0 | M37: 0 | N37: 0 | O37: 0 | P37: 0 | Q37: 6403.98 | S37: 0 | T37: 0.1000094099 | U37: 0 | V37: 0 | W37: 0.8999905901 | X37: 1 | Z37: 0 | AA37: 0 | AB37: 0 | AC37: 0 | AD37: 0 | AE37: 0 | AF37: 0 | AG37: 0 | AH37: 0 | AI37: 0 | AK37: 0 | AL37: 0 | AM37: 0 | AN37: 0 | AO37: 0 | AP37: 0 | AQ37: 0 | AR37: 0 | AS37: 0 | AT37: 0 | AV37: 0 | AW37: 0 | AX37: 640.4582609 | AY37: 0 | AZ37: 0 | BA37: 0 | BB37: 0 | BC37: 0 | BD37: 0 | BE37: 0 | BG37: 0 | BH37: 0 | BI37: 0 | BJ37: 0 | BK37: 0 | BL37: 0 | BM37: 0 | BN37: 0 | BO37: 0 | BP37: 0 | BR37: 0 | BS37: 0 | BT37: 0 | BU37: 0 | BV37: 0 | BW37: 0 | BX37: 0 | BY37: 0 | BZ37: 0 | CA37: 0 | CC37: 0 | CD37: 0 | CE37: 5763.521739 | CF37: 0 | CG37: 0 | CH37: 0 | CI37: 0 | CJ37: 0 | CK37: 0 | CL37: 0
B38: 1 - ESO | C38: Project Management | D38: Project Management | E38: 70000 | F38: Project Management | G38: 0 | H38: 0 | I38: 17561.02174 | J38: 0 | K38: 0 | L38: 0 | M38: 0 | N38: 0 | O38: 0 | P38: 0 | Q38: 17561.02174 | S38: 0 | T38: 0 | U38: 0 | V38: 0 | W38: 1 | X38: =SUM(R38:W38) -> 1 | Z38: =$R38*G38 -> 0 | AA38: =$R38*H38 -> 0 | AB38: =$R38*I38 -> 0 | AC38: =$R38*J38 -> 0 | AD38: =$R38*K38 -> 0 | AE38: =$R38*L38 -> 0 | AF38: =$R38*M38 -> 0 | AG38: =$R38*N38 -> 0 | AH38: =$R38*O38 -> 0 | AI38: =$R38*P38 -> 0 | AK38: =$S38*G38 -> 0 | AL38: =$S38*H38 -> 0 | AM38: =$S38*I38 -> 0 | AN38: =$S38*J38 -> 0 | AO38: =$S38*K38 -> 0 | AP38: =$S38*L38 -> 0 | AQ38: =$S38*M38 -> 0 | AR38: =$S38*N38 -> 0 | AS38: =$S38*O38 -> 0 | AT38: =$S38*P38 -> 0 | AV38: =$T38*G38 -> 0 | AW38: =$T38*H38 -> 0 | AX38: =$T38*I38 -> 0 | AY38: =$T38*J38 -> 0 | AZ38: =$T38*K38 -> 0 | BA38: =$T38*L38 -> 0 | BB38: =$T38*M38 -> 0 | BC38: =$T38*N38 -> 0 | BD38: =$T38*O38 -> 0 | BE38: =$T38*P38 -> 0 | BG38: =$U38*G38 -> 0 | BH38: =$U38*H38 -> 0 | BI38: =$U38*I38 -> 0 | BJ38: =$U38*J38 -> 0 | BK38: =$U38*K38 -> 0 | BL38: =$U38*L38 -> 0 | BM38: =$U38*M38 -> 0 | BN38: =$U38*N38 -> 0 | BO38: =$U38*O38 -> 0 | BP38: =$U38*P38 -> 0 | BR38: =$V38*G38 -> 0 | BS38: =$V38*H38 -> 0 | BT38: =$V38*I38 -> 0 | BU38: =$V38*J38 -> 0 | BV38: =$V38*K38 -> 0 | BW38: =$V38*L38 -> 0 | BX38: =$V38*M38 -> 0 | BY38: =$V38*N38 -> 0 | BZ38: =$V38*O38 -> 0 | CA38: =$V38*P38 -> 0 | CC38: =$W38*G38 -> 0 | CD38: =$W38*H38 -> 0 | CE38: =$W38*I38 -> 17561.02174 | CF38: =$W38*J38 -> 0 | CG38: =$W38*K38 -> 0 | CH38: =$W38*L38 -> 0 | CI38: =$W38*M38 -> 0 | CJ38: =$W38*N38 -> 0 | CK38: =$W38*O38 -> 0 | CL38: =$W38*P38 -> 0
B39: 2 - Afry - Customer Engagement | C39: Customer Engagement | D39: Customer | E39: 2236.591304 | F39: Customer Engagement | G39: 0 | H39: 0 | I39: 30753.13043 | J39: 0 | K39: 0 | L39: 0 | M39: 0 | N39: 0 | O39: 0 | P39: 0 | Q39: 30753.13043 | S39: 0 | T39: 0.1 | U39: 0 | V39: 0 | W39: 0.9 | X39: 1 | Z39: 0 | AA39: 0 | AB39: 0 | AC39: 0 | AD39: 0 | AE39: 0 | AF39: 0 | AG39: 0 | AH39: 0 | AI39: 0 | AK39: 0 | AL39: 0 | AM39: 0 | AN39: 0 | AO39: 0 | AP39: 0 | AQ39: 0 | AR39: 0 | AS39: 0 | AT39: 0 | AV39: 0 | AW39: 0 | AX39: 3075.313043 | AY39: 0 | AZ39: 0 | BA39: 0 | BB39: 0 | BC39: 0 | BD39: 0 | BE39: 0 | BG39: 0 | BH39: 0 | BI39: 0 | BJ39: 0 | BK39: 0 | BL39: 0 | BM39: 0 | BN39: 0 | BO39: 0 | BP39: 0 | BR39: 0 | BS39: 0 | BT39: 0 | BU39: 0 | BV39: 0 | BW39: 0 | BX39: 0 | BY39: 0 | BZ39: 0 | CA39: 0 | CC39: 0 | CD39: 0 | CE39: 27677.81739 | CF39: 0 | CG39: 0 | CH39: 0 | CI39: 0 | CJ39: 0 | CK39: 0 | CL39: 0
B40: 2 - Delta-EE - Customer engagement Project management b4 SG | C40: Customer Engagement | D40: Customer | E40: 1224 | F40: Customer Engagement | G40: 0 | H40: 0 | I40: 11958.15789 | J40: 0 | K40: 0 | L40: 0 | M40: 0 | N40: 0 | O40: 0 | P40: 0 | Q40: 11958.15789 | S40: 0 | T40: 0 | U40: 0.09803921569 | V40: 0 | W40: 0.9019607843 | X40: 1 | Z40: 0 | AA40: 0 | AB40: 0 | AC40: 0 | AD40: 0 | AE40: 0 | AF40: 0 | AG40: 0 | AH40: 0 | AI40: 0 | AK40: 0 | AL40: 0 | AM40: 0 | AN40: 0 | AO40: 0 | AP40: 0 | AQ40: 0 | AR40: 0 | AS40: 0 | AT40: 0 | AV40: 0 | AW40: 0 | AX40: 0 | AY40: 0 | AZ40: 0 | BA40: 0 | BB40: 0 | BC40: 0 | BD40: 0 | BE40: 0 | BG40: 0 | BH40: 0 | BI40: 1172.368421 | BJ40: 0 | BK40: 0 | BL40: 0 | BM40: 0 | BN40: 0 | BO40: 0 | BP40: 0 | BR40: 0 | BS40: 0 | BT40: 0 | BU40: 0 | BV40: 0 | BW40: 0 | BX40: 0 | BY40: 0 | BZ40: 0 | CA40: 0 | CC40: 0 | CD40: 0 | CE40: 10785.78947 | CF40: 0 | CG40: 0 | CH40: 0 | CI40: 0 | CJ40: 0 | CK40: 0 | CL40: 0
B41: 2 - Delta-EE - Customer engagement Project management after SG | C41: Customer Engagement | D41: Customer | E41: 1224 | F41: Customer Engagement | G41: 0 | H41: 0 | I41: 0 | J41: 0 | K41: 0 | L41: 0 | M41: 0 | N41: 0 | O41: 0 | P41: 0 | Q41: 0 | S41: 0 | T41: 0 | U41: 0.09803921569 | V41: 0 | W41: 0.9019607843 | X41: 1 | Z41: 0 | AA41: 0 | AB41: 0 | AC41: 0 | AD41: 0 | AE41: 0 | AF41: 0 | AG41: 0 | AH41: 0 | AI41: 0 | AK41: 0 | AL41: 0 | AM41: 0 | AN41: 0 | AO41: 0 | AP41: 0 | AQ41: 0 | AR41: 0 | AS41: 0 | AT41: 0 | AV41: 0 | AW41: 0 | AX41: 0 | AY41: 0 | AZ41: 0 | BA41: 0 | BB41: 0 | BC41: 0 | BD41: 0 | BE41: 0 | BG41: 0 | BH41: 0 | BI41: 0 | BJ41: 0 | BK41: 0 | BL41: 0 | BM41: 0 | BN41: 0 | BO41: 0 | BP41: 0 | BR41: 0 | BS41: 0 | BT41: 0 | BU41: 0 | BV41: 0 | BW41: 0 | BX41: 0 | BY41: 0 | BZ41: 0 | CA41: 0 | CC41: 0 | CD41: 0 | CE41: 0 | CF41: 0 | CG41: 0 | CH41: 0 | CI41: 0 | CJ41: 0 | CK41: 0 | CL41: 0
B42: 2 - Delta-EE - Facilitation of workshops b4 SG | C42: Customer Engagement | D42: Customer | E42: 7500 | F42: Customer Engagement | G42: 0 | H42: 0 | I42: 2171.052632 | J42: 0 | K42: 0 | L42: 0 | M42: 0 | N42: 0 | O42: 0 | P42: 0 | Q42: 2171.052632 | S42: 0 | T42: 0 | U42: 0 | V42: 0 | W42: 1 | X42: 1 | Z42: 0 | AA42: 0 | AB42: 0 | AC42: 0 | AD42: 0 | AE42: 0 | AF42: 0 | AG42: 0 | AH42: 0 | AI42: 0 | AK42: 0 | AL42: 0 | AM42: 0 | AN42: 0 | AO42: 0 | AP42: 0 | AQ42: 0 | AR42: 0 | AS42: 0 | AT42: 0 | AV42: 0 | AW42: 0 | AX42: 0 | AY42: 0 | AZ42: 0 | BA42: 0 | BB42: 0 | BC42: 0 | BD42: 0 | BE42: 0 | BG42: 0 | BH42: 0 | BI42: 0 | BJ42: 0 | BK42: 0 | BL42: 0 | BM42: 0 | BN42: 0 | BO42: 0 | BP42: 0 | BR42: 0 | BS42: 0 | BT42: 0 | BU42: 0 | BV42: 0 | BW42: 0 | BX42: 0 | BY42: 0 | BZ42: 0 | CA42: 0 | CC42: 0 | CD42: 0 | CE42: 2171.052632 | CF42: 0 | CG42: 0 | CH42: 0 | CI42: 0 | CJ42: 0 | CK42: 0 | CL42: 0
B43: 2 - Delta-EE - Facilitation of workshops after SG | C43: Customer Engagement | D43: Customer | E43: 2500 | F43: Customer Engagement | G43: 0 | H43: 0 | I43: 0 | J43: 0 | K43: 0 | L43: 0 | M43: 0 | N43: 0 | O43: 0 | P43: 0 | Q43: 0 | S43: 0 | T43: 0 | U43: 0 | V43: 0 | W43: 1 | X43: 1 | Z43: 0 | AA43: 0 | AB43: 0 | AC43: 0 | AD43: 0 | AE43: 0 | AF43: 0 | AG43: 0 | AH43: 0 | AI43: 0 | AK43: 0 | AL43: 0 | AM43: 0 | AN43: 0 | AO43: 0 | AP43: 0 | AQ43: 0 | AR43: 0 | AS43: 0 | AT43: 0 | AV43: 0 | AW43: 0 | AX43: 0 | AY43: 0 | AZ43: 0 | BA43: 0 | BB43: 0 | BC43: 0 | BD43: 0 | BE43: 0 | BG43: 0 | BH43: 0 | BI43: 0 | BJ43: 0 | BK43: 0 | BL43: 0 | BM43: 0 | BN43: 0 | BO43: 0 | BP43: 0 | BR43: 0 | BS43: 0 | BT43: 0 | BU43: 0 | BV43: 0 | BW43: 0 | BX43: 0 | BY43: 0 | BZ43: 0 | CA43: 0 | CC43: 0 | CD43: 0 | CE43: 0 | CF43: 0 | CG43: 0 | CH43: 0 | CI43: 0 | CJ43: 0 | CK43: 0 | CL43: 0
B44: 2 - Delta-EE - Development of customer engagement plan | C44: Customer Engagement | D44: Customer | E44: 19315.5 | F44: Customer Engagement | G44: 0 | H44: 0 | I44: 19315.5 | J44: 0 | K44: 0 | L44: 0 | M44: 0 | N44: 0 | O44: 0 | P44: 0 | Q44: 19315.5 | S44: 0 | T44: 0 | U44: 0.09839248272 | V44: 0 | W44: 0.9016075173 | X44: 1 | Z44: 0 | AA44: 0 | AB44: 0 | AC44: 0 | AD44: 0 | AE44: 0 | AF44: 0 | AG44: 0 | AH44: 0 | AI44: 0 | AK44: 0 | AL44: 0 | AM44: 0 | AN44: 0 | AO44: 0 | AP44: 0 | AQ44: 0 | AR44: 0 | AS44: 0 | AT44: 0 | AV44: 0 | AW44: 0 | AX44: 0 | AY44: 0 | AZ44: 0 | BA44: 0 | BB44: 0 | BC44: 0 | BD44: 0 | BE44: 0 | BG44: 0 | BH44: 0 | BI44: 1900.5 | BJ44: 0 | BK44: 0 | BL44: 0 | BM44: 0 | BN44: 0 | BO44: 0 | BP44: 0 | BR44: 0 | BS44: 0 | BT44: 0 | BU44: 0 | BV44: 0 | BW44: 0 | BX44: 0 | BY44: 0 | BZ44: 0 | CA44: 0 | CC44: 0 | CD44: 0 | CE44: 17415 | CF44: 0 | CG44: 0 | CH44: 0 | CI44: 0 | CJ44: 0 | CK44: 0 | CL44: 0
B45: 2 - Delta-EE - Expenses - Customer engagement workshops b4 SG | C45: Project Management | D45: Customer | E45: 3000 | F45: Project Management | G45: 0 | H45: 0 | I45: 868.4210526 | J45: 0 | K45: 0 | L45: 0 | M45: 0 | N45: 0 | O45: 0 | P45: 0 | Q45: 868.4210526 | S45: 0 | T45: 0 | U45: 0 | V45: 0 | W45: 1 | X45: 1 | Z45: 0 | AA45: 0 | AB45: 0 | AC45: 0 | AD45: 0 | AE45: 0 | AF45: 0 | AG45: 0 | AH45: 0 | AI45: 0 | AK45: 0 | AL45: 0 | AM45: 0 | AN45: 0 | AO45: 0 | AP45: 0 | AQ45: 0 | AR45: 0 | AS45: 0 | AT45: 0 | AV45: 0 | AW45: 0 | AX45: 0 | AY45: 0 | AZ45: 0 | BA45: 0 | BB45: 0 | BC45: 0 | BD45: 0 | BE45: 0 | BG45: 0 | BH45: 0 | BI45: 0 | BJ45: 0 | BK45: 0 | BL45: 0 | BM45: 0 | BN45: 0 | BO45: 0 | BP45: 0 | BR45: 0 | BS45: 0 | BT45: 0 | BU45: 0 | BV45: 0 | BW45: 0 | BX45: 0 | BY45: 0 | BZ45: 0 | CA45: 0 | CC45: 0 | CD45: 0 | CE45: 868.4210526 | CF45: 0 | CG45: 0 | CH45: 0 | CI45: 0 | CJ45: 0 | CK45: 0 | CL45: 0
B46: 2 - Delta-EE - Expenses - Customer engagement workshops after SG | C46: Project Management | D46: Customer | E46: 1000 | F46: Project Management | G46: 0 | H46: 0 | I46: 0 | J46: 0 | K46: 0 | L46: 0 | M46: 0 | N46: 0 | O46: 0 | P46: 0 | Q46: 0 | S46: 0 | T46: 0 | U46: 0 | V46: 0 | W46: 1 | X46: 1 | Z46: 0 | AA46: 0 | AB46: 0 | AC46: 0 | AD46: 0 | AE46: 0 | AF46: 0 | AG46: 0 | AH46: 0 | AI46: 0 | AK46: 0 | AL46: 0 | AM46: 0 | AN46: 0 | AO46: 0 | AP46: 0 | AQ46: 0 | AR46: 0 | AS46: 0 | AT46: 0 | AV46: 0 | AW46: 0 | AX46: 0 | AY46: 0 | AZ46: 0 | BA46: 0 | BB46: 0 | BC46: 0 | BD46: 0 | BE46: 0 | BG46: 0 | BH46: 0 | BI46: 0 | BJ46: 0 | BK46: 0 | BL46: 0 | BM46: 0 | BN46: 0 | BO46: 0 | BP46: 0 | BR46: 0 | BS46: 0 | BT46: 0 | BU46: 0 | BV46: 0 | BW46: 0 | BX46: 0 | BY46: 0 | BZ46: 0 | CA46: 0 | CC46: 0 | CD46: 0 | CE46: 0 | CF46: 0 | CG46: 0 | CH46: 0 | CI46: 0 | CJ46: 0 | CK46: 0 | CL46: 0
B47: 2 - Delta-EE - Development of engagement materials | C47: Customer Engagement | D47: Customer | E47: 1113.066667 | F47: Customer Engagement | G47: 0 | H47: 0 | I47: 18783 | J47: 0 | K47: 0 | L47: 0 | M47: 0 | N47: 0 | O47: 0 | P47: 0 | Q47: 18783 | S47: 0 | T47: 0 | U47: 0.09822712027 | V47: 0 | W47: 0.9017728797 | X47: 1 | Z47: 0 | AA47: 0 | AB47: 0 | AC47: 0 | AD47: 0 | AE47: 0 | AF47: 0 | AG47: 0 | AH47: 0 | AI47: 0 | AK47: 0 | AL47: 0 | AM47: 0 | AN47: 0 | AO47: 0 | AP47: 0 | AQ47: 0 | AR47: 0 | AS47: 0 | AT47: 0 | AV47: 0 | AW47: 0 | AX47: 0 | AY47: 0 | AZ47: 0 | BA47: 0 | BB47: 0 | BC47: 0 | BD47: 0 | BE47: 0 | BG47: 0 | BH47: 0 | BI47: 1845 | BJ47: 0 | BK47: 0 | BL47: 0 | BM47: 0 | BN47: 0 | BO47: 0 | BP47: 0 | BR47: 0 | BS47: 0 | BT47: 0 | BU47: 0 | BV47: 0 | BW47: 0 | BX47: 0 | BY47: 0 | BZ47: 0 | CA47: 0 | CC47: 0 | CD47: 0 | CE47: 16938 | CF47: 0 | CG47: 0 | CH47: 0 | CI47: 0 | CJ47: 0 | CK47: 0 | CL47: 0
B48: 2 - Delta-EE - Development of engagement materials - Payment to users b4 SG | C48: Customer Engagement | D48: Customer | E48: 9000 | F48: Customer Engagement | G48: 0 | H48: 0 | I48: 0 | J48: 0 | K48: 0 | L48: 0 | M48: 2605.263158 | N48: 0 | O48: 0 | P48: 0 | Q48: 2605.263158 | S48: 0 | T48: 0 | U48: 0 | V48: 0 | W48: 1 | X48: 1 | Z48: 0 | AA48: 0 | AB48: 0 | AC48: 0 | AD48: 0 | AE48: 0 | AF48: 0 | AG48: 0 | AH48: 0 | AI48: 0 | AK48: 0 | AL48: 0 | AM48: 0 | AN48: 0 | AO48: 0 | AP48: 0 | AQ48: 0 | AR48: 0 | AS48: 0 | AT48: 0 | AV48: 0 | AW48: 0 | AX48: 0 | AY48: 0 | AZ48: 0 | BA48: 0 | BB48: 0 | BC48: 0 | BD48: 0 | BE48: 0 | BG48: 0 | BH48: 0 | BI48: 0 | BJ48: 0 | BK48: 0 | BL48: 0 | BM48: 0 | BN48: 0 | BO48: 0 | BP48: 0 | BR48: 0 | BS48: 0 | BT48: 0 | BU48: 0 | BV48: 0 | BW48: 0 | BX48: 0 | BY48: 0 | BZ48: 0 | CA48: 0 | CC48: 0 | CD48: 0 | CE48: 0 | CF48: 0 | CG48: 0 | CH48: 0 | CI48: 2605.263158 | CJ48: 0 | CK48: 0 | CL48: 0
B49: 2 - Delta-EE - Development of engagement materials - Payment to users after | C49: Customer Engagement | D49: Customer | E49: 3000 | F49: Customer Engagement | G49: 0 | H49: 0 | I49: 0 | J49: 0 | K49: 0 | L49: 0 | M49: 0 | N49: 0 | O49: 0 | P49: 0 | Q49: 0 | S49: 0 | T49: 0 | U49: 0 | V49: 0 | W49: 1 | X49: 1 | Z49: 0 | AA49: 0 | AB49: 0 | AC49: 0 | AD49: 0 | AE49: 0 | AF49: 0 | AG49: 0 | AH49: 0 | AI49: 0 | AK49: 0 | AL49: 0 | AM49: 0 | AN49: 0 | AO49: 0 | AP49: 0 | AQ49: 0 | AR49: 0 | AS49: 0 | AT49: 0 | AV49: 0 | AW49: 0 | AX49: 0 | AY49: 0 | AZ49: 0 | BA49: 0 | BB49: 0 | BC49: 0 | BD49: 0 | BE49: 0 | BG49: 0 | BH49: 0 | BI49: 0 | BJ49: 0 | BK49: 0 | BL49: 0 | BM49: 0 | BN49: 0 | BO49: 0 | BP49: 0 | BR49: 0 | BS49: 0 | BT49: 0 | BU49: 0 | BV49: 0 | BW49: 0 | BX49: 0 | BY49: 0 | BZ49: 0 | CA49: 0 | CC49: 0 | CD49: 0 | CE49: 0 | CF49: 0 | CG49: 0 | CH49: 0 | CI49: 0 | CJ49: 0 | CK49: 0 | CL49: 0
B50: 2 - Delta-EE - Survey design b4 SG | C50: Customer Engagement | D50: Customer | E50: 1149.763033 | F50: Customer Engagement | G50: 0 | H50: 0 | I50: 13167.43421 | J50: 0 | K50: 0 | L50: 0 | M50: 0 | N50: 0 | O50: 0 | P50: 0 | Q50: 13167.43421 | S50: 0 | T50: 0 | U50: 0.09836768343 | V50: 0 | W50: 0.9016323166 | X50: 1 | Z50: 0 | AA50: 0 | AB50: 0 | AC50: 0 | AD50: 0 | AE50: 0 | AF50: 0 | AG50: 0 | AH50: 0 | AI50: 0 | AK50: 0 | AL50: 0 | AM50: 0 | AN50: 0 | AO50: 0 | AP50: 0 | AQ50: 0 | AR50: 0 | AS50: 0 | AT50: 0 | AV50: 0 | AW50: 0 | AX50: 0 | AY50: 0 | AZ50: 0 | BA50: 0 | BB50: 0 | BC50: 0 | BD50: 0 | BE50: 0 | BG50: 0 | BH50: 0 | BI50: 1295.25 | BJ50: 0 | BK50: 0 | BL50: 0 | BM50: 0 | BN50: 0 | BO50: 0 | BP50: 0 | BR50: 0 | BS50: 0 | BT50: 0 | BU50: 0 | BV50: 0 | BW50: 0 | BX50: 0 | BY50: 0 | BZ50: 0 | CA50: 0 | CC50: 0 | CD50: 0 | CE50: 11872.18421 | CF50: 0 | CG50: 0 | CH50: 0 | CI50: 0 | CJ50: 0 | CK50: 0 | CL50: 0
B51: 2 - Delta-EE - Survey design after SG | C51: Customer Engagement | D51: Customer | E51: 1149.763033 | F51: Customer Engagement | G51: 0 | H51: 0 | I51: 0 | J51: 0 | K51: 0 | L51: 0 | M51: 0 | N51: 0 | O51: 0 | P51: 0 | Q51: 0 | S51: 0 | T51: 0 | U51: 0.09836768343 | V51: 0 | W51: 0.9016323166 | X51: 1 | Z51: 0 | AA51: 0 | AB51: 0 | AC51: 0 | AD51: 0 | AE51: 0 | AF51: 0 | AG51: 0 | AH51: 0 | AI51: 0 | AK51: 0 | AL51: 0 | AM51: 0 | AN51: 0 | AO51: 0 | AP51: 0 | AQ51: 0 | AR51: 0 | AS51: 0 | AT51: 0 | AV51: 0 | AW51: 0 | AX51: 0 | AY51: 0 | AZ51: 0 | BA51: 0 | BB51: 0 | BC51: 0 | BD51: 0 | BE51: 0 | BG51: 0 | BH51: 0 | BI51: 0 | BJ51: 0 | BK51: 0 | BL51: 0 | BM51: 0 | BN51: 0 | BO51: 0 | BP51: 0 | BR51: 0 | BS51: 0 | BT51: 0 | BU51: 0 | BV51: 0 | BW51: 0 | BX51: 0 | BY51: 0 | BZ51: 0 | CA51: 0 | CC51: 0 | CD51: 0 | CE51: 0 | CF51: 0 | CG51: 0 | CH51: 0 | CI51: 0 | CJ51: 0 | CK51: 0 | CL51: 0
B52: 2 - Delta-EE - Survey design - Payments to users b4 SG | C52: Customer Engagement | D52: Customer | E52: 75000 | F52: Customer Engagement | G52: 0 | H52: 0 | I52: 0 | J52: 0 | K52: 0 | L52: 0 | M52: 21710.52632 | N52: 0 | O52: 0 | P52: 0 | Q52: 21710.52632 | S52: 0 | T52: 0 | U52: 0 | V52: 0 | W52: 1 | X52: 1 | Z52: 0 | AA52: 0 | AB52: 0 | AC52: 0 | AD52: 0 | AE52: 0 | AF52: 0 | AG52: 0 | AH52: 0 | AI52: 0 | AK52: 0 | AL52: 0 | AM52: 0 | AN52: 0 | AO52: 0 | AP52: 0 | AQ52: 0 | AR52: 0 | AS52: 0 | AT52: 0 | AV52: 0 | AW52: 0 | AX52: 0 | AY52: 0 | AZ52: 0 | BA52: 0 | BB52: 0 | BC52: 0 | BD52: 0 | BE52: 0 | BG52: 0 | BH52: 0 | BI52: 0 | BJ52: 0 | BK52: 0 | BL52: 0 | BM52: 0 | BN52: 0 | BO52: 0 | BP52: 0 | BR52: 0 | BS52: 0 | BT52: 0 | BU52: 0 | BV52: 0 | BW52: 0 | BX52: 0 | BY52: 0 | BZ52: 0 | CA52: 0 | CC52: 0 | CD52: 0 | CE52: 0 | CF52: 0 | CG52: 0 | CH52: 0 | CI52: 21710.52632 | CJ52: 0 | CK52: 0 | CL52: 0
B53: 2 - Delta-EE - Survey design - Payments to users after SG | C53: Customer Engagement | D53: Customer | E53: 25000 | F53: Customer Engagement | G53: 0 | H53: 0 | I53: 0 | J53: 0 | K53: 0 | L53: 0 | M53: 0 | N53: 0 | O53: 0 | P53: 0 | Q53: 0 | S53: 0 | T53: 0 | U53: 0 | V53: 0 | W53: 1 | X53: 1 | Z53: 0 | AA53: 0 | AB53: 0 | AC53: 0 | AD53: 0 | AE53: 0 | AF53: 0 | AG53: 0 | AH53: 0 | AI53: 0 | AK53: 0 | AL53: 0 | AM53: 0 | AN53: 0 | AO53: 0 | AP53: 0 | AQ53: 0 | AR53: 0 | AS53: 0 | AT53: 0 | AV53: 0 | AW53: 0 | AX53: 0 | AY53: 0 | AZ53: 0 | BA53: 0 | BB53: 0 | BC53: 0 | BD53: 0 | BE53: 0 | BG53: 0 | BH53: 0 | BI53: 0 | BJ53: 0 | BK53: 0 | BL53: 0 | BM53: 0 | BN53: 0 | BO53: 0 | BP53: 0 | BR53: 0 | BS53: 0 | BT53: 0 | BU53: 0 | BV53: 0 | BW53: 0 | BX53: 0 | BY53: 0 | BZ53: 0 | CA53: 0 | CC53: 0 | CD53: 0 | CE53: 0 | CF53: 0 | CG53: 0 | CH53: 0 | CI53: 0 | CJ53: 0 | CK53: 0 | CL53: 0
B54: 2 - Delta-EE - Customer engagement b4 SG | C54: Customer Engagement | D54: Customer | E54: 1139.405535 | F54: Customer Engagement | G54: 0 | H54: 0 | I54: 30168.94737 | J54: 0 | K54: 0 | L54: 0 | M54: 0 | N54: 0 | O54: 0 | P54: 0 | Q54: 30168.94737 | S54: 0 | T54: 0 | U54: 0.09831606218 | V54: 0 | W54: 0.9016839378 | X54: 1 | Z54: 0 | AA54: 0 | AB54: 0 | AC54: 0 | AD54: 0 | AE54: 0 | AF54: 0 | AG54: 0 | AH54: 0 | AI54: 0 | AK54: 0 | AL54: 0 | AM54: 0 | AN54: 0 | AO54: 0 | AP54: 0 | AQ54: 0 | AR54: 0 | AS54: 0 | AT54: 0 | AV54: 0 | AW54: 0 | AX54: 0 | AY54: 0 | AZ54: 0 | BA54: 0 | BB54: 0 | BC54: 0 | BD54: 0 | BE54: 0 | BG54: 0 | BH54: 0 | BI54: 2966.092105 | BJ54: 0 | BK54: 0 | BL54: 0 | BM54: 0 | BN54: 0 | BO54: 0 | BP54: 0 | BR54: 0 | BS54: 0 | BT54: 0 | BU54: 0 | BV54: 0 | BW54: 0 | BX54: 0 | BY54: 0 | BZ54: 0 | CA54: 0 | CC54: 0 | CD54: 0 | CE54: 27202.85526 | CF54: 0 | CG54: 0 | CH54: 0 | CI54: 0 | CJ54: 0 | CK54: 0 | CL54: 0
B55: 2 - Delta-EE - Customer engagement after SG | C55: Customer Engagement | D55: Customer | E55: 1139.405535 | F55: Customer Engagement | G55: 0 | H55: 0 | I55: 0 | J55: 0 | K55: 0 | L55: 0 | M55: 0 | N55: 0 | O55: 0 | P55: 0 | Q55: 0 | S55: 0 | T55: 0 | U55: 0.09831606218 | V55: 0 | W55: 0.9016839378 | X55: 1 | Z55: 0 | AA55: 0 | AB55: 0 | AC55: 0 | AD55: 0 | AE55: 0 | AF55: 0 | AG55: 0 | AH55: 0 | AI55: 0 | AK55: 0 | AL55: 0 | AM55: 0 | AN55: 0 | AO55: 0 | AP55: 0 | AQ55: 0 | AR55: 0 | AS55: 0 | AT55: 0 | AV55: 0 | AW55: 0 | AX55: 0 | AY55: 0 | AZ55: 0 | BA55: 0 | BB55: 0 | BC55: 0 | BD55: 0 | BE55: 0 | BG55: 0 | BH55: 0 | BI55: 0 | BJ55: 0 | BK55: 0 | BL55: 0 | BM55: 0 | BN55: 0 | BO55: 0 | BP55: 0 | BR55: 0 | BS55: 0 | BT55: 0 | BU55: 0 | BV55: 0 | BW55: 0 | BX55: 0 | BY55: 0 | BZ55: 0 | CA55: 0 | CC55: 0 | CD55: 0 | CE55: 0 | CF55: 0 | CG55: 0 | CH55: 0 | CI55: 0 | CJ55: 0 | CK55: 0 | CL55: 0
B56: 2 - Delta-EE - Customer engagement - Expenses b4 SG | C56: Project Management | D56: Customer | E56: 7800 | F56: Project Management | G56: 0 | H56: 0 | I56: 2257.894737 | J56: 0 | K56: 0 | L56: 0 | M56: 0 | N56: 0 | O56: 0 | P56: 0 | Q56: 2257.894737 | S56: 0 | T56: 0 | U56: 0 | V56: 0 | W56: 1 | X56: 1 | Z56: 0 | AA56: 0 | AB56: 0 | AC56: 0 | AD56: 0 | AE56: 0 | AF56: 0 | AG56: 0 | AH56: 0 | AI56: 0 | AK56: 0 | AL56: 0 | AM56: 0 | AN56: 0 | AO56: 0 | AP56: 0 | AQ56: 0 | AR56: 0 | AS56: 0 | AT56: 0 | AV56: 0 | AW56: 0 | AX56: 0 | AY56: 0 | AZ56: 0 | BA56: 0 | BB56: 0 | BC56: 0 | BD56: 0 | BE56: 0 | BG56: 0 | BH56: 0 | BI56: 0 | BJ56: 0 | BK56: 0 | BL56: 0 | BM56: 0 | BN56: 0 | BO56: 0 | BP56: 0 | BR56: 0 | BS56: 0 | BT56: 0 | BU56: 0 | BV56: 0 | BW56: 0 | BX56: 0 | BY56: 0 | BZ56: 0 | CA56: 0 | CC56: 0 | CD56: 0 | CE56: 2257.894737 | CF56: 0 | CG56: 0 | CH56: 0 | CI56: 0 | CJ56: 0 | CK56: 0 | CL56: 0
B57: 2 - Delta-EE - Customer engagement - Expenses after SG | C57: Project Management | D57: Customer | E57: 1600 | F57: Project Management | G57: 0 | H57: 0 | I57: 0 | J57: 0 | K57: 0 | L57: 0 | M57: 0 | N57: 0 | O57: 0 | P57: 0 | Q57: 0 | S57: 0 | T57: 0 | U57: 0 | V57: 0 | W57: 1 | X57: 1 | Z57: 0 | AA57: 0 | AB57: 0 | AC57: 0 | AD57: 0 | AE57: 0 | AF57: 0 | AG57: 0 | AH57: 0 | AI57: 0 | AK57: 0 | AL57: 0 | AM57: 0 | AN57: 0 | AO57: 0 | AP57: 0 | AQ57: 0 | AR57: 0 | AS57: 0 | AT57: 0 | AV57: 0 | AW57: 0 | AX57: 0 | AY57: 0 | AZ57: 0 | BA57: 0 | BB57: 0 | BC57: 0 | BD57: 0 | BE57: 0 | BG57: 0 | BH57: 0 | BI57: 0 | BJ57: 0 | BK57: 0 | BL57: 0 | BM57: 0 | BN57: 0 | BO57: 0 | BP57: 0 | BR57: 0 | BS57: 0 | BT57: 0 | BU57: 0 | BV57: 0 | BW57: 0 | BX57: 0 | BY57: 0 | BZ57: 0 | CA57: 0 | CC57: 0 | CD57: 0 | CE57: 0 | CF57: 0 | CG57: 0 | CH57: 0 | CI57: 0 | CJ57: 0 | CK57: 0 | CL57: 0
B58: 2 - Delta-EE - Reporting & analysis b4 SG | C58: Customer Engagement | D58: Customer | E58: 1139.2 | F58: Customer Engagement | G58: 0 | H58: 0 | I58: 9893.052632 | J58: 0 | K58: 0 | L58: 0 | M58: 0 | N58: 0 | O58: 0 | P58: 0 | Q58: 9893.052632 | S58: 0 | T58: 0 | U58: 0.09831460674 | V58: 0 | W58: 0.9016853933 | X58: 1 | Z58: 0 | AA58: 0 | AB58: 0 | AC58: 0 | AD58: 0 | AE58: 0 | AF58: 0 | AG58: 0 | AH58: 0 | AI58: 0 | AK58: 0 | AL58: 0 | AM58: 0 | AN58: 0 | AO58: 0 | AP58: 0 | AQ58: 0 | AR58: 0 | AS58: 0 | AT58: 0 | AV58: 0 | AW58: 0 | AX58: 0 | AY58: 0 | AZ58: 0 | BA58: 0 | BB58: 0 | BC58: 0 | BD58: 0 | BE58: 0 | BG58: 0 | BH58: 0 | BI58: 972.6315789 | BJ58: 0 | BK58: 0 | BL58: 0 | BM58: 0 | BN58: 0 | BO58: 0 | BP58: 0 | BR58: 0 | BS58: 0 | BT58: 0 | BU58: 0 | BV58: 0 | BW58: 0 | BX58: 0 | BY58: 0 | BZ58: 0 | CA58: 0 | CC58: 0 | CD58: 0 | CE58: 8920.421053 | CF58: 0 | CG58: 0 | CH58: 0 | CI58: 0 | CJ58: 0 | CK58: 0 | CL58: 0
B59: 2 - Delta-EE - Reporting & analysis after SG | C59: Customer Engagement | D59: Customer | E59: 1139.2 | F59: Customer Engagement | G59: 0 | H59: 0 | I59: 0 | J59: 0 | K59: 0 | L59: 0 | M59: 0 | N59: 0 | O59: 0 | P59: 0 | Q59: 0 | S59: 0 | T59: 0 | U59: 0.09831460674 | V59: 0 | W59: 0.9016853933 | X59: 1 | Z59: 0 | AA59: 0 | AB59: 0 | AC59: 0 | AD59: 0 | AE59: 0 | AF59: 0 | AG59: 0 | AH59: 0 | AI59: 0 | AK59: 0 | AL59: 0 | AM59: 0 | AN59: 0 | AO59: 0 | AP59: 0 | AQ59: 0 | AR59: 0 | AS59: 0 | AT59: 0 | AV59: 0 | AW59: 0 | AX59: 0 | AY59: 0 | AZ59: 0 | BA59: 0 | BB59: 0 | BC59: 0 | BD59: 0 | BE59: 0 | BG59: 0 | BH59: 0 | BI59: 0 | BJ59: 0 | BK59: 0 | BL59: 0 | BM59: 0 | BN59: 0 | BO59: 0 | BP59: 0 | BR59: 0 | BS59: 0 | BT59: 0 | BU59: 0 | BV59: 0 | BW59: 0 | BX59: 0 | BY59: 0 | BZ59: 0 | CA59: 0 | CC59: 0 | CD59: 0 | CE59: 0 | CF59: 0 | CG59: 0 | CH59: 0 | CI59: 0 | CJ59: 0 | CK59: 0 | CL59: 0
B60: 2 - Delta-EE - Customer engagement materials design | C60: Customer Engagement | D60: Customer | E60: 10000 | F60: Customer Engagement | G60: 0 | H60: 0 | I60: 10000 | J60: 0 | K60: 0 | L60: 0 | M60: 0 | N60: 0 | O60: 0 | P60: 0 | Q60: 10000 | S60: 0 | T60: 0 | U60: 0 | V60: 0 | W60: 1 | X60: 1 | Z60: 0 | AA60: 0 | AB60: 0 | AC60: 0 | AD60: 0 | AE60: 0 | AF60: 0 | AG60: 0 | AH60: 0 | AI60: 0 | AK60: 0 | AL60: 0 | AM60: 0 | AN60: 0 | AO60: 0 | AP60: 0 | AQ60: 0 | AR60: 0 | AS60: 0 | AT60: 0 | AV60: 0 | AW60: 0 | AX60: 0 | AY60: 0 | AZ60: 0 | BA60: 0 | BB60: 0 | BC60: 0 | BD60: 0 | BE60: 0 | BG60: 0 | BH60: 0 | BI60: 0 | BJ60: 0 | BK60: 0 | BL60: 0 | BM60: 0 | BN60: 0 | BO60: 0 | BP60: 0 | BR60: 0 | BS60: 0 | BT60: 0 | BU60: 0 | BV60: 0 | BW60: 0 | BX60: 0 | BY60: 0 | BZ60: 0 | CA60: 0 | CC60: 0 | CD60: 0 | CE60: 10000 | CF60: 0 | CG60: 0 | CH60: 0 | CI60: 0 | CJ60: 0 | CK60: 0 | CL60: 0
B61: 2 - Delta-EE - International learnings and experiences research | C61: Customer Engagement | D61: Customer | E61: 1023.529412 | F61: Customer Engagement | G61: 0 | H61: 0 | I61: 0 | J61: 0 | K61: 0 | L61: 0 | M61: 0 | N61: 0 | O61: 0 | P61: 0 | Q61: 0 | S61: 0 | T61: 0 | U61: 0.09793103448 | V61: 0 | W61: 0.9020689655 | X61: 1 | Z61: 0 | AA61: 0 | AB61: 0 | AC61: 0 | AD61: 0 | AE61: 0 | AF61: 0 | AG61: 0 | AH61: 0 | AI61: 0 | AK61: 0 | AL61: 0 | AM61: 0 | AN61: 0 | AO61: 0 | AP61: 0 | AQ61: 0 | AR61: 0 | AS61: 0 | AT61: 0 | AV61: 0 | AW61: 0 | AX61: 0 | AY61: 0 | AZ61: 0 | BA61: 0 | BB61: 0 | BC61: 0 | BD61: 0 | BE61: 0 | BG61: 0 | BH61: 0 | BI61: 0 | BJ61: 0 | BK61: 0 | BL61: 0 | BM61: 0 | BN61: 0 | BO61: 0 | BP61: 0 | BR61: 0 | BS61: 0 | BT61: 0 | BU61: 0 | BV61: 0 | BW61: 0 | BX61: 0 | BY61: 0 | BZ61: 0 | CA61: 0 | CC61: 0 | CD61: 0 | CE61: 0 | CF61: 0 | CG61: 0 | CH61: 0 | CI61: 0 | CJ61: 0 | CK61: 0 | CL61: 0
B62: 2 - Delta-EE - Feedback from customers | C62: Customer Engagement | D62: Customer | E62: 1224 | F62: Customer Engagement | G62: 0 | H62: 0 | I62: 0 | J62: 0 | K62: 0 | L62: 0 | M62: 0 | N62: 0 | O62: 0 | P62: 0 | Q62: 0 | S62: 0 | T62: 0 | U62: 0.09803921569 | V62: 0 | W62: 0.9019607843 | X62: 1 | Z62: 0 | AA62: 0 | AB62: 0 | AC62: 0 | AD62: 0 | AE62: 0 | AF62: 0 | AG62: 0 | AH62: 0 | AI62: 0 | AK62: 0 | AL62: 0 | AM62: 0 | AN62: 0 | AO62: 0 | AP62: 0 | AQ62: 0 | AR62: 0 | AS62: 0 | AT62: 0 | AV62: 0 | AW62: 0 | AX62: 0 | AY62: 0 | AZ62: 0 | BA62: 0 | BB62: 0 | BC62: 0 | BD62: 0 | BE62: 0 | BG62: 0 | BH62: 0 | BI62: 0 | BJ62: 0 | BK62: 0 | BL62: 0 | BM62: 0 | BN62: 0 | BO62: 0 | BP62: 0 | BR62: 0 | BS62: 0 | BT62: 0 | BU62: 0 | BV62: 0 | BW62: 0 | BX62: 0 | BY62: 0 | BZ62: 0 | CA62: 0 | CC62: 0 | CD62: 0 | CE62: 0 | CF62: 0 | CG62: 0 | CH62: 0 | CI62: 0 | CJ62: 0 | CK62: 0 | CL62: 0
B63: 2 - Delta-EE - Ongoing Customer Support b4 SG | C63: Customer Engagement | D63: Customer | E63: 1064 | F63: Customer Engagement | G63: 0 | H63: 0 | I63: 10395 | J63: 0 | K63: 0 | L63: 0 | M63: 0 | N63: 0 | O63: 0 | P63: 0 | Q63: 10395 | S63: 0 | T63: 0 | U63: 0.0977443609 | V63: 0 | W63: 0.9022556391 | X63: 1 | Z63: 0 | AA63: 0 | AB63: 0 | AC63: 0 | AD63: 0 | AE63: 0 | AF63: 0 | AG63: 0 | AH63: 0 | AI63: 0 | AK63: 0 | AL63: 0 | AM63: 0 | AN63: 0 | AO63: 0 | AP63: 0 | AQ63: 0 | AR63: 0 | AS63: 0 | AT63: 0 | AV63: 0 | AW63: 0 | AX63: 0 | AY63: 0 | AZ63: 0 | BA63: 0 | BB63: 0 | BC63: 0 | BD63: 0 | BE63: 0 | BG63: 0 | BH63: 0 | BI63: 1016.052632 | BJ63: 0 | BK63: 0 | BL63: 0 | BM63: 0 | BN63: 0 | BO63: 0 | BP63: 0 | BR63: 0 | BS63: 0 | BT63: 0 | BU63: 0 | BV63: 0 | BW63: 0 | BX63: 0 | BY63: 0 | BZ63: 0 | CA63: 0 | CC63: 0 | CD63: 0 | CE63: 9378.947368 | CF63: 0 | CG63: 0 | CH63: 0 | CI63: 0 | CJ63: 0 | CK63: 0 | CL63: 0
B64: 2 - Delta-EE - Ongoing Customer Support after SG | C64: Customer Engagement | D64: Project Plan | E64: 1064 | F64: Customer Engagement | G64: 0 | H64: 0 | I64: 0 | J64: 0 | K64: 0 | L64: 0 | M64: 0 | N64: 0 | O64: 0 | P64: 0 | Q64: 0 | S64: 0 | T64: 0 | U64: 0.0977443609 | V64: 0 | W64: 0.9022556391 | X64: 1 | Z64: 0 | AA64: 0 | AB64: 0 | AC64: 0 | AD64: 0 | AE64: 0 | AF64: 0 | AG64: 0 | AH64: 0 | AI64: 0 | AK64: 0 | AL64: 0 | AM64: 0 | AN64: 0 | AO64: 0 | AP64: 0 | AQ64: 0 | AR64: 0 | AS64: 0 | AT64: 0 | AV64: 0 | AW64: 0 | AX64: 0 | AY64: 0 | AZ64: 0 | BA64: 0 | BB64: 0 | BC64: 0 | BD64: 0 | BE64: 0 | BG64: 0 | BH64: 0 | BI64: 0 | BJ64: 0 | BK64: 0 | BL64: 0 | BM64: 0 | BN64: 0 | BO64: 0 | BP64: 0 | BR64: 0 | BS64: 0 | BT64: 0 | BU64: 0 | BV64: 0 | BW64: 0 | BX64: 0 | BY64: 0 | BZ64: 0 | CA64: 0 | CC64: 0 | CD64: 0 | CE64: 0 | CF64: 0 | CG64: 0 | CH64: 0 | CI64: 0 | CJ64: 0 | CK64: 0 | CL64: 0
B65: 2 - Afry - Customer Engagement after SG | C65: Customer Engagement | D65: Customer | E65: 2230.857143 | F65: Customer Engagement | G65: 0 | H65: 0 | I65: 5601.391304 | J65: 0 | K65: 0 | L65: 0 | M65: 0 | N65: 0 | O65: 0 | P65: 0 | Q65: 5601.391304 | S65: 0 | T65: 0.1 | U65: 0 | V65: 0 | W65: 0.9 | X65: 1 | Z65: 0 | AA65: 0 | AB65: 0 | AC65: 0 | AD65: 0 | AE65: 0 | AF65: 0 | AG65: 0 | AH65: 0 | AI65: 0 | AK65: 0 | AL65: 0 | AM65: 0 | AN65: 0 | AO65: 0 | AP65: 0 | AQ65: 0 | AR65: 0 | AS65: 0 | AT65: 0 | AV65: 0 | AW65: 0 | AX65: 560.1391304 | AY65: 0 | AZ65: 0 | BA65: 0 | BB65: 0 | BC65: 0 | BD65: 0 | BE65: 0 | BG65: 0 | BH65: 0 | BI65: 0 | BJ65: 0 | BK65: 0 | BL65: 0 | BM65: 0 | BN65: 0 | BO65: 0 | BP65: 0 | BR65: 0 | BS65: 0 | BT65: 0 | BU65: 0 | BV65: 0 | BW65: 0 | BX65: 0 | BY65: 0 | BZ65: 0 | CA65: 0 | CC65: 0 | CD65: 0 | CE65: 5041.252174 | CF65: 0 | CG65: 0 | CH65: 0 | CI65: 0 | CJ65: 0 | CK65: 0 | CL65: 0
B66: 3 - Electron - External workshops - Stakeholder Engagement | C66: Trading Rules Research & Development | D66: Design | E66: 1000 | F66: Trading Rules Research & Development | G66: 0 | H66: 0 | I66: 30000 | J66: 0 | K66: 0 | L66: 0 | M66: 0 | N66: 0 | O66: 0 | P66: 0 | Q66: 30000 | S66: 0.15 | T66: 0 | U66: 0 | V66: 0 | W66: 0.85 | X66: 1 | Z66: 0 | AA66: 0 | AB66: 0 | AC66: 0 | AD66: 0 | AE66: 0 | AF66: 0 | AG66: 0 | AH66: 0 | AI66: 0 | AK66: 0 | AL66: 0 | AM66: 4500 | AN66: 0 | AO66: 0 | AP66: 0 | AQ66: 0 | AR66: 0 | AS66: 0 | AT66: 0 | AV66: 0 | AW66: 0 | AX66: 0 | AY66: 0 | AZ66: 0 | BA66: 0 | BB66: 0 | BC66: 0 | BD66: 0 | BE66: 0 | BG66: 0 | BH66: 0 | BI66: 0 | BJ66: 0 | BK66: 0 | BL66: 0 | BM66: 0 | BN66: 0 | BO66: 0 | BP66: 0 | BR66: 0 | BS66: 0 | BT66: 0 | BU66: 0 | BV66: 0 | BW66: 0 | BX66: 0 | BY66: 0 | BZ66: 0 | CA66: 0 | CC66: 0 | CD66: 0 | CE66: 25500 | CF66: 0 | CG66: 0 | CH66: 0 | CI66: 0 | CJ66: 0 | CK66: 0 | CL66: 0
B67: 3 - Electron - Internal workshops & design - Stakeholder Engagement | C67: Trading Rules Research & Development | D67: Design | E67: 1000 | F67: Trading Rules Research & Development | G67: 0 | H67: 0 | I67: 30000 | J67: 0 | K67: 0 | L67: 0 | M67: 0 | N67: 0 | O67: 0 | P67: 0 | Q67: 30000 | S67: 0.15 | T67: 0 | U67: 0 | V67: 0 | W67: 0.85 | X67: 1 | Z67: 0 | AA67: 0 | AB67: 0 | AC67: 0 | AD67: 0 | AE67: 0 | AF67: 0 | AG67: 0 | AH67: 0 | AI67: 0 | AK67: 0 | AL67: 0 | AM67: 4500 | AN67: 0 | AO67: 0 | AP67: 0 | AQ67: 0 | AR67: 0 | AS67: 0 | AT67: 0 | AV67: 0 | AW67: 0 | AX67: 0 | AY67: 0 | AZ67: 0 | BA67: 0 | BB67: 0 | BC67: 0 | BD67: 0 | BE67: 0 | BG67: 0 | BH67: 0 | BI67: 0 | BJ67: 0 | BK67: 0 | BL67: 0 | BM67: 0 | BN67: 0 | BO67: 0 | BP67: 0 | BR67: 0 | BS67: 0 | BT67: 0 | BU67: 0 | BV67: 0 | BW67: 0 | BX67: 0 | BY67: 0 | BZ67: 0 | CA67: 0 | CC67: 0 | CD67: 0 | CE67: 25500 | CF67: 0 | CG67: 0 | CH67: 0 | CI67: 0 | CJ67: 0 | CK67: 0 | CL67: 0
B68: 3 - Electron - BiTraDER design - Electron Market Platform - Trading Rules Development | C68: Trading Rules Research & Development | D68: Design | E68: 1000 | F68: Trading Rules Research & Development | G68: 0 | H68: 0 | I68: 50000 | J68: 0 | K68: 0 | L68: 0 | M68: 0 | N68: 0 | O68: 0 | P68: 0 | Q68: 50000 | S68: 0.15 | T68: 0 | U68: 0 | V68: 0 | W68: 0.85 | X68: 1 | Z68: 0 | AA68: 0 | AB68: 0 | AC68: 0 | AD68: 0 | AE68: 0 | AF68: 0 | AG68: 0 | AH68: 0 | AI68: 0 | AK68: 0 | AL68: 0 | AM68: 7500 | AN68: 0 | AO68: 0 | AP68: 0 | AQ68: 0 | AR68: 0 | AS68: 0 | AT68: 0 | AV68: 0 | AW68: 0 | AX68: 0 | AY68: 0 | AZ68: 0 | BA68: 0 | BB68: 0 | BC68: 0 | BD68: 0 | BE68: 0 | BG68: 0 | BH68: 0 | BI68: 0 | BJ68: 0 | BK68: 0 | BL68: 0 | BM68: 0 | BN68: 0 | BO68: 0 | BP68: 0 | BR68: 0 | BS68: 0 | BT68: 0 | BU68: 0 | BV68: 0 | BW68: 0 | BX68: 0 | BY68: 0 | BZ68: 0 | CA68: 0 | CC68: 0 | CD68: 0 | CE68: 42500 | CF68: 0 | CG68: 0 | CH68: 0 | CI68: 0 | CJ68: 0 | CK68: 0 | CL68: 0
B69: 3 - Electron - Participant requirements - Electron Market Platform - Trading Rules Development | C69: Trading Rules Research & Development | D69: Design | E69: 1000 | F69: Trading Rules Research & Development | G69: 0 | H69: 0 | I69: 0 | J69: 0 | K69: 0 | L69: 0 | M69: 0 | N69: 0 | O69: 0 | P69: 0 | Q69: 0 | S69: 0.15 | T69: 0 | U69: 0 | V69: 0 | W69: 0.85 | X69: 1 | Z69: 0 | AA69: 0 | AB69: 0 | AC69: 0 | AD69: 0 | AE69: 0 | AF69: 0 | AG69: 0 | AH69: 0 | AI69: 0 | AK69: 0 | AL69: 0 | AM69: 0 | AN69: 0 | AO69: 0 | AP69: 0 | AQ69: 0 | AR69: 0 | AS69: 0 | AT69: 0 | AV69: 0 | AW69: 0 | AX69: 0 | AY69: 0 | AZ69: 0 | BA69: 0 | BB69: 0 | BC69: 0 | BD69: 0 | BE69: 0 | BG69: 0 | BH69: 0 | BI69: 0 | BJ69: 0 | BK69: 0 | BL69: 0 | BM69: 0 | BN69: 0 | BO69: 0 | BP69: 0 | BR69: 0 | BS69: 0 | BT69: 0 | BU69: 0 | BV69: 0 | BW69: 0 | BX69: 0 | BY69: 0 | BZ69: 0 | CA69: 0 | CC69: 0 | CD69: 0 | CE69: 0 | CF69: 0 | CG69: 0 | CH69: 0 | CI69: 0 | CJ69: 0 | CK69: 0 | CL69: 0
B70: 3 - Electron - Summary Report - Electron Market Platform - Trading Rules Development | C70: Trading Rules Research & Development | D70: Design | E70: 1000 | F70: Trading Rules Research & Development | G70: 0 | H70: 0 | I70: 0 | J70: 0 | K70: 0 | L70: 0 | M70: 0 | N70: 0 | O70: 0 | P70: 0 | Q70: =SUM(G70:P70) -> 0 | S70: 0.15 | T70: 0 | U70: 0 | V70: 0 | W70: 0.85 | X70: =SUM(R70:W70) -> 1 | Z70: =$R70*G70 -> 0 | AA70: =$R70*H70 -> 0 | AB70: =$R70*I70 -> 0 | AC70: =$R70*J70 -> 0 | AD70: =$R70*K70 -> 0 | AE70: =$R70*L70 -> 0 | AF70: =$R70*M70 -> 0 | AG70: =$R70*N70 -> 0 | AH70: =$R70*O70 -> 0 | AI70: =$R70*P70 -> 0 | AK70: =$S70*G70 -> 0 | AL70: =$S70*H70 -> 0 | AM70: =$S70*I70 -> 0 | AN70: =$S70*J70 -> 0 | AO70: =$S70*K70 -> 0 | AP70: =$S70*L70 -> 0 | AQ70: =$S70*M70 -> 0 | AR70: =$S70*N70 -> 0 | AS70: =$S70*O70 -> 0 | AT70: =$S70*P70 -> 0 | AV70: =$T70*G70 -> 0 | AW70: =$T70*H70 -> 0 | AX70: =$T70*I70 -> 0 | AY70: =$T70*J70 -> 0 | AZ70: =$T70*K70 -> 0 | BA70: =$T70*L70 -> 0 | BB70: =$T70*M70 -> 0 | BC70: =$T70*N70 -> 0 | BD70: =$T70*O70 -> 0 | BE70: =$T70*P70 -> 0 | BG70: =$U70*G70 -> 0 | BH70: =$U70*H70 -> 0 | BI70: =$U70*I70 -> 0 | BJ70: =$U70*J70 -> 0 | BK70: =$U70*K70 -> 0 | BL70: =$U70*L70 -> 0 | BM70: =$U70*M70 -> 0 | BN70: =$U70*N70 -> 0 | BO70: =$U70*O70 -> 0 | BP70: =$U70*P70 -> 0 | BR70: =$V70*G70 -> 0 | BS70: =$V70*H70 -> 0 | BT70: =$V70*I70 -> 0 | BU70: =$V70*J70 -> 0 | BV70: =$V70*K70 -> 0 | BW70: =$V70*L70 -> 0 | BX70: =$V70*M70 -> 0 | BY70: =$V70*N70 -> 0 | BZ70: =$V70*O70 -> 0 | CA70: =$V70*P70 -> 0 | CC70: =$W70*G70 -> 0 | CD70: =$W70*H70 -> 0 | CE70: =$W70*I70 -> 0 | CF70: =$W70*J70 -> 0 | CG70: =$W70*K70 -> 0 | CH70: =$W70*L70 -> 0 | CI70: =$W70*M70 -> 0 | CJ70: =$W70*N70 -> 0 | CK70: =$W70*O70 -> 0 | CL70: =$W70*P70 -> 0
B71: 3 - Electron - Trading platform design | C71: Trading Platform Design | D71: Design | E71: 1000 | F71: Trading Platform Design | G71: 0 | H71: 0 | I71: 0 | J71: 0 | K71: 0 | L71: 0 | M71: 0 | N71: 0 | O71: 0 | P71: 0 | Q71: 0 | S71: 0.15 | T71: 0 | U71: 0 | V71: 0 | W71: 0.85 | X71: 1 | Z71: 0 | AA71: 0 | AB71: 0 | AC71: 0 | AD71: 0 | AE71: 0 | AF71: 0 | AG71: 0 | AH71: 0 | AI71: 0 | AK71: 0 | AL71: 0 | AM71: 0 | AN71: 0 | AO71: 0 | AP71: 0 | AQ71: 0 | AR71: 0 | AS71: 0 | AT71: 0 | AV71: 0 | AW71: 0 | AX71: 0 | AY71: 0 | AZ71: 0 | BA71: 0 | BB71: 0 | BC71: 0 | BD71: 0 | BE71: 0 | BG71: 0 | BH71: 0 | BI71: 0 | BJ71: 0 | BK71: 0 | BL71: 0 | BM71: 0 | BN71: 0 | BO71: 0 | BP71: 0 | BR71: 0 | BS71: 0 | BT71: 0 | BU71: 0 | BV71: 0 | BW71: 0 | BX71: 0 | BY71: 0 | BZ71: 0 | CA71: 0 | CC71: 0 | CD71: 0 | CE71: 0 | CF71: 0 | CG71: 0 | CH71: 0 | CI71: 0 | CJ71: 0 | CK71: 0 | CL71: 0
B72: 3 - Electron - Developing data architecture to support the model - Data Model | C72: Data Model | D72: Design | E72: 1000 | F72: Data Model | G72: 0 | H72: 0 | I72: 0 | J72: 0 | K72: 0 | L72: 0 | M72: 0 | N72: 0 | O72: 0 | P72: 0 | Q72: 0 | S72: 0.15 | T72: 0 | U72: 0 | V72: 0 | W72: 0.85 | X72: 1 | Z72: 0 | AA72: 0 | AB72: 0 | AC72: 0 | AD72: 0 | AE72: 0 | AF72: 0 | AG72: 0 | AH72: 0 | AI72: 0 | AK72: 0 | AL72: 0 | AM72: 0 | AN72: 0 | AO72: 0 | AP72: 0 | AQ72: 0 | AR72: 0 | AS72: 0 | AT72: 0 | AV72: 0 | AW72: 0 | AX72: 0 | AY72: 0 | AZ72: 0 | BA72: 0 | BB72: 0 | BC72: 0 | BD72: 0 | BE72: 0 | BG72: 0 | BH72: 0 | BI72: 0 | BJ72: 0 | BK72: 0 | BL72: 0 | BM72: 0 | BN72: 0 | BO72: 0 | BP72: 0 | BR72: 0 | BS72: 0 | BT72: 0 | BU72: 0 | BV72: 0 | BW72: 0 | BX72: 0 | BY72: 0 | BZ72: 0 | CA72: 0 | CC72: 0 | CD72: 0 | CE72: 0 | CF72: 0 | CG72: 0 | CH72: 0 | CI72: 0 | CJ72: 0 | CK72: 0 | CL72: 0
B73: 3 - Electron - ElectronConnect License Fee | C73: Trading Platform Design | D73: Design | E73: 600000 | F73: Trading Platform Design | G73: 0 | H73: 0 | I73: 0 | J73: 600000 | K73: 0 | L73: 0 | M73: 0 | N73: 0 | O73: 0 | P73: 0 | Q73: 600000 | S73: 0.5 | T73: 0 | U73: 0 | V73: 0 | W73: 0.5 | X73: 1 | Z73: 0 | AA73: 0 | AB73: 0 | AC73: 0 | AD73: 0 | AE73: 0 | AF73: 0 | AG73: 0 | AH73: 0 | AI73: 0 | AK73: 0 | AL73: 0 | AM73: 0 | AN73: 300000 | AO73: 0 | AP73: 0 | AQ73: 0 | AR73: 0 | AS73: 0 | AT73: 0 | AV73: 0 | AW73: 0 | AX73: 0 | AY73: 0 | AZ73: 0 | BA73: 0 | BB73: 0 | BC73: 0 | BD73: 0 | BE73: 0 | BG73: 0 | BH73: 0 | BI73: 0 | BJ73: 0 | BK73: 0 | BL73: 0 | BM73: 0 | BN73: 0 | BO73: 0 | BP73: 0 | BR73: 0 | BS73: 0 | BT73: 0 | BU73: 0 | BV73: 0 | BW73: 0 | BX73: 0 | BY73: 0 | BZ73: 0 | CA73: 0 | CC73: 0 | CD73: 0 | CE73: 0 | CF73: 300000 | CG73: 0 | CH73: 0 | CI73: 0 | CJ73: 0 | CK73: 0 | CL73: 0
B74: 3 - Afry - Trading rules definition | C74: Trading Rules Research & Development | D74: Design | E74: 2384.322581 | F74: Trading Rules Research & Development | G74: 0 | H74: 0 | I74: 241900.3636 | J74: 0 | K74: 0 | L74: 0 | M74: 0 | N74: 0 | O74: 0 | P74: 0 | Q74: 241900.3636 | S74: 0 | T74: 0.1 | U74: 0 | V74: 0 | W74: 0.9 | X74: 1 | Z74: 0 | AA74: 0 | AB74: 0 | AC74: 0 | AD74: 0 | AE74: 0 | AF74: 0 | AG74: 0 | AH74: 0 | AI74: 0 | AK74: 0 | AL74: 0 | AM74: 0 | AN74: 0 | AO74: 0 | AP74: 0 | AQ74: 0 | AR74: 0 | AS74: 0 | AT74: 0 | AV74: 0 | AW74: 0 | AX74: 24190.03636 | AY74: 0 | AZ74: 0 | BA74: 0 | BB74: 0 | BC74: 0 | BD74: 0 | BE74: 0 | BG74: 0 | BH74: 0 | BI74: 0 | BJ74: 0 | BK74: 0 | BL74: 0 | BM74: 0 | BN74: 0 | BO74: 0 | BP74: 0 | BR74: 0 | BS74: 0 | BT74: 0 | BU74: 0 | BV74: 0 | BW74: 0 | BX74: 0 | BY74: 0 | BZ74: 0 | CA74: 0 | CC74: 0 | CD74: 0 | CE74: 217710.3273 | CF74: 0 | CG74: 0 | CH74: 0 | CI74: 0 | CJ74: 0 | CK74: 0 | CL74: 0
B75: 3 - ENWL - Data Architect | C75: Interface Design to ENWL Systems | D75: Design | E75: 795 | F75: Interface Design to ENWL Systems | G75: 0 | H75: 0 | I75: 0 | J75: 22876.37486 | K75: 0 | L75: 0 | M75: 0 | N75: 0 | O75: 0 | P75: 0 | Q75: 22876.37486 | S75: 0 | T75: 0 | U75: 0 | V75: 0 | W75: 1 | X75: 1 | Z75: 0 | AA75: 0 | AB75: 0 | AC75: 0 | AD75: 0 | AE75: 0 | AF75: 0 | AG75: 0 | AH75: 0 | AI75: 0 | AK75: 0 | AL75: 0 | AM75: 0 | AN75: 0 | AO75: 0 | AP75: 0 | AQ75: 0 | AR75: 0 | AS75: 0 | AT75: 0 | AV75: 0 | AW75: 0 | AX75: 0 | AY75: 0 | AZ75: 0 | BA75: 0 | BB75: 0 | BC75: 0 | BD75: 0 | BE75: 0 | BG75: 0 | BH75: 0 | BI75: 0 | BJ75: 0 | BK75: 0 | BL75: 0 | BM75: 0 | BN75: 0 | BO75: 0 | BP75: 0 | BR75: 0 | BS75: 0 | BT75: 0 | BU75: 0 | BV75: 0 | BW75: 0 | BX75: 0 | BY75: 0 | BZ75: 0 | CA75: 0 | CC75: 0 | CD75: 0 | CE75: 0 | CF75: 22876.37486 | CG75: 0 | CH75: 0 | CI75: 0 | CJ75: 0 | CK75: 0 | CL75: 0
B76: 3 - ENWL - Data Engineer Design | C76: Interface Design to ENWL Systems | D76: Design | E76: 625 | F76: Interface Design to ENWL Systems | G76: 0 | H76: 0 | I76: 0 | J76: 153430.875 | K76: 0 | L76: 0 | M76: 0 | N76: 0 | O76: 0 | P76: 0 | Q76: 153430.875 | S76: 0 | T76: 0 | U76: 0 | V76: 0 | W76: 1 | X76: 1 | Z76: 0 | AA76: 0 | AB76: 0 | AC76: 0 | AD76: 0 | AE76: 0 | AF76: 0 | AG76: 0 | AH76: 0 | AI76: 0 | AK76: 0 | AL76: 0 | AM76: 0 | AN76: 0 | AO76: 0 | AP76: 0 | AQ76: 0 | AR76: 0 | AS76: 0 | AT76: 0 | AV76: 0 | AW76: 0 | AX76: 0 | AY76: 0 | AZ76: 0 | BA76: 0 | BB76: 0 | BC76: 0 | BD76: 0 | BE76: 0 | BG76: 0 | BH76: 0 | BI76: 0 | BJ76: 0 | BK76: 0 | BL76: 0 | BM76: 0 | BN76: 0 | BO76: 0 | BP76: 0 | BR76: 0 | BS76: 0 | BT76: 0 | BU76: 0 | BV76: 0 | BW76: 0 | BX76: 0 | BY76: 0 | BZ76: 0 | CA76: 0 | CC76: 0 | CD76: 0 | CE76: 0 | CF76: 153430.875 | CG76: 0 | CH76: 0 | CI76: 0 | CJ76: 0 | CK76: 0 | CL76: 0
B77: 3 - ENWL - Customer API interface Design | C77: Interface Design to ENWL Systems | D77: Design | E77: 500 | F77: Interface Design to ENWL Systems | G77: 0 | H77: 0 | I77: 0 | J77: 39341.25 | K77: 0 | L77: 0 | M77: 0 | N77: 0 | O77: 0 | P77: 0 | Q77: 39341.25 | S77: 0 | T77: 0 | U77: 0 | V77: 0 | W77: 1 | X77: 1 | Z77: 0 | AA77: 0 | AB77: 0 | AC77: 0 | AD77: 0 | AE77: 0 | AF77: 0 | AG77: 0 | AH77: 0 | AI77: 0 | AK77: 0 | AL77: 0 | AM77: 0 | AN77: 0 | AO77: 0 | AP77: 0 | AQ77: 0 | AR77: 0 | AS77: 0 | AT77: 0 | AV77: 0 | AW77: 0 | AX77: 0 | AY77: 0 | AZ77: 0 | BA77: 0 | BB77: 0 | BC77: 0 | BD77: 0 | BE77: 0 | BG77: 0 | BH77: 0 | BI77: 0 | BJ77: 0 | BK77: 0 | BL77: 0 | BM77: 0 | BN77: 0 | BO77: 0 | BP77: 0 | BR77: 0 | BS77: 0 | BT77: 0 | BU77: 0 | BV77: 0 | BW77: 0 | BX77: 0 | BY77: 0 | BZ77: 0 | CA77: 0 | CC77: 0 | CD77: 0 | CE77: 0 | CF77: 39341.25 | CG77: 0 | CH77: 0 | CI77: 0 | CJ77: 0 | CK77: 0 | CL77: 0
B78: 3 - Delta-EE - Trading rules design | C78: Trading Rules Research & Development | D78: Design | E78: 1353.6 | F78: Trading Rules Research & Development | G78: 0 | H78: 0 | I78: 8460 | J78: 0 | K78: 0 | L78: 0 | M78: 0 | N78: 0 | O78: 0 | P78: 0 | Q78: 8460 | S78: 0 | T78: 0 | U78: 0.09929078014 | V78: 0 | W78: 0.9007092199 | X78: 1 | Z78: 0 | AA78: 0 | AB78: 0 | AC78: 0 | AD78: 0 | AE78: 0 | AF78: 0 | AG78: 0 | AH78: 0 | AI78: 0 | AK78: 0 | AL78: 0 | AM78: 0 | AN78: 0 | AO78: 0 | AP78: 0 | AQ78: 0 | AR78: 0 | AS78: 0 | AT78: 0 | AV78: 0 | AW78: 0 | AX78: 0 | AY78: 0 | AZ78: 0 | BA78: 0 | BB78: 0 | BC78: 0 | BD78: 0 | BE78: 0 | BG78: 0 | BH78: 0 | BI78: 840 | BJ78: 0 | BK78: 0 | BL78: 0 | BM78: 0 | BN78: 0 | BO78: 0 | BP78: 0 | BR78: 0 | BS78: 0 | BT78: 0 | BU78: 0 | BV78: 0 | BW78: 0 | BX78: 0 | BY78: 0 | BZ78: 0 | CA78: 0 | CC78: 0 | CD78: 0 | CE78: 7620 | CF78: 0 | CG78: 0 | CH78: 0 | CI78: 0 | CJ78: 0 | CK78: 0 | CL78: 0
B79: 3 - Delta-EE - Reviewing and feedback on proposed rules | C79: Trading Rules Research & Development | D79: Design | E79: 1504 | F79: Trading Rules Research & Development | G79: 0 | H79: 0 | I79: 0 | J79: 0 | K79: 0 | L79: 0 | M79: 0 | N79: 0 | O79: 0 | P79: 0 | Q79: 0 | S79: 0 | T79: 0 | U79: 0.195035461 | V79: 0 | W79: 0.804964539 | X79: 1 | Z79: 0 | AA79: 0 | AB79: 0 | AC79: 0 | AD79: 0 | AE79: 0 | AF79: 0 | AG79: 0 | AH79: 0 | AI79: 0 | AK79: 0 | AL79: 0 | AM79: 0 | AN79: 0 | AO79: 0 | AP79: 0 | AQ79: 0 | AR79: 0 | AS79: 0 | AT79: 0 | AV79: 0 | AW79: 0 | AX79: 0 | AY79: 0 | AZ79: 0 | BA79: 0 | BB79: 0 | BC79: 0 | BD79: 0 | BE79: 0 | BG79: 0 | BH79: 0 | BI79: 0 | BJ79: 0 | BK79: 0 | BL79: 0 | BM79: 0 | BN79: 0 | BO79: 0 | BP79: 0 | BR79: 0 | BS79: 0 | BT79: 0 | BU79: 0 | BV79: 0 | BW79: 0 | BX79: 0 | BY79: 0 | BZ79: 0 | CA79: 0 | CC79: 0 | CD79: 0 | CE79: 0 | CF79: 0 | CG79: 0 | CH79: 0 | CI79: 0 | CJ79: 0 | CK79: 0 | CL79: 0
B80: 3 - Design of interface to ANM | C80: Interface Design to ENWL Systems | D80: Design | E80: 250000 | F80: Interface Design to ENWL Systems | G80: 0 | H80: 0 | I80: 0 | J80: 262275 | K80: 0 | L80: 0 | M80: 0 | N80: 0 | O80: 0 | P80: 0 | Q80: 262275 | S80: 0 | T80: 0 | U80: 0 | V80: 0 | W80: 1 | X80: 1 | Z80: 0 | AA80: 0 | AB80: 0 | AC80: 0 | AD80: 0 | AE80: 0 | AF80: 0 | AG80: 0 | AH80: 0 | AI80: 0 | AK80: 0 | AL80: 0 | AM80: 0 | AN80: 0 | AO80: 0 | AP80: 0 | AQ80: 0 | AR80: 0 | AS80: 0 | AT80: 0 | AV80: 0 | AW80: 0 | AX80: 0 | AY80: 0 | AZ80: 0 | BA80: 0 | BB80: 0 | BC80: 0 | BD80: 0 | BE80: 0 | BG80: 0 | BH80: 0 | BI80: 0 | BJ80: 0 | BK80: 0 | BL80: 0 | BM80: 0 | BN80: 0 | BO80: 0 | BP80: 0 | BR80: 0 | BS80: 0 | BT80: 0 | BU80: 0 | BV80: 0 | BW80: 0 | BX80: 0 | BY80: 0 | BZ80: 0 | CA80: 0 | CC80: 0 | CD80: 0 | CE80: 0 | CF80: 262275 | CG80: 0 | CH80: 0 | CI80: 0 | CJ80: 0 | CK80: 0 | CL80: 0
B81: 3 - Afry - Trading rules definition after SG | C81: Trading Rules Research & Development | D81: Design | E81: 2389.285714 | F81: Trading Rules Research & Development | G81: 0 | H81: 0 | I81: 54736.36364 | J81: 0 | K81: 0 | L81: 0 | M81: 0 | N81: 0 | O81: 0 | P81: 0 | Q81: 54736.36364 | S81: 0 | T81: 0.1 | U81: 0 | V81: 0 | W81: 0.9 | X81: 1 | Z81: 0 | AA81: 0 | AB81: 0 | AC81: 0 | AD81: 0 | AE81: 0 | AF81: 0 | AG81: 0 | AH81: 0 | AI81: 0 | AK81: 0 | AL81: 0 | AM81: 0 | AN81: 0 | AO81: 0 | AP81: 0 | AQ81: 0 | AR81: 0 | AS81: 0 | AT81: 0 | AV81: 0 | AW81: 0 | AX81: 5473.636364 | AY81: 0 | AZ81: 0 | BA81: 0 | BB81: 0 | BC81: 0 | BD81: 0 | BE81: 0 | BG81: 0 | BH81: 0 | BI81: 0 | BJ81: 0 | BK81: 0 | BL81: 0 | BM81: 0 | BN81: 0 | BO81: 0 | BP81: 0 | BR81: 0 | BS81: 0 | BT81: 0 | BU81: 0 | BV81: 0 | BW81: 0 | BX81: 0 | BY81: 0 | BZ81: 0 | CA81: 0 | CC81: 0 | CD81: 0 | CE81: 49262.72727 | CF81: 0 | CG81: 0 | CH81: 0 | CI81: 0 | CJ81: 0 | CK81: 0 | CL81: 0
B82: 4 - Electron - Configuration of user interface / user experience - Application development | C82: Application Development | D82: Build | E82: 1000 | F82: Application Development | G82: 0 | H82: 0 | I82: 0 | J82: 0 | K82: 0 | L82: 0 | M82: 0 | N82: 0 | O82: 0 | P82: 0 | Q82: 0 | S82: 0.15 | T82: 0 | U82: 0 | V82: 0 | W82: 0.85 | X82: 1 | Z82: 0 | AA82: 0 | AB82: 0 | AC82: 0 | AD82: 0 | AE82: 0 | AF82: 0 | AG82: 0 | AH82: 0 | AI82: 0 | AK82: 0 | AL82: 0 | AM82: 0 | AN82: 0 | AO82: 0 | AP82: 0 | AQ82: 0 | AR82: 0 | AS82: 0 | AT82: 0 | AV82: 0 | AW82: 0 | AX82: 0 | AY82: 0 | AZ82: 0 | BA82: 0 | BB82: 0 | BC82: 0 | BD82: 0 | BE82: 0 | BG82: 0 | BH82: 0 | BI82: 0 | BJ82: 0 | BK82: 0 | BL82: 0 | BM82: 0 | BN82: 0 | BO82: 0 | BP82: 0 | BR82: 0 | BS82: 0 | BT82: 0 | BU82: 0 | BV82: 0 | BW82: 0 | BX82: 0 | BY82: 0 | BZ82: 0 | CA82: 0 | CC82: 0 | CD82: 0 | CE82: 0 | CF82: 0 | CG82: 0 | CH82: 0 | CI82: 0 | CJ82: 0 | CK82: 0 | CL82: 0
B83: 4 - Electron - Clearing interface configuration for Curtailment Obligations - Application development | C83: Application Development | D83: Build | E83: 1000 | F83: Application Development | G83: 0 | H83: 0 | I83: 0 | J83: 0 | K83: 0 | L83: 0 | M83: 0 | N83: 0 | O83: 0 | P83: 0 | Q83: 0 | S83: 0.15 | T83: 0 | U83: 0 | V83: 0 | W83: 0.85 | X83: 1 | Z83: 0 | AA83: 0 | AB83: 0 | AC83: 0 | AD83: 0 | AE83: 0 | AF83: 0 | AG83: 0 | AH83: 0 | AI83: 0 | AK83: 0 | AL83: 0 | AM83: 0 | AN83: 0 | AO83: 0 | AP83: 0 | AQ83: 0 | AR83: 0 | AS83: 0 | AT83: 0 | AV83: 0 | AW83: 0 | AX83: 0 | AY83: 0 | AZ83: 0 | BA83: 0 | BB83: 0 | BC83: 0 | BD83: 0 | BE83: 0 | BG83: 0 | BH83: 0 | BI83: 0 | BJ83: 0 | BK83: 0 | BL83: 0 | BM83: 0 | BN83: 0 | BO83: 0 | BP83: 0 | BR83: 0 | BS83: 0 | BT83: 0 | BU83: 0 | BV83: 0 | BW83: 0 | BX83: 0 | BY83: 0 | BZ83: 0 | CA83: 0 | CC83: 0 | CD83: 0 | CE83: 0 | CF83: 0 | CG83: 0 | CH83: 0 | CI83: 0 | CJ83: 0 | CK83: 0 | CL83: 0
B84: 4 - Electron - Platform installation and basic set-up and FAT/SAT - Application development | C84: Application Development | D84: Build | E84: 1000 | F84: Application Development | G84: 0 | H84: 0 | I84: 0 | J84: 0 | K84: 0 | L84: 0 | M84: 0 | N84: 0 | O84: 0 | P84: 0 | Q84: 0 | S84: 0.15 | T84: 0 | U84: 0 | V84: 0 | W84: 0.85 | X84: 1 | Z84: 0 | AA84: 0 | AB84: 0 | AC84: 0 | AD84: 0 | AE84: 0 | AF84: 0 | AG84: 0 | AH84: 0 | AI84: 0 | AK84: 0 | AL84: 0 | AM84: 0 | AN84: 0 | AO84: 0 | AP84: 0 | AQ84: 0 | AR84: 0 | AS84: 0 | AT84: 0 | AV84: 0 | AW84: 0 | AX84: 0 | AY84: 0 | AZ84: 0 | BA84: 0 | BB84: 0 | BC84: 0 | BD84: 0 | BE84: 0 | BG84: 0 | BH84: 0 | BI84: 0 | BJ84: 0 | BK84: 0 | BL84: 0 | BM84: 0 | BN84: 0 | BO84: 0 | BP84: 0 | BR84: 0 | BS84: 0 | BT84: 0 | BU84: 0 | BV84: 0 | BW84: 0 | BX84: 0 | BY84: 0 | BZ84: 0 | CA84: 0 | CC84: 0 | CD84: 0 | CE84: 0 | CF84: 0 | CG84: 0 | CH84: 0 | CI84: 0 | CJ84: 0 | CK84: 0 | CL84: 0
B85: 4 - Electron - Participant integration and testing pre-production - Application development | C85: Application Development | D85: Build | E85: 1000 | F85: Application Development | G85: 0 | H85: 0 | I85: 0 | J85: 0 | K85: 0 | L85: 0 | M85: 0 | N85: 0 | O85: 0 | P85: 0 | Q85: 0 | S85: 0.15 | T85: 0 | U85: 0 | V85: 0 | W85: 0.85 | X85: 1 | Z85: 0 | AA85: 0 | AB85: 0 | AC85: 0 | AD85: 0 | AE85: 0 | AF85: 0 | AG85: 0 | AH85: 0 | AI85: 0 | AK85: 0 | AL85: 0 | AM85: 0 | AN85: 0 | AO85: 0 | AP85: 0 | AQ85: 0 | AR85: 0 | AS85: 0 | AT85: 0 | AV85: 0 | AW85: 0 | AX85: 0 | AY85: 0 | AZ85: 0 | BA85: 0 | BB85: 0 | BC85: 0 | BD85: 0 | BE85: 0 | BG85: 0 | BH85: 0 | BI85: 0 | BJ85: 0 | BK85: 0 | BL85: 0 | BM85: 0 | BN85: 0 | BO85: 0 | BP85: 0 | BR85: 0 | BS85: 0 | BT85: 0 | BU85: 0 | BV85: 0 | BW85: 0 | BX85: 0 | BY85: 0 | BZ85: 0 | CA85: 0 | CC85: 0 | CD85: 0 | CE85: 0 | CF85: 0 | CG85: 0 | CH85: 0 | CI85: 0 | CJ85: 0 | CK85: 0 | CL85: 0
B86: 4 - Electron - Create and operationalise links to replica system - Application development | C86: Application Development | D86: Build | E86: 1000 | F86: Application Development | G86: 0 | H86: 0 | I86: 0 | J86: 0 | K86: 0 | L86: 0 | M86: 0 | N86: 0 | O86: 0 | P86: 0 | Q86: 0 | S86: 0.15 | T86: 0 | U86: 0 | V86: 0 | W86: 0.85 | X86: 1 | Z86: 0 | AA86: 0 | AB86: 0 | AC86: 0 | AD86: 0 | AE86: 0 | AF86: 0 | AG86: 0 | AH86: 0 | AI86: 0 | AK86: 0 | AL86: 0 | AM86: 0 | AN86: 0 | AO86: 0 | AP86: 0 | AQ86: 0 | AR86: 0 | AS86: 0 | AT86: 0 | AV86: 0 | AW86: 0 | AX86: 0 | AY86: 0 | AZ86: 0 | BA86: 0 | BB86: 0 | BC86: 0 | BD86: 0 | BE86: 0 | BG86: 0 | BH86: 0 | BI86: 0 | BJ86: 0 | BK86: 0 | BL86: 0 | BM86: 0 | BN86: 0 | BO86: 0 | BP86: 0 | BR86: 0 | BS86: 0 | BT86: 0 | BU86: 0 | BV86: 0 | BW86: 0 | BX86: 0 | BY86: 0 | BZ86: 0 | CA86: 0 | CC86: 0 | CD86: 0 | CE86: 0 | CF86: 0 | CG86: 0 | CH86: 0 | CI86: 0 | CJ86: 0 | CK86: 0 | CL86: 0
B87: 4 - Electron - Transitioning from replica environment to real life trading - Application development | C87: Simulation Trials | D87: Trials & Analysis | E87: 1000 | F87: Simulation Trials | G87: 0 | H87: 0 | I87: 0 | J87: 0 | K87: 0 | L87: 0 | M87: 0 | N87: 0 | O87: 0 | P87: 0 | Q87: 0 | S87: 0.15 | T87: 0 | U87: 0 | V87: 0 | W87: 0.85 | X87: 1 | Z87: 0 | AA87: 0 | AB87: 0 | AC87: 0 | AD87: 0 | AE87: 0 | AF87: 0 | AG87: 0 | AH87: 0 | AI87: 0 | AK87: 0 | AL87: 0 | AM87: 0 | AN87: 0 | AO87: 0 | AP87: 0 | AQ87: 0 | AR87: 0 | AS87: 0 | AT87: 0 | AV87: 0 | AW87: 0 | AX87: 0 | AY87: 0 | AZ87: 0 | BA87: 0 | BB87: 0 | BC87: 0 | BD87: 0 | BE87: 0 | BG87: 0 | BH87: 0 | BI87: 0 | BJ87: 0 | BK87: 0 | BL87: 0 | BM87: 0 | BN87: 0 | BO87: 0 | BP87: 0 | BR87: 0 | BS87: 0 | BT87: 0 | BU87: 0 | BV87: 0 | BW87: 0 | BX87: 0 | BY87: 0 | BZ87: 0 | CA87: 0 | CC87: 0 | CD87: 0 | CE87: 0 | CF87: 0 | CG87: 0 | CH87: 0 | CI87: 0 | CJ87: 0 | CK87: 0 | CL87: 0
B88: 4 - ENWL - Data Engineer Build | C88: Interface Build to ENWL Systems | D88: Build | E88: 625 | F88: Interface Build to ENWL Systems | G88: 0 | H88: 0 | I88: 0 | J88: 24225.92763 | K88: 0 | L88: 0 | M88: 0 | N88: 0 | O88: 0 | P88: 0 | Q88: 24225.92763 | S88: 0 | T88: 0 | U88: 0 | V88: 0 | W88: 1 | X88: 1 | Z88: 0 | AA88: 0 | AB88: 0 | AC88: 0 | AD88: 0 | AE88: 0 | AF88: 0 | AG88: 0 | AH88: 0 | AI88: 0 | AK88: 0 | AL88: 0 | AM88: 0 | AN88: 0 | AO88: 0 | AP88: 0 | AQ88: 0 | AR88: 0 | AS88: 0 | AT88: 0 | AV88: 0 | AW88: 0 | AX88: 0 | AY88: 0 | AZ88: 0 | BA88: 0 | BB88: 0 | BC88: 0 | BD88: 0 | BE88: 0 | BG88: 0 | BH88: 0 | BI88: 0 | BJ88: 0 | BK88: 0 | BL88: 0 | BM88: 0 | BN88: 0 | BO88: 0 | BP88: 0 | BR88: 0 | BS88: 0 | BT88: 0 | BU88: 0 | BV88: 0 | BW88: 0 | BX88: 0 | BY88: 0 | BZ88: 0 | CA88: 0 | CC88: 0 | CD88: 0 | CE88: 0 | CF88: 24225.92763 | CG88: 0 | CH88: 0 | CI88: 0 | CJ88: 0 | CK88: 0 | CL88: 0
B89: 4 - ENWL - Integration Engineer | C89: Interface Build to ENWL Systems | D89: Build | E89: 625 | F89: Interface Build to ENWL Systems | G89: 0 | H89: 0 | I89: 0 | J89: 0 | K89: 0 | L89: 0 | M89: 0 | N89: 0 | O89: 0 | P89: 0 | Q89: 0 | S89: 0 | T89: 0 | U89: 0 | V89: 0 | W89: 1 | X89: 1 | Z89: 0 | AA89: 0 | AB89: 0 | AC89: 0 | AD89: 0 | AE89: 0 | AF89: 0 | AG89: 0 | AH89: 0 | AI89: 0 | AK89: 0 | AL89: 0 | AM89: 0 | AN89: 0 | AO89: 0 | AP89: 0 | AQ89: 0 | AR89: 0 | AS89: 0 | AT89: 0 | AV89: 0 | AW89: 0 | AX89: 0 | AY89: 0 | AZ89: 0 | BA89: 0 | BB89: 0 | BC89: 0 | BD89: 0 | BE89: 0 | BG89: 0 | BH89: 0 | BI89: 0 | BJ89: 0 | BK89: 0 | BL89: 0 | BM89: 0 | BN89: 0 | BO89: 0 | BP89: 0 | BR89: 0 | BS89: 0 | BT89: 0 | BU89: 0 | BV89: 0 | BW89: 0 | BX89: 0 | BY89: 0 | BZ89: 0 | CA89: 0 | CC89: 0 | CD89: 0 | CE89: 0 | CF89: 0 | CG89: 0 | CH89: 0 | CI89: 0 | CJ89: 0 | CK89: 0 | CL89: 0
B90: 4 - ENWL - Cyber security build | C90: Interface Build to ENWL Systems | D90: Build | E90: 625 | F90: Interface Build to ENWL Systems | G90: 0 | H90: 0 | I90: 0 | J90: 0 | K90: 0 | L90: 0 | M90: 0 | N90: 0 | O90: 0 | P90: 0 | Q90: 0 | S90: 0 | T90: 0 | U90: 0 | V90: 0 | W90: 1 | X90: 1 | Z90: 0 | AA90: 0 | AB90: 0 | AC90: 0 | AD90: 0 | AE90: 0 | AF90: 0 | AG90: 0 | AH90: 0 | AI90: 0 | AK90: 0 | AL90: 0 | AM90: 0 | AN90: 0 | AO90: 0 | AP90: 0 | AQ90: 0 | AR90: 0 | AS90: 0 | AT90: 0 | AV90: 0 | AW90: 0 | AX90: 0 | AY90: 0 | AZ90: 0 | BA90: 0 | BB90: 0 | BC90: 0 | BD90: 0 | BE90: 0 | BG90: 0 | BH90: 0 | BI90: 0 | BJ90: 0 | BK90: 0 | BL90: 0 | BM90: 0 | BN90: 0 | BO90: 0 | BP90: 0 | BR90: 0 | BS90: 0 | BT90: 0 | BU90: 0 | BV90: 0 | BW90: 0 | BX90: 0 | BY90: 0 | BZ90: 0 | CA90: 0 | CC90: 0 | CD90: 0 | CE90: 0 | CF90: 0 | CG90: 0 | CH90: 0 | CI90: 0 | CJ90: 0 | CK90: 0 | CL90: 0
B91: 4 - IT - BiTraDER enviroments (virtual/physical) | C91: Application Integration | D91: Build | E91: 100000 | F91: Application Integration | G91: 0 | H91: 0 | I91: 0 | J91: 0 | K91: 0 | L91: 0 | M91: 0 | N91: 0 | O91: 0 | P91: 0 | Q91: 0 | S91: 0 | T91: 0 | U91: 0 | V91: 0 | W91: 1 | X91: 1 | Z91: 0 | AA91: 0 | AB91: 0 | AC91: 0 | AD91: 0 | AE91: 0 | AF91: 0 | AG91: 0 | AH91: 0 | AI91: 0 | AK91: 0 | AL91: 0 | AM91: 0 | AN91: 0 | AO91: 0 | AP91: 0 | AQ91: 0 | AR91: 0 | AS91: 0 | AT91: 0 | AV91: 0 | AW91: 0 | AX91: 0 | AY91: 0 | AZ91: 0 | BA91: 0 | BB91: 0 | BC91: 0 | BD91: 0 | BE91: 0 | BG91: 0 | BH91: 0 | BI91: 0 | BJ91: 0 | BK91: 0 | BL91: 0 | BM91: 0 | BN91: 0 | BO91: 0 | BP91: 0 | BR91: 0 | BS91: 0 | BT91: 0 | BU91: 0 | BV91: 0 | BW91: 0 | BX91: 0 | BY91: 0 | BZ91: 0 | CA91: 0 | CC91: 0 | CD91: 0 | CE91: 0 | CF91: 0 | CG91: 0 | CH91: 0 | CI91: 0 | CJ91: 0 | CK91: 0 | CL91: 0
B92: 4 - ENWL - Customer API interface Build | C92: Interface Build to ENWL Systems | D92: Build | E92: 500 | F92: Interface Build to ENWL Systems | G92: 0 | H92: 0 | I92: 0 | J92: 0 | K92: 0 | L92: 0 | M92: 0 | N92: 0 | O92: 0 | P92: 0 | Q92: 0 | S92: 0 | T92: 0 | U92: 0 | V92: 0 | W92: 1 | X92: 1 | Z92: 0 | AA92: 0 | AB92: 0 | AC92: 0 | AD92: 0 | AE92: 0 | AF92: 0 | AG92: 0 | AH92: 0 | AI92: 0 | AK92: 0 | AL92: 0 | AM92: 0 | AN92: 0 | AO92: 0 | AP92: 0 | AQ92: 0 | AR92: 0 | AS92: 0 | AT92: 0 | AV92: 0 | AW92: 0 | AX92: 0 | AY92: 0 | AZ92: 0 | BA92: 0 | BB92: 0 | BC92: 0 | BD92: 0 | BE92: 0 | BG92: 0 | BH92: 0 | BI92: 0 | BJ92: 0 | BK92: 0 | BL92: 0 | BM92: 0 | BN92: 0 | BO92: 0 | BP92: 0 | BR92: 0 | BS92: 0 | BT92: 0 | BU92: 0 | BV92: 0 | BW92: 0 | BX92: 0 | BY92: 0 | BZ92: 0 | CA92: 0 | CC92: 0 | CD92: 0 | CE92: 0 | CF92: 0 | CG92: 0 | CH92: 0 | CI92: 0 | CJ92: 0 | CK92: 0 | CL92: 0
B93: 4 - Build of interface to ANM | C93: Interface Build to ENWL Systems | D93: Build | E93: 250000 | F93: Interface Build to ENWL Systems | G93: 0 | H93: 0 | I93: 0 | J93: 0 | K93: 0 | L93: 0 | M93: 0 | N93: 0 | O93: 0 | P93: 0 | Q93: 0 | S93: 0 | T93: 0 | U93: 0 | V93: 0 | W93: 1 | X93: 1 | Z93: 0 | AA93: 0 | AB93: 0 | AC93: 0 | AD93: 0 | AE93: 0 | AF93: 0 | AG93: 0 | AH93: 0 | AI93: 0 | AK93: 0 | AL93: 0 | AM93: 0 | AN93: 0 | AO93: 0 | AP93: 0 | AQ93: 0 | AR93: 0 | AS93: 0 | AT93: 0 | AV93: 0 | AW93: 0 | AX93: 0 | AY93: 0 | AZ93: 0 | BA93: 0 | BB93: 0 | BC93: 0 | BD93: 0 | BE93: 0 | BG93: 0 | BH93: 0 | BI93: 0 | BJ93: 0 | BK93: 0 | BL93: 0 | BM93: 0 | BN93: 0 | BO93: 0 | BP93: 0 | BR93: 0 | BS93: 0 | BT93: 0 | BU93: 0 | BV93: 0 | BW93: 0 | BX93: 0 | BY93: 0 | BZ93: 0 | CA93: 0 | CC93: 0 | CD93: 0 | CE93: 0 | CF93: 0 | CG93: 0 | CH93: 0 | CI93: 0 | CJ93: 0 | CK93: 0 | CL93: 0
B94: 5 - Electron - Simulation operations support - Application development | C94: Simulation Trials | D94: Trials & Analysis | E94: 1000 | F94: Simulation Trials | G94: 0 | H94: 0 | I94: 0 | J94: 0 | K94: 0 | L94: 0 | M94: 0 | N94: 0 | O94: 0 | P94: 0 | Q94: 0 | S94: 0.15 | T94: 0 | U94: 0 | V94: 0 | W94: 0.85 | X94: 1 | Z94: 0 | AA94: 0 | AB94: 0 | AC94: 0 | AD94: 0 | AE94: 0 | AF94: 0 | AG94: 0 | AH94: 0 | AI94: 0 | AK94: 0 | AL94: 0 | AM94: 0 | AN94: 0 | AO94: 0 | AP94: 0 | AQ94: 0 | AR94: 0 | AS94: 0 | AT94: 0 | AV94: 0 | AW94: 0 | AX94: 0 | AY94: 0 | AZ94: 0 | BA94: 0 | BB94: 0 | BC94: 0 | BD94: 0 | BE94: 0 | BG94: 0 | BH94: 0 | BI94: 0 | BJ94: 0 | BK94: 0 | BL94: 0 | BM94: 0 | BN94: 0 | BO94: 0 | BP94: 0 | BR94: 0 | BS94: 0 | BT94: 0 | BU94: 0 | BV94: 0 | BW94: 0 | BX94: 0 | BY94: 0 | BZ94: 0 | CA94: 0 | CC94: 0 | CD94: 0 | CE94: 0 | CF94: 0 | CG94: 0 | CH94: 0 | CI94: 0 | CJ94: 0 | CK94: 0 | CL94: 0
B95: 5 - Electron - Simulation planning - Simulation and trial implementation | C95: Simulation Trials | D95: Trials & Analysis | E95: 1000 | F95: Simulation Trials | G95: 0 | H95: 0 | I95: 0 | J95: 0 | K95: 0 | L95: 0 | M95: 0 | N95: 0 | O95: 0 | P95: 0 | Q95: 0 | S95: 0.15 | T95: 0 | U95: 0 | V95: 0 | W95: 0.85 | X95: 1 | Z95: 0 | AA95: 0 | AB95: 0 | AC95: 0 | AD95: 0 | AE95: 0 | AF95: 0 | AG95: 0 | AH95: 0 | AI95: 0 | AK95: 0 | AL95: 0 | AM95: 0 | AN95: 0 | AO95: 0 | AP95: 0 | AQ95: 0 | AR95: 0 | AS95: 0 | AT95: 0 | AV95: 0 | AW95: 0 | AX95: 0 | AY95: 0 | AZ95: 0 | BA95: 0 | BB95: 0 | BC95: 0 | BD95: 0 | BE95: 0 | BG95: 0 | BH95: 0 | BI95: 0 | BJ95: 0 | BK95: 0 | BL95: 0 | BM95: 0 | BN95: 0 | BO95: 0 | BP95: 0 | BR95: 0 | BS95: 0 | BT95: 0 | BU95: 0 | BV95: 0 | BW95: 0 | BX95: 0 | BY95: 0 | BZ95: 0 | CA95: 0 | CC95: 0 | CD95: 0 | CE95: 0 | CF95: 0 | CG95: 0 | CH95: 0 | CI95: 0 | CJ95: 0 | CK95: 0 | CL95: 0
B96: 5 - Electron - Managing the operation of the trial - Simulation and trial implementation | C96: Network Trials | D96: Trials & Analysis | E96: 1000 | F96: Network Trials | G96: 0 | H96: 0 | I96: 0 | J96: 0 | K96: 0 | L96: 0 | M96: 0 | N96: 0 | O96: 0 | P96: 0 | Q96: 0 | S96: 0.15 | T96: 0 | U96: 0 | V96: 0 | W96: 0.85 | X96: 1 | Z96: 0 | AA96: 0 | AB96: 0 | AC96: 0 | AD96: 0 | AE96: 0 | AF96: 0 | AG96: 0 | AH96: 0 | AI96: 0 | AK96: 0 | AL96: 0 | AM96: 0 | AN96: 0 | AO96: 0 | AP96: 0 | AQ96: 0 | AR96: 0 | AS96: 0 | AT96: 0 | AV96: 0 | AW96: 0 | AX96: 0 | AY96: 0 | AZ96: 0 | BA96: 0 | BB96: 0 | BC96: 0 | BD96: 0 | BE96: 0 | BG96: 0 | BH96: 0 | BI96: 0 | BJ96: 0 | BK96: 0 | BL96: 0 | BM96: 0 | BN96: 0 | BO96: 0 | BP96: 0 | BR96: 0 | BS96: 0 | BT96: 0 | BU96: 0 | BV96: 0 | BW96: 0 | BX96: 0 | BY96: 0 | BZ96: 0 | CA96: 0 | CC96: 0 | CD96: 0 | CE96: 0 | CF96: 0 | CG96: 0 | CH96: 0 | CI96: 0 | CJ96: 0 | CK96: 0 | CL96: 0
B97: 5 - Electron - Develop roadmap for roll out of simulation to full trial | C97: Network Trials | D97: Trials & Analysis | E97: 1000 | F97: Network Trials | G97: 0 | H97: 0 | I97: 0 | J97: 0 | K97: 0 | L97: 0 | M97: 0 | N97: 0 | O97: 0 | P97: 0 | Q97: 0 | S97: 0.15 | T97: 0 | U97: 0 | V97: 0 | W97: 0.85 | X97: 1 | Z97: 0 | AA97: 0 | AB97: 0 | AC97: 0 | AD97: 0 | AE97: 0 | AF97: 0 | AG97: 0 | AH97: 0 | AI97: 0 | AK97: 0 | AL97: 0 | AM97: 0 | AN97: 0 | AO97: 0 | AP97: 0 | AQ97: 0 | AR97: 0 | AS97: 0 | AT97: 0 | AV97: 0 | AW97: 0 | AX97: 0 | AY97: 0 | AZ97: 0 | BA97: 0 | BB97: 0 | BC97: 0 | BD97: 0 | BE97: 0 | BG97: 0 | BH97: 0 | BI97: 0 | BJ97: 0 | BK97: 0 | BL97: 0 | BM97: 0 | BN97: 0 | BO97: 0 | BP97: 0 | BR97: 0 | BS97: 0 | BT97: 0 | BU97: 0 | BV97: 0 | BW97: 0 | BX97: 0 | BY97: 0 | BZ97: 0 | CA97: 0 | CC97: 0 | CD97: 0 | CE97: 0 | CF97: 0 | CG97: 0 | CH97: 0 | CI97: 0 | CJ97: 0 | CK97: 0 | CL97: 0
B98: 5 - ENWL - Payments to users | C98: Payments to users | D98: Payments to users | E98: 260000 | F98: Payments to users | G98: 0 | H98: 0 | I98: 0 | J98: 0 | K98: 0 | L98: 0 | M98: 0 | N98: 0 | O98: 0 | P98: 0 | Q98: 0 | S98: 0 | T98: 0 | U98: 0 | V98: 0 | W98: 1 | X98: 1 | Z98: 0 | AA98: 0 | AB98: 0 | AC98: 0 | AD98: 0 | AE98: 0 | AF98: 0 | AG98: 0 | AH98: 0 | AI98: 0 | AK98: 0 | AL98: 0 | AM98: 0 | AN98: 0 | AO98: 0 | AP98: 0 | AQ98: 0 | AR98: 0 | AS98: 0 | AT98: 0 | AV98: 0 | AW98: 0 | AX98: 0 | AY98: 0 | AZ98: 0 | BA98: 0 | BB98: 0 | BC98: 0 | BD98: 0 | BE98: 0 | BG98: 0 | BH98: 0 | BI98: 0 | BJ98: 0 | BK98: 0 | BL98: 0 | BM98: 0 | BN98: 0 | BO98: 0 | BP98: 0 | BR98: 0 | BS98: 0 | BT98: 0 | BU98: 0 | BV98: 0 | BW98: 0 | BX98: 0 | BY98: 0 | BZ98: 0 | CA98: 0 | CC98: 0 | CD98: 0 | CE98: 0 | CF98: 0 | CG98: 0 | CH98: 0 | CI98: 0 | CJ98: 0 | CK98: 0 | CL98: 0
B99: 6 - Electron - Design Documentation - Platform Analytics & Reporting | C99: Functional Specification for BiTraDER | D99: Closedown & BAU | E99: 1000 | F99: Functional Specification for BiTraDER | G99: 0 | H99: 0 | I99: 0 | J99: 0 | K99: 0 | L99: 0 | M99: 0 | N99: 0 | O99: 0 | P99: 0 | Q99: 0 | S99: 0.15 | T99: 0 | U99: 0 | V99: 0 | W99: 0.85 | X99: 1 | Z99: 0 | AA99: 0 | AB99: 0 | AC99: 0 | AD99: 0 | AE99: 0 | AF99: 0 | AG99: 0 | AH99: 0 | AI99: 0 | AK99: 0 | AL99: 0 | AM99: 0 | AN99: 0 | AO99: 0 | AP99: 0 | AQ99: 0 | AR99: 0 | AS99: 0 | AT99: 0 | AV99: 0 | AW99: 0 | AX99: 0 | AY99: 0 | AZ99: 0 | BA99: 0 | BB99: 0 | BC99: 0 | BD99: 0 | BE99: 0 | BG99: 0 | BH99: 0 | BI99: 0 | BJ99: 0 | BK99: 0 | BL99: 0 | BM99: 0 | BN99: 0 | BO99: 0 | BP99: 0 | BR99: 0 | BS99: 0 | BT99: 0 | BU99: 0 | BV99: 0 | BW99: 0 | BX99: 0 | BY99: 0 | BZ99: 0 | CA99: 0 | CC99: 0 | CD99: 0 | CE99: 0 | CF99: 0 | CG99: 0 | CH99: 0 | CI99: 0 | CJ99: 0 | CK99: 0 | CL99: 0
B100: 6 - Electron - Test Documentation - Platform Analytics & Reporting | C100: Functional Specification for BiTraDER | D100: Closedown & BAU | E100: 1000 | F100: Functional Specification for BiTraDER | G100: 0 | H100: 0 | I100: 0 | J100: 0 | K100: 0 | L100: 0 | M100: 0 | N100: 0 | O100: 0 | P100: 0 | Q100: 0 | S100: 0.15 | T100: 0 | U100: 0 | V100: 0 | W100: 0.85 | X100: 1 | Z100: 0 | AA100: 0 | AB100: 0 | AC100: 0 | AD100: 0 | AE100: 0 | AF100: 0 | AG100: 0 | AH100: 0 | AI100: 0 | AK100: 0 | AL100: 0 | AM100: 0 | AN100: 0 | AO100: 0 | AP100: 0 | AQ100: 0 | AR100: 0 | AS100: 0 | AT100: 0 | AV100: 0 | AW100: 0 | AX100: 0 | AY100: 0 | AZ100: 0 | BA100: 0 | BB100: 0 | BC100: 0 | BD100: 0 | BE100: 0 | BG100: 0 | BH100: 0 | BI100: 0 | BJ100: 0 | BK100: 0 | BL100: 0 | BM100: 0 | BN100: 0 | BO100: 0 | BP100: 0 | BR100: 0 | BS100: 0 | BT100: 0 | BU100: 0 | BV100: 0 | BW100: 0 | BX100: 0 | BY100: 0 | BZ100: 0 | CA100: 0 | CC100: 0 | CD100: 0 | CE100: 0 | CF100: 0 | CG100: 0 | CH100: 0 | CI100: 0 | CJ100: 0 | CK100: 0 | CL100: 0
B101: 6 - Electron - Performance Documentation - Platform Analytics & Reporting | C101: Network Trials | D101: Trials & Analysis | E101: 1000 | F101: Network Trials | G101: 0 | H101: 0 | I101: 0 | J101: 0 | K101: 0 | L101: 0 | M101: 0 | N101: 0 | O101: 0 | P101: 0 | Q101: 0 | S101: 0.15 | T101: 0 | U101: 0 | V101: 0 | W101: 0.85 | X101: 1 | Z101: 0 | AA101: 0 | AB101: 0 | AC101: 0 | AD101: 0 | AE101: 0 | AF101: 0 | AG101: 0 | AH101: 0 | AI101: 0 | AK101: 0 | AL101: 0 | AM101: 0 | AN101: 0 | AO101: 0 | AP101: 0 | AQ101: 0 | AR101: 0 | AS101: 0 | AT101: 0 | AV101: 0 | AW101: 0 | AX101: 0 | AY101: 0 | AZ101: 0 | BA101: 0 | BB101: 0 | BC101: 0 | BD101: 0 | BE101: 0 | BG101: 0 | BH101: 0 | BI101: 0 | BJ101: 0 | BK101: 0 | BL101: 0 | BM101: 0 | BN101: 0 | BO101: 0 | BP101: 0 | BR101: 0 | BS101: 0 | BT101: 0 | BU101: 0 | BV101: 0 | BW101: 0 | BX101: 0 | BY101: 0 | BZ101: 0 | CA101: 0 | CC101: 0 | CD101: 0 | CE101: 0 | CF101: 0 | CG101: 0 | CH101: 0 | CI101: 0 | CJ101: 0 | CK101: 0 | CL101: 0
B102: 6 - Afry - CBA | C102: Closedown | D102: Closedown & BAU | E102: 1841.142857 | F102: Closedown | G102: 0 | H102: 0 | I102: 0 | J102: 0 | K102: 0 | L102: 0 | M102: 0 | N102: 0 | O102: 0 | P102: 0 | Q102: 0 | S102: 0 | T102: 0.1 | U102: 0 | V102: 0 | W102: 0.9 | X102: =SUM(R102:W102) -> 1 | Z102: =$R102*G102 -> 0 | AA102: =$R102*H102 -> 0 | AB102: =$R102*I102 -> 0 | AC102: =$R102*J102 -> 0 | AD102: =$R102*K102 -> 0 | AE102: =$R102*L102 -> 0 | AF102: =$R102*M102 -> 0 | AG102: =$R102*N102 -> 0 | AH102: =$R102*O102 -> 0 | AI102: =$R102*P102 -> 0 | AK102: =$S102*G102 -> 0 | AL102: =$S102*H102 -> 0 | AM102: =$S102*I102 -> 0 | AN102: =$S102*J102 -> 0 | AO102: =$S102*K102 -> 0 | AP102: =$S102*L102 -> 0 | AQ102: =$S102*M102 -> 0 | AR102: =$S102*N102 -> 0 | AS102: =$S102*O102 -> 0 | AT102: =$S102*P102 -> 0 | AV102: =$T102*G102 -> 0 | AW102: =$T102*H102 -> 0 | AX102: =$T102*I102 -> 0 | AY102: =$T102*J102 -> 0 | AZ102: =$T102*K102 -> 0 | BA102: =$T102*L102 -> 0 | BB102: =$T102*M102 -> 0 | BC102: =$T102*N102 -> 0 | BD102: =$T102*O102 -> 0 | BE102: =$T102*P102 -> 0 | BG102: =$U102*G102 -> 0 | BH102: =$U102*H102 -> 0 | BI102: =$U102*I102 -> 0 | BJ102: =$U102*J102 -> 0 | BK102: =$U102*K102 -> 0 | BL102: =$U102*L102 -> 0 | BM102: =$U102*M102 -> 0 | BN102: =$U102*N102 -> 0 | BO102: =$U102*O102 -> 0 | BP102: =$U102*P102 -> 0 | BR102: =$V102*G102 -> 0 | BS102: =$V102*H102 -> 0 | BT102: =$V102*I102 -> 0 | BU102: =$V102*J102 -> 0 | BV102: =$V102*K102 -> 0 | BW102: =$V102*L102 -> 0 | BX102: =$V102*M102 -> 0 | BY102: =$V102*N102 -> 0 | BZ102: =$V102*O102 -> 0 | CA102: =$V102*P102 -> 0 | CC102: =$W102*G102 -> 0 | CD102: =$W102*H102 -> 0 | CE102: =$W102*I102 -> 0 | CF102: =$W102*J102 -> 0 | CG102: =$W102*K102 -> 0 | CH102: =$W102*L102 -> 0 | CI102: =$W102*M102 -> 0 | CJ102: =$W102*N102 -> 0 | CK102: =$W102*O102 -> 0 | CL102: =$W102*P102 -> 0
B103: 6 - ENWL - Technical Author | C103: Functional Specification for BiTraDER | D103: Closedown & BAU | E103: 489.65 | F103: Functional Specification for BiTraDER | G103: 0 | H103: 0 | I103: 0 | J103: 0 | K103: 0 | L103: 0 | M103: 0 | N103: 0 | O103: 0 | P103: 0 | Q103: 0 | S103: 0 | T103: 0 | U103: 0 | V103: 0 | W103: 1 | X103: 1 | Z103: 0 | AA103: 0 | AB103: 0 | AC103: 0 | AD103: 0 | AE103: 0 | AF103: 0 | AG103: 0 | AH103: 0 | AI103: 0 | AK103: 0 | AL103: 0 | AM103: 0 | AN103: 0 | AO103: 0 | AP103: 0 | AQ103: 0 | AR103: 0 | AS103: 0 | AT103: 0 | AV103: 0 | AW103: 0 | AX103: 0 | AY103: 0 | AZ103: 0 | BA103: 0 | BB103: 0 | BC103: 0 | BD103: 0 | BE103: 0 | BG103: 0 | BH103: 0 | BI103: 0 | BJ103: 0 | BK103: 0 | BL103: 0 | BM103: 0 | BN103: 0 | BO103: 0 | BP103: 0 | BR103: 0 | BS103: 0 | BT103: 0 | BU103: 0 | BV103: 0 | BW103: 0 | BX103: 0 | BY103: 0 | BZ103: 0 | CA103: 0 | CC103: 0 | CD103: 0 | CE103: 0 | CF103: 0 | CG103: 0 | CH103: 0 | CI103: 0 | CJ103: 0 | CK103: 0 | CL103: 0
B104: 7 - Afry - Dissemination | C104: Learning & Dissemination | D104: Learning & Dissemination | E104: 2251.692308 | F104: Learning & Dissemination | G104: 0 | H104: 0 | I104: 13999.65217 | J104: 0 | K104: 0 | L104: 0 | M104: 0 | N104: 0 | O104: 0 | P104: 0 | Q104: 13999.65217 | S104: 0 | T104: 0.1 | U104: 0 | V104: 0 | W104: 0.9 | X104: 1 | Z104: 0 | AA104: 0 | AB104: 0 | AC104: 0 | AD104: 0 | AE104: 0 | AF104: 0 | AG104: 0 | AH104: 0 | AI104: 0 | AK104: 0 | AL104: 0 | AM104: 0 | AN104: 0 | AO104: 0 | AP104: 0 | AQ104: 0 | AR104: 0 | AS104: 0 | AT104: 0 | AV104: 0 | AW104: 0 | AX104: 1399.965217 | AY104: 0 | AZ104: 0 | BA104: 0 | BB104: 0 | BC104: 0 | BD104: 0 | BE104: 0 | BG104: 0 | BH104: 0 | BI104: 0 | BJ104: 0 | BK104: 0 | BL104: 0 | BM104: 0 | BN104: 0 | BO104: 0 | BP104: 0 | BR104: 0 | BS104: 0 | BT104: 0 | BU104: 0 | BV104: 0 | BW104: 0 | BX104: 0 | BY104: 0 | BZ104: 0 | CA104: 0 | CC104: 0 | CD104: 0 | CE104: 12599.68696 | CF104: 0 | CG104: 0 | CH104: 0 | CI104: 0 | CJ104: 0 | CK104: 0 | CL104: 0
B105: 6 - Design, build, install, test & comission of BiTraDER website | C105: Learning & Dissemination | D105: Learning & Dissemination | E105: 20000 | F105: Learning & Dissemination | G105: 0 | H105: 0 | I105: 0 | J105: 0 | K105: 0 | L105: 0 | M105: 0 | N105: 0 | O105: 0 | P105: 20982 | Q105: 20982 | S105: 0 | T105: 0 | U105: 0 | V105: 0 | W105: 1 | X105: 1 | Z105: 0 | AA105: 0 | AB105: 0 | AC105: 0 | AD105: 0 | AE105: 0 | AF105: 0 | AG105: 0 | AH105: 0 | AI105: 0 | AK105: 0 | AL105: 0 | AM105: 0 | AN105: 0 | AO105: 0 | AP105: 0 | AQ105: 0 | AR105: 0 | AS105: 0 | AT105: 0 | AV105: 0 | AW105: 0 | AX105: 0 | AY105: 0 | AZ105: 0 | BA105: 0 | BB105: 0 | BC105: 0 | BD105: 0 | BE105: 0 | BG105: 0 | BH105: 0 | BI105: 0 | BJ105: 0 | BK105: 0 | BL105: 0 | BM105: 0 | BN105: 0 | BO105: 0 | BP105: 0 | BR105: 0 | BS105: 0 | BT105: 0 | BU105: 0 | BV105: 0 | BW105: 0 | BX105: 0 | BY105: 0 | BZ105: 0 | CA105: 0 | CC105: 0 | CD105: 0 | CE105: 0 | CF105: 0 | CG105: 0 | CH105: 0 | CI105: 0 | CJ105: 0 | CK105: 0 | CL105: 20982
B106: 6 - Support & maintenance of BiTraDER website | C106: Learning & Dissemination | D106: Learning & Dissemination | E106: 16000 | F106: Learning & Dissemination | G106: 0 | H106: 0 | I106: 0 | J106: 0 | K106: 0 | L106: 0 | M106: 0 | N106: 0 | O106: 0 | P106: 3730.133333 | Q106: 3730.133333 | S106: 0 | T106: 0 | U106: 0 | V106: 0 | W106: 1 | X106: 1 | Z106: 0 | AA106: 0 | AB106: 0 | AC106: 0 | AD106: 0 | AE106: 0 | AF106: 0 | AG106: 0 | AH106: 0 | AI106: 0 | AK106: 0 | AL106: 0 | AM106: 0 | AN106: 0 | AO106: 0 | AP106: 0 | AQ106: 0 | AR106: 0 | AS106: 0 | AT106: 0 | AV106: 0 | AW106: 0 | AX106: 0 | AY106: 0 | AZ106: 0 | BA106: 0 | BB106: 0 | BC106: 0 | BD106: 0 | BE106: 0 | BG106: 0 | BH106: 0 | BI106: 0 | BJ106: 0 | BK106: 0 | BL106: 0 | BM106: 0 | BN106: 0 | BO106: 0 | BP106: 0 | BR106: 0 | BS106: 0 | BT106: 0 | BU106: 0 | BV106: 0 | BW106: 0 | BX106: 0 | BY106: 0 | BZ106: 0 | CA106: 0 | CC106: 0 | CD106: 0 | CE106: 0 | CF106: 0 | CG106: 0 | CH106: 0 | CI106: 0 | CJ106: 0 | CK106: 0 | CL106: 3730.133333
B107: 6 - LCNI conference | C107: Learning & Dissemination | D107: Learning & Dissemination | E107: 80000 | F107: Learning & Dissemination | G107: 0 | H107: 0 | I107: 0 | J107: 0 | K107: 0 | L107: 0 | M107: 0 | N107: 0 | O107: 0 | P107: 20982 | Q107: 20982 | S107: 0 | T107: 0 | U107: 0 | V107: 0 | W107: 1 | X107: 1 | Z107: 0 | AA107: 0 | AB107: 0 | AC107: 0 | AD107: 0 | AE107: 0 | AF107: 0 | AG107: 0 | AH107: 0 | AI107: 0 | AK107: 0 | AL107: 0 | AM107: 0 | AN107: 0 | AO107: 0 | AP107: 0 | AQ107: 0 | AR107: 0 | AS107: 0 | AT107: 0 | AV107: 0 | AW107: 0 | AX107: 0 | AY107: 0 | AZ107: 0 | BA107: 0 | BB107: 0 | BC107: 0 | BD107: 0 | BE107: 0 | BG107: 0 | BH107: 0 | BI107: 0 | BJ107: 0 | BK107: 0 | BL107: 0 | BM107: 0 | BN107: 0 | BO107: 0 | BP107: 0 | BR107: 0 | BS107: 0 | BT107: 0 | BU107: 0 | BV107: 0 | BW107: 0 | BX107: 0 | BY107: 0 | BZ107: 0 | CA107: 0 | CC107: 0 | CD107: 0 | CE107: 0 | CF107: 0 | CG107: 0 | CH107: 0 | CI107: 0 | CJ107: 0 | CK107: 0 | CL107: 20982
B108: 6 - Knowledge sharing event | C108: Learning & Dissemination | D108: Learning & Dissemination | E108: 12000 | F108: Learning & Dissemination | G108: 0 | H108: 0 | I108: 0 | J108: 0 | K108: 0 | L108: 0 | M108: 0 | N108: 0 | O108: 0 | P108: 2517.84 | Q108: 2517.84 | S108: 0 | T108: 0 | U108: 0 | V108: 0 | W108: 1 | X108: 1 | Z108: 0 | AA108: 0 | AB108: 0 | AC108: 0 | AD108: 0 | AE108: 0 | AF108: 0 | AG108: 0 | AH108: 0 | AI108: 0 | AK108: 0 | AL108: 0 | AM108: 0 | AN108: 0 | AO108: 0 | AP108: 0 | AQ108: 0 | AR108: 0 | AS108: 0 | AT108: 0 | AV108: 0 | AW108: 0 | AX108: 0 | AY108: 0 | AZ108: 0 | BA108: 0 | BB108: 0 | BC108: 0 | BD108: 0 | BE108: 0 | BG108: 0 | BH108: 0 | BI108: 0 | BJ108: 0 | BK108: 0 | BL108: 0 | BM108: 0 | BN108: 0 | BO108: 0 | BP108: 0 | BR108: 0 | BS108: 0 | BT108: 0 | BU108: 0 | BV108: 0 | BW108: 0 | BX108: 0 | BY108: 0 | BZ108: 0 | CA108: 0 | CC108: 0 | CD108: 0 | CE108: 0 | CF108: 0 | CG108: 0 | CH108: 0 | CI108: 0 | CJ108: 0 | CK108: 0 | CL108: 2517.84
B109: 6 - Publicise BiTraDER within ENW | C109: Learning & Dissemination | D109: Learning & Dissemination | E109: 4050 | F109: Learning & Dissemination | G109: 0 | H109: 0 | I109: 0 | J109: 0 | K109: 0 | L109: 0 | M109: 0 | N109: 0 | O109: 0 | P109: 999.7305882 | Q109: 999.7305882 | S109: 0 | T109: 0 | U109: 0 | V109: 0 | W109: 1 | X109: 1 | Z109: 0 | AA109: 0 | AB109: 0 | AC109: 0 | AD109: 0 | AE109: 0 | AF109: 0 | AG109: 0 | AH109: 0 | AI109: 0 | AK109: 0 | AL109: 0 | AM109: 0 | AN109: 0 | AO109: 0 | AP109: 0 | AQ109: 0 | AR109: 0 | AS109: 0 | AT109: 0 | AV109: 0 | AW109: 0 | AX109: 0 | AY109: 0 | AZ109: 0 | BA109: 0 | BB109: 0 | BC109: 0 | BD109: 0 | BE109: 0 | BG109: 0 | BH109: 0 | BI109: 0 | BJ109: 0 | BK109: 0 | BL109: 0 | BM109: 0 | BN109: 0 | BO109: 0 | BP109: 0 | BR109: 0 | BS109: 0 | BT109: 0 | BU109: 0 | BV109: 0 | BW109: 0 | BX109: 0 | BY109: 0 | BZ109: 0 | CA109: 0 | CC109: 0 | CD109: 0 | CE109: 0 | CF109: 0 | CG109: 0 | CH109: 0 | CI109: 0 | CJ109: 0 | CK109: 0 | CL109: 999.7305882
B110: 6 - Third party review of project | C110: Learning & Dissemination | D110: Learning & Dissemination | E110: 90000 | F110: Learning & Dissemination | G110: 0 | H110: 0 | I110: 0 | J110: 0 | K110: 0 | L110: 0 | M110: 0 | N110: 0 | O110: 0 | P110: 0 | Q110: 0 | S110: 0 | T110: 0 | U110: 0 | V110: 0 | W110: 1 | X110: 1 | Z110: 0 | AA110: 0 | AB110: 0 | AC110: 0 | AD110: 0 | AE110: 0 | AF110: 0 | AG110: 0 | AH110: 0 | AI110: 0 | AK110: 0 | AL110: 0 | AM110: 0 | AN110: 0 | AO110: 0 | AP110: 0 | AQ110: 0 | AR110: 0 | AS110: 0 | AT110: 0 | AV110: 0 | AW110: 0 | AX110: 0 | AY110: 0 | AZ110: 0 | BA110: 0 | BB110: 0 | BC110: 0 | BD110: 0 | BE110: 0 | BG110: 0 | BH110: 0 | BI110: 0 | BJ110: 0 | BK110: 0 | BL110: 0 | BM110: 0 | BN110: 0 | BO110: 0 | BP110: 0 | BR110: 0 | BS110: 0 | BT110: 0 | BU110: 0 | BV110: 0 | BW110: 0 | BX110: 0 | BY110: 0 | BZ110: 0 | CA110: 0 | CC110: 0 | CD110: 0 | CE110: 0 | CF110: 0 | CG110: 0 | CH110: 0 | CI110: 0 | CJ110: 0 | CK110: 0 | CL110: 0
B111: 6 - Steering groups | C111: Learning & Dissemination | D111: Learning & Dissemination | E111: 3600 | F111: Learning & Dissemination | G111: 0 | H111: 0 | I111: 0 | J111: 0 | K111: 0 | L111: 0 | M111: 0 | N111: 0 | O111: 0 | P111: 944.19 | Q111: 944.19 | S111: 0 | T111: 0 | U111: 0 | V111: 0 | W111: 1 | X111: 1 | Z111: 0 | AA111: 0 | AB111: 0 | AC111: 0 | AD111: 0 | AE111: 0 | AF111: 0 | AG111: 0 | AH111: 0 | AI111: 0 | AK111: 0 | AL111: 0 | AM111: 0 | AN111: 0 | AO111: 0 | AP111: 0 | AQ111: 0 | AR111: 0 | AS111: 0 | AT111: 0 | AV111: 0 | AW111: 0 | AX111: 0 | AY111: 0 | AZ111: 0 | BA111: 0 | BB111: 0 | BC111: 0 | BD111: 0 | BE111: 0 | BG111: 0 | BH111: 0 | BI111: 0 | BJ111: 0 | BK111: 0 | BL111: 0 | BM111: 0 | BN111: 0 | BO111: 0 | BP111: 0 | BR111: 0 | BS111: 0 | BT111: 0 | BU111: 0 | BV111: 0 | BW111: 0 | BX111: 0 | BY111: 0 | BZ111: 0 | CA111: 0 | CC111: 0 | CD111: 0 | CE111: 0 | CF111: 0 | CG111: 0 | CH111: 0 | CI111: 0 | CJ111: 0 | CK111: 0 | CL111: 944.19
B112: 7 - Afry - Dissemination after SG | C112: Learning & Dissemination | D112: Learning & Dissemination | E112: 2440 | F112: Learning & Dissemination | G112: 0 | H112: 0 | I112: 583.4782609 | J112: 0 | K112: 0 | L112: 0 | M112: 0 | N112: 0 | O112: 0 | P112: 0 | Q112: 583.4782609 | S112: 0 | T112: 0.1 | U112: 0 | V112: 0 | W112: 0.9 | X112: 1 | Z112: 0 | AA112: 0 | AB112: 0 | AC112: 0 | AD112: 0 | AE112: 0 | AF112: 0 | AG112: 0 | AH112: 0 | AI112: 0 | AK112: 0 | AL112: 0 | AM112: 0 | AN112: 0 | AO112: 0 | AP112: 0 | AQ112: 0 | AR112: 0 | AS112: 0 | AT112: 0 | AV112: 0 | AW112: 0 | AX112: 58.34782609 | AY112: 0 | AZ112: 0 | BA112: 0 | BB112: 0 | BC112: 0 | BD112: 0 | BE112: 0 | BG112: 0 | BH112: 0 | BI112: 0 | BJ112: 0 | BK112: 0 | BL112: 0 | BM112: 0 | BN112: 0 | BO112: 0 | BP112: 0 | BR112: 0 | BS112: 0 | BT112: 0 | BU112: 0 | BV112: 0 | BW112: 0 | BX112: 0 | BY112: 0 | BZ112: 0 | CA112: 0 | CC112: 0 | CD112: 0 | CE112: 525.1304348 | CF112: 0 | CG112: 0 | CH112: 0 | CI112: 0 | CJ112: 0 | CK112: 0 | CL112: 0
B113: 8 - ENWL - Risk that it takes longer than anticipated to agree contracts with customers involved in the trials (additional resource to allow more time for signing up customers) | C113: Contingency | D113: Customer | E113: 100000 | F113: Contingency | G113: 0 | H113: 0 | I113: 0 | J113: 0 | K113: 0 | L113: 0 | M113: 0 | N113: 104910 | O113: 0 | P113: 0 | Q113: 104910 | S113: 0 | T113: 0 | U113: 0 | V113: 0 | W113: 1 | X113: 1 | Z113: 0 | AA113: 0 | AB113: 0 | AC113: 0 | AD113: 0 | AE113: 0 | AF113: 0 | AG113: 0 | AH113: 0 | AI113: 0 | AK113: 0 | AL113: 0 | AM113: 0 | AN113: 0 | AO113: 0 | AP113: 0 | AQ113: 0 | AR113: 0 | AS113: 0 | AT113: 0 | AV113: 0 | AW113: 0 | AX113: 0 | AY113: 0 | AZ113: 0 | BA113: 0 | BB113: 0 | BC113: 0 | BD113: 0 | BE113: 0 | BG113: 0 | BH113: 0 | BI113: 0 | BJ113: 0 | BK113: 0 | BL113: 0 | BM113: 0 | BN113: 0 | BO113: 0 | BP113: 0 | BR113: 0 | BS113: 0 | BT113: 0 | BU113: 0 | BV113: 0 | BW113: 0 | BX113: 0 | BY113: 0 | BZ113: 0 | CA113: 0 | CC113: 0 | CD113: 0 | CE113: 0 | CF113: 0 | CG113: 0 | CH113: 0 | CI113: 0 | CJ113: 104910 | CK113: 0 | CL113: 0
B114: 8 - ENWL - Risk that the market build and integration takes longer than anticipated (additional resource to assist with the build and integration) | C114: Contingency | D114: Build | E114: 100000 | F114: Contingency | G114: 0 | H114: 0 | I114: 0 | J114: 0 | K114: 0 | L114: 0 | M114: 0 | N114: 0 | O114: 0 | P114: 0 | Q114: 0 | S114: 0 | T114: 0 | U114: 0 | V114: 0 | W114: 1 | X114: 1 | Z114: 0 | AA114: 0 | AB114: 0 | AC114: 0 | AD114: 0 | AE114: 0 | AF114: 0 | AG114: 0 | AH114: 0 | AI114: 0 | AK114: 0 | AL114: 0 | AM114: 0 | AN114: 0 | AO114: 0 | AP114: 0 | AQ114: 0 | AR114: 0 | AS114: 0 | AT114: 0 | AV114: 0 | AW114: 0 | AX114: 0 | AY114: 0 | AZ114: 0 | BA114: 0 | BB114: 0 | BC114: 0 | BD114: 0 | BE114: 0 | BG114: 0 | BH114: 0 | BI114: 0 | BJ114: 0 | BK114: 0 | BL114: 0 | BM114: 0 | BN114: 0 | BO114: 0 | BP114: 0 | BR114: 0 | BS114: 0 | BT114: 0 | BU114: 0 | BV114: 0 | BW114: 0 | BX114: 0 | BY114: 0 | BZ114: 0 | CA114: 0 | CC114: 0 | CD114: 0 | CE114: 0 | CF114: 0 | CG114: 0 | CH114: 0 | CI114: 0 | CJ114: 0 | CK114: 0 | CL114: 0
B115: 8 - ENWL - Risk that the cyber-security requirements will affect the performance of the integrated system (additional resource) | C115: Contingency | D115: Build | E115: 150000 | F115: Contingency | G115: 0 | H115: 0 | I115: 0 | J115: 0 | K115: 0 | L115: 0 | M115: 0 | N115: 0 | O115: 0 | P115: 0 | Q115: 0 | S115: 0 | T115: 0 | U115: 0 | V115: 0 | W115: 1 | X115: 1 | Z115: 0 | AA115: 0 | AB115: 0 | AC115: 0 | AD115: 0 | AE115: 0 | AF115: 0 | AG115: 0 | AH115: 0 | AI115: 0 | AK115: 0 | AL115: 0 | AM115: 0 | AN115: 0 | AO115: 0 | AP115: 0 | AQ115: 0 | AR115: 0 | AS115: 0 | AT115: 0 | AV115: 0 | AW115: 0 | AX115: 0 | AY115: 0 | AZ115: 0 | BA115: 0 | BB115: 0 | BC115: 0 | BD115: 0 | BE115: 0 | BG115: 0 | BH115: 0 | BI115: 0 | BJ115: 0 | BK115: 0 | BL115: 0 | BM115: 0 | BN115: 0 | BO115: 0 | BP115: 0 | BR115: 0 | BS115: 0 | BT115: 0 | BU115: 0 | BV115: 0 | BW115: 0 | BX115: 0 | BY115: 0 | BZ115: 0 | CA115: 0 | CC115: 0 | CD115: 0 | CE115: 0 | CF115: 0 | CG115: 0 | CH115: 0 | CI115: 0 | CJ115: 0 | CK115: 0 | CL115: 0
B116: 8 - ENWL - Risk that we lose participants due to lack of understanding on the aims of the market and the operation of the platform (additonal resource for further education of participants) | C116: Contingency | D116: Simulation | E116: 20000 | F116: Contingency | G116: 0 | H116: 0 | I116: 0 | J116: 0 | K116: 0 | L116: 0 | M116: 0 | N116: 0 | O116: 0 | P116: 0 | Q116: 0 | S116: 0 | T116: 0 | U116: 0 | V116: 0 | W116: 1 | X116: 1 | Z116: 0 | AA116: 0 | AB116: 0 | AC116: 0 | AD116: 0 | AE116: 0 | AF116: 0 | AG116: 0 | AH116: 0 | AI116: 0 | AK116: 0 | AL116: 0 | AM116: 0 | AN116: 0 | AO116: 0 | AP116: 0 | AQ116: 0 | AR116: 0 | AS116: 0 | AT116: 0 | AV116: 0 | AW116: 0 | AX116: 0 | AY116: 0 | AZ116: 0 | BA116: 0 | BB116: 0 | BC116: 0 | BD116: 0 | BE116: 0 | BG116: 0 | BH116: 0 | BI116: 0 | BJ116: 0 | BK116: 0 | BL116: 0 | BM116: 0 | BN116: 0 | BO116: 0 | BP116: 0 | BR116: 0 | BS116: 0 | BT116: 0 | BU116: 0 | BV116: 0 | BW116: 0 | BX116: 0 | BY116: 0 | BZ116: 0 | CA116: 0 | CC116: 0 | CD116: 0 | CE116: 0 | CF116: 0 | CG116: 0 | CH116: 0 | CI116: 0 | CJ116: 0 | CK116: 0 | CL116: 0
B117: 8 - ENWL - Risk that no constraints occur on the network during the trial phase (compensation of customers who respond to false constraints) | C117: Contingency | D117: Network trials | E117: 50000 | F117: Contingency | G117: 0 | H117: 0 | I117: 0 | J117: 0 | K117: 0 | L117: 0 | M117: 0 | N117: 0 | O117: 0 | P117: 0 | Q117: 0 | S117: 0 | T117: 0 | U117: 0 | V117: 0 | W117: 1 | X117: 1 | Z117: 0 | AA117: 0 | AB117: 0 | AC117: 0 | AD117: 0 | AE117: 0 | AF117: 0 | AG117: 0 | AH117: 0 | AI117: 0 | AK117: 0 | AL117: 0 | AM117: 0 | AN117: 0 | AO117: 0 | AP117: 0 | AQ117: 0 | AR117: 0 | AS117: 0 | AT117: 0 | AV117: 0 | AW117: 0 | AX117: 0 | AY117: 0 | AZ117: 0 | BA117: 0 | BB117: 0 | BC117: 0 | BD117: 0 | BE117: 0 | BG117: 0 | BH117: 0 | BI117: 0 | BJ117: 0 | BK117: 0 | BL117: 0 | BM117: 0 | BN117: 0 | BO117: 0 | BP117: 0 | BR117: 0 | BS117: 0 | BT117: 0 | BU117: 0 | BV117: 0 | BW117: 0 | BX117: 0 | BY117: 0 | BZ117: 0 | CA117: 0 | CC117: 0 | CD117: 0 | CE117: 0 | CF117: 0 | CG117: 0 | CH117: 0 | CI117: 0 | CJ117: 0 | CK117: 0 | CL117: 0
B118: 8 - ENWL - Risk that participants may not trade if they do not understand the benefit and risks of trading, or they are waiting for others to start the trading (provide an initial incentive to stimulate trading amongst participants) | C118: Contingency | D118: Network trials | E118: 25000 | F118: Contingency | G118: 0 | H118: 0 | I118: 0 | J118: 0 | K118: 0 | L118: 0 | M118: 0 | N118: 0 | O118: 0 | P118: 0 | Q118: 0 | S118: 0 | T118: 0 | U118: 0 | V118: 0 | W118: 1 | X118: 1 | Z118: 0 | AA118: 0 | AB118: 0 | AC118: 0 | AD118: 0 | AE118: 0 | AF118: 0 | AG118: 0 | AH118: 0 | AI118: 0 | AK118: 0 | AL118: 0 | AM118: 0 | AN118: 0 | AO118: 0 | AP118: 0 | AQ118: 0 | AR118: 0 | AS118: 0 | AT118: 0 | AV118: 0 | AW118: 0 | AX118: 0 | AY118: 0 | AZ118: 0 | BA118: 0 | BB118: 0 | BC118: 0 | BD118: 0 | BE118: 0 | BG118: 0 | BH118: 0 | BI118: 0 | BJ118: 0 | BK118: 0 | BL118: 0 | BM118: 0 | BN118: 0 | BO118: 0 | BP118: 0 | BR118: 0 | BS118: 0 | BT118: 0 | BU118: 0 | BV118: 0 | BW118: 0 | BX118: 0 | BY118: 0 | BZ118: 0 | CA118: 0 | CC118: 0 | CD118: 0 | CE118: 0 | CF118: 0 | CG118: 0 | CH118: 0 | CI118: 0 | CJ118: 0 | CK118: 0 | CL118: 0
B119: 8 - Electron - Risk that the configuration of the Trading Platform on BiTraDER takes longer than anticipated (additional resource to assist platform configuration) | C119: Contingency | D119: Build | E119: 135320 | F119: Contingency | G119: 0 | H119: 0 | I119: 0 | J119: 0 | K119: 0 | L119: 0 | M119: 0 | N119: 0 | O119: 0 | P119: 0 | Q119: 0 | S119: 0 | T119: 0 | U119: 0 | V119: 0 | W119: 1 | X119: 1 | Z119: 0 | AA119: 0 | AB119: 0 | AC119: 0 | AD119: 0 | AE119: 0 | AF119: 0 | AG119: 0 | AH119: 0 | AI119: 0 | AK119: 0 | AL119: 0 | AM119: 0 | AN119: 0 | AO119: 0 | AP119: 0 | AQ119: 0 | AR119: 0 | AS119: 0 | AT119: 0 | AV119: 0 | AW119: 0 | AX119: 0 | AY119: 0 | AZ119: 0 | BA119: 0 | BB119: 0 | BC119: 0 | BD119: 0 | BE119: 0 | BG119: 0 | BH119: 0 | BI119: 0 | BJ119: 0 | BK119: 0 | BL119: 0 | BM119: 0 | BN119: 0 | BO119: 0 | BP119: 0 | BR119: 0 | BS119: 0 | BT119: 0 | BU119: 0 | BV119: 0 | BW119: 0 | BX119: 0 | BY119: 0 | BZ119: 0 | CA119: 0 | CC119: 0 | CD119: 0 | CE119: 0 | CF119: 0 | CG119: 0 | CH119: 0 | CI119: 0 | CJ119: 0 | CK119: 0 | CL119: 0
B120: 3 - ENWL - Cyber Security Design Report | C120: Interface Design to ENWL Systems | D120: Design | E120: 50000 | F120: Interface Design to ENWL Systems | G120: 0 | H120: 0 | I120: 0 | J120: 52455 | K120: 0 | L120: 0 | M120: 0 | N120: 0 | O120: 0 | P120: 0 | Q120: 52455 | W120: 1 | X120: 1 | Z120: 0 | AA120: 0 | AB120: 0 | AC120: 0 | AD120: 0 | AE120: 0 | AF120: 0 | AG120: 0 | AH120: 0 | AI120: 0 | AK120: 0 | AL120: 0 | AM120: 0 | AN120: 0 | AO120: 0 | AP120: 0 | AQ120: 0 | AR120: 0 | AS120: 0 | AT120: 0 | AV120: 0 | AW120: 0 | AX120: 0 | AY120: 0 | AZ120: 0 | BA120: 0 | BB120: 0 | BC120: 0 | BD120: 0 | BE120: 0 | BG120: 0 | BH120: 0 | BI120: 0 | BJ120: 0 | BK120: 0 | BL120: 0 | BM120: 0 | BN120: 0 | BO120: 0 | BP120: 0 | BR120: 0 | BS120: 0 | BT120: 0 | BU120: 0 | BV120: 0 | BW120: 0 | BX120: 0 | BY120: 0 | BZ120: 0 | CA120: 0 | CC120: 0 | CD120: 0 | CE120: 0 | CF120: 52455 | CG120: 0 | CH120: 0 | CI120: 0 | CJ120: 0 | CK120: 0 | CL120: 0
Q121: 0 | X121: 0 | Z121: 0 | AA121: 0 | AB121: 0 | AC121: 0 | AD121: 0 | AE121: 0 | AF121: 0 | AG121: 0 | AH121: 0 | AI121: 0 | AK121: 0 | AL121: 0 | AM121: 0 | AN121: 0 | AO121: 0 | AP121: 0 | AQ121: 0 | AR121: 0 | AS121: 0 | AT121: 0 | AV121: 0 | AW121: 0 | AX121: 0 | AY121: 0 | AZ121: 0 | BA121: 0 | BB121: 0 | BC121: 0 | BD121: 0 | BE121: 0 | BG121: 0 | BH121: 0 | BI121: 0 | BJ121: 0 | BK121: 0 | BL121: 0 | BM121: 0 | BN121: 0 | BO121: 0 | BP121: 0 | BR121: 0 | BS121: 0 | BT121: 0 | BU121: 0 | BV121: 0 | BW121: 0 | BX121: 0 | BY121: 0 | BZ121: 0 | CA121: 0 | CC121: 0 | CD121: 0 | CE121: 0 | CF121: 0 | CG121: 0 | CH121: 0 | CI121: 0 | CJ121: 0 | CK121: 0 | CL121: 0
Q122: 0 | X122: 0 | Z122: 0 | AA122: 0 | AB122: 0 | AC122: 0 | AD122: 0 | AE122: 0 | AF122: 0 | AG122: 0 | AH122: 0 | AI122: 0 | AK122: 0 | AL122: 0 | AM122: 0 | AN122: 0 | AO122: 0 | AP122: 0 | AQ122: 0 | AR122: 0 | AS122: 0 | AT122: 0 | AV122: 0 | AW122: 0 | AX122: 0 | AY122: 0 | AZ122: 0 | BA122: 0 | BB122: 0 | BC122: 0 | BD122: 0 | BE122: 0 | BG122: 0 | BH122: 0 | BI122: 0 | BJ122: 0 | BK122: 0 | BL122: 0 | BM122: 0 | BN122: 0 | BO122: 0 | BP122: 0 | BR122: 0 | BS122: 0 | BT122: 0 | BU122: 0 | BV122: 0 | BW122: 0 | BX122: 0 | BY122: 0 | BZ122: 0 | CA122: 0 | CC122: 0 | CD122: 0 | CE122: 0 | CF122: 0 | CG122: 0 | CH122: 0 | CI122: 0 | CJ122: 0 | CK122: 0 | CL122: 0
Q123: 0 | X123: 0 | Z123: 0 | AA123: 0 | AB123: 0 | AC123: 0 | AD123: 0 | AE123: 0 | AF123: 0 | AG123: 0 | AH123: 0 | AI123: 0 | AK123: 0 | AL123: 0 | AM123: 0 | AN123: 0 | AO123: 0 | AP123: 0 | AQ123: 0 | AR123: 0 | AS123: 0 | AT123: 0 | AV123: 0 | AW123: 0 | AX123: 0 | AY123: 0 | AZ123: 0 | BA123: 0 | BB123: 0 | BC123: 0 | BD123: 0 | BE123: 0 | BG123: 0 | BH123: 0 | BI123: 0 | BJ123: 0 | BK123: 0 | BL123: 0 | BM123: 0 | BN123: 0 | BO123: 0 | BP123: 0 | BR123: 0 | BS123: 0 | BT123: 0 | BU123: 0 | BV123: 0 | BW123: 0 | BX123: 0 | BY123: 0 | BZ123: 0 | CA123: 0 | CC123: 0 | CD123: 0 | CE123: 0 | CF123: 0 | CG123: 0 | CH123: 0 | CI123: 0 | CJ123: 0 | CK123: 0 | CL123: 0
Q124: 0 | X124: 0 | Z124: 0 | AA124: 0 | AB124: 0 | AC124: 0 | AD124: 0 | AE124: 0 | AF124: 0 | AG124: 0 | AH124: 0 | AI124: 0 | AK124: 0 | AL124: 0 | AM124: 0 | AN124: 0 | AO124: 0 | AP124: 0 | AQ124: 0 | AR124: 0 | AS124: 0 | AT124: 0 | AV124: 0 | AW124: 0 | AX124: 0 | AY124: 0 | AZ124: 0 | BA124: 0 | BB124: 0 | BC124: 0 | BD124: 0 | BE124: 0 | BG124: 0 | BH124: 0 | BI124: 0 | BJ124: 0 | BK124: 0 | BL124: 0 | BM124: 0 | BN124: 0 | BO124: 0 | BP124: 0 | BR124: 0 | BS124: 0 | BT124: 0 | BU124: 0 | BV124: 0 | BW124: 0 | BX124: 0 | BY124: 0 | BZ124: 0 | CA124: 0 | CC124: 0 | CD124: 0 | CE124: 0 | CF124: 0 | CG124: 0 | CH124: 0 | CI124: 0 | CJ124: 0 | CK124: 0 | CL124: 0
Q125: 0 | X125: 0 | Z125: 0 | AA125: 0 | AB125: 0 | AC125: 0 | AD125: 0 | AE125: 0 | AF125: 0 | AG125: 0 | AH125: 0 | AI125: 0 | AK125: 0 | AL125: 0 | AM125: 0 | AN125: 0 | AO125: 0 | AP125: 0 | AQ125: 0 | AR125: 0 | AS125: 0 | AT125: 0 | AV125: 0 | AW125: 0 | AX125: 0 | AY125: 0 | AZ125: 0 | BA125: 0 | BB125: 0 | BC125: 0 | BD125: 0 | BE125: 0 | BG125: 0 | BH125: 0 | BI125: 0 | BJ125: 0 | BK125: 0 | BL125: 0 | BM125: 0 | BN125: 0 | BO125: 0 | BP125: 0 | BR125: 0 | BS125: 0 | BT125: 0 | BU125: 0 | BV125: 0 | BW125: 0 | BX125: 0 | BY125: 0 | BZ125: 0 | CA125: 0 | CC125: 0 | CD125: 0 | CE125: 0 | CF125: 0 | CG125: 0 | CH125: 0 | CI125: 0 | CJ125: 0 | CK125: 0 | CL125: 0
Q126: 0 | X126: 0 | Z126: 0 | AA126: 0 | AB126: 0 | AC126: 0 | AD126: 0 | AE126: 0 | AF126: 0 | AG126: 0 | AH126: 0 | AI126: 0 | AK126: 0 | AL126: 0 | AM126: 0 | AN126: 0 | AO126: 0 | AP126: 0 | AQ126: 0 | AR126: 0 | AS126: 0 | AT126: 0 | AV126: 0 | AW126: 0 | AX126: 0 | AY126: 0 | AZ126: 0 | BA126: 0 | BB126: 0 | BC126: 0 | BD126: 0 | BE126: 0 | BG126: 0 | BH126: 0 | BI126: 0 | BJ126: 0 | BK126: 0 | BL126: 0 | BM126: 0 | BN126: 0 | BO126: 0 | BP126: 0 | BR126: 0 | BS126: 0 | BT126: 0 | BU126: 0 | BV126: 0 | BW126: 0 | BX126: 0 | BY126: 0 | BZ126: 0 | CA126: 0 | CC126: 0 | CD126: 0 | CE126: 0 | CF126: 0 | CG126: 0 | CH126: 0 | CI126: 0 | CJ126: 0 | CK126: 0 | CL126: 0
Q127: 0 | X127: 0 | Z127: 0 | AA127: 0 | AB127: 0 | AC127: 0 | AD127: 0 | AE127: 0 | AF127: 0 | AG127: 0 | AH127: 0 | AI127: 0 | AK127: 0 | AL127: 0 | AM127: 0 | AN127: 0 | AO127: 0 | AP127: 0 | AQ127: 0 | AR127: 0 | AS127: 0 | AT127: 0 | AV127: 0 | AW127: 0 | AX127: 0 | AY127: 0 | AZ127: 0 | BA127: 0 | BB127: 0 | BC127: 0 | BD127: 0 | BE127: 0 | BG127: 0 | BH127: 0 | BI127: 0 | BJ127: 0 | BK127: 0 | BL127: 0 | BM127: 0 | BN127: 0 | BO127: 0 | BP127: 0 | BR127: 0 | BS127: 0 | BT127: 0 | BU127: 0 | BV127: 0 | BW127: 0 | BX127: 0 | BY127: 0 | BZ127: 0 | CA127: 0 | CC127: 0 | CD127: 0 | CE127: 0 | CF127: 0 | CG127: 0 | CH127: 0 | CI127: 0 | CJ127: 0 | CK127: 0 | CL127: 0
Q128: 0 | X128: 0 | Z128: 0 | AA128: 0 | AB128: 0 | AC128: 0 | AD128: 0 | AE128: 0 | AF128: 0 | AG128: 0 | AH128: 0 | AI128: 0 | AK128: 0 | AL128: 0 | AM128: 0 | AN128: 0 | AO128: 0 | AP128: 0 | AQ128: 0 | AR128: 0 | AS128: 0 | AT128: 0 | AV128: 0 | AW128: 0 | AX128: 0 | AY128: 0 | AZ128: 0 | BA128: 0 | BB128: 0 | BC128: 0 | BD128: 0 | BE128: 0 | BG128: 0 | BH128: 0 | BI128: 0 | BJ128: 0 | BK128: 0 | BL128: 0 | BM128: 0 | BN128: 0 | BO128: 0 | BP128: 0 | BR128: 0 | BS128: 0 | BT128: 0 | BU128: 0 | BV128: 0 | BW128: 0 | BX128: 0 | BY128: 0 | BZ128: 0 | CA128: 0 | CC128: 0 | CD128: 0 | CE128: 0 | CF128: 0 | CG128: 0 | CH128: 0 | CI128: 0 | CJ128: 0 | CK128: 0 | CL128: 0
Q129: 0 | X129: 0 | Z129: 0 | AA129: 0 | AB129: 0 | AC129: 0 | AD129: 0 | AE129: 0 | AF129: 0 | AG129: 0 | AH129: 0 | AI129: 0 | AK129: 0 | AL129: 0 | AM129: 0 | AN129: 0 | AO129: 0 | AP129: 0 | AQ129: 0 | AR129: 0 | AS129: 0 | AT129: 0 | AV129: 0 | AW129: 0 | AX129: 0 | AY129: 0 | AZ129: 0 | BA129: 0 | BB129: 0 | BC129: 0 | BD129: 0 | BE129: 0 | BG129: 0 | BH129: 0 | BI129: 0 | BJ129: 0 | BK129: 0 | BL129: 0 | BM129: 0 | BN129: 0 | BO129: 0 | BP129: 0 | BR129: 0 | BS129: 0 | BT129: 0 | BU129: 0 | BV129: 0 | BW129: 0 | BX129: 0 | BY129: 0 | BZ129: 0 | CA129: 0 | CC129: 0 | CD129: 0 | CE129: 0 | CF129: 0 | CG129: 0 | CH129: 0 | CI129: 0 | CJ129: 0 | CK129: 0 | CL129: 0
Q130: 0 | X130: 0 | Z130: 0 | AA130: 0 | AB130: 0 | AC130: 0 | AD130: 0 | AE130: 0 | AF130: 0 | AG130: 0 | AH130: 0 | AI130: 0 | AK130: 0 | AL130: 0 | AM130: 0 | AN130: 0 | AO130: 0 | AP130: 0 | AQ130: 0 | AR130: 0 | AS130: 0 | AT130: 0 | AV130: 0 | AW130: 0 | AX130: 0 | AY130: 0 | AZ130: 0 | BA130: 0 | BB130: 0 | BC130: 0 | BD130: 0 | BE130: 0 | BG130: 0 | BH130: 0 | BI130: 0 | BJ130: 0 | BK130: 0 | BL130: 0 | BM130: 0 | BN130: 0 | BO130: 0 | BP130: 0 | BR130: 0 | BS130: 0 | BT130: 0 | BU130: 0 | BV130: 0 | BW130: 0 | BX130: 0 | BY130: 0 | BZ130: 0 | CA130: 0 | CC130: 0 | CD130: 0 | CE130: 0 | CF130: 0 | CG130: 0 | CH130: 0 | CI130: 0 | CJ130: 0 | CK130: 0 | CL130: 0
Q131: 0 | X131: 0 | Z131: 0 | AA131: 0 | AB131: 0 | AC131: 0 | AD131: 0 | AE131: 0 | AF131: 0 | AG131: 0 | AH131: 0 | AI131: 0 | AK131: 0 | AL131: 0 | AM131: 0 | AN131: 0 | AO131: 0 | AP131: 0 | AQ131: 0 | AR131: 0 | AS131: 0 | AT131: 0 | AV131: 0 | AW131: 0 | AX131: 0 | AY131: 0 | AZ131: 0 | BA131: 0 | BB131: 0 | BC131: 0 | BD131: 0 | BE131: 0 | BG131: 0 | BH131: 0 | BI131: 0 | BJ131: 0 | BK131: 0 | BL131: 0 | BM131: 0 | BN131: 0 | BO131: 0 | BP131: 0 | BR131: 0 | BS131: 0 | BT131: 0 | BU131: 0 | BV131: 0 | BW131: 0 | BX131: 0 | BY131: 0 | BZ131: 0 | CA131: 0 | CC131: 0 | CD131: 0 | CE131: 0 | CF131: 0 | CG131: 0 | CH131: 0 | CI131: 0 | CJ131: 0 | CK131: 0 | CL131: 0
Q132: 0 | X132: 0 | Z132: 0 | AA132: 0 | AB132: 0 | AC132: 0 | AD132: 0 | AE132: 0 | AF132: 0 | AG132: 0 | AH132: 0 | AI132: 0 | AK132: 0 | AL132: 0 | AM132: 0 | AN132: 0 | AO132: 0 | AP132: 0 | AQ132: 0 | AR132: 0 | AS132: 0 | AT132: 0 | AV132: 0 | AW132: 0 | AX132: 0 | AY132: 0 | AZ132: 0 | BA132: 0 | BB132: 0 | BC132: 0 | BD132: 0 | BE132: 0 | BG132: 0 | BH132: 0 | BI132: 0 | BJ132: 0 | BK132: 0 | BL132: 0 | BM132: 0 | BN132: 0 | BO132: 0 | BP132: 0 | BR132: 0 | BS132: 0 | BT132: 0 | BU132: 0 | BV132: 0 | BW132: 0 | BX132: 0 | BY132: 0 | BZ132: 0 | CA132: 0 | CC132: 0 | CD132: 0 | CE132: 0 | CF132: 0 | CG132: 0 | CH132: 0 | CI132: 0 | CJ132: 0 | CK132: 0 | CL132: 0
Q133: =SUM(G133:P133) -> 0 | X133: =SUM(R133:W133) -> 0 | Z133: 0 | AA133: 0 | AB133: 0 | AC133: 0 | AD133: 0 | AE133: 0 | AF133: 0 | AG133: 0 | AH133: 0 | AI133: 0 | AK133: 0 | AL133: 0 | AM133: 0 | AN133: 0 | AO133: 0 | AP133: 0 | AQ133: 0 | AR133: 0 | AS133: 0 | AT133: 0 | AV133: 0 | AW133: 0 | AX133: 0 | AY133: 0 | AZ133: 0 | BA133: 0 | BB133: 0 | BC133: 0 | BD133: 0 | BE133: 0 | BG133: 0 | BH133: 0 | BI133: 0 | BJ133: 0 | BK133: 0 | BL133: 0 | BM133: 0 | BN133: 0 | BO133: 0 | BP133: 0 | BR133: 0 | BS133: 0 | BT133: 0 | BU133: 0 | BV133: 0 | BW133: 0 | BX133: 0 | BY133: 0 | BZ133: 0 | CA133: 0 | CC133: 0 | CD133: 0 | CE133: 0 | CF133: 0 | CG133: 0 | CH133: 0 | CI133: 0 | CJ133: 0 | CK133: 0 | CL133: 0
B134: Total | G134: =SUM(G7:G133) -> 361559.605 | H134: 0 | I134: 695769.0814 | J134: 1171599.847 | K134: 0 | L134: 0 | M134: 24315.78947 | N134: 104910 | O134: 0 | P134: 74840.5998 | Q134: 2432994.923 | Z134: =SUM(Z7:Z133) -> 361559.605 | AA134: 0 | AB134: 0 | AC134: 0 | AD134: 0 | AE134: 0 | AF134: 0 | AG134: 0 | AH134: 0 | AI134: 0 | AK134: =SUM(AK7:AK133) -> 0 | AL134: 0 | AM134: 20835.57692 | AN134: 300000 | AO134: 0 | AP134: 0 | AQ134: 0 | AR134: 0 | AS134: 0 | AT134: 0 | AV134: =SUM(AV7:AV133) -> 0 | AW134: 0 | AX134: 37120.25708 | AY134: 0 | AZ134: 0 | BA134: 0 | BB134: 0 | BC134: 0 | BD134: 0 | BE134: 0 | BG134: =SUM(BG7:BG133) -> 0 | BH134: 0 | BI134: 12594.07895 | BJ134: 0 | BK134: 0 | BL134: 0 | BM134: 0 | BN134: 0 | BO134: 0 | BP134: 0 | BR134: =SUM(BR7:BR133) -> 0 | BS134: 0 | BT134: 0 | BU134: 0 | BV134: 0 | BW134: 0 | BX134: 0 | BY134: 0 | BZ134: 0 | CA134: 0 | CC134: =SUM(CC7:CC133) -> 0 | CD134: 0 | CE134: 625219.1684 | CF134: 871599.8475 | CG134: 0 | CH134: 0 | CI134: 24315.78947 | CJ134: 104910 | CK134: 0 | CL134: 74840.5998
D380: Totals

Sheet 2023-2024
B1: Project Costs in 2023-2024
G4: Total Cost £K | R4: Funding source % | Z4: Licensee Compulsory Contribution/Direct Benefits | AK4: Electron | AV4: Afry | BG4: Delta-EE | BR4: Licensee Extra Contribution | CC4: Outstanding Funding Required
G5: Labour | H5: Equipment | I5: Contractors | J5: IT | K5: IPR Costs | L5: Travel & Expenses | M5: Payments to users | N5: Contingency | O5: Decommissioning | P5: Other | R5: Licensee Compulsory Contribution /Direct Benefits | S5: Electron | T5: Afry | U5: Delta-EE | V5: Licensee Extra Contribution | W5: Oustanding Funding Required | X5: Total | Z5: Labour | AA5: Equipment | AB5: Contractors | AC5: IT | AD5: IPR Costs | AE5: Travel & Expenses | AF5: Payments to users | AG5: Contingency | AH5: Decommissioning | AI5: Other | AK5: Labour | AL5: Equipment | AM5: Contractors | AN5: IT | AO5: IPR Costs | AP5: Travel & Expenses | AQ5: Payments to users | AR5: Contingency | AS5: Decommissioning | AT5: Other | AV5: Labour | AW5: Equipment | AX5: Contractors | AY5: IT | AZ5: IPR Costs | BA5: Travel & Expenses | BB5: Payments to users | BC5: Contingency | BD5: Decommissioning | BE5: Other | BG5: Labour | BH5: Equipment | BI5: Contractors | BJ5: IT | BK5: IPR Costs | BL5: Travel & Expenses | BM5: Payments to users | BN5: Contingency | BO5: Decommissioning | BP5: Other | BR5: Labour | BS5: Equipment | BT5: Contractors | BU5: IT | BV5: IPR Costs | BW5: Travel & Expenses | BX5: Payments to users | BY5: Contingency | BZ5: Decommissioning | CA5: Other | CC5: Labour | CD5: Equipment | CE5: Contractors | CF5: IT | CG5: IPR Costs | CH5: Travel & Expenses | CI5: Payments to users | CJ5: Contingency | CK5: Decommissioning | CL5: Other
B6: Description | C6: Task | D6: Project Workstream | E6: Unit Cost £ | F6: Description | Q6: Total Cost
B7: 1 - Electron - Delivery Cycle support - Project Management | C7: Project Management | D7: Project Management | E7: 1000 | F7: Project Management | G7: 0 | H7: 0 | I7: 18750 | J7: 0 | K7: 0 | L7: 0 | M7: 0 | N7: 0 | O7: 0 | P7: 0 | Q7: =SUM(G7:P7) -> 18750 | S7: 0.15 | T7: 0 | U7: 0 | V7: 0 | W7: 0.85 | X7: =SUM(R7:W7) -> 1 | Z7: =$R7*G7 -> 0 | AA7: =$R7*H7 -> 0 | AB7: =$R7*I7 -> 0 | AC7: =$R7*J7 -> 0 | AD7: =$R7*K7 -> 0 | AE7: =$R7*L7 -> 0 | AF7: =$R7*M7 -> 0 | AG7: =$R7*N7 -> 0 | AH7: =$R7*O7 -> 0 | AI7: =$R7*P7 -> 0 | AK7: =$S7*G7 -> 0 | AL7: =$S7*H7 -> 0 | AM7: =$S7*I7 -> 2812.5 | AN7: =$S7*J7 -> 0 | AO7: =$S7*K7 -> 0 | AP7: =$S7*L7 -> 0 | AQ7: =$S7*M7 -> 0 | AR7: =$S7*N7 -> 0 | AS7: =$S7*O7 -> 0 | AT7: =$S7*P7 -> 0 | AV7: =$T7*G7 -> 0 | AW7: =$T7*H7 -> 0 | AX7: =$T7*I7 -> 0 | AY7: =$T7*J7 -> 0 | AZ7: =$T7*K7 -> 0 | BA7: =$T7*L7 -> 0 | BB7: =$T7*M7 -> 0 | BC7: =$T7*N7 -> 0 | BD7: =$T7*O7 -> 0 | BE7: =$T7*P7 -> 0 | BG7: =$U7*G7 -> 0 | BH7: =$U7*H7 -> 0 | BI7: =$U7*I7 -> 0 | BJ7: =$U7*J7 -> 0 | BK7: =$U7*K7 -> 0 | BL7: =$U7*L7 -> 0 | BM7: =$U7*M7 -> 0 | BN7: =$U7*N7 -> 0 | BO7: =$U7*O7 -> 0 | BP7: =$U7*P7 -> 0 | BR7: =$V7*G7 -> 0 | BS7: =$V7*H7 -> 0 | BT7: =$V7*I7 -> 0 | BU7: =$V7*J7 -> 0 | BV7: =$V7*K7 -> 0 | BW7: =$V7*L7 -> 0 | BX7: =$V7*M7 -> 0 | BY7: =$V7*N7 -> 0 | BZ7: =$V7*O7 -> 0 | CA7: =$V7*P7 -> 0 | CC7: =$W7*G7 -> 0 | CD7: =$W7*H7 -> 0 | CE7: =$W7*I7 -> 15937.5 | CF7: =$W7*J7 -> 0 | CG7: =$W7*K7 -> 0 | CH7: =$W7*L7 -> 0 | CI7: =$W7*M7 -> 0 | CJ7: =$W7*N7 -> 0 | CK7: =$W7*O7 -> 0 | CL7: =$W7*P7 -> 0
B8: 1 - Afry - Partner activities | C8: Project Management | D8: Project Management | E8: 2304.832 | F8: Project Management | G8: 0 | H8: 0 | I8: 18789.3913 | J8: 0 | K8: 0 | L8: 0 | M8: 0 | N8: 0 | O8: 0 | P8: 0 | Q8: =SUM(G8:P8) -> 18789.3913 | S8: 0 | T8: 0.1 | U8: 0 | V8: 0 | W8: 0.9 | X8: 1 | Z8: 0 | AA8: 0 | AB8: 0 | AC8: 0 | AD8: 0 | AE8: 0 | AF8: 0 | AG8: 0 | AH8: 0 | AI8: 0 | AK8: 0 | AL8: 0 | AM8: 0 | AN8: 0 | AO8: 0 | AP8: 0 | AQ8: 0 | AR8: 0 | AS8: 0 | AT8: 0 | AV8: 0 | AW8: 0 | AX8: 1878.93913 | AY8: 0 | AZ8: 0 | BA8: 0 | BB8: 0 | BC8: 0 | BD8: 0 | BE8: 0 | BG8: 0 | BH8: 0 | BI8: 0 | BJ8: 0 | BK8: 0 | BL8: 0 | BM8: 0 | BN8: 0 | BO8: 0 | BP8: 0 | BR8: 0 | BS8: 0 | BT8: 0 | BU8: 0 | BV8: 0 | BW8: 0 | BX8: 0 | BY8: 0 | BZ8: 0 | CA8: 0 | CC8: 0 | CD8: 0 | CE8: 16910.45217 | CF8: 0 | CG8: 0 | CH8: 0 | CI8: 0 | CJ8: 0 | CK8: 0 | CL8: 0
B9: 1 - ENWL - Project Manager b4 SG | C9: Project Management | D9: Project Management | E9: 497.5057367 | F9: Project Management | G9: 107505.0146 | H9: 0 | I9: 0 | J9: 0 | K9: 0 | L9: 0 | M9: 0 | N9: 0 | O9: 0 | P9: 0 | Q9: 107505.0146 | R9: 0.5 | S9: 0 | T9: 0 | U9: 0 | V9: 0 | W9: 0.5 | X9: 1 | Z9: 53752.50732 | AA9: 0 | AB9: 0 | AC9: 0 | AD9: 0 | AE9: 0 | AF9: 0 | AG9: 0 | AH9: 0 | AI9: 0 | AK9: 0 | AL9: 0 | AM9: 0 | AN9: 0 | AO9: 0 | AP9: 0 | AQ9: 0 | AR9: 0 | AS9: 0 | AT9: 0 | AV9: 0 | AW9: 0 | AX9: 0 | AY9: 0 | AZ9: 0 | BA9: 0 | BB9: 0 | BC9: 0 | BD9: 0 | BE9: 0 | BG9: 0 | BH9: 0 | BI9: 0 | BJ9: 0 | BK9: 0 | BL9: 0 | BM9: 0 | BN9: 0 | BO9: 0 | BP9: 0 | BR9: 0 | BS9: 0 | BT9: 0 | BU9: 0 | BV9: 0 | BW9: 0 | BX9: 0 | BY9: 0 | BZ9: 0 | CA9: 0 | CC9: 53752.50732 | CD9: 0 | CE9: 0 | CF9: 0 | CG9: 0 | CH9: 0 | CI9: 0 | CJ9: 0 | CK9: 0 | CL9: 0
B10: 1 - ENWL - Project Manager after SG | C10: Project Management | D10: Project Management | E10: 497.5057367 | F10: Project Management | G10: 0 | H10: 0 | I10: 0 | J10: 0 | K10: 0 | L10: 0 | M10: 0 | N10: 0 | O10: 0 | P10: 0 | Q10: 0 | S10: 0 | T10: 0 | U10: 0 | V10: 0 | W10: 1 | X10: 1 | Z10: 0 | AA10: 0 | AB10: 0 | AC10: 0 | AD10: 0 | AE10: 0 | AF10: 0 | AG10: 0 | AH10: 0 | AI10: 0 | AK10: 0 | AL10: 0 | AM10: 0 | AN10: 0 | AO10: 0 | AP10: 0 | AQ10: 0 | AR10: 0 | AS10: 0 | AT10: 0 | AV10: 0 | AW10: 0 | AX10: 0 | AY10: 0 | AZ10: 0 | BA10: 0 | BB10: 0 | BC10: 0 | BD10: 0 | BE10: 0 | BG10: 0 | BH10: 0 | BI10: 0 | BJ10: 0 | BK10: 0 | BL10: 0 | BM10: 0 | BN10: 0 | BO10: 0 | BP10: 0 | BR10: 0 | BS10: 0 | BT10: 0 | BU10: 0 | BV10: 0 | BW10: 0 | BX10: 0 | BY10: 0 | BZ10: 0 | CA10: 0 | CC10: 0 | CD10: 0 | CE10: 0 | CF10: 0 | CG10: 0 | CH10: 0 | CI10: 0 | CJ10: 0 | CK10: 0 | CL10: 0
B11: 1 - ENWL - Technical Lead b4 SG | C11: Project Management | D11: Project Management | E11: 497.5057367 | F11: Project Management | G11: 107505.0146 | H11: 0 | I11: 0 | J11: 0 | K11: 0 | L11: 0 | M11: 0 | N11: 0 | O11: 0 | P11: 0 | Q11: 107505.0146 | R11: 0.5 | S11: 0 | T11: 0 | U11: 0 | V11: 0 | W11: 0.5 | X11: 1 | Z11: 53752.50732 | AA11: 0 | AB11: 0 | AC11: 0 | AD11: 0 | AE11: 0 | AF11: 0 | AG11: 0 | AH11: 0 | AI11: 0 | AK11: 0 | AL11: 0 | AM11: 0 | AN11: 0 | AO11: 0 | AP11: 0 | AQ11: 0 | AR11: 0 | AS11: 0 | AT11: 0 | AV11: 0 | AW11: 0 | AX11: 0 | AY11: 0 | AZ11: 0 | BA11: 0 | BB11: 0 | BC11: 0 | BD11: 0 | BE11: 0 | BG11: 0 | BH11: 0 | BI11: 0 | BJ11: 0 | BK11: 0 | BL11: 0 | BM11: 0 | BN11: 0 | BO11: 0 | BP11: 0 | BR11: 0 | BS11: 0 | BT11: 0 | BU11: 0 | BV11: 0 | BW11: 0 | BX11: 0 | BY11: 0 | BZ11: 0 | CA11: 0 | CC11: 53752.50732 | CD11: 0 | CE11: 0 | CF11: 0 | CG11: 0 | CH11: 0 | CI11: 0 | CJ11: 0 | CK11: 0 | CL11: 0
B12: 1 - ENWL - Technical Lead after SG | C12: Project Management | D12: Project Management | E12: 497.5057367 | F12: Project Management | G12: 0 | H12: 0 | I12: 0 | J12: 0 | K12: 0 | L12: 0 | M12: 0 | N12: 0 | O12: 0 | P12: 0 | Q12: 0 | S12: 0 | T12: 0 | U12: 0 | V12: 0 | W12: 1 | X12: 1 | Z12: 0 | AA12: 0 | AB12: 0 | AC12: 0 | AD12: 0 | AE12: 0 | AF12: 0 | AG12: 0 | AH12: 0 | AI12: 0 | AK12: 0 | AL12: 0 | AM12: 0 | AN12: 0 | AO12: 0 | AP12: 0 | AQ12: 0 | AR12: 0 | AS12: 0 | AT12: 0 | AV12: 0 | AW12: 0 | AX12: 0 | AY12: 0 | AZ12: 0 | BA12: 0 | BB12: 0 | BC12: 0 | BD12: 0 | BE12: 0 | BG12: 0 | BH12: 0 | BI12: 0 | BJ12: 0 | BK12: 0 | BL12: 0 | BM12: 0 | BN12: 0 | BO12: 0 | BP12: 0 | BR12: 0 | BS12: 0 | BT12: 0 | BU12: 0 | BV12: 0 | BW12: 0 | BX12: 0 | BY12: 0 | BZ12: 0 | CA12: 0 | CC12: 0 | CD12: 0 | CE12: 0 | CF12: 0 | CG12: 0 | CH12: 0 | CI12: 0 | CJ12: 0 | CK12: 0 | CL12: 0
B13: 1 -ENWL - Customer workstream lead b4 SG | C13: Project Management | D13: Project Management | E13: 366.89 | F13: Project Management | G13: 79280.52265 | H13: 0 | I13: 0 | J13: 0 | K13: 0 | L13: 0 | M13: 0 | N13: 0 | O13: 0 | P13: 0 | Q13: 79280.52265 | R13: 1 | S13: 0 | T13: 0 | U13: 0 | V13: 0 | W13: 0 | X13: 1 | Z13: 79280.52265 | AA13: 0 | AB13: 0 | AC13: 0 | AD13: 0 | AE13: 0 | AF13: 0 | AG13: 0 | AH13: 0 | AI13: 0 | AK13: 0 | AL13: 0 | AM13: 0 | AN13: 0 | AO13: 0 | AP13: 0 | AQ13: 0 | AR13: 0 | AS13: 0 | AT13: 0 | AV13: 0 | AW13: 0 | AX13: 0 | AY13: 0 | AZ13: 0 | BA13: 0 | BB13: 0 | BC13: 0 | BD13: 0 | BE13: 0 | BG13: 0 | BH13: 0 | BI13: 0 | BJ13: 0 | BK13: 0 | BL13: 0 | BM13: 0 | BN13: 0 | BO13: 0 | BP13: 0 | BR13: 0 | BS13: 0 | BT13: 0 | BU13: 0 | BV13: 0 | BW13: 0 | BX13: 0 | BY13: 0 | BZ13: 0 | CA13: 0 | CC13: 0 | CD13: 0 | CE13: 0 | CF13: 0 | CG13: 0 | CH13: 0 | CI13: 0 | CJ13: 0 | CK13: 0 | CL13: 0
B14: 1 -ENWL - Customer workstream lead after SG | C14: Project Management | D14: Project Management | E14: 366.89 | F14: Project Management | G14: 0 | H14: 0 | I14: 0 | J14: 0 | K14: 0 | L14: 0 | M14: 0 | N14: 0 | O14: 0 | P14: 0 | Q14: 0 | S14: 0 | T14: 0 | U14: 0 | V14: 0 | W14: 1 | X14: 1 | Z14: 0 | AA14: 0 | AB14: 0 | AC14: 0 | AD14: 0 | AE14: 0 | AF14: 0 | AG14: 0 | AH14: 0 | AI14: 0 | AK14: 0 | AL14: 0 | AM14: 0 | AN14: 0 | AO14: 0 | AP14: 0 | AQ14: 0 | AR14: 0 | AS14: 0 | AT14: 0 | AV14: 0 | AW14: 0 | AX14: 0 | AY14: 0 | AZ14: 0 | BA14: 0 | BB14: 0 | BC14: 0 | BD14: 0 | BE14: 0 | BG14: 0 | BH14: 0 | BI14: 0 | BJ14: 0 | BK14: 0 | BL14: 0 | BM14: 0 | BN14: 0 | BO14: 0 | BP14: 0 | BR14: 0 | BS14: 0 | BT14: 0 | BU14: 0 | BV14: 0 | BW14: 0 | BX14: 0 | BY14: 0 | BZ14: 0 | CA14: 0 | CC14: 0 | CD14: 0 | CE14: 0 | CF14: 0 | CG14: 0 | CH14: 0 | CI14: 0 | CJ14: 0 | CK14: 0 | CL14: 0
B15: 1 -ENWL - Project management office b4 SG | C15: Project Management | D15: Project Management | E15: 394.22 | F15: Project Management | G15: 22988.78161 | H15: 0 | I15: 0 | J15: 0 | K15: 0 | L15: 0 | M15: 0 | N15: 0 | O15: 0 | P15: 0 | Q15: 22988.78161 | R15: 1 | S15: 0 | T15: 0 | U15: 0 | V15: 0 | W15: 0 | X15: 1 | Z15: 22988.78161 | AA15: 0 | AB15: 0 | AC15: 0 | AD15: 0 | AE15: 0 | AF15: 0 | AG15: 0 | AH15: 0 | AI15: 0 | AK15: 0 | AL15: 0 | AM15: 0 | AN15: 0 | AO15: 0 | AP15: 0 | AQ15: 0 | AR15: 0 | AS15: 0 | AT15: 0 | AV15: 0 | AW15: 0 | AX15: 0 | AY15: 0 | AZ15: 0 | BA15: 0 | BB15: 0 | BC15: 0 | BD15: 0 | BE15: 0 | BG15: 0 | BH15: 0 | BI15: 0 | BJ15: 0 | BK15: 0 | BL15: 0 | BM15: 0 | BN15: 0 | BO15: 0 | BP15: 0 | BR15: 0 | BS15: 0 | BT15: 0 | BU15: 0 | BV15: 0 | BW15: 0 | BX15: 0 | BY15: 0 | BZ15: 0 | CA15: 0 | CC15: 0 | CD15: 0 | CE15: 0 | CF15: 0 | CG15: 0 | CH15: 0 | CI15: 0 | CJ15: 0 | CK15: 0 | CL15: 0
